Workbook

Sheet Velkomst

Sheet Tabel 1 F
A1: Tabel 1. Forsikrede medlemmer
A3: Fyn
C5: Mænd | E5: Kvinder | G5: I alt
A7: Civ. ing. | C7: 1153 | E7: 308 | G7: 1461
A8: Diplom ing. | C8: 2565 | E8: 579 | G8: 3144
A9: Cand. Scient. Tek. | C9: 648 | E9: 625 | G9: 1273
A10: MA. Hum. | C10: 1059 | E10: 2272 | G10: 3331
A11: MA. Nat. | C11: 597 | E11: 589 | G11: 1186
A12: MA. Ph.d. | C12: 85 | E12: 73 | G12: 158
A13: MA. Samf. | C13: 54 | E13: 137 | G13: 191
A14: Øvrige Mag. | C14: 89 | E14: 159 | G14: 248
A15: Agronom | C15: 82 | E15: 68 | G15: 150
A16: Landsk. Arkt. | C16: 8 | E16: 22 | G16: 30
A17: Hortonom | C17: 18 | E17: 20 | G17: 38
A18: Forstkand. | C18: 19 | E18: 7 | G18: 26
A19: Jordbrugsakad. | C19: 127 | E19: 117 | G19: 244
A20: Mejeriing. | C20: 8 | E20: 7 | G20: 15
A21: Levn.m.kand. | C21: 4 | E21: 10 | G21: 14
A22: Dyrlæge | C22: 18 | E22: 116 | G22: 134
A23: Farmaceut | C23: 69 | E23: 214 | G23: 283
A24: Læge | C24: 426 | E24: 871 | G24: 1297
A25: Tandlæge | C25: 17 | E25: 97 | G25: 114
A26: Arkitekt | C26: 74 | E26: 64 | G26: 138
A27: Landinspek. | C27: 47 | E27: 17 | G27: 64
A28: Bibliotekar | C28: 62 | E28: 143 | G28: 205
A29: Musikudd. | C29: 45 | E29: 50 | G29: 95
A30: Teolog | C30: 43 | E30: 78 | G30: 121
A31: Psykolog | C31: 125 | E31: 440 | G31: 565
A32: Jurist | C32: 217 | E32: 403 | G32: 620
A33: Økonom | C33: 323 | E33: 273 | G33: 596
A34: Samf. Adm. | C34: 577 | E34: 922 | G34: 1499
A35: Cand. Merc. | C35: 954 | E35: 863 | G35: 1817
A36: HA | C36: 254 | E36: 178 | G36: 432
A37: HD | C37: 162 | E37: 140 | G37: 302
A38: Komm. og Sprog | C38: 79 | E38: 361 | G38: 440
A39: Bygningskonst. | C39: 747 | E39: 100 | G39: 847
A40: Cand. IT. | C40: 101 | E40: 84 | G40: 185
A41: Bac. Samf. | C41: 36 | E41: 40 | G41: 76
A42: Bac. Hum. | C42: 125 | E42: 227 | G42: 352
A43: Bac. Nat. | C43: 127 | E43: 55 | G43: 182
A44: Andre | C44: 694 | E44: 605 | G44: 1299
A46: Total | C46: 11711 | E46: 11217 | G46: 22928
A48: Ingeniører i alt | C48: 3718 | E48: 887 | G48: 4605
A49: Magistre i alt | C49: 1884 | E49: 3230 | G49: 5114
A50: DJØF'ere i alt | C50: 2325 | E50: 2639 | G50: 4964
A57: Middelfart
C59: Mænd | E59: Kvinder | G59: I alt
A61: Civ. ing. | C61: 77 | E61: 27 | G61: 104
A62: Diplom ing. | C62: 242 | E62: 50 | G62: 292
A63: Cand. Scient. Tek. | C63: 32 | E63: 32 | G63: 64
A64: MA. Hum. | C64: 56 | E64: 115 | G64: 171
A65: MA. Nat. | C65: 30 | E65: 40 | G65: 70
A66: MA. Ph.d. | C66: 4 | E66: 2 | G66: 6
A67: MA. Samf. | C67: 1 | E67: 14 | G67: 15
A68: Øvrige Mag. | C68: 4 | E68: 8 | G68: 12
A69: Agronom | C69: 20 | E69: 11 | G69: 31
A70: Landsk. Arkt. | C70: 2 | E70: 0 | G70: 2
A71: Hortonom | C71: 1 | E71: 3 | G71: 4
A72: Forstkand. | C72: 1 | E72: 0 | G72: 1
A73: Jordbrugsakad. | C73: 24 | E73: 14 | G73: 38
A74: Mejeriing. | C74: 4 | E74: 0 | G74: 4
A75: Levn.m.kand. | C75: 0 | E75: 1 | G75: 1
A76: Dyrlæge | C76: 2 | E76: 16 | G76: 18
A77: Farmaceut | C77: 3 | E77: 8 | G77: 11
A78: Læge | C78: 23 | E78: 83 | G78: 106
A79: Tandlæge | C79: 1 | E79: 9 | G79: 10
A80: Arkitekt | C80: 7 | E80: 8 | G80: 15
A81: Landinspek. | C81: 9 | E81: 3 | G81: 12
A82: Bibliotekar | C82: 4 | E82: 15 | G82: 19
A83: Musikudd. | C83: 4 | E83: 2 | G83: 6
A84: Teolog | C84: 4 | E84: 10 | G84: 14
A85: Psykolog | C85: 8 | E85: 37 | G85: 45
A86: Jurist | C86: 11 | E86: 27 | G86: 38
A87: Økonom | C87: 25 | E87: 24 | G87: 49
A88: Samf. Adm. | C88: 31 | E88: 57 | G88: 88
A89: Cand. Merc. | C89: 80 | E89: 65 | G89: 145
A90: HA | C90: 24 | E90: 10 | G90: 34
A91: HD | C91: 10 | E91: 10 | G91: 20
A92: Komm. og Sprog | C92: 3 | E92: 30 | G92: 33
A93: Bygningskonst. | C93: 60 | E93: 9 | G93: 69
A94: Cand. IT. | C94: 6 | E94: 6 | G94: 12
A95: Bac. Samf. | C95: 1 | E95: 4 | G95: 5
A96: Bac. Hum. | C96: 2 | E96: 9 | G96: 11
A97: Bac. Nat. | C97: 6 | E97: 4 | G97: 10
A98: Andre | C98: 41 | E98: 37 | G98: 78
A100: Total | C100: 839 | E100: 786 | G100: 1625
A102: Ingeniører i alt | C102: 319 | E102: 77 | G102: 396
A103: Magistre i alt | C103: 95 | E103: 179 | G103: 274
A104: DJØF'ere i alt | C104: 171 | E104: 183 | G104: 354
A111: Assens
C113: Mænd | E113: Kvinder | G113: I alt
A115: Civ. ing. | C115: 56 | E115: 15 | G115: 71
A116: Diplom ing. | C116: 192 | E116: 45 | G116: 237
A117: Cand. Scient. Tek. | C117: 21 | E117: 20 | G117: 41
A118: MA. Hum. | C118: 41 | E118: 110 | G118: 151
A119: MA. Nat. | C119: 32 | E119: 28 | G119: 60
A120: MA. Ph.d. | C120: 1 | E120: 1 | G120: 2
A121: MA. Samf. | C121: 1 | E121: 4 | G121: 5
A122: Øvrige Mag. | C122: 2 | E122: 2 | G122: 4
A123: Agronom | C123: 8 | E123: 9 | G123: 17
A124: Landsk. Arkt. | C124: 1 | E124: 6 | G124: 7
A125: Hortonom | C125: 1 | E125: 2 | G125: 3
A126: Forstkand. | C126: 4 | E126: 2 | G126: 6
A127: Jordbrugsakad. | C127: 14 | E127: 19 | G127: 33
A128: Mejeriing. | C128: 1 | E128: 0 | G128: 1
A129: Levn.m.kand. | C129: 0 | E129: 1 | G129: 1
A130: Dyrlæge | C130: 3 | E130: 14 | G130: 17
A131: Farmaceut | C131: 0 | E131: 11 | G131: 11
A132: Læge | C132: 9 | E132: 27 | G132: 36
A133: Tandlæge | C133: 2 | E133: 2 | G133: 4
A134: Arkitekt | C134: 1 | E134: 3 | G134: 4
A135: Landinspek. | C135: 2 | E135: 1 | G135: 3
A136: Bibliotekar | C136: 5 | E136: 11 | G136: 16
A137: Musikudd. | C137: 3 | E137: 8 | G137: 11
A138: Teolog | C138: 4 | E138: 8 | G138: 12
A139: Psykolog | C139: 5 | E139: 19 | G139: 24
A140: Jurist | C140: 7 | E140: 17 | G140: 24
A141: Økonom | C141: 9 | E141: 12 | G141: 21
A142: Samf. Adm. | C142: 18 | E142: 40 | G142: 58
A143: Cand. Merc. | C143: 30 | E143: 27 | G143: 57
A144: HA | C144: 9 | E144: 12 | G144: 21
A145: HD | C145: 10 | E145: 9 | G145: 19
A146: Komm. og Sprog | C146: 2 | E146: 18 | G146: 20
A147: Bygningskonst. | C147: 46 | E147: 5 | G147: 51
A148: Cand. IT. | C148: 6 | E148: 2 | G148: 8
A149: Bac. Samf. | C149: 0 | E149: 4 | G149: 4
A150: Bac. Hum. | C150: 6 | E150: 10 | G150: 16
A151: Bac. Nat. | C151: 4 | E151: 1 | G151: 5
A152: Andre | C152: 52 | E152: 21 | G152: 73
A154: Total | C154: 594 | E154: 527 | G154: 1121
A156: Ingeniører i alt | C156: 248 | E156: 60 | G156: 308
A157: Magistre i alt | C157: 77 | E157: 145 | G157: 222
A158: DJØF'ere i alt | C158: 73 | E158: 108 | G158: 181
A165: Faarborg-Midtfyn
C167: Mænd | E167: Kvinder | G167: I alt
A169: Civ. ing. | C169: 65 | E169: 14 | G169: 79
A170: Diplom ing. | C170: 234 | E170: 43 | G170: 277
A171: Cand. Scient. Tek. | C171: 31 | E171: 35 | G171: 66
A172: MA. Hum. | C172: 63 | E172: 119 | G172: 182
A173: MA. Nat. | C173: 33 | E173: 39 | G173: 72
A174: MA. Ph.d. | C174: 4 | E174: 3 | G174: 7
A175: MA. Samf. | C175: 3 | E175: 4 | G175: 7
A176: Øvrige Mag. | C176: 8 | E176: 9 | G176: 17
A177: Agronom | C177: 10 | E177: 15 | G177: 25
A178: Landsk. Arkt. | C178: 1 | E178: 5 | G178: 6
A179: Hortonom | C179: 2 | E179: 2 | G179: 4
A180: Forstkand. | C180: 6 | E180: 1 | G180: 7
A181: Jordbrugsakad. | C181: 19 | E181: 23 | G181: 42
A182: Mejeriing. | C182: 1 | E182: 2 | G182: 3
A183: Levn.m.kand. | C183: 0 | E183: 4 | G183: 4
A184: Dyrlæge | C184: 0 | E184: 14 | G184: 14
A185: Farmaceut | C185: 1 | E185: 16 | G185: 17
A186: Læge | C186: 13 | E186: 32 | G186: 45
A187: Tandlæge | C187: 1 | E187: 1 | G187: 2
A188: Arkitekt | C188: 6 | E188: 5 | G188: 11
A189: Landinspek. | C189: 4 | E189: 0 | G189: 4
A190: Bibliotekar | C190: 1 | E190: 11 | G190: 12
A191: Musikudd. | C191: 5 | E191: 4 | G191: 9
A192: Teolog | C192: 5 | E192: 13 | G192: 18
A193: Psykolog | C193: 2 | E193: 19 | G193: 21
A194: Jurist | C194: 8 | E194: 24 | G194: 32
A195: Økonom | C195: 11 | E195: 13 | G195: 24
A196: Samf. Adm. | C196: 28 | E196: 57 | G196: 85
A197: Cand. Merc. | C197: 37 | E197: 44 | G197: 81
A198: HA | C198: 16 | E198: 13 | G198: 29
A199: HD | C199: 12 | E199: 13 | G199: 25
A200: Komm. og Sprog | C200: 4 | E200: 12 | G200: 16
A201: Bygningskonst. | C201: 62 | E201: 10 | G201: 72
A202: Cand. IT. | C202: 4 | E202: 4 | G202: 8
A203: Bac. Samf. | C203: 5 | E203: 4 | G203: 9
A204: Bac. Hum. | C204: 3 | E204: 14 | G204: 17
A205: Bac. Nat. | C205: 5 | E205: 3 | G205: 8
A206: Andre | C206: 51 | E206: 39 | G206: 90
A208: Total | C208: 745 | E208: 660 | G208: 1405
A210: Ingeniører i alt | C210: 299 | E210: 57 | G210: 356
A211: Magistre i alt | C211: 111 | E211: 174 | G211: 285
A212: DJØF'ere i alt | C212: 100 | E212: 151 | G212: 251
A219: Kerteminde
C221: Mænd | E221: Kvinder | G221: I alt
A223: Civ. ing. | C223: 19 | E223: 10 | G223: 29
A224: Diplom ing. | C224: 113 | E224: 25 | G224: 138
A225: Cand. Scient. Tek. | C225: 20 | E225: 14 | G225: 34
A226: MA. Hum. | C226: 26 | E226: 73 | G226: 99
A227: MA. Nat. | C227: 14 | E227: 15 | G227: 29
A228: MA. Ph.d. | C228: 4 | E228: 3 | G228: 7
A229: MA. Samf. | C229: 1 | E229: 2 | G229: 3
A230: Øvrige Mag. | C230: 2 | E230: 4 | G230: 6
A231: Agronom | C231: 1 | E231: 2 | G231: 3
A232: Landsk. Arkt. | C232: 1 | E232: 1 | G232: 2
A233: Hortonom | C233: 1 | E233: 2 | G233: 3
A234: Forstkand. | C234: 0 | E234: 1 | G234: 1
A235: Jordbrugsakad. | C235: 3 | E235: 6 | G235: 9
A236: Mejeriing. | C236: 0 | E236: 0 | G236: 0
A237: Levn.m.kand. | C237: 0 | E237: 1 | G237: 1
A238: Dyrlæge | C238: 0 | E238: 2 | G238: 2
A239: Farmaceut | C239: 1 | E239: 3 | G239: 4
A240: Læge | C240: 7 | E240: 10 | G240: 17
A241: Tandlæge | C241: 0 | E241: 2 | G241: 2
A242: Arkitekt | C242: 2 | E242: 2 | G242: 4
A243: Landinspek. | C243: 4 | E243: 1 | G243: 5
... 285 more rows

Sheet Tabel 2 F
A1: Tabel 2. Antal bruttoledighedsberørte og gennemsnitlig antal ledige brutto
A3: Fyn
C5: Mænd | F5: Kvinder | I5: I alt
C6: Ledigheds- berørte | D6: Gns. brutto- ledighed | F6: Ledigheds- berørte | G6: Gns. brutto- ledighed | I6: Ledigheds- berørte | J6: Gns. brutto- ledighed
A9: Civ. ing. | C9: 98 | D9: 93.92752448 | F9: 32 | G9: 28.12262209 | I9: 130 | J9: 122.0501466
A10: Diplom ing. | C10: 88 | D10: 80.05675794 | F10: 36 | G10: 32.6114888 | I10: 124 | J10: 112.6682467
A11: Cand. Scient. Tek. | C11: 80 | D11: 70.63306929 | F11: 87 | G11: 74.9104971 | I11: 167 | J11: 145.5435664
A12: MA. Hum. | C12: 145 | D12: 127.190794 | F12: 324 | G12: 291.8131354 | I12: 469 | J12: 419.0039294
A13: MA. Nat. | C13: 43 | D13: 37.17333001 | F13: 42 | G13: 36.86396807 | I13: 85 | J13: 74.03729807
A14: MA. Ph.d. | C14: 3 | D14: 2.768664629 | F14: 4 | G14: 3.587600574 | I14: 7 | J14: 6.356265203
A15: MA. Samf. | C15: 9 | D15: 7.031747022 | F15: 25 | G15: 22.28029689 | I15: 34 | J15: 29.31204391
A16: Øvrige Mag. | C16: 3 | D16: 2.621468222 | F16: 11 | G16: 10.31559908 | I16: 14 | J16: 12.9370673
A17: Agronom | C17: 3 | D17: 2.662633319 | F17: 1 | G17: 0.9998128859 | I17: 4 | J17: 3.662446205
A18: Landsk. Arkt. | C18: 0 | D18: 0 | F18: 0 | G18: 0 | I18: 0 | J18: 0
A19: Hortonom | C19: 0 | D19: 0 | F19: 2 | G19: 1.999625772 | I19: 2 | J19: 1.999625772
A20: Forstkand. | C20: 2 | D20: 1.999625772 | F20: 1 | G20: 0.9998128859 | I20: 3 | J20: 2.999438658
A21: Jordbrugsakad. | C21: 5 | D21: 4.662259091 | F21: 4 | G21: 3.999251544 | I21: 9 | J21: 8.661510634
A22: Mejeriing. | C22: 0 | D22: 0 | F22: 0 | G22: 0 | I22: 0 | J22: 0
A23: Levn.m.kand. | C23: 0 | D23: 0 | F23: 2 | G23: 1.675294705 | I23: 2 | J23: 1.675294705
A24: Dyrlæge | C24: 0 | D24: 0 | F24: 2 | G24: 1.757624899 | I24: 2 | J24: 1.757624899
A25: Farmaceut | C25: 6 | D25: 5.029626396 | F25: 27 | G25: 26.53339986 | I25: 33 | J25: 31.56302626
A26: Læge | C26: 2 | D26: 1.312293395 | F26: 6 | G26: 4.741470717 | I26: 8 | J26: 6.053764112
A27: Tandlæge | C27: 0 | D27: 0 | F27: 2 | G27: 1.207509512 | I27: 2 | J27: 1.207509512
A28: Arkitekt | C28: 3 | D28: 2.999438658 | F28: 1 | G28: 0.6767292459 | I28: 4 | J28: 3.676167904
A29: Landinspek. | C29: 0 | D29: 0 | F29: 0 | G29: 0 | I29: 0 | J29: 0
A30: Bibliotekar | C30: 5 | D30: 4.011102102 | F30: 5 | G30: 3.323769725 | I30: 10 | J30: 7.334871827
A31: Musikudd. | C31: 2 | D31: 1.319777958 | F31: 3 | G31: 2.525416329 | I31: 5 | J31: 3.845194287
A32: Teolog | C32: 1 | D32: 0.9998128859 | F32: 0 | G32: 0 | I32: 1 | J32: 0.9998128859
A33: Psykolog | C33: 12 | D33: 10.05363937 | F33: 32 | G33: 28.48437597 | I33: 44 | J33: 38.53801534
A34: Jurist | C34: 11 | D34: 9.023888231 | F34: 10 | G34: 8.581675295 | I34: 21 | J34: 17.60556353
A35: Økonom | C35: 14 | D35: 13.44352273 | F35: 9 | G35: 8.308488742 | I35: 23 | J35: 21.75201148
A36: Samf. Adm. | C36: 54 | D36: 50.25572257 | F36: 104 | G36: 91.42206699 | I36: 158 | J36: 141.6777896
A37: Cand. Merc. | C37: 78 | D37: 71.28859228 | F37: 86 | G37: 79.12305869 | I37: 164 | J37: 150.411651
A38: HA | C38: 28 | D38: 24.67099108 | F38: 28 | G38: 23.94436475 | I38: 56 | J38: 48.61535583
A39: HD | C39: 14 | D39: 11.79691885 | F39: 20 | G39: 18.03842076 | I39: 34 | J39: 29.83533961
A40: Komm. og Sprog | C40: 11 | D40: 9.551549928 | F40: 44 | G40: 39.24094056 | I40: 55 | J40: 48.79249049
A41: Bygningskonst. | C41: 47 | D41: 44.11370299 | F41: 14 | G41: 11.88280422 | I41: 61 | J41: 55.9965072
A42: Cand. IT. | C42: 18 | D42: 14.93232708 | F42: 24 | G42: 21.25428803 | I42: 42 | J42: 36.18661511
A43: Bac. Samf. | C43: 5 | D43: 4.122123121 | F43: 8 | G43: 6.900767168 | I43: 13 | J43: 11.02289029
A44: Bac. Hum. | C44: 28 | D44: 25.41882368 | F44: 35 | G44: 29.51038483 | I44: 63 | J44: 54.92920851
A45: Bac. Nat. | C45: 14 | D45: 13.62938938 | F45: 12 | G45: 10.88068359 | I45: 26 | J45: 24.51007297
A46: Andre | C46: 53 | D46: 47.01428304 | F46: 72 | G46: 62.37884364 | I46: 125 | J46: 109.3931267
A48: Total | C48: =SUM(C9:C46)-C21 -> 880 | D48: 791.0531404 | E48: 0 | F48: 1111 | G48: 986.8968378 | H48: 0 | I48: 1991 | J48: =SUM(J9:J46)-J21 -> 1777.949978
A50: Ingeniører i alt | C50: 186 | D50: 173.9842824 | F50: 68 | G50: 60.7341109 | I50: 254 | J50: 234.7183933
A51: Magistre i alt | C51: 203 | D51: 176.7860039 | F51: 406 | G51: 364.8606 | I51: 609 | J51: 541.6466039
A52: DJØF'ere i alt | C52: 185 | D52: 168.6827169 | F52: 237 | G52: 211.3796545 | I52: 422 | J52: 380.0623714
A57: Middelfart
C59: Mænd | F59: Kvinder | I59: I alt
C60: Ledigheds- berørte | D60: Gns. brutto- ledighed | F60: Ledigheds- berørte | G60: Gns. brutto- ledighed | I60: Ledigheds- berørte | J60: Gns. brutto- ledighed
A63: Civ. ing. | C63: 0 | D63: 0 | F63: 0 | G63: 0 | I63: 0 | J63: 0
A64: Diplom ing. | C64: 11 | D64: 9.839705607 | F64: 3 | G64: 2.857231959 | I64: 14 | J64: 12.69693757
A65: Cand. Scient. Tek. | C65: 3 | D65: 2.495478076 | F65: 3 | G65: 1.289839706 | I65: 6 | J65: 3.785317782
A66: MA. Hum. | C66: 3 | D66: 1.997754631 | F66: 9 | G66: 6.752947047 | I66: 12 | J66: 8.750701678
A67: MA. Nat. | C67: 0 | D67: 0 | F67: 3 | G67: 2.030187738 | I67: 3 | J67: 2.030187738
A68: MA. Ph.d. | C68: 1 | D68: 0.7690388574 | F68: 0 | G68: 0 | I68: 1 | J68: 0.7690388574
A69: MA. Samf. | C69: 0 | D69: 0 | F69: 3 | G69: 2.399426183 | I69: 3 | J69: 2.399426183
A70: Øvrige Mag. | C70: 0 | D70: 0 | F70: 0 | G70: 0 | I70: 0 | J70: 0
A71: Agronom | C71: 0 | D71: 0 | F71: 0 | G71: 0 | I71: 0 | J71: 0
A72: Landsk. Arkt. | C72: 0 | D72: 0 | F72: 0 | G72: 0 | I72: 0 | J72: 0
A73: Hortonom | C73: 0 | D73: 0 | F73: 0 | G73: 0 | I73: 0 | J73: 0
A74: Forstkand. | C74: 1 | D74: 0.9998128859 | F74: 0 | G74: 0 | I74: 1 | J74: 0.9998128859
A75: Jordbrugsakad. | C75: 1 | D75: 0.9998128859 | F75: 0 | G75: 0 | I75: 1 | J75: 0.9998128859
A76: Mejeriing. | C76: 0 | D76: 0 | F76: 0 | G76: 0 | I76: 0 | J76: 0
A77: Levn.m.kand. | C77: 0 | D77: 0 | F77: 0 | G77: 0 | I77: 0 | J77: 0
A78: Dyrlæge | C78: 0 | D78: 0 | F78: 1 | G78: 0.9075032745 | I78: 1 | J78: 0.9075032745
A79: Farmaceut | C79: 0 | D79: 0 | F79: 1 | G79: 0.9998128859 | I79: 1 | J79: 0.9998128859
A80: Læge | C80: 0 | D80: 0 | F80: 1 | G80: 0.9998128859 | I80: 1 | J80: 0.9998128859
A81: Tandlæge | C81: 0 | D81: 0 | F81: 0 | G81: 0 | I81: 0 | J81: 0
A82: Arkitekt | C82: 0 | D82: 0 | F82: 0 | G82: 0 | I82: 0 | J82: 0
A83: Landinspek. | C83: 0 | D83: 0 | F83: 0 | G83: 0 | I83: 0 | J83: 0
A84: Bibliotekar | C84: 1 | D84: 0.9998128859 | F84: 2 | G84: 0.4790120377 | I84: 3 | J84: 1.478824924
A85: Musikudd. | C85: 0 | D85: 0 | F85: 0 | G85: 0 | I85: 0 | J85: 0
A86: Teolog | C86: 0 | D86: 0 | F86: 0 | G86: 0 | I86: 0 | J86: 0
A87: Psykolog | C87: 0 | D87: 0 | F87: 0 | G87: 0 | I87: 0 | J87: 0
A88: Jurist | C88: 0 | D88: 0 | F88: 0 | G88: 0 | I88: 0 | J88: 0
A89: Økonom | C89: 0 | D89: 0 | F89: 0 | G89: 0 | I89: 0 | J89: 0
A90: Samf. Adm. | C90: 0 | D90: 0 | F90: 0 | G90: 0 | I90: 0 | J90: 0
A91: Cand. Merc. | C91: 2 | D91: 1.999625772 | F91: 3 | G91: 1.887357326 | I91: 5 | J91: 3.886983097
A92: HA | C92: 1 | D92: 0.9998128859 | F92: 1 | G92: 0.9998128859 | I92: 2 | J92: 1.999625772
A93: HD | C93: 0 | D93: 0 | F93: 0 | G93: 0 | I93: 0 | J93: 0
A94: Komm. og Sprog | C94: 0 | D94: 0 | F94: 0 | G94: 0 | I94: 0 | J94: 0
A95: Bygningskonst | C95: 3 | D95: 2.630761554 | F95: 1 | G95: 0.1249298322 | I95: 4 | J95: 2.755691387
A96: Cand. IT. | C96: 3 | D96: 1.707104098 | F96: 1 | G96: 0.9998128859 | I96: 4 | J96: 2.706916984
A97: Bac. Samf. | C97: 0 | D97: 0 | F97: 0 | G97: 0 | I97: 0 | J97: 0
A98: Bac. Hum. | C98: 0 | D98: 0 | F98: 0 | G98: 0 | I98: 0 | J98: 0
A99: Bac. Nat. | C99: 0 | D99: 0 | F99: 1 | G99: 0.9998128859 | I99: 1 | J99: 0.9998128859
A100: Andre | C100: 0 | D100: 0 | F100: 0 | G100: 0 | I100: 0 | J100: 0
A102: Total | C102: 30 | D102: 25.07696626 | F102: 36 | G102: 25.57743404 | I102: 66 | J102: 50.6544003
A104: Ingeniører i alt | C104: 11 | D104: 9.839705607 | F104: 3 | G104: 2.857231959 | I104: 14 | J104: 12.69693757
A105: Magistre i alt | C105: 4 | D105: 2.766793488 | F105: 15 | G105: 11.18256097 | I105: 19 | J105: 13.94935446
A106: DJØF'ere i alt | C106: 3 | D106: 2.999438658 | F106: 4 | G106: 2.887170211 | I106: 7 | J106: 5.886608869
A111: Assens
C113: Mænd | F113: Kvinder | I113: I alt
C114: Ledigheds- berørte | D114: Gns. brutto- ledighed | F114: Ledigheds- berørte | G114: Gns. brutto- ledighed | I114: Ledigheds- berørte | J114: Gns. brutto- ledighed
A117: Civ. ing. | C117: 2 | D117: 1.999625772 | F117: 1 | G117: 0.9998128859 | I117: 3 | J117: 2.999438658
A118: Diplom ing. | C118: 7 | D118: 6.502837897 | F118: 2 | G118: 1.999625772 | I118: 9 | J118: 8.502463669
A119: Cand. Scient. Tek. | C119: 0 | D119: 0 | F119: 4 | G119: 3.395496788 | I119: 4 | J119: 3.395496788
A120: MA. Hum. | C120: 5 | D120: 4.885548556 | F120: 13 | G120: 12.76679349 | I120: 18 | J120: 17.65234204
A121: MA. Nat. | C121: 1 | D121: 0.99357575 | F121: 3 | G121: 2.986964386 | I121: 4 | J121: 3.980540136
A122: MA. Ph.d. | C122: 0 | D122: 0 | F122: 0 | G122: 0 | I122: 0 | J122: 0
A123: MA. Samf. | C123: 0 | D123: 0 | F123: 1 | G123: 0.9998128859 | I123: 1 | J123: 0.9998128859
A124: Øvrige Mag. | C124: 0 | D124: 0 | F124: 0 | G124: 0 | I124: 0 | J124: 0
A125: Agronom | C125: 0 | D125: 0 | F125: 0 | G125: 0 | I125: 0 | J125: 0
A126: Landsk. Arkt. | C126: 0 | D126: 0 | F126: 0 | G126: 0 | I126: 0 | J126: 0
A127: Hortonom | C127: 0 | D127: 0 | F127: 0 | G127: 0 | I127: 0 | J127: 0
A128: Forstkand. | C128: 0 | D128: 0 | F128: 0 | G128: 0 | I128: 0 | J128: 0
A129: Jordbrugsakad. | C129: 0 | D129: 0 | F129: 0 | G129: 0 | I129: 0 | J129: 0
A130: Mejeriing. | C130: 0 | D130: 0 | F130: 0 | G130: 0 | I130: 0 | J130: 0
A131: Levn.m.kand. | C131: 0 | D131: 0 | F131: 0 | G131: 0 | I131: 0 | J131: 0
A132: Dyrlæge | C132: 0 | D132: 0 | F132: 0 | G132: 0 | I132: 0 | J132: 0
A133: Farmaceut | C133: 0 | D133: 0 | F133: 0 | G133: 0 | I133: 0 | J133: 0
A134: Læge | C134: 0 | D134: 0 | F134: 1 | G134: 0.4459552174 | I134: 1 | J134: 0.4459552174
A135: Tandlæge | C135: 0 | D135: 0 | F135: 0 | G135: 0 | I135: 0 | J135: 0
A136: Arkitekt | C136: 0 | D136: 0 | F136: 0 | G136: 0 | I136: 0 | J136: 0
A137: Landinspek. | C137: 0 | D137: 0 | F137: 0 | G137: 0 | I137: 0 | J137: 0
A138: Bibliotekar | C138: 1 | D138: 0.9998128859 | F138: 0 | G138: 0 | I138: 1 | J138: 0.9998128859
A139: Musikudd. | C139: 0 | D139: 0 | F139: 0 | G139: 0 | I139: 0 | J139: 0
A140: Teolog | C140: 0 | D140: 0 | F140: 0 | G140: 0 | I140: 0 | J140: 0
A141: Psykolog | C141: 0 | D141: 0 | F141: 1 | G141: 0.9998128859 | I141: 1 | J141: 0.9998128859
A142: Jurist | C142: 0 | D142: 0 | F142: 1 | G142: 0.5139399988 | I142: 1 | J142: 0.5139399988
A143: Økonom | C143: 1 | D143: 0.9998128859 | F143: 0 | G143: 0 | I143: 1 | J143: 0.9998128859
A144: Samf. Adm. | C144: 1 | D144: 0.9998128859 | F144: 3 | G144: 2.999438658 | I144: 4 | J144: 3.999251544
A145: Cand. Merc. | C145: 3 | D145: 2.16428616 | F145: 0 | G145: 0 | I145: 3 | J145: 2.16428616
A146: HA | C146: 0 | D146: 0 | F146: 1 | G146: 0.9998128859 | I146: 1 | J146: 0.9998128859
A147: HD | C147: 0 | D147: 0 | F147: 1 | G147: 0.862595896 | I147: 1 | J147: 0.862595896
A148: Komm. og Sprog | C148: 0 | D148: 0 | F148: 3 | G148: 2.581550552 | I148: 3 | J148: 2.581550552
A149: Bygningskonst. | C149: 1 | D149: 1 | F149: 0 | G149: 0 | I149: 1 | J149: 1
A150: Cand. IT. | C150: 1 | D150: 0.9998128859 | F150: 0 | G150: 0 | I150: 1 | J150: 0.9998128859
A151: Bac. Samf. | C151: 0 | D151: 0 | F151: 0 | G151: 0 | I151: 0 | J151: 0
A152: Bac. Hum. | C152: 1 | D152: 0.9998128859 | F152: 0 | G152: 0 | I152: 1 | J152: 0.9998128859
A153: Bac. Nat. | C153: 0 | D153: 0 | F153: 0 | G153: 0 | I153: 0 | J153: 0
A154: Andre | C154: 3 | D154: 2.999438658 | F154: 2 | G154: 1.999625772 | I154: 5 | J154: 4.99906443
A156: Total | C156: 27 | D156: 25.54437722 | F156: 37 | G156: 34.55123807 | I156: 64 | J156: 60.09561529
A158: Ingeniører i alt | C158: 9 | D158: 8.502463669 | F158: 3 | G158: 2.999438658 | I158: 12 | J158: 11.50190233
A159: Magistre i alt | C159: 6 | D159: 5.879124306 | F159: 17 | G159: 16.75357076 | I159: 23 | J159: 22.63269507
A160: DJØF'ere i alt | C160: 5 | D160: 4.163911932 | F160: 5 | G160: 4.513191542 | I160: 10 | J160: 8.677103474
A165: Faaborg-Midtfyn
C167: Mænd | F167: Kvinder | I167: I alt
C168: Ledigheds- berørte | D168: Gns. brutto- ledighed | F168: Ledigheds- berørte | G168: Gns. brutto- ledighed | I168: Ledigheds- berørte | J168: Gns. brutto- ledighed
A171: Civ. ing. | C171: 1 | D171: 0.9998128859 | F171: 4 | G171: 2.845381401 | I171: 5 | J171: 3.845194287
A172: Diplom ing. | C172: 4 | D172: 3.341233705 | F172: 1 | G172: 0.4459552174 | I172: 5 | J172: 3.787188923
A173: Cand. Scient. Tek. | C173: 1 | D173: 0.9075032745 | F173: 5 | G173: 4.99906443 | I173: 6 | J173: 5.906567704
A174: MA. Hum. | C174: 6 | D174: 5.171209381 | F174: 15 | G174: 14.76205327 | I174: 21 | J174: 19.93326265
A175: MA. Nat. | C175: 2 | D175: 1.597954219 | F175: 3 | G175: 2.999438658 | I175: 5 | J175: 4.597392877
A176: MA. Ph.d. | C176: 1 | D176: 0.9998128859 | F176: 0 | G176: 0 | I176: 1 | J176: 0.9998128859
A177: MA. Samf. | C177: 1 | D177: 0.8151936631 | F177: 2 | G177: 1.999625772 | I177: 3 | J177: 2.814819435
A178: Øvrige Mag. | C178: 1 | D178: 0.8987712842 | F178: 0 | G178: 0 | I178: 1 | J178: 0.8987712842
A179: Agronom | C179: 2 | D179: 1.893594461 | F179: 0 | G179: 0 | I179: 2 | J179: 1.893594461
A180: Landsk. Arkt. | C180: 0 | D180: 0 | F180: 0 | G180: 0 | I180: 0 | J180: 0
A181: Hortonom | C181: 0 | D181: 0 | F181: 1 | G181: 0.9998128859 | I181: 1 | J181: 0.9998128859
A182: Forstkand. | C182: 1 | D182: 0.9998128859 | F182: 0 | G182: 0 | I182: 1 | J182: 0.9998128859
A183: Jordbrugsakad. | C183: 3 | D183: 2.893407347 | F183: 1 | G183: 0.9998128859 | I183: 4 | J183: 3.893220233
A184: Mejeriing. | C184: 0 | D184: 0 | F184: 0 | G184: 0 | I184: 0 | J184: 0
A185: Levn.m.kand. | C185: 0 | D185: 0 | F185: 0 | G185: 0 | I185: 0 | J185: 0
A186: Dyrlæge | C186: 0 | D186: 0 | F186: 0 | G186: 0 | I186: 0 | J186: 0
A187: Farmaceut | C187: 0 | D187: 0 | F187: 0 | G187: 0 | I187: 0 | J187: 0
A188: Læge | C188: 0 | D188: 0 | F188: 0 | G188: 0 | I188: 0 | J188: 0
A189: Tandlæge | C189: 0 | D189: 0 | F189: 0 | G189: 0 | I189: 0 | J189: 0
A190: Arkitekt | C190: 1 | D190: 0.9998128859 | F190: 0 | G190: 0 | I190: 1 | J190: 0.9998128859
A191: Landinspek. | C191: 0 | D191: 0 | F191: 0 | G191: 0 | I191: 0 | J191: 0
A192: Bibliotekar | C192: 0 | D192: 0 | F192: 0 | G192: 0 | I192: 0 | J192: 0
A193: Musikudd. | C193: 0 | D193: 0 | F193: 0 | G193: 0 | I193: 0 | J193: 0
A194: Teolog | C194: 0 | D194: 0 | F194: 0 | G194: 0 | I194: 0 | J194: 0
A195: Psykolog | C195: 0 | D195: 0 | F195: 4 | G195: 3.261398366 | I195: 4 | J195: 3.261398366
A196: Jurist | C196: 0 | D196: 0 | F196: 1 | G196: 0.9998128859 | I196: 1 | J196: 0.9998128859
A197: Økonom | C197: 0 | D197: 0 | F197: 0 | G197: 0 | I197: 0 | J197: 0
A198: Samf. Adm. | C198: 4 | D198: 3.530842637 | F198: 7 | G198: 5.479947608 | I198: 11 | J198: 9.010790245
A199: Cand. Merc. | C199: 2 | D199: 1.999625772 | F199: 2 | G199: 1.999625772 | I199: 4 | J199: 3.999251544
A200: HA | C200: 3 | D200: 2.962015842 | F200: 0 | G200: 0 | I200: 3 | J200: 2.962015842
A201: HD | C201: 1 | D201: 0.9998128859 | F201: 0 | G201: 0 | I201: 1 | J201: 0.9998128859
A202: Komm. og Sprog | C202: 0 | D202: 0 | F202: 3 | G202: 2.412524169 | I202: 3 | J202: 2.412524169
A203: Bygningskonst. | C203: 5 | D203: 5 | F203: 1 | G203: 0.9076903886 | I203: 6 | J203: 5.907690389
A204: Cand. IT. | C204: 0 | D204: 0 | F204: 1 | G204: 0.9998128859 | I204: 1 | J204: 0.9998128859
A205: Bac. Samf. | C205: 0 | D205: 0 | F205: 0 | G205: 0 | I205: 0 | J205: 0
A206: Bac. Hum. | C206: 0 | D206: 0 | F206: 1 | G206: 0.9998128859 | I206: 1 | J206: 0.9998128859
A207: Bac. Nat. | C207: 1 | D207: 0.9998128859 | F207: 1 | G207: 0.9075032745 | I207: 2 | J207: 1.90731616
A208: Andre | C208: 2 | D208: 1.650969875 | F208: 2 | G208: 1.445768103 | I208: 4 | J208: 3.096737978
A210: Total | C210: 39 | D210: 35.76779143 | F210: 54 | G210: 48.46522797 | I210: 93 | J210: 84.2330194
A212: Ingeniører i alt | C212: 5 | D212: 4.341046591 | F212: 5 | G212: 3.291336618 | I212: 10 | J212: 7.63238321
A213: Magistre i alt | C213: 11 | D213: 9.482941433 | F213: 20 | G213: 19.76111769 | I213: 31 | J213: 29.24405913
A214: DJØF'ere i alt | C214: 9 | D214: 8.492484251 | F214: 10 | G214: 8.479386266 | I214: 19 | J214: 16.97187052
A219: Kerteminde
C221: Mænd | F221: Kvinder | I221: I alt
C222: Ledigheds- berørte | D222: Gns. brutto- ledighed | F222: Ledigheds- berørte | G222: Gns. brutto- ledighed | I222: Ledigheds- berørte | J222: Gns. brutto- ledighed
A225: Civ. ing. | C225: 0 | D225: 0 | F225: 0 | G225: 0 | I225: 0 | J225: 0
A226: Diplom ing. | C226: 4 | D226: 3.450383584 | F226: 4 | G226: 3.905694505 | I226: 8 | J226: 7.356078089
A227: Cand. Scient. Tek. | C227: 2 | D227: 1.999625772 | F227: 0 | G227: 0 | I227: 2 | J227: 1.999625772
A228: MA. Hum. | C228: 2 | D228: 1.90731616 | F228: 6 | G228: 5.179941371 | I228: 8 | J228: 7.087257531
A229: MA. Nat. | C229: 0 | D229: 0 | F229: 0 | G229: 0 | I229: 0 | J229: 0
A230: MA. Ph.d. | C230: 0 | D230: 0 | F230: 0 | G230: 0 | I230: 0 | J230: 0
A231: MA. Samf. | C231: 0 | D231: 0 | F231: 0 | G231: 0 | I231: 0 | J231: 0
A232: Øvrige Mag. | C232: 0 | D232: 0 | F232: 1 | G232: 0.9998128859 | I232: 1 | J232: 0.9998128859
A233: Agronom | C233: 0 | D233: 0 | F233: 0 | G233: 0 | I233: 0 | J233: 0
A234: Landsk. Arkt. | C234: 0 | D234: 0 | F234: 0 | G234: 0 | I234: 0 | J234: 0
A235: Hortonom | C235: 0 | D235: 0 | F235: 0 | G235: 0 | I235: 0 | J235: 0
A236: Forstkand. | C236: 0 | D236: 0 | F236: 0 | G236: 0 | I236: 0 | J236: 0
A237: Jordbrugsakad. | C237: 0 | D237: 0 | F237: 0 | G237: 0 | I237: 0 | J237: 0
A238: Mejeriing. | C238: 0 | D238: 0 | F238: 0 | G238: 0 | I238: 0 | J238: 0
A239: Levn.m.kand. | C239: 0 | D239: 0 | F239: 1 | G239: 0.7690388574 | I239: 1 | J239: 0.7690388574
A240: Dyrlæge | C240: 0 | D240: 0 | F240: 0 | G240: 0 | I240: 0 | J240: 0
... 296 more rows

Sheet Tabel 3 F
A1: Tabel 3. Ledige i procent af forsikrede
A3: Fyn
C5: Mænd | F5: Kvinder | I5: I alt
C6: Ledigheds- berørte | D6: Gns. brutto- ledighed | F6: Ledigheds- berørte | G6: Gns. brutto- ledighed | I6: Ledigheds- berørte | J6: Gns. brutto- ledighed
A9: Civ. ing. | C9: =IF(OR('Tabel 1 F'!C7<5,'Tabel 2 F'!C9<0.5),"-",IFERROR('Tabel 2 F'!C9/'Tabel 1 F'!C7*100,"-")) -> 8.499566349 | D9: =IF(OR('Tabel 1 F'!C7<5,'Tabel 2 F'!D9<0.5),"-",IFERROR('Tabel 2 F'!D9/'Tabel 1 F'!C7*100,"-")) -> 8.146359452 | F9: =IF(OR('Tabel 1 F'!E7<5,'Tabel 2 F'!F9<0.5),"-",IFERROR('Tabel 2 F'!F9/'Tabel 1 F'!E7*100,"-")) -> 10.38961039 | G9: =IF(OR('Tabel 1 F'!E7<5,'Tabel 2 F'!G9<0.5),"-",IFERROR('Tabel 2 F'!G9/'Tabel 1 F'!E7*100,"-")) -> 9.130721458 | I9: =IF(OR('Tabel 1 F'!G7<5,'Tabel 2 F'!I9<0.5),"-",IFERROR('Tabel 2 F'!I9/'Tabel 1 F'!G7*100,"-")) -> 8.898015058 | J9: =IF(OR('Tabel 1 F'!G7<5,'Tabel 2 F'!J9<0.5),"-",IFERROR('Tabel 2 F'!J9/'Tabel 1 F'!G7*100,"-")) -> 8.353877247
A10: Diplom ing. | C10: =IF(OR('Tabel 1 F'!C8<5,'Tabel 2 F'!C10<0.5),"-",IFERROR('Tabel 2 F'!C10/'Tabel 1 F'!C8*100,"-")) -> 3.43079922 | D10: =IF(OR('Tabel 1 F'!C8<5,'Tabel 2 F'!D10<0.5),"-",IFERROR('Tabel 2 F'!D10/'Tabel 1 F'!C8*100,"-")) -> 3.121121167 | F10: =IF(OR('Tabel 1 F'!E8<5,'Tabel 2 F'!F10<0.5),"-",IFERROR('Tabel 2 F'!F10/'Tabel 1 F'!E8*100,"-")) -> 6.21761658 | G10: =IF(OR('Tabel 1 F'!E8<5,'Tabel 2 F'!G10<0.5),"-",IFERROR('Tabel 2 F'!G10/'Tabel 1 F'!E8*100,"-")) -> 5.632381486 | I10: =IF(OR('Tabel 1 F'!G8<5,'Tabel 2 F'!I10<0.5),"-",IFERROR('Tabel 2 F'!I10/'Tabel 1 F'!G8*100,"-")) -> 3.944020356 | J10: =IF(OR('Tabel 1 F'!G8<5,'Tabel 2 F'!J10<0.5),"-",IFERROR('Tabel 2 F'!J10/'Tabel 1 F'!G8*100,"-")) -> 3.583595634
A11: Cand. Scient. Tek. | C11: =IF(OR('Tabel 1 F'!C9<5,'Tabel 2 F'!C11<0.5),"-",IFERROR('Tabel 2 F'!C11/'Tabel 1 F'!C9*100,"-")) -> 12.34567901 | D11: =IF(OR('Tabel 1 F'!C9<5,'Tabel 2 F'!D11<0.5),"-",IFERROR('Tabel 2 F'!D11/'Tabel 1 F'!C9*100,"-")) -> 10.90016501 | F11: =IF(OR('Tabel 1 F'!E9<5,'Tabel 2 F'!F11<0.5),"-",IFERROR('Tabel 2 F'!F11/'Tabel 1 F'!E9*100,"-")) -> 13.92 | G11: =IF(OR('Tabel 1 F'!E9<5,'Tabel 2 F'!G11<0.5),"-",IFERROR('Tabel 2 F'!G11/'Tabel 1 F'!E9*100,"-")) -> 11.98567954 | I11: =IF(OR('Tabel 1 F'!G9<5,'Tabel 2 F'!I11<0.5),"-",IFERROR('Tabel 2 F'!I11/'Tabel 1 F'!G9*100,"-")) -> 13.11861744 | J11: =IF(OR('Tabel 1 F'!G9<5,'Tabel 2 F'!J11<0.5),"-",IFERROR('Tabel 2 F'!J11/'Tabel 1 F'!G9*100,"-")) -> 11.43311598
A12: MA. Hum. | C12: =IF(OR('Tabel 1 F'!C10<5,'Tabel 2 F'!C12<0.5),"-",IFERROR('Tabel 2 F'!C12/'Tabel 1 F'!C10*100,"-")) -> 13.69216242 | D12: =IF(OR('Tabel 1 F'!C10<5,'Tabel 2 F'!D12<0.5),"-",IFERROR('Tabel 2 F'!D12/'Tabel 1 F'!C10*100,"-")) -> 12.01046213 | F12: =IF(OR('Tabel 1 F'!E10<5,'Tabel 2 F'!F12<0.5),"-",IFERROR('Tabel 2 F'!F12/'Tabel 1 F'!E10*100,"-")) -> 14.26056338 | G12: =IF(OR('Tabel 1 F'!E10<5,'Tabel 2 F'!G12<0.5),"-",IFERROR('Tabel 2 F'!G12/'Tabel 1 F'!E10*100,"-")) -> 12.843888 | I12: =IF(OR('Tabel 1 F'!G10<5,'Tabel 2 F'!I12<0.5),"-",IFERROR('Tabel 2 F'!I12/'Tabel 1 F'!G10*100,"-")) -> 14.0798559 | J12: =IF(OR('Tabel 1 F'!G10<5,'Tabel 2 F'!J12<0.5),"-",IFERROR('Tabel 2 F'!J12/'Tabel 1 F'!G10*100,"-")) -> 12.57892313
A13: MA. Nat. | C13: =IF(OR('Tabel 1 F'!C11<5,'Tabel 2 F'!C13<0.5),"-",IFERROR('Tabel 2 F'!C13/'Tabel 1 F'!C11*100,"-")) -> 7.202680067 | D13: =IF(OR('Tabel 1 F'!C11<5,'Tabel 2 F'!D13<0.5),"-",IFERROR('Tabel 2 F'!D13/'Tabel 1 F'!C11*100,"-")) -> 6.226688443 | F13: =IF(OR('Tabel 1 F'!E11<5,'Tabel 2 F'!F13<0.5),"-",IFERROR('Tabel 2 F'!F13/'Tabel 1 F'!E11*100,"-")) -> 7.130730051 | G13: =IF(OR('Tabel 1 F'!E11<5,'Tabel 2 F'!G13<0.5),"-",IFERROR('Tabel 2 F'!G13/'Tabel 1 F'!E11*100,"-")) -> 6.258738212 | I13: =IF(OR('Tabel 1 F'!G11<5,'Tabel 2 F'!I13<0.5),"-",IFERROR('Tabel 2 F'!I13/'Tabel 1 F'!G11*100,"-")) -> 7.166947723 | J13: =IF(OR('Tabel 1 F'!G11<5,'Tabel 2 F'!J13<0.5),"-",IFERROR('Tabel 2 F'!J13/'Tabel 1 F'!G11*100,"-")) -> 6.242605234
A14: MA. Ph.d. | C14: =IF(OR('Tabel 1 F'!C12<5,'Tabel 2 F'!C14<0.5),"-",IFERROR('Tabel 2 F'!C14/'Tabel 1 F'!C12*100,"-")) -> 3.529411765 | D14: =IF(OR('Tabel 1 F'!C12<5,'Tabel 2 F'!D14<0.5),"-",IFERROR('Tabel 2 F'!D14/'Tabel 1 F'!C12*100,"-")) -> 3.257252505 | F14: =IF(OR('Tabel 1 F'!E12<5,'Tabel 2 F'!F14<0.5),"-",IFERROR('Tabel 2 F'!F14/'Tabel 1 F'!E12*100,"-")) -> 5.479452055 | G14: =IF(OR('Tabel 1 F'!E12<5,'Tabel 2 F'!G14<0.5),"-",IFERROR('Tabel 2 F'!G14/'Tabel 1 F'!E12*100,"-")) -> 4.914521334 | I14: =IF(OR('Tabel 1 F'!G12<5,'Tabel 2 F'!I14<0.5),"-",IFERROR('Tabel 2 F'!I14/'Tabel 1 F'!G12*100,"-")) -> 4.430379747 | J14: =IF(OR('Tabel 1 F'!G12<5,'Tabel 2 F'!J14<0.5),"-",IFERROR('Tabel 2 F'!J14/'Tabel 1 F'!G12*100,"-")) -> 4.02295266
A15: MA. Samf. | C15: =IF(OR('Tabel 1 F'!C13<5,'Tabel 2 F'!C15<0.5),"-",IFERROR('Tabel 2 F'!C15/'Tabel 1 F'!C13*100,"-")) -> 16.66666667 | D15: =IF(OR('Tabel 1 F'!C13<5,'Tabel 2 F'!D15<0.5),"-",IFERROR('Tabel 2 F'!D15/'Tabel 1 F'!C13*100,"-")) -> 13.02175374 | F15: =IF(OR('Tabel 1 F'!E13<5,'Tabel 2 F'!F15<0.5),"-",IFERROR('Tabel 2 F'!F15/'Tabel 1 F'!E13*100,"-")) -> 18.24817518 | G15: =IF(OR('Tabel 1 F'!E13<5,'Tabel 2 F'!G15<0.5),"-",IFERROR('Tabel 2 F'!G15/'Tabel 1 F'!E13*100,"-")) -> 16.26299043 | I15: =IF(OR('Tabel 1 F'!G13<5,'Tabel 2 F'!I15<0.5),"-",IFERROR('Tabel 2 F'!I15/'Tabel 1 F'!G13*100,"-")) -> 17.80104712 | J15: =IF(OR('Tabel 1 F'!G13<5,'Tabel 2 F'!J15<0.5),"-",IFERROR('Tabel 2 F'!J15/'Tabel 1 F'!G13*100,"-")) -> 15.34661985
A16: Øvrige Mag. | C16: =IF(OR('Tabel 1 F'!C14<5,'Tabel 2 F'!C16<0.5),"-",IFERROR('Tabel 2 F'!C16/'Tabel 1 F'!C14*100,"-")) -> 3.370786517 | D16: =IF(OR('Tabel 1 F'!C14<5,'Tabel 2 F'!D16<0.5),"-",IFERROR('Tabel 2 F'!D16/'Tabel 1 F'!C14*100,"-")) -> 2.945469912 | F16: =IF(OR('Tabel 1 F'!E14<5,'Tabel 2 F'!F16<0.5),"-",IFERROR('Tabel 2 F'!F16/'Tabel 1 F'!E14*100,"-")) -> 6.918238994 | G16: =IF(OR('Tabel 1 F'!E14<5,'Tabel 2 F'!G16<0.5),"-",IFERROR('Tabel 2 F'!G16/'Tabel 1 F'!E14*100,"-")) -> 6.487798162 | I16: =IF(OR('Tabel 1 F'!G14<5,'Tabel 2 F'!I16<0.5),"-",IFERROR('Tabel 2 F'!I16/'Tabel 1 F'!G14*100,"-")) -> 5.64516129 | J16: =IF(OR('Tabel 1 F'!G14<5,'Tabel 2 F'!J16<0.5),"-",IFERROR('Tabel 2 F'!J16/'Tabel 1 F'!G14*100,"-")) -> 5.216559395
A17: Agronom | C17: =IF(OR('Tabel 1 F'!C15<5,'Tabel 2 F'!C17<0.5),"-",IFERROR('Tabel 2 F'!C17/'Tabel 1 F'!C15*100,"-")) -> 3.658536585 | D17: =IF(OR('Tabel 1 F'!C15<5,'Tabel 2 F'!D17<0.5),"-",IFERROR('Tabel 2 F'!D17/'Tabel 1 F'!C15*100,"-")) -> 3.247113803 | F17: =IF(OR('Tabel 1 F'!E15<5,'Tabel 2 F'!F17<0.5),"-",IFERROR('Tabel 2 F'!F17/'Tabel 1 F'!E15*100,"-")) -> 1.470588235 | G17: =IF(OR('Tabel 1 F'!E15<5,'Tabel 2 F'!G17<0.5),"-",IFERROR('Tabel 2 F'!G17/'Tabel 1 F'!E15*100,"-")) -> 1.470313068 | I17: =IF(OR('Tabel 1 F'!G15<5,'Tabel 2 F'!I17<0.5),"-",IFERROR('Tabel 2 F'!I17/'Tabel 1 F'!G15*100,"-")) -> 2.666666667 | J17: =IF(OR('Tabel 1 F'!G15<5,'Tabel 2 F'!J17<0.5),"-",IFERROR('Tabel 2 F'!J17/'Tabel 1 F'!G15*100,"-")) -> 2.441630803
A18: Landsk. Arkt. | C18: =IF(OR('Tabel 1 F'!C16<5,'Tabel 2 F'!C18<0.5),"-",IFERROR('Tabel 2 F'!C18/'Tabel 1 F'!C16*100,"-")) -> - | D18: =IF(OR('Tabel 1 F'!C16<5,'Tabel 2 F'!D18<0.5),"-",IFERROR('Tabel 2 F'!D18/'Tabel 1 F'!C16*100,"-")) -> - | F18: =IF(OR('Tabel 1 F'!E16<5,'Tabel 2 F'!F18<0.5),"-",IFERROR('Tabel 2 F'!F18/'Tabel 1 F'!E16*100,"-")) -> - | G18: =IF(OR('Tabel 1 F'!E16<5,'Tabel 2 F'!G18<0.5),"-",IFERROR('Tabel 2 F'!G18/'Tabel 1 F'!E16*100,"-")) -> - | I18: =IF(OR('Tabel 1 F'!G16<5,'Tabel 2 F'!I18<0.5),"-",IFERROR('Tabel 2 F'!I18/'Tabel 1 F'!G16*100,"-")) -> - | J18: =IF(OR('Tabel 1 F'!G16<5,'Tabel 2 F'!J18<0.5),"-",IFERROR('Tabel 2 F'!J18/'Tabel 1 F'!G16*100,"-")) -> -
A19: Hortonom | C19: =IF(OR('Tabel 1 F'!C17<5,'Tabel 2 F'!C19<0.5),"-",IFERROR('Tabel 2 F'!C19/'Tabel 1 F'!C17*100,"-")) -> - | D19: =IF(OR('Tabel 1 F'!C17<5,'Tabel 2 F'!D19<0.5),"-",IFERROR('Tabel 2 F'!D19/'Tabel 1 F'!C17*100,"-")) -> - | F19: =IF(OR('Tabel 1 F'!E17<5,'Tabel 2 F'!F19<0.5),"-",IFERROR('Tabel 2 F'!F19/'Tabel 1 F'!E17*100,"-")) -> 10 | G19: =IF(OR('Tabel 1 F'!E17<5,'Tabel 2 F'!G19<0.5),"-",IFERROR('Tabel 2 F'!G19/'Tabel 1 F'!E17*100,"-")) -> 9.998128859 | I19: =IF(OR('Tabel 1 F'!G17<5,'Tabel 2 F'!I19<0.5),"-",IFERROR('Tabel 2 F'!I19/'Tabel 1 F'!G17*100,"-")) -> 5.263157895 | J19: =IF(OR('Tabel 1 F'!G17<5,'Tabel 2 F'!J19<0.5),"-",IFERROR('Tabel 2 F'!J19/'Tabel 1 F'!G17*100,"-")) -> 5.262173084
A20: Forstkand. | C20: =IF(OR('Tabel 1 F'!C18<5,'Tabel 2 F'!C20<0.5),"-",IFERROR('Tabel 2 F'!C20/'Tabel 1 F'!C18*100,"-")) -> 10.52631579 | D20: =IF(OR('Tabel 1 F'!C18<5,'Tabel 2 F'!D20<0.5),"-",IFERROR('Tabel 2 F'!D20/'Tabel 1 F'!C18*100,"-")) -> 10.52434617 | F20: =IF(OR('Tabel 1 F'!E18<5,'Tabel 2 F'!F20<0.5),"-",IFERROR('Tabel 2 F'!F20/'Tabel 1 F'!E18*100,"-")) -> 14.28571429 | G20: =IF(OR('Tabel 1 F'!E18<5,'Tabel 2 F'!G20<0.5),"-",IFERROR('Tabel 2 F'!G20/'Tabel 1 F'!E18*100,"-")) -> 14.28304123 | I20: =IF(OR('Tabel 1 F'!G18<5,'Tabel 2 F'!I20<0.5),"-",IFERROR('Tabel 2 F'!I20/'Tabel 1 F'!G18*100,"-")) -> 11.53846154 | J20: =IF(OR('Tabel 1 F'!G18<5,'Tabel 2 F'!J20<0.5),"-",IFERROR('Tabel 2 F'!J20/'Tabel 1 F'!G18*100,"-")) -> 11.53630253
A21: Jordbrugsakad. | C21: =IF(OR('Tabel 1 F'!C19<5,'Tabel 2 F'!C21<0.5),"-",IFERROR('Tabel 2 F'!C21/'Tabel 1 F'!C19*100,"-")) -> 3.937007874 | D21: =IF(OR('Tabel 1 F'!C19<5,'Tabel 2 F'!D21<0.5),"-",IFERROR('Tabel 2 F'!D21/'Tabel 1 F'!C19*100,"-")) -> 3.67107015 | F21: =IF(OR('Tabel 1 F'!E19<5,'Tabel 2 F'!F21<0.5),"-",IFERROR('Tabel 2 F'!F21/'Tabel 1 F'!E19*100,"-")) -> 3.418803419 | G21: =IF(OR('Tabel 1 F'!E19<5,'Tabel 2 F'!G21<0.5),"-",IFERROR('Tabel 2 F'!G21/'Tabel 1 F'!E19*100,"-")) -> 3.418163713 | I21: =IF(OR('Tabel 1 F'!G19<5,'Tabel 2 F'!I21<0.5),"-",IFERROR('Tabel 2 F'!I21/'Tabel 1 F'!G19*100,"-")) -> 3.68852459 | J21: =IF(OR('Tabel 1 F'!G19<5,'Tabel 2 F'!J21<0.5),"-",IFERROR('Tabel 2 F'!J21/'Tabel 1 F'!G19*100,"-")) -> 3.54979944
A22: Mejeriing. | C22: =IF(OR('Tabel 1 F'!C20<5,'Tabel 2 F'!C22<0.5),"-",IFERROR('Tabel 2 F'!C22/'Tabel 1 F'!C20*100,"-")) -> - | D22: =IF(OR('Tabel 1 F'!C20<5,'Tabel 2 F'!D22<0.5),"-",IFERROR('Tabel 2 F'!D22/'Tabel 1 F'!C20*100,"-")) -> - | F22: =IF(OR('Tabel 1 F'!E20<5,'Tabel 2 F'!F22<0.5),"-",IFERROR('Tabel 2 F'!F22/'Tabel 1 F'!E20*100,"-")) -> - | G22: =IF(OR('Tabel 1 F'!E20<5,'Tabel 2 F'!G22<0.5),"-",IFERROR('Tabel 2 F'!G22/'Tabel 1 F'!E20*100,"-")) -> - | I22: =IF(OR('Tabel 1 F'!G20<5,'Tabel 2 F'!I22<0.5),"-",IFERROR('Tabel 2 F'!I22/'Tabel 1 F'!G20*100,"-")) -> - | J22: =IF(OR('Tabel 1 F'!G20<5,'Tabel 2 F'!J22<0.5),"-",IFERROR('Tabel 2 F'!J22/'Tabel 1 F'!G20*100,"-")) -> -
A23: Levn.m.kand. | C23: =IF(OR('Tabel 1 F'!C21<5,'Tabel 2 F'!C23<0.5),"-",IFERROR('Tabel 2 F'!C23/'Tabel 1 F'!C21*100,"-")) -> - | D23: =IF(OR('Tabel 1 F'!C21<5,'Tabel 2 F'!D23<0.5),"-",IFERROR('Tabel 2 F'!D23/'Tabel 1 F'!C21*100,"-")) -> - | F23: =IF(OR('Tabel 1 F'!E21<5,'Tabel 2 F'!F23<0.5),"-",IFERROR('Tabel 2 F'!F23/'Tabel 1 F'!E21*100,"-")) -> 20 | G23: =IF(OR('Tabel 1 F'!E21<5,'Tabel 2 F'!G23<0.5),"-",IFERROR('Tabel 2 F'!G23/'Tabel 1 F'!E21*100,"-")) -> 16.75294705 | I23: =IF(OR('Tabel 1 F'!G21<5,'Tabel 2 F'!I23<0.5),"-",IFERROR('Tabel 2 F'!I23/'Tabel 1 F'!G21*100,"-")) -> 14.28571429 | J23: =IF(OR('Tabel 1 F'!G21<5,'Tabel 2 F'!J23<0.5),"-",IFERROR('Tabel 2 F'!J23/'Tabel 1 F'!G21*100,"-")) -> 11.96639075
A24: Dyrlæge | C24: =IF(OR('Tabel 1 F'!C22<5,'Tabel 2 F'!C24<0.5),"-",IFERROR('Tabel 2 F'!C24/'Tabel 1 F'!C22*100,"-")) -> - | D24: =IF(OR('Tabel 1 F'!C22<5,'Tabel 2 F'!D24<0.5),"-",IFERROR('Tabel 2 F'!D24/'Tabel 1 F'!C22*100,"-")) -> - | F24: =IF(OR('Tabel 1 F'!E22<5,'Tabel 2 F'!F24<0.5),"-",IFERROR('Tabel 2 F'!F24/'Tabel 1 F'!E22*100,"-")) -> 1.724137931 | G24: =IF(OR('Tabel 1 F'!E22<5,'Tabel 2 F'!G24<0.5),"-",IFERROR('Tabel 2 F'!G24/'Tabel 1 F'!E22*100,"-")) -> 1.515193878 | I24: =IF(OR('Tabel 1 F'!G22<5,'Tabel 2 F'!I24<0.5),"-",IFERROR('Tabel 2 F'!I24/'Tabel 1 F'!G22*100,"-")) -> 1.492537313 | J24: =IF(OR('Tabel 1 F'!G22<5,'Tabel 2 F'!J24<0.5),"-",IFERROR('Tabel 2 F'!J24/'Tabel 1 F'!G22*100,"-")) -> 1.311660372
A25: Farmaceut | C25: =IF(OR('Tabel 1 F'!C23<5,'Tabel 2 F'!C25<0.5),"-",IFERROR('Tabel 2 F'!C25/'Tabel 1 F'!C23*100,"-")) -> 8.695652174 | D25: =IF(OR('Tabel 1 F'!C23<5,'Tabel 2 F'!D25<0.5),"-",IFERROR('Tabel 2 F'!D25/'Tabel 1 F'!C23*100,"-")) -> 7.289313617 | F25: =IF(OR('Tabel 1 F'!E23<5,'Tabel 2 F'!F25<0.5),"-",IFERROR('Tabel 2 F'!F25/'Tabel 1 F'!E23*100,"-")) -> 12.61682243 | G25: =IF(OR('Tabel 1 F'!E23<5,'Tabel 2 F'!G25<0.5),"-",IFERROR('Tabel 2 F'!G25/'Tabel 1 F'!E23*100,"-")) -> 12.39878498 | I25: =IF(OR('Tabel 1 F'!G23<5,'Tabel 2 F'!I25<0.5),"-",IFERROR('Tabel 2 F'!I25/'Tabel 1 F'!G23*100,"-")) -> 11.66077739 | J25: =IF(OR('Tabel 1 F'!G23<5,'Tabel 2 F'!J25<0.5),"-",IFERROR('Tabel 2 F'!J25/'Tabel 1 F'!G23*100,"-")) -> 11.15301281
A26: Læge | C26: =IF(OR('Tabel 1 F'!C24<5,'Tabel 2 F'!C26<0.5),"-",IFERROR('Tabel 2 F'!C26/'Tabel 1 F'!C24*100,"-")) -> 0.4694835681 | D26: =IF(OR('Tabel 1 F'!C24<5,'Tabel 2 F'!D26<0.5),"-",IFERROR('Tabel 2 F'!D26/'Tabel 1 F'!C24*100,"-")) -> 0.3080500927 | F26: =IF(OR('Tabel 1 F'!E24<5,'Tabel 2 F'!F26<0.5),"-",IFERROR('Tabel 2 F'!F26/'Tabel 1 F'!E24*100,"-")) -> 0.6888633754 | G26: =IF(OR('Tabel 1 F'!E24<5,'Tabel 2 F'!G26<0.5),"-",IFERROR('Tabel 2 F'!G26/'Tabel 1 F'!E24*100,"-")) -> 0.5443709204 | I26: =IF(OR('Tabel 1 F'!G24<5,'Tabel 2 F'!I26<0.5),"-",IFERROR('Tabel 2 F'!I26/'Tabel 1 F'!G24*100,"-")) -> 0.6168080185 | J26: =IF(OR('Tabel 1 F'!G24<5,'Tabel 2 F'!J26<0.5),"-",IFERROR('Tabel 2 F'!J26/'Tabel 1 F'!G24*100,"-")) -> 0.4667512808
A27: Tandlæge | C27: =IF(OR('Tabel 1 F'!C25<5,'Tabel 2 F'!C27<0.5),"-",IFERROR('Tabel 2 F'!C27/'Tabel 1 F'!C25*100,"-")) -> - | D27: =IF(OR('Tabel 1 F'!C25<5,'Tabel 2 F'!D27<0.5),"-",IFERROR('Tabel 2 F'!D27/'Tabel 1 F'!C25*100,"-")) -> - | F27: =IF(OR('Tabel 1 F'!E25<5,'Tabel 2 F'!F27<0.5),"-",IFERROR('Tabel 2 F'!F27/'Tabel 1 F'!E25*100,"-")) -> 2.06185567 | G27: =IF(OR('Tabel 1 F'!E25<5,'Tabel 2 F'!G27<0.5),"-",IFERROR('Tabel 2 F'!G27/'Tabel 1 F'!E25*100,"-")) -> 1.244855167 | I27: =IF(OR('Tabel 1 F'!G25<5,'Tabel 2 F'!I27<0.5),"-",IFERROR('Tabel 2 F'!I27/'Tabel 1 F'!G25*100,"-")) -> 1.754385965 | J27: =IF(OR('Tabel 1 F'!G25<5,'Tabel 2 F'!J27<0.5),"-",IFERROR('Tabel 2 F'!J27/'Tabel 1 F'!G25*100,"-")) -> 1.05921887
A28: Arkitekt | C28: =IF(OR('Tabel 1 F'!C26<5,'Tabel 2 F'!C28<0.5),"-",IFERROR('Tabel 2 F'!C28/'Tabel 1 F'!C26*100,"-")) -> 4.054054054 | D28: =IF(OR('Tabel 1 F'!C26<5,'Tabel 2 F'!D28<0.5),"-",IFERROR('Tabel 2 F'!D28/'Tabel 1 F'!C26*100,"-")) -> 4.053295483 | F28: =IF(OR('Tabel 1 F'!E26<5,'Tabel 2 F'!F28<0.5),"-",IFERROR('Tabel 2 F'!F28/'Tabel 1 F'!E26*100,"-")) -> 1.5625 | G28: =IF(OR('Tabel 1 F'!E26<5,'Tabel 2 F'!G28<0.5),"-",IFERROR('Tabel 2 F'!G28/'Tabel 1 F'!E26*100,"-")) -> 1.057389447 | I28: =IF(OR('Tabel 1 F'!G26<5,'Tabel 2 F'!I28<0.5),"-",IFERROR('Tabel 2 F'!I28/'Tabel 1 F'!G26*100,"-")) -> 2.898550725 | J28: =IF(OR('Tabel 1 F'!G26<5,'Tabel 2 F'!J28<0.5),"-",IFERROR('Tabel 2 F'!J28/'Tabel 1 F'!G26*100,"-")) -> 2.663889785
A29: Landinspek. | C29: =IF(OR('Tabel 1 F'!C27<5,'Tabel 2 F'!C29<0.5),"-",IFERROR('Tabel 2 F'!C29/'Tabel 1 F'!C27*100,"-")) -> - | D29: =IF(OR('Tabel 1 F'!C27<5,'Tabel 2 F'!D29<0.5),"-",IFERROR('Tabel 2 F'!D29/'Tabel 1 F'!C27*100,"-")) -> - | F29: =IF(OR('Tabel 1 F'!E27<5,'Tabel 2 F'!F29<0.5),"-",IFERROR('Tabel 2 F'!F29/'Tabel 1 F'!E27*100,"-")) -> - | G29: =IF(OR('Tabel 1 F'!E27<5,'Tabel 2 F'!G29<0.5),"-",IFERROR('Tabel 2 F'!G29/'Tabel 1 F'!E27*100,"-")) -> - | I29: =IF(OR('Tabel 1 F'!G27<5,'Tabel 2 F'!I29<0.5),"-",IFERROR('Tabel 2 F'!I29/'Tabel 1 F'!G27*100,"-")) -> - | J29: =IF(OR('Tabel 1 F'!G27<5,'Tabel 2 F'!J29<0.5),"-",IFERROR('Tabel 2 F'!J29/'Tabel 1 F'!G27*100,"-")) -> -
A30: Bibliotekar | C30: =IF(OR('Tabel 1 F'!C28<5,'Tabel 2 F'!C30<0.5),"-",IFERROR('Tabel 2 F'!C30/'Tabel 1 F'!C28*100,"-")) -> 8.064516129 | D30: =IF(OR('Tabel 1 F'!C28<5,'Tabel 2 F'!D30<0.5),"-",IFERROR('Tabel 2 F'!D30/'Tabel 1 F'!C28*100,"-")) -> 6.469519519 | F30: =IF(OR('Tabel 1 F'!E28<5,'Tabel 2 F'!F30<0.5),"-",IFERROR('Tabel 2 F'!F30/'Tabel 1 F'!E28*100,"-")) -> 3.496503497 | G30: =IF(OR('Tabel 1 F'!E28<5,'Tabel 2 F'!G30<0.5),"-",IFERROR('Tabel 2 F'!G30/'Tabel 1 F'!E28*100,"-")) -> 2.324314493 | I30: =IF(OR('Tabel 1 F'!G28<5,'Tabel 2 F'!I30<0.5),"-",IFERROR('Tabel 2 F'!I30/'Tabel 1 F'!G28*100,"-")) -> 4.87804878 | J30: =IF(OR('Tabel 1 F'!G28<5,'Tabel 2 F'!J30<0.5),"-",IFERROR('Tabel 2 F'!J30/'Tabel 1 F'!G28*100,"-")) -> 3.577986257
A31: Musikudd. | C31: =IF(OR('Tabel 1 F'!C29<5,'Tabel 2 F'!C31<0.5),"-",IFERROR('Tabel 2 F'!C31/'Tabel 1 F'!C29*100,"-")) -> 4.444444444 | D31: =IF(OR('Tabel 1 F'!C29<5,'Tabel 2 F'!D31<0.5),"-",IFERROR('Tabel 2 F'!D31/'Tabel 1 F'!C29*100,"-")) -> 2.932839907 | F31: =IF(OR('Tabel 1 F'!E29<5,'Tabel 2 F'!F31<0.5),"-",IFERROR('Tabel 2 F'!F31/'Tabel 1 F'!E29*100,"-")) -> 6 | G31: =IF(OR('Tabel 1 F'!E29<5,'Tabel 2 F'!G31<0.5),"-",IFERROR('Tabel 2 F'!G31/'Tabel 1 F'!E29*100,"-")) -> 5.050832658 | I31: =IF(OR('Tabel 1 F'!G29<5,'Tabel 2 F'!I31<0.5),"-",IFERROR('Tabel 2 F'!I31/'Tabel 1 F'!G29*100,"-")) -> 5.263157895 | J31: =IF(OR('Tabel 1 F'!G29<5,'Tabel 2 F'!J31<0.5),"-",IFERROR('Tabel 2 F'!J31/'Tabel 1 F'!G29*100,"-")) -> 4.047572933
A32: Teolog | C32: =IF(OR('Tabel 1 F'!C30<5,'Tabel 2 F'!C32<0.5),"-",IFERROR('Tabel 2 F'!C32/'Tabel 1 F'!C30*100,"-")) -> 2.325581395 | D32: =IF(OR('Tabel 1 F'!C30<5,'Tabel 2 F'!D32<0.5),"-",IFERROR('Tabel 2 F'!D32/'Tabel 1 F'!C30*100,"-")) -> 2.325146246 | F32: =IF(OR('Tabel 1 F'!E30<5,'Tabel 2 F'!F32<0.5),"-",IFERROR('Tabel 2 F'!F32/'Tabel 1 F'!E30*100,"-")) -> - | G32: =IF(OR('Tabel 1 F'!E30<5,'Tabel 2 F'!G32<0.5),"-",IFERROR('Tabel 2 F'!G32/'Tabel 1 F'!E30*100,"-")) -> - | I32: =IF(OR('Tabel 1 F'!G30<5,'Tabel 2 F'!I32<0.5),"-",IFERROR('Tabel 2 F'!I32/'Tabel 1 F'!G30*100,"-")) -> 0.826446281 | J32: =IF(OR('Tabel 1 F'!G30<5,'Tabel 2 F'!J32<0.5),"-",IFERROR('Tabel 2 F'!J32/'Tabel 1 F'!G30*100,"-")) -> 0.8262916413
A33: Psykolog | C33: =IF(OR('Tabel 1 F'!C31<5,'Tabel 2 F'!C33<0.5),"-",IFERROR('Tabel 2 F'!C33/'Tabel 1 F'!C31*100,"-")) -> 9.6 | D33: =IF(OR('Tabel 1 F'!C31<5,'Tabel 2 F'!D33<0.5),"-",IFERROR('Tabel 2 F'!D33/'Tabel 1 F'!C31*100,"-")) -> 8.042911495 | F33: =IF(OR('Tabel 1 F'!E31<5,'Tabel 2 F'!F33<0.5),"-",IFERROR('Tabel 2 F'!F33/'Tabel 1 F'!E31*100,"-")) -> 7.272727273 | G33: =IF(OR('Tabel 1 F'!E31<5,'Tabel 2 F'!G33<0.5),"-",IFERROR('Tabel 2 F'!G33/'Tabel 1 F'!E31*100,"-")) -> 6.473721812 | I33: =IF(OR('Tabel 1 F'!G31<5,'Tabel 2 F'!I33<0.5),"-",IFERROR('Tabel 2 F'!I33/'Tabel 1 F'!G31*100,"-")) -> 7.787610619 | J33: =IF(OR('Tabel 1 F'!G31<5,'Tabel 2 F'!J33<0.5),"-",IFERROR('Tabel 2 F'!J33/'Tabel 1 F'!G31*100,"-")) -> 6.820887671
A34: Jurist | C34: =IF(OR('Tabel 1 F'!C32<5,'Tabel 2 F'!C34<0.5),"-",IFERROR('Tabel 2 F'!C34/'Tabel 1 F'!C32*100,"-")) -> 5.069124424 | D34: =IF(OR('Tabel 1 F'!C32<5,'Tabel 2 F'!D34<0.5),"-",IFERROR('Tabel 2 F'!D34/'Tabel 1 F'!C32*100,"-")) -> 4.158473839 | F34: =IF(OR('Tabel 1 F'!E32<5,'Tabel 2 F'!F34<0.5),"-",IFERROR('Tabel 2 F'!F34/'Tabel 1 F'!E32*100,"-")) -> 2.481389578 | G34: =IF(OR('Tabel 1 F'!E32<5,'Tabel 2 F'!G34<0.5),"-",IFERROR('Tabel 2 F'!G34/'Tabel 1 F'!E32*100,"-")) -> 2.129447964 | I34: =IF(OR('Tabel 1 F'!G32<5,'Tabel 2 F'!I34<0.5),"-",IFERROR('Tabel 2 F'!I34/'Tabel 1 F'!G32*100,"-")) -> 3.387096774 | J34: =IF(OR('Tabel 1 F'!G32<5,'Tabel 2 F'!J34<0.5),"-",IFERROR('Tabel 2 F'!J34/'Tabel 1 F'!G32*100,"-")) -> 2.83960702
A35: Økonom | C35: =IF(OR('Tabel 1 F'!C33<5,'Tabel 2 F'!C35<0.5),"-",IFERROR('Tabel 2 F'!C35/'Tabel 1 F'!C33*100,"-")) -> 4.334365325 | D35: =IF(OR('Tabel 1 F'!C33<5,'Tabel 2 F'!D35<0.5),"-",IFERROR('Tabel 2 F'!D35/'Tabel 1 F'!C33*100,"-")) -> 4.162081342 | F35: =IF(OR('Tabel 1 F'!E33<5,'Tabel 2 F'!F35<0.5),"-",IFERROR('Tabel 2 F'!F35/'Tabel 1 F'!E33*100,"-")) -> 3.296703297 | G35: =IF(OR('Tabel 1 F'!E33<5,'Tabel 2 F'!G35<0.5),"-",IFERROR('Tabel 2 F'!G35/'Tabel 1 F'!E33*100,"-")) -> 3.04340247 | I35: =IF(OR('Tabel 1 F'!G33<5,'Tabel 2 F'!I35<0.5),"-",IFERROR('Tabel 2 F'!I35/'Tabel 1 F'!G33*100,"-")) -> 3.859060403 | J35: =IF(OR('Tabel 1 F'!G33<5,'Tabel 2 F'!J35<0.5),"-",IFERROR('Tabel 2 F'!J35/'Tabel 1 F'!G33*100,"-")) -> 3.649666355
A36: Samf. Adm. | C36: =IF(OR('Tabel 1 F'!C34<5,'Tabel 2 F'!C36<0.5),"-",IFERROR('Tabel 2 F'!C36/'Tabel 1 F'!C34*100,"-")) -> 9.358752166 | D36: =IF(OR('Tabel 1 F'!C34<5,'Tabel 2 F'!D36<0.5),"-",IFERROR('Tabel 2 F'!D36/'Tabel 1 F'!C34*100,"-")) -> 8.709830602 | F36: =IF(OR('Tabel 1 F'!E34<5,'Tabel 2 F'!F36<0.5),"-",IFERROR('Tabel 2 F'!F36/'Tabel 1 F'!E34*100,"-")) -> 11.27982646 | G36: =IF(OR('Tabel 1 F'!E34<5,'Tabel 2 F'!G36<0.5),"-",IFERROR('Tabel 2 F'!G36/'Tabel 1 F'!E34*100,"-")) -> 9.915625487 | I36: =IF(OR('Tabel 1 F'!G34<5,'Tabel 2 F'!I36<0.5),"-",IFERROR('Tabel 2 F'!I36/'Tabel 1 F'!G34*100,"-")) -> 10.54036024 | J36: =IF(OR('Tabel 1 F'!G34<5,'Tabel 2 F'!J36<0.5),"-",IFERROR('Tabel 2 F'!J36/'Tabel 1 F'!G34*100,"-")) -> 9.451486962
A37: Cand. Merc. | C37: =IF(OR('Tabel 1 F'!C35<5,'Tabel 2 F'!C37<0.5),"-",IFERROR('Tabel 2 F'!C37/'Tabel 1 F'!C35*100,"-")) -> 8.176100629 | D37: =IF(OR('Tabel 1 F'!C35<5,'Tabel 2 F'!D37<0.5),"-",IFERROR('Tabel 2 F'!D37/'Tabel 1 F'!C35*100,"-")) -> 7.472598771 | F37: =IF(OR('Tabel 1 F'!E35<5,'Tabel 2 F'!F37<0.5),"-",IFERROR('Tabel 2 F'!F37/'Tabel 1 F'!E35*100,"-")) -> 9.965237543 | G37: =IF(OR('Tabel 1 F'!E35<5,'Tabel 2 F'!G37<0.5),"-",IFERROR('Tabel 2 F'!G37/'Tabel 1 F'!E35*100,"-")) -> 9.168372965 | I37: =IF(OR('Tabel 1 F'!G35<5,'Tabel 2 F'!I37<0.5),"-",IFERROR('Tabel 2 F'!I37/'Tabel 1 F'!G35*100,"-")) -> 9.025866813 | J37: =IF(OR('Tabel 1 F'!G35<5,'Tabel 2 F'!J37<0.5),"-",IFERROR('Tabel 2 F'!J37/'Tabel 1 F'!G35*100,"-")) -> 8.278021517
A38: HA | C38: =IF(OR('Tabel 1 F'!C36<5,'Tabel 2 F'!C38<0.5),"-",IFERROR('Tabel 2 F'!C38/'Tabel 1 F'!C36*100,"-")) -> 11.02362205 | D38: =IF(OR('Tabel 1 F'!C36<5,'Tabel 2 F'!D38<0.5),"-",IFERROR('Tabel 2 F'!D38/'Tabel 1 F'!C36*100,"-")) -> 9.712988615 | F38: =IF(OR('Tabel 1 F'!E36<5,'Tabel 2 F'!F38<0.5),"-",IFERROR('Tabel 2 F'!F38/'Tabel 1 F'!E36*100,"-")) -> 15.73033708 | G38: =IF(OR('Tabel 1 F'!E36<5,'Tabel 2 F'!G38<0.5),"-",IFERROR('Tabel 2 F'!G38/'Tabel 1 F'!E36*100,"-")) -> 13.45189031 | I38: =IF(OR('Tabel 1 F'!G36<5,'Tabel 2 F'!I38<0.5),"-",IFERROR('Tabel 2 F'!I38/'Tabel 1 F'!G36*100,"-")) -> 12.96296296 | J38: =IF(OR('Tabel 1 F'!G36<5,'Tabel 2 F'!J38<0.5),"-",IFERROR('Tabel 2 F'!J38/'Tabel 1 F'!G36*100,"-")) -> 11.25355459
A39: HD | C39: =IF(OR('Tabel 1 F'!C37<5,'Tabel 2 F'!C39<0.5),"-",IFERROR('Tabel 2 F'!C39/'Tabel 1 F'!C37*100,"-")) -> 8.641975309 | D39: =IF(OR('Tabel 1 F'!C37<5,'Tabel 2 F'!D39<0.5),"-",IFERROR('Tabel 2 F'!D39/'Tabel 1 F'!C37*100,"-")) -> 7.282048676 | F39: =IF(OR('Tabel 1 F'!E37<5,'Tabel 2 F'!F39<0.5),"-",IFERROR('Tabel 2 F'!F39/'Tabel 1 F'!E37*100,"-")) -> 14.28571429 | G39: =IF(OR('Tabel 1 F'!E37<5,'Tabel 2 F'!G39<0.5),"-",IFERROR('Tabel 2 F'!G39/'Tabel 1 F'!E37*100,"-")) -> 12.88458626 | I39: =IF(OR('Tabel 1 F'!G37<5,'Tabel 2 F'!I39<0.5),"-",IFERROR('Tabel 2 F'!I39/'Tabel 1 F'!G37*100,"-")) -> 11.25827815 | J39: =IF(OR('Tabel 1 F'!G37<5,'Tabel 2 F'!J39<0.5),"-",IFERROR('Tabel 2 F'!J39/'Tabel 1 F'!G37*100,"-")) -> 9.879251527
A40: Komm. og Sprog | C40: =IF(OR('Tabel 1 F'!C38<5,'Tabel 2 F'!C40<0.5),"-",IFERROR('Tabel 2 F'!C40/'Tabel 1 F'!C38*100,"-")) -> 13.92405063 | D40: =IF(OR('Tabel 1 F'!C38<5,'Tabel 2 F'!D40<0.5),"-",IFERROR('Tabel 2 F'!D40/'Tabel 1 F'!C38*100,"-")) -> 12.09056953 | F40: =IF(OR('Tabel 1 F'!E38<5,'Tabel 2 F'!F40<0.5),"-",IFERROR('Tabel 2 F'!F40/'Tabel 1 F'!E38*100,"-")) -> 12.18836565 | G40: =IF(OR('Tabel 1 F'!E38<5,'Tabel 2 F'!G40<0.5),"-",IFERROR('Tabel 2 F'!G40/'Tabel 1 F'!E38*100,"-")) -> 10.87006664 | I40: =IF(OR('Tabel 1 F'!G38<5,'Tabel 2 F'!I40<0.5),"-",IFERROR('Tabel 2 F'!I40/'Tabel 1 F'!G38*100,"-")) -> 12.5 | J40: =IF(OR('Tabel 1 F'!G38<5,'Tabel 2 F'!J40<0.5),"-",IFERROR('Tabel 2 F'!J40/'Tabel 1 F'!G38*100,"-")) -> 11.08920238
A41: Bygningskonst. | C41: =IF(OR('Tabel 1 F'!C39<5,'Tabel 2 F'!C41<0.5),"-",IFERROR('Tabel 2 F'!C41/'Tabel 1 F'!C39*100,"-")) -> 6.291834003 | D41: =IF(OR('Tabel 1 F'!C39<5,'Tabel 2 F'!D41<0.5),"-",IFERROR('Tabel 2 F'!D41/'Tabel 1 F'!C39*100,"-")) -> 5.90544886 | F41: =IF(OR('Tabel 1 F'!E39<5,'Tabel 2 F'!F41<0.5),"-",IFERROR('Tabel 2 F'!F41/'Tabel 1 F'!E39*100,"-")) -> 14 | G41: =IF(OR('Tabel 1 F'!E39<5,'Tabel 2 F'!G41<0.5),"-",IFERROR('Tabel 2 F'!G41/'Tabel 1 F'!E39*100,"-")) -> 11.88280422 | I41: =IF(OR('Tabel 1 F'!G39<5,'Tabel 2 F'!I41<0.5),"-",IFERROR('Tabel 2 F'!I41/'Tabel 1 F'!G39*100,"-")) -> 7.20188902 | J41: =IF(OR('Tabel 1 F'!G39<5,'Tabel 2 F'!J41<0.5),"-",IFERROR('Tabel 2 F'!J41/'Tabel 1 F'!G39*100,"-")) -> 6.611157875
A42: Cand. IT. | C42: =IF(OR('Tabel 1 F'!C40<5,'Tabel 2 F'!C42<0.5),"-",IFERROR('Tabel 2 F'!C42/'Tabel 1 F'!C40*100,"-")) -> 17.82178218 | D42: =IF(OR('Tabel 1 F'!C40<5,'Tabel 2 F'!D42<0.5),"-",IFERROR('Tabel 2 F'!D42/'Tabel 1 F'!C40*100,"-")) -> 14.78448225 | F42: =IF(OR('Tabel 1 F'!E40<5,'Tabel 2 F'!F42<0.5),"-",IFERROR('Tabel 2 F'!F42/'Tabel 1 F'!E40*100,"-")) -> 28.57142857 | G42: =IF(OR('Tabel 1 F'!E40<5,'Tabel 2 F'!G42<0.5),"-",IFERROR('Tabel 2 F'!G42/'Tabel 1 F'!E40*100,"-")) -> 25.30272385 | I42: =IF(OR('Tabel 1 F'!G40<5,'Tabel 2 F'!I42<0.5),"-",IFERROR('Tabel 2 F'!I42/'Tabel 1 F'!G40*100,"-")) -> 22.7027027 | J42: =IF(OR('Tabel 1 F'!G40<5,'Tabel 2 F'!J42<0.5),"-",IFERROR('Tabel 2 F'!J42/'Tabel 1 F'!G40*100,"-")) -> 19.56033249
A43: Bac. Samf. | C43: =IF(OR('Tabel 1 F'!C41<5,'Tabel 2 F'!C43<0.5),"-",IFERROR('Tabel 2 F'!C43/'Tabel 1 F'!C41*100,"-")) -> 13.88888889 | D43: =IF(OR('Tabel 1 F'!C41<5,'Tabel 2 F'!D43<0.5),"-",IFERROR('Tabel 2 F'!D43/'Tabel 1 F'!C41*100,"-")) -> 11.450342 | F43: =IF(OR('Tabel 1 F'!E41<5,'Tabel 2 F'!F43<0.5),"-",IFERROR('Tabel 2 F'!F43/'Tabel 1 F'!E41*100,"-")) -> 20 | G43: =IF(OR('Tabel 1 F'!E41<5,'Tabel 2 F'!G43<0.5),"-",IFERROR('Tabel 2 F'!G43/'Tabel 1 F'!E41*100,"-")) -> 17.25191792 | I43: =IF(OR('Tabel 1 F'!G41<5,'Tabel 2 F'!I43<0.5),"-",IFERROR('Tabel 2 F'!I43/'Tabel 1 F'!G41*100,"-")) -> 17.10526316 | J43: =IF(OR('Tabel 1 F'!G41<5,'Tabel 2 F'!J43<0.5),"-",IFERROR('Tabel 2 F'!J43/'Tabel 1 F'!G41*100,"-")) -> 14.50380301
A44: Bac. Hum. | C44: =IF(OR('Tabel 1 F'!C42<5,'Tabel 2 F'!C44<0.5),"-",IFERROR('Tabel 2 F'!C44/'Tabel 1 F'!C42*100,"-")) -> 22.4 | D44: =IF(OR('Tabel 1 F'!C42<5,'Tabel 2 F'!D44<0.5),"-",IFERROR('Tabel 2 F'!D44/'Tabel 1 F'!C42*100,"-")) -> 20.33505894 | F44: =IF(OR('Tabel 1 F'!E42<5,'Tabel 2 F'!F44<0.5),"-",IFERROR('Tabel 2 F'!F44/'Tabel 1 F'!E42*100,"-")) -> 15.4185022 | G44: =IF(OR('Tabel 1 F'!E42<5,'Tabel 2 F'!G44<0.5),"-",IFERROR('Tabel 2 F'!G44/'Tabel 1 F'!E42*100,"-")) -> 13.00016953 | I44: =IF(OR('Tabel 1 F'!G42<5,'Tabel 2 F'!I44<0.5),"-",IFERROR('Tabel 2 F'!I44/'Tabel 1 F'!G42*100,"-")) -> 17.89772727 | J44: =IF(OR('Tabel 1 F'!G42<5,'Tabel 2 F'!J44<0.5),"-",IFERROR('Tabel 2 F'!J44/'Tabel 1 F'!G42*100,"-")) -> 15.60488878
A45: Bac. Nat. | C45: =IF(OR('Tabel 1 F'!C43<5,'Tabel 2 F'!C45<0.5),"-",IFERROR('Tabel 2 F'!C45/'Tabel 1 F'!C43*100,"-")) -> 11.02362205 | D45: =IF(OR('Tabel 1 F'!C43<5,'Tabel 2 F'!D45<0.5),"-",IFERROR('Tabel 2 F'!D45/'Tabel 1 F'!C43*100,"-")) -> 10.73180266 | F45: =IF(OR('Tabel 1 F'!E43<5,'Tabel 2 F'!F45<0.5),"-",IFERROR('Tabel 2 F'!F45/'Tabel 1 F'!E43*100,"-")) -> 21.81818182 | G45: =IF(OR('Tabel 1 F'!E43<5,'Tabel 2 F'!G45<0.5),"-",IFERROR('Tabel 2 F'!G45/'Tabel 1 F'!E43*100,"-")) -> 19.78306107 | I45: =IF(OR('Tabel 1 F'!G43<5,'Tabel 2 F'!I45<0.5),"-",IFERROR('Tabel 2 F'!I45/'Tabel 1 F'!G43*100,"-")) -> 14.28571429 | J45: =IF(OR('Tabel 1 F'!G43<5,'Tabel 2 F'!J45<0.5),"-",IFERROR('Tabel 2 F'!J45/'Tabel 1 F'!G43*100,"-")) -> 13.46707306
A46: Andre | C46: =IF(OR('Tabel 1 F'!C44<5,'Tabel 2 F'!C46<0.5),"-",IFERROR('Tabel 2 F'!C46/'Tabel 1 F'!C44*100,"-")) -> 7.636887608 | D46: =IF(OR('Tabel 1 F'!C44<5,'Tabel 2 F'!D46<0.5),"-",IFERROR('Tabel 2 F'!D46/'Tabel 1 F'!C44*100,"-")) -> 6.774392369 | F46: =IF(OR('Tabel 1 F'!E44<5,'Tabel 2 F'!F46<0.5),"-",IFERROR('Tabel 2 F'!F46/'Tabel 1 F'!E44*100,"-")) -> 11.90082645 | G46: =IF(OR('Tabel 1 F'!E44<5,'Tabel 2 F'!G46<0.5),"-",IFERROR('Tabel 2 F'!G46/'Tabel 1 F'!E44*100,"-")) -> 10.31055267 | I46: =IF(OR('Tabel 1 F'!G44<5,'Tabel 2 F'!I46<0.5),"-",IFERROR('Tabel 2 F'!I46/'Tabel 1 F'!G44*100,"-")) -> 9.622786759 | J46: =IF(OR('Tabel 1 F'!G44<5,'Tabel 2 F'!J46<0.5),"-",IFERROR('Tabel 2 F'!J46/'Tabel 1 F'!G44*100,"-")) -> 8.421333847
A48: Total | C48: =IF(OR('Tabel 1 F'!C46<5,'Tabel 2 F'!C48<0.5),"-",IFERROR('Tabel 2 F'!C48/'Tabel 1 F'!C46*100,"-")) -> 7.514302792 | D48: =IF(OR('Tabel 1 F'!C46<5,'Tabel 2 F'!D48<0.5),"-",IFERROR('Tabel 2 F'!D48/'Tabel 1 F'!C46*100,"-")) -> 6.754787297 | F48: =IF(OR('Tabel 1 F'!E46<5,'Tabel 2 F'!F48<0.5),"-",IFERROR('Tabel 2 F'!F48/'Tabel 1 F'!E46*100,"-")) -> 9.904609076 | G48: =IF(OR('Tabel 1 F'!E46<5,'Tabel 2 F'!G48<0.5),"-",IFERROR('Tabel 2 F'!G48/'Tabel 1 F'!E46*100,"-")) -> 8.798224461 | I48: =IF(OR('Tabel 1 F'!G46<5,'Tabel 2 F'!I48<0.5),"-",IFERROR('Tabel 2 F'!I48/'Tabel 1 F'!G46*100,"-")) -> 8.683705513 | J48: =IF(OR('Tabel 1 F'!G46<5,'Tabel 2 F'!J48<0.5),"-",IFERROR('Tabel 2 F'!J48/'Tabel 1 F'!G46*100,"-")) -> 7.754492229
A50: Ingeniører i alt | C50: =IF(OR('Tabel 1 F'!C48<5,'Tabel 2 F'!C50<0.5),"-",IFERROR('Tabel 2 F'!C50/'Tabel 1 F'!C48*100,"-")) -> 5.002689618 | D50: =IF(OR('Tabel 1 F'!C48<5,'Tabel 2 F'!D50<0.5),"-",IFERROR('Tabel 2 F'!D50/'Tabel 1 F'!C48*100,"-")) -> 4.679512706 | F50: =IF(OR('Tabel 1 F'!E48<5,'Tabel 2 F'!F50<0.5),"-",IFERROR('Tabel 2 F'!F50/'Tabel 1 F'!E48*100,"-")) -> 7.666290868 | G50: =IF(OR('Tabel 1 F'!E48<5,'Tabel 2 F'!G50<0.5),"-",IFERROR('Tabel 2 F'!G50/'Tabel 1 F'!E48*100,"-")) -> 6.847137643 | I50: =IF(OR('Tabel 1 F'!G48<5,'Tabel 2 F'!I50<0.5),"-",IFERROR('Tabel 2 F'!I50/'Tabel 1 F'!G48*100,"-")) -> 5.515743757 | J50: =IF(OR('Tabel 1 F'!G48<5,'Tabel 2 F'!J50<0.5),"-",IFERROR('Tabel 2 F'!J50/'Tabel 1 F'!G48*100,"-")) -> 5.097033514
A51: Magistre i alt | C51: =IF(OR('Tabel 1 F'!C49<5,'Tabel 2 F'!C51<0.5),"-",IFERROR('Tabel 2 F'!C51/'Tabel 1 F'!C49*100,"-")) -> 10.77494692 | D51: =IF(OR('Tabel 1 F'!C49<5,'Tabel 2 F'!D51<0.5),"-",IFERROR('Tabel 2 F'!D51/'Tabel 1 F'!C49*100,"-")) -> 9.383545853 | F51: =IF(OR('Tabel 1 F'!E49<5,'Tabel 2 F'!F51<0.5),"-",IFERROR('Tabel 2 F'!F51/'Tabel 1 F'!E49*100,"-")) -> 12.56965944 | G51: =IF(OR('Tabel 1 F'!E49<5,'Tabel 2 F'!G51<0.5),"-",IFERROR('Tabel 2 F'!G51/'Tabel 1 F'!E49*100,"-")) -> 11.29599381 | I51: =IF(OR('Tabel 1 F'!G49<5,'Tabel 2 F'!I51<0.5),"-",IFERROR('Tabel 2 F'!I51/'Tabel 1 F'!G49*100,"-")) -> 11.90848651 | J51: =IF(OR('Tabel 1 F'!G49<5,'Tabel 2 F'!J51<0.5),"-",IFERROR('Tabel 2 F'!J51/'Tabel 1 F'!G49*100,"-")) -> 10.59144708
A52: DJØF'ere i alt | C52: =IF(OR('Tabel 1 F'!C50<5,'Tabel 2 F'!C52<0.5),"-",IFERROR('Tabel 2 F'!C52/'Tabel 1 F'!C50*100,"-")) -> 7.956989247 | D52: =IF(OR('Tabel 1 F'!C50<5,'Tabel 2 F'!D52<0.5),"-",IFERROR('Tabel 2 F'!D52/'Tabel 1 F'!C50*100,"-")) -> 7.255170619 | F52: =IF(OR('Tabel 1 F'!E50<5,'Tabel 2 F'!F52<0.5),"-",IFERROR('Tabel 2 F'!F52/'Tabel 1 F'!E50*100,"-")) -> 8.980674498 | G52: =IF(OR('Tabel 1 F'!E50<5,'Tabel 2 F'!G52<0.5),"-",IFERROR('Tabel 2 F'!G52/'Tabel 1 F'!E50*100,"-")) -> 8.009839123 | I52: =IF(OR('Tabel 1 F'!G50<5,'Tabel 2 F'!I52<0.5),"-",IFERROR('Tabel 2 F'!I52/'Tabel 1 F'!G50*100,"-")) -> 8.501208703 | J52: =IF(OR('Tabel 1 F'!G50<5,'Tabel 2 F'!J52<0.5),"-",IFERROR('Tabel 2 F'!J52/'Tabel 1 F'!G50*100,"-")) -> 7.656373315
A57: Middelfart
C59: Mænd | F59: Kvinder | I59: I alt
C60: Ledigheds- berørte | D60: Gns. brutto- ledighed | F60: Ledigheds- berørte | G60: Gns. brutto- ledighed | I60: Ledigheds- berørte | J60: Gns. brutto- ledighed
A63: Civ. ing. | C63: =IF(OR('Tabel 1 F'!C61<5,'Tabel 2 F'!C63<0.5),"-",IFERROR('Tabel 2 F'!C63/'Tabel 1 F'!C61*100,"-")) -> - | D63: =IF(OR('Tabel 1 F'!C61<5,'Tabel 2 F'!D63<0.5),"-",IFERROR('Tabel 2 F'!D63/'Tabel 1 F'!C61*100,"-")) -> - | F63: =IF(OR('Tabel 1 F'!E61<5,'Tabel 2 F'!F63<0.5),"-",IFERROR('Tabel 2 F'!F63/'Tabel 1 F'!E61*100,"-")) -> - | G63: =IF(OR('Tabel 1 F'!E61<5,'Tabel 2 F'!G63<0.5),"-",IFERROR('Tabel 2 F'!G63/'Tabel 1 F'!E61*100,"-")) -> - | I63: =IF(OR('Tabel 1 F'!G61<5,'Tabel 2 F'!I63<0.5),"-",IFERROR('Tabel 2 F'!I63/'Tabel 1 F'!G61*100,"-")) -> - | J63: =IF(OR('Tabel 1 F'!G61<5,'Tabel 2 F'!J63<0.5),"-",IFERROR('Tabel 2 F'!J63/'Tabel 1 F'!G61*100,"-")) -> -
A64: Diplom ing. | C64: =IF(OR('Tabel 1 F'!C62<5,'Tabel 2 F'!C64<0.5),"-",IFERROR('Tabel 2 F'!C64/'Tabel 1 F'!C62*100,"-")) -> 4.545454545 | D64: =IF(OR('Tabel 1 F'!C62<5,'Tabel 2 F'!D64<0.5),"-",IFERROR('Tabel 2 F'!D64/'Tabel 1 F'!C62*100,"-")) -> 4.065994053 | F64: =IF(OR('Tabel 1 F'!E62<5,'Tabel 2 F'!F64<0.5),"-",IFERROR('Tabel 2 F'!F64/'Tabel 1 F'!E62*100,"-")) -> 6 | G64: =IF(OR('Tabel 1 F'!E62<5,'Tabel 2 F'!G64<0.5),"-",IFERROR('Tabel 2 F'!G64/'Tabel 1 F'!E62*100,"-")) -> 5.714463918 | I64: =IF(OR('Tabel 1 F'!G62<5,'Tabel 2 F'!I64<0.5),"-",IFERROR('Tabel 2 F'!I64/'Tabel 1 F'!G62*100,"-")) -> 4.794520548 | J64: =IF(OR('Tabel 1 F'!G62<5,'Tabel 2 F'!J64<0.5),"-",IFERROR('Tabel 2 F'!J64/'Tabel 1 F'!G62*100,"-")) -> 4.34826629
A65: Cand. Scient. Tek. | C65: =IF(OR('Tabel 1 F'!C63<5,'Tabel 2 F'!C65<0.5),"-",IFERROR('Tabel 2 F'!C65/'Tabel 1 F'!C63*100,"-")) -> 9.375 | D65: =IF(OR('Tabel 1 F'!C63<5,'Tabel 2 F'!D65<0.5),"-",IFERROR('Tabel 2 F'!D65/'Tabel 1 F'!C63*100,"-")) -> 7.798368989 | F65: =IF(OR('Tabel 1 F'!E63<5,'Tabel 2 F'!F65<0.5),"-",IFERROR('Tabel 2 F'!F65/'Tabel 1 F'!E63*100,"-")) -> 9.375 | G65: =IF(OR('Tabel 1 F'!E63<5,'Tabel 2 F'!G65<0.5),"-",IFERROR('Tabel 2 F'!G65/'Tabel 1 F'!E63*100,"-")) -> 4.03074908 | I65: =IF(OR('Tabel 1 F'!G63<5,'Tabel 2 F'!I65<0.5),"-",IFERROR('Tabel 2 F'!I65/'Tabel 1 F'!G63*100,"-")) -> 9.375 | J65: =IF(OR('Tabel 1 F'!G63<5,'Tabel 2 F'!J65<0.5),"-",IFERROR('Tabel 2 F'!J65/'Tabel 1 F'!G63*100,"-")) -> 5.914559034
A66: MA. Hum. | C66: =IF(OR('Tabel 1 F'!C64<5,'Tabel 2 F'!C66<0.5),"-",IFERROR('Tabel 2 F'!C66/'Tabel 1 F'!C64*100,"-")) -> 5.357142857 | D66: =IF(OR('Tabel 1 F'!C64<5,'Tabel 2 F'!D66<0.5),"-",IFERROR('Tabel 2 F'!D66/'Tabel 1 F'!C64*100,"-")) -> 3.567418984 | F66: =IF(OR('Tabel 1 F'!E64<5,'Tabel 2 F'!F66<0.5),"-",IFERROR('Tabel 2 F'!F66/'Tabel 1 F'!E64*100,"-")) -> 7.826086957 | G66: =IF(OR('Tabel 1 F'!E64<5,'Tabel 2 F'!G66<0.5),"-",IFERROR('Tabel 2 F'!G66/'Tabel 1 F'!E64*100,"-")) -> 5.872127867 | I66: =IF(OR('Tabel 1 F'!G64<5,'Tabel 2 F'!I66<0.5),"-",IFERROR('Tabel 2 F'!I66/'Tabel 1 F'!G64*100,"-")) -> 7.01754386 | J66: =IF(OR('Tabel 1 F'!G64<5,'Tabel 2 F'!J66<0.5),"-",IFERROR('Tabel 2 F'!J66/'Tabel 1 F'!G64*100,"-")) -> 5.117369402
A67: MA. Nat. | C67: =IF(OR('Tabel 1 F'!C65<5,'Tabel 2 F'!C67<0.5),"-",IFERROR('Tabel 2 F'!C67/'Tabel 1 F'!C65*100,"-")) -> - | D67: =IF(OR('Tabel 1 F'!C65<5,'Tabel 2 F'!D67<0.5),"-",IFERROR('Tabel 2 F'!D67/'Tabel 1 F'!C65*100,"-")) -> - | F67: =IF(OR('Tabel 1 F'!E65<5,'Tabel 2 F'!F67<0.5),"-",IFERROR('Tabel 2 F'!F67/'Tabel 1 F'!E65*100,"-")) -> 7.5 | G67: =IF(OR('Tabel 1 F'!E65<5,'Tabel 2 F'!G67<0.5),"-",IFERROR('Tabel 2 F'!G67/'Tabel 1 F'!E65*100,"-")) -> 5.075469344 | I67: =IF(OR('Tabel 1 F'!G65<5,'Tabel 2 F'!I67<0.5),"-",IFERROR('Tabel 2 F'!I67/'Tabel 1 F'!G65*100,"-")) -> 4.285714286 | J67: =IF(OR('Tabel 1 F'!G65<5,'Tabel 2 F'!J67<0.5),"-",IFERROR('Tabel 2 F'!J67/'Tabel 1 F'!G65*100,"-")) -> 2.900268197
A68: MA. Ph.d. | C68: =IF(OR('Tabel 1 F'!C66<5,'Tabel 2 F'!C68<0.5),"-",IFERROR('Tabel 2 F'!C68/'Tabel 1 F'!C66*100,"-")) -> - | D68: =IF(OR('Tabel 1 F'!C66<5,'Tabel 2 F'!D68<0.5),"-",IFERROR('Tabel 2 F'!D68/'Tabel 1 F'!C66*100,"-")) -> - | F68: =IF(OR('Tabel 1 F'!E66<5,'Tabel 2 F'!F68<0.5),"-",IFERROR('Tabel 2 F'!F68/'Tabel 1 F'!E66*100,"-")) -> - | G68: =IF(OR('Tabel 1 F'!E66<5,'Tabel 2 F'!G68<0.5),"-",IFERROR('Tabel 2 F'!G68/'Tabel 1 F'!E66*100,"-")) -> - | I68: =IF(OR('Tabel 1 F'!G66<5,'Tabel 2 F'!I68<0.5),"-",IFERROR('Tabel 2 F'!I68/'Tabel 1 F'!G66*100,"-")) -> 16.66666667 | J68: =IF(OR('Tabel 1 F'!G66<5,'Tabel 2 F'!J68<0.5),"-",IFERROR('Tabel 2 F'!J68/'Tabel 1 F'!G66*100,"-")) -> 12.81731429
A69: MA. Samf. | C69: =IF(OR('Tabel 1 F'!C67<5,'Tabel 2 F'!C69<0.5),"-",IFERROR('Tabel 2 F'!C69/'Tabel 1 F'!C67*100,"-")) -> - | D69: =IF(OR('Tabel 1 F'!C67<5,'Tabel 2 F'!D69<0.5),"-",IFERROR('Tabel 2 F'!D69/'Tabel 1 F'!C67*100,"-")) -> - | F69: =IF(OR('Tabel 1 F'!E67<5,'Tabel 2 F'!F69<0.5),"-",IFERROR('Tabel 2 F'!F69/'Tabel 1 F'!E67*100,"-")) -> 21.42857143 | G69: =IF(OR('Tabel 1 F'!E67<5,'Tabel 2 F'!G69<0.5),"-",IFERROR('Tabel 2 F'!G69/'Tabel 1 F'!E67*100,"-")) -> 17.13875845 | I69: =IF(OR('Tabel 1 F'!G67<5,'Tabel 2 F'!I69<0.5),"-",IFERROR('Tabel 2 F'!I69/'Tabel 1 F'!G67*100,"-")) -> 20 | J69: =IF(OR('Tabel 1 F'!G67<5,'Tabel 2 F'!J69<0.5),"-",IFERROR('Tabel 2 F'!J69/'Tabel 1 F'!G67*100,"-")) -> 15.99617456
A70: Øvrige Mag. | C70: =IF(OR('Tabel 1 F'!C68<5,'Tabel 2 F'!C70<0.5),"-",IFERROR('Tabel 2 F'!C70/'Tabel 1 F'!C68*100,"-")) -> - | D70: =IF(OR('Tabel 1 F'!C68<5,'Tabel 2 F'!D70<0.5),"-",IFERROR('Tabel 2 F'!D70/'Tabel 1 F'!C68*100,"-")) -> - | F70: =IF(OR('Tabel 1 F'!E68<5,'Tabel 2 F'!F70<0.5),"-",IFERROR('Tabel 2 F'!F70/'Tabel 1 F'!E68*100,"-")) -> - | G70: =IF(OR('Tabel 1 F'!E68<5,'Tabel 2 F'!G70<0.5),"-",IFERROR('Tabel 2 F'!G70/'Tabel 1 F'!E68*100,"-")) -> - | I70: =IF(OR('Tabel 1 F'!G68<5,'Tabel 2 F'!I70<0.5),"-",IFERROR('Tabel 2 F'!I70/'Tabel 1 F'!G68*100,"-")) -> - | J70: =IF(OR('Tabel 1 F'!G68<5,'Tabel 2 F'!J70<0.5),"-",IFERROR('Tabel 2 F'!J70/'Tabel 1 F'!G68*100,"-")) -> -
A71: Agronom | C71: =IF(OR('Tabel 1 F'!C69<5,'Tabel 2 F'!C71<0.5),"-",IFERROR('Tabel 2 F'!C71/'Tabel 1 F'!C69*100,"-")) -> - | D71: =IF(OR('Tabel 1 F'!C69<5,'Tabel 2 F'!D71<0.5),"-",IFERROR('Tabel 2 F'!D71/'Tabel 1 F'!C69*100,"-")) -> - | F71: =IF(OR('Tabel 1 F'!E69<5,'Tabel 2 F'!F71<0.5),"-",IFERROR('Tabel 2 F'!F71/'Tabel 1 F'!E69*100,"-")) -> - | G71: =IF(OR('Tabel 1 F'!E69<5,'Tabel 2 F'!G71<0.5),"-",IFERROR('Tabel 2 F'!G71/'Tabel 1 F'!E69*100,"-")) -> - | I71: =IF(OR('Tabel 1 F'!G69<5,'Tabel 2 F'!I71<0.5),"-",IFERROR('Tabel 2 F'!I71/'Tabel 1 F'!G69*100,"-")) -> - | J71: =IF(OR('Tabel 1 F'!G69<5,'Tabel 2 F'!J71<0.5),"-",IFERROR('Tabel 2 F'!J71/'Tabel 1 F'!G69*100,"-")) -> -
A72: Landsk. Arkt. | C72: =IF(OR('Tabel 1 F'!C70<5,'Tabel 2 F'!C72<0.5),"-",IFERROR('Tabel 2 F'!C72/'Tabel 1 F'!C70*100,"-")) -> - | D72: =IF(OR('Tabel 1 F'!C70<5,'Tabel 2 F'!D72<0.5),"-",IFERROR('Tabel 2 F'!D72/'Tabel 1 F'!C70*100,"-")) -> - | F72: =IF(OR('Tabel 1 F'!E70<5,'Tabel 2 F'!F72<0.5),"-",IFERROR('Tabel 2 F'!F72/'Tabel 1 F'!E70*100,"-")) -> - | G72: =IF(OR('Tabel 1 F'!E70<5,'Tabel 2 F'!G72<0.5),"-",IFERROR('Tabel 2 F'!G72/'Tabel 1 F'!E70*100,"-")) -> - | I72: =IF(OR('Tabel 1 F'!G70<5,'Tabel 2 F'!I72<0.5),"-",IFERROR('Tabel 2 F'!I72/'Tabel 1 F'!G70*100,"-")) -> - | J72: =IF(OR('Tabel 1 F'!G70<5,'Tabel 2 F'!J72<0.5),"-",IFERROR('Tabel 2 F'!J72/'Tabel 1 F'!G70*100,"-")) -> -
A73: Hortonom | C73: =IF(OR('Tabel 1 F'!C71<5,'Tabel 2 F'!C73<0.5),"-",IFERROR('Tabel 2 F'!C73/'Tabel 1 F'!C71*100,"-")) -> - | D73: =IF(OR('Tabel 1 F'!C71<5,'Tabel 2 F'!D73<0.5),"-",IFERROR('Tabel 2 F'!D73/'Tabel 1 F'!C71*100,"-")) -> - | F73: =IF(OR('Tabel 1 F'!E71<5,'Tabel 2 F'!F73<0.5),"-",IFERROR('Tabel 2 F'!F73/'Tabel 1 F'!E71*100,"-")) -> - | G73: =IF(OR('Tabel 1 F'!E71<5,'Tabel 2 F'!G73<0.5),"-",IFERROR('Tabel 2 F'!G73/'Tabel 1 F'!E71*100,"-")) -> - | I73: =IF(OR('Tabel 1 F'!G71<5,'Tabel 2 F'!I73<0.5),"-",IFERROR('Tabel 2 F'!I73/'Tabel 1 F'!G71*100,"-")) -> - | J73: =IF(OR('Tabel 1 F'!G71<5,'Tabel 2 F'!J73<0.5),"-",IFERROR('Tabel 2 F'!J73/'Tabel 1 F'!G71*100,"-")) -> -
A74: Forstkand. | C74: =IF(OR('Tabel 1 F'!C72<5,'Tabel 2 F'!C74<0.5),"-",IFERROR('Tabel 2 F'!C74/'Tabel 1 F'!C72*100,"-")) -> - | D74: =IF(OR('Tabel 1 F'!C72<5,'Tabel 2 F'!D74<0.5),"-",IFERROR('Tabel 2 F'!D74/'Tabel 1 F'!C72*100,"-")) -> - | F74: =IF(OR('Tabel 1 F'!E72<5,'Tabel 2 F'!F74<0.5),"-",IFERROR('Tabel 2 F'!F74/'Tabel 1 F'!E72*100,"-")) -> - | G74: =IF(OR('Tabel 1 F'!E72<5,'Tabel 2 F'!G74<0.5),"-",IFERROR('Tabel 2 F'!G74/'Tabel 1 F'!E72*100,"-")) -> - | I74: =IF(OR('Tabel 1 F'!G72<5,'Tabel 2 F'!I74<0.5),"-",IFERROR('Tabel 2 F'!I74/'Tabel 1 F'!G72*100,"-")) -> - | J74: =IF(OR('Tabel 1 F'!G72<5,'Tabel 2 F'!J74<0.5),"-",IFERROR('Tabel 2 F'!J74/'Tabel 1 F'!G72*100,"-")) -> -
A75: Jordbrugsakad. | C75: =IF(OR('Tabel 1 F'!C73<5,'Tabel 2 F'!C75<0.5),"-",IFERROR('Tabel 2 F'!C75/'Tabel 1 F'!C73*100,"-")) -> 4.166666667 | D75: =IF(OR('Tabel 1 F'!C73<5,'Tabel 2 F'!D75<0.5),"-",IFERROR('Tabel 2 F'!D75/'Tabel 1 F'!C73*100,"-")) -> 4.165887025 | F75: =IF(OR('Tabel 1 F'!E73<5,'Tabel 2 F'!F75<0.5),"-",IFERROR('Tabel 2 F'!F75/'Tabel 1 F'!E73*100,"-")) -> - | G75: =IF(OR('Tabel 1 F'!E73<5,'Tabel 2 F'!G75<0.5),"-",IFERROR('Tabel 2 F'!G75/'Tabel 1 F'!E73*100,"-")) -> - | I75: =IF(OR('Tabel 1 F'!G73<5,'Tabel 2 F'!I75<0.5),"-",IFERROR('Tabel 2 F'!I75/'Tabel 1 F'!G73*100,"-")) -> 2.631578947 | J75: =IF(OR('Tabel 1 F'!G73<5,'Tabel 2 F'!J75<0.5),"-",IFERROR('Tabel 2 F'!J75/'Tabel 1 F'!G73*100,"-")) -> 2.631086542
A76: Mejeriing. | C76: =IF(OR('Tabel 1 F'!C74<5,'Tabel 2 F'!C76<0.5),"-",IFERROR('Tabel 2 F'!C76/'Tabel 1 F'!C74*100,"-")) -> - | D76: =IF(OR('Tabel 1 F'!C74<5,'Tabel 2 F'!D76<0.5),"-",IFERROR('Tabel 2 F'!D76/'Tabel 1 F'!C74*100,"-")) -> - | F76: =IF(OR('Tabel 1 F'!E74<5,'Tabel 2 F'!F76<0.5),"-",IFERROR('Tabel 2 F'!F76/'Tabel 1 F'!E74*100,"-")) -> - | G76: =IF(OR('Tabel 1 F'!E74<5,'Tabel 2 F'!G76<0.5),"-",IFERROR('Tabel 2 F'!G76/'Tabel 1 F'!E74*100,"-")) -> - | I76: =IF(OR('Tabel 1 F'!G74<5,'Tabel 2 F'!I76<0.5),"-",IFERROR('Tabel 2 F'!I76/'Tabel 1 F'!G74*100,"-")) -> - | J76: =IF(OR('Tabel 1 F'!G74<5,'Tabel 2 F'!J76<0.5),"-",IFERROR('Tabel 2 F'!J76/'Tabel 1 F'!G74*100,"-")) -> -
A77: Levn.m.kand. | C77: =IF(OR('Tabel 1 F'!C75<5,'Tabel 2 F'!C77<0.5),"-",IFERROR('Tabel 2 F'!C77/'Tabel 1 F'!C75*100,"-")) -> - | D77: =IF(OR('Tabel 1 F'!C75<5,'Tabel 2 F'!D77<0.5),"-",IFERROR('Tabel 2 F'!D77/'Tabel 1 F'!C75*100,"-")) -> - | F77: =IF(OR('Tabel 1 F'!E75<5,'Tabel 2 F'!F77<0.5),"-",IFERROR('Tabel 2 F'!F77/'Tabel 1 F'!E75*100,"-")) -> - | G77: =IF(OR('Tabel 1 F'!E75<5,'Tabel 2 F'!G77<0.5),"-",IFERROR('Tabel 2 F'!G77/'Tabel 1 F'!E75*100,"-")) -> - | I77: =IF(OR('Tabel 1 F'!G75<5,'Tabel 2 F'!I77<0.5),"-",IFERROR('Tabel 2 F'!I77/'Tabel 1 F'!G75*100,"-")) -> - | J77: =IF(OR('Tabel 1 F'!G75<5,'Tabel 2 F'!J77<0.5),"-",IFERROR('Tabel 2 F'!J77/'Tabel 1 F'!G75*100,"-")) -> -
A78: Dyrlæge | C78: =IF(OR('Tabel 1 F'!C76<5,'Tabel 2 F'!C78<0.5),"-",IFERROR('Tabel 2 F'!C78/'Tabel 1 F'!C76*100,"-")) -> - | D78: =IF(OR('Tabel 1 F'!C76<5,'Tabel 2 F'!D78<0.5),"-",IFERROR('Tabel 2 F'!D78/'Tabel 1 F'!C76*100,"-")) -> - | F78: =IF(OR('Tabel 1 F'!E76<5,'Tabel 2 F'!F78<0.5),"-",IFERROR('Tabel 2 F'!F78/'Tabel 1 F'!E76*100,"-")) -> 6.25 | G78: =IF(OR('Tabel 1 F'!E76<5,'Tabel 2 F'!G78<0.5),"-",IFERROR('Tabel 2 F'!G78/'Tabel 1 F'!E76*100,"-")) -> 5.671895466 | I78: =IF(OR('Tabel 1 F'!G76<5,'Tabel 2 F'!I78<0.5),"-",IFERROR('Tabel 2 F'!I78/'Tabel 1 F'!G76*100,"-")) -> 5.555555556 | J78: =IF(OR('Tabel 1 F'!G76<5,'Tabel 2 F'!J78<0.5),"-",IFERROR('Tabel 2 F'!J78/'Tabel 1 F'!G76*100,"-")) -> 5.041684858
A79: Farmaceut | C79: =IF(OR('Tabel 1 F'!C77<5,'Tabel 2 F'!C79<0.5),"-",IFERROR('Tabel 2 F'!C79/'Tabel 1 F'!C77*100,"-")) -> - | D79: =IF(OR('Tabel 1 F'!C77<5,'Tabel 2 F'!D79<0.5),"-",IFERROR('Tabel 2 F'!D79/'Tabel 1 F'!C77*100,"-")) -> - | F79: =IF(OR('Tabel 1 F'!E77<5,'Tabel 2 F'!F79<0.5),"-",IFERROR('Tabel 2 F'!F79/'Tabel 1 F'!E77*100,"-")) -> 12.5 | G79: =IF(OR('Tabel 1 F'!E77<5,'Tabel 2 F'!G79<0.5),"-",IFERROR('Tabel 2 F'!G79/'Tabel 1 F'!E77*100,"-")) -> 12.49766107 | I79: =IF(OR('Tabel 1 F'!G77<5,'Tabel 2 F'!I79<0.5),"-",IFERROR('Tabel 2 F'!I79/'Tabel 1 F'!G77*100,"-")) -> 9.090909091 | J79: =IF(OR('Tabel 1 F'!G77<5,'Tabel 2 F'!J79<0.5),"-",IFERROR('Tabel 2 F'!J79/'Tabel 1 F'!G77*100,"-")) -> 9.089208054
A80: Læge | C80: =IF(OR('Tabel 1 F'!C78<5,'Tabel 2 F'!C80<0.5),"-",IFERROR('Tabel 2 F'!C80/'Tabel 1 F'!C78*100,"-")) -> - | D80: =IF(OR('Tabel 1 F'!C78<5,'Tabel 2 F'!D80<0.5),"-",IFERROR('Tabel 2 F'!D80/'Tabel 1 F'!C78*100,"-")) -> - | F80: =IF(OR('Tabel 1 F'!E78<5,'Tabel 2 F'!F80<0.5),"-",IFERROR('Tabel 2 F'!F80/'Tabel 1 F'!E78*100,"-")) -> 1.204819277 | G80: =IF(OR('Tabel 1 F'!E78<5,'Tabel 2 F'!G80<0.5),"-",IFERROR('Tabel 2 F'!G80/'Tabel 1 F'!E78*100,"-")) -> 1.204593838 | I80: =IF(OR('Tabel 1 F'!G78<5,'Tabel 2 F'!I80<0.5),"-",IFERROR('Tabel 2 F'!I80/'Tabel 1 F'!G78*100,"-")) -> 0.9433962264 | J80: =IF(OR('Tabel 1 F'!G78<5,'Tabel 2 F'!J80<0.5),"-",IFERROR('Tabel 2 F'!J80/'Tabel 1 F'!G78*100,"-")) -> 0.9432197037
A81: Tandlæge | C81: =IF(OR('Tabel 1 F'!C79<5,'Tabel 2 F'!C81<0.5),"-",IFERROR('Tabel 2 F'!C81/'Tabel 1 F'!C79*100,"-")) -> - | D81: =IF(OR('Tabel 1 F'!C79<5,'Tabel 2 F'!D81<0.5),"-",IFERROR('Tabel 2 F'!D81/'Tabel 1 F'!C79*100,"-")) -> - | F81: =IF(OR('Tabel 1 F'!E79<5,'Tabel 2 F'!F81<0.5),"-",IFERROR('Tabel 2 F'!F81/'Tabel 1 F'!E79*100,"-")) -> - | G81: =IF(OR('Tabel 1 F'!E79<5,'Tabel 2 F'!G81<0.5),"-",IFERROR('Tabel 2 F'!G81/'Tabel 1 F'!E79*100,"-")) -> - | I81: =IF(OR('Tabel 1 F'!G79<5,'Tabel 2 F'!I81<0.5),"-",IFERROR('Tabel 2 F'!I81/'Tabel 1 F'!G79*100,"-")) -> - | J81: =IF(OR('Tabel 1 F'!G79<5,'Tabel 2 F'!J81<0.5),"-",IFERROR('Tabel 2 F'!J81/'Tabel 1 F'!G79*100,"-")) -> -
A82: Arkitekt | C82: =IF(OR('Tabel 1 F'!C80<5,'Tabel 2 F'!C82<0.5),"-",IFERROR('Tabel 2 F'!C82/'Tabel 1 F'!C80*100,"-")) -> - | D82: =IF(OR('Tabel 1 F'!C80<5,'Tabel 2 F'!D82<0.5),"-",IFERROR('Tabel 2 F'!D82/'Tabel 1 F'!C80*100,"-")) -> - | F82: =IF(OR('Tabel 1 F'!E80<5,'Tabel 2 F'!F82<0.5),"-",IFERROR('Tabel 2 F'!F82/'Tabel 1 F'!E80*100,"-")) -> - | G82: =IF(OR('Tabel 1 F'!E80<5,'Tabel 2 F'!G82<0.5),"-",IFERROR('Tabel 2 F'!G82/'Tabel 1 F'!E80*100,"-")) -> - | I82: =IF(OR('Tabel 1 F'!G80<5,'Tabel 2 F'!I82<0.5),"-",IFERROR('Tabel 2 F'!I82/'Tabel 1 F'!G80*100,"-")) -> - | J82: =IF(OR('Tabel 1 F'!G80<5,'Tabel 2 F'!J82<0.5),"-",IFERROR('Tabel 2 F'!J82/'Tabel 1 F'!G80*100,"-")) -> -
A83: Landinspek. | C83: =IF(OR('Tabel 1 F'!C81<5,'Tabel 2 F'!C83<0.5),"-",IFERROR('Tabel 2 F'!C83/'Tabel 1 F'!C81*100,"-")) -> - | D83: =IF(OR('Tabel 1 F'!C81<5,'Tabel 2 F'!D83<0.5),"-",IFERROR('Tabel 2 F'!D83/'Tabel 1 F'!C81*100,"-")) -> - | F83: =IF(OR('Tabel 1 F'!E81<5,'Tabel 2 F'!F83<0.5),"-",IFERROR('Tabel 2 F'!F83/'Tabel 1 F'!E81*100,"-")) -> - | G83: =IF(OR('Tabel 1 F'!E81<5,'Tabel 2 F'!G83<0.5),"-",IFERROR('Tabel 2 F'!G83/'Tabel 1 F'!E81*100,"-")) -> - | I83: =IF(OR('Tabel 1 F'!G81<5,'Tabel 2 F'!I83<0.5),"-",IFERROR('Tabel 2 F'!I83/'Tabel 1 F'!G81*100,"-")) -> - | J83: =IF(OR('Tabel 1 F'!G81<5,'Tabel 2 F'!J83<0.5),"-",IFERROR('Tabel 2 F'!J83/'Tabel 1 F'!G81*100,"-")) -> -
A84: Bibliotekar | C84: =IF(OR('Tabel 1 F'!C82<5,'Tabel 2 F'!C84<0.5),"-",IFERROR('Tabel 2 F'!C84/'Tabel 1 F'!C82*100,"-")) -> - | D84: =IF(OR('Tabel 1 F'!C82<5,'Tabel 2 F'!D84<0.5),"-",IFERROR('Tabel 2 F'!D84/'Tabel 1 F'!C82*100,"-")) -> - | F84: =IF(OR('Tabel 1 F'!E82<5,'Tabel 2 F'!F84<0.5),"-",IFERROR('Tabel 2 F'!F84/'Tabel 1 F'!E82*100,"-")) -> 13.33333333 | G84: =IF(OR('Tabel 1 F'!E82<5,'Tabel 2 F'!G84<0.5),"-",IFERROR('Tabel 2 F'!G84/'Tabel 1 F'!E82*100,"-")) -> - | I84: =IF(OR('Tabel 1 F'!G82<5,'Tabel 2 F'!I84<0.5),"-",IFERROR('Tabel 2 F'!I84/'Tabel 1 F'!G82*100,"-")) -> 15.78947368 | J84: =IF(OR('Tabel 1 F'!G82<5,'Tabel 2 F'!J84<0.5),"-",IFERROR('Tabel 2 F'!J84/'Tabel 1 F'!G82*100,"-")) -> 7.783289072
A85: Musikudd. | C85: =IF(OR('Tabel 1 F'!C83<5,'Tabel 2 F'!C85<0.5),"-",IFERROR('Tabel 2 F'!C85/'Tabel 1 F'!C83*100,"-")) -> - | D85: =IF(OR('Tabel 1 F'!C83<5,'Tabel 2 F'!D85<0.5),"-",IFERROR('Tabel 2 F'!D85/'Tabel 1 F'!C83*100,"-")) -> - | F85: =IF(OR('Tabel 1 F'!E83<5,'Tabel 2 F'!F85<0.5),"-",IFERROR('Tabel 2 F'!F85/'Tabel 1 F'!E83*100,"-")) -> - | G85: =IF(OR('Tabel 1 F'!E83<5,'Tabel 2 F'!G85<0.5),"-",IFERROR('Tabel 2 F'!G85/'Tabel 1 F'!E83*100,"-")) -> - | I85: =IF(OR('Tabel 1 F'!G83<5,'Tabel 2 F'!I85<0.5),"-",IFERROR('Tabel 2 F'!I85/'Tabel 1 F'!G83*100,"-")) -> - | J85: =IF(OR('Tabel 1 F'!G83<5,'Tabel 2 F'!J85<0.5),"-",IFERROR('Tabel 2 F'!J85/'Tabel 1 F'!G83*100,"-")) -> -
A86: Teolog | C86: =IF(OR('Tabel 1 F'!C84<5,'Tabel 2 F'!C86<0.5),"-",IFERROR('Tabel 2 F'!C86/'Tabel 1 F'!C84*100,"-")) -> - | D86: =IF(OR('Tabel 1 F'!C84<5,'Tabel 2 F'!D86<0.5),"-",IFERROR('Tabel 2 F'!D86/'Tabel 1 F'!C84*100,"-")) -> - | F86: =IF(OR('Tabel 1 F'!E84<5,'Tabel 2 F'!F86<0.5),"-",IFERROR('Tabel 2 F'!F86/'Tabel 1 F'!E84*100,"-")) -> - | G86: =IF(OR('Tabel 1 F'!E84<5,'Tabel 2 F'!G86<0.5),"-",IFERROR('Tabel 2 F'!G86/'Tabel 1 F'!E84*100,"-")) -> - | I86: =IF(OR('Tabel 1 F'!G84<5,'Tabel 2 F'!I86<0.5),"-",IFERROR('Tabel 2 F'!I86/'Tabel 1 F'!G84*100,"-")) -> - | J86: =IF(OR('Tabel 1 F'!G84<5,'Tabel 2 F'!J86<0.5),"-",IFERROR('Tabel 2 F'!J86/'Tabel 1 F'!G84*100,"-")) -> -
A87: Psykolog | C87: =IF(OR('Tabel 1 F'!C85<5,'Tabel 2 F'!C87<0.5),"-",IFERROR('Tabel 2 F'!C87/'Tabel 1 F'!C85*100,"-")) -> - | D87: =IF(OR('Tabel 1 F'!C85<5,'Tabel 2 F'!D87<0.5),"-",IFERROR('Tabel 2 F'!D87/'Tabel 1 F'!C85*100,"-")) -> - | F87: =IF(OR('Tabel 1 F'!E85<5,'Tabel 2 F'!F87<0.5),"-",IFERROR('Tabel 2 F'!F87/'Tabel 1 F'!E85*100,"-")) -> - | G87: =IF(OR('Tabel 1 F'!E85<5,'Tabel 2 F'!G87<0.5),"-",IFERROR('Tabel 2 F'!G87/'Tabel 1 F'!E85*100,"-")) -> - | I87: =IF(OR('Tabel 1 F'!G85<5,'Tabel 2 F'!I87<0.5),"-",IFERROR('Tabel 2 F'!I87/'Tabel 1 F'!G85*100,"-")) -> - | J87: =IF(OR('Tabel 1 F'!G85<5,'Tabel 2 F'!J87<0.5),"-",IFERROR('Tabel 2 F'!J87/'Tabel 1 F'!G85*100,"-")) -> -
A88: Jurist | C88: =IF(OR('Tabel 1 F'!C86<5,'Tabel 2 F'!C88<0.5),"-",IFERROR('Tabel 2 F'!C88/'Tabel 1 F'!C86*100,"-")) -> - | D88: =IF(OR('Tabel 1 F'!C86<5,'Tabel 2 F'!D88<0.5),"-",IFERROR('Tabel 2 F'!D88/'Tabel 1 F'!C86*100,"-")) -> - | F88: =IF(OR('Tabel 1 F'!E86<5,'Tabel 2 F'!F88<0.5),"-",IFERROR('Tabel 2 F'!F88/'Tabel 1 F'!E86*100,"-")) -> - | G88: =IF(OR('Tabel 1 F'!E86<5,'Tabel 2 F'!G88<0.5),"-",IFERROR('Tabel 2 F'!G88/'Tabel 1 F'!E86*100,"-")) -> - | I88: =IF(OR('Tabel 1 F'!G86<5,'Tabel 2 F'!I88<0.5),"-",IFERROR('Tabel 2 F'!I88/'Tabel 1 F'!G86*100,"-")) -> - | J88: =IF(OR('Tabel 1 F'!G86<5,'Tabel 2 F'!J88<0.5),"-",IFERROR('Tabel 2 F'!J88/'Tabel 1 F'!G86*100,"-")) -> -
A89: Økonom | C89: =IF(OR('Tabel 1 F'!C87<5,'Tabel 2 F'!C89<0.5),"-",IFERROR('Tabel 2 F'!C89/'Tabel 1 F'!C87*100,"-")) -> - | D89: =IF(OR('Tabel 1 F'!C87<5,'Tabel 2 F'!D89<0.5),"-",IFERROR('Tabel 2 F'!D89/'Tabel 1 F'!C87*100,"-")) -> - | F89: =IF(OR('Tabel 1 F'!E87<5,'Tabel 2 F'!F89<0.5),"-",IFERROR('Tabel 2 F'!F89/'Tabel 1 F'!E87*100,"-")) -> - | G89: =IF(OR('Tabel 1 F'!E87<5,'Tabel 2 F'!G89<0.5),"-",IFERROR('Tabel 2 F'!G89/'Tabel 1 F'!E87*100,"-")) -> - | I89: =IF(OR('Tabel 1 F'!G87<5,'Tabel 2 F'!I89<0.5),"-",IFERROR('Tabel 2 F'!I89/'Tabel 1 F'!G87*100,"-")) -> - | J89: =IF(OR('Tabel 1 F'!G87<5,'Tabel 2 F'!J89<0.5),"-",IFERROR('Tabel 2 F'!J89/'Tabel 1 F'!G87*100,"-")) -> -
A90: Samf. Adm. | C90: =IF(OR('Tabel 1 F'!C88<5,'Tabel 2 F'!C90<0.5),"-",IFERROR('Tabel 2 F'!C90/'Tabel 1 F'!C88*100,"-")) -> - | D90: =IF(OR('Tabel 1 F'!C88<5,'Tabel 2 F'!D90<0.5),"-",IFERROR('Tabel 2 F'!D90/'Tabel 1 F'!C88*100,"-")) -> - | F90: =IF(OR('Tabel 1 F'!E88<5,'Tabel 2 F'!F90<0.5),"-",IFERROR('Tabel 2 F'!F90/'Tabel 1 F'!E88*100,"-")) -> - | G90: =IF(OR('Tabel 1 F'!E88<5,'Tabel 2 F'!G90<0.5),"-",IFERROR('Tabel 2 F'!G90/'Tabel 1 F'!E88*100,"-")) -> - | I90: =IF(OR('Tabel 1 F'!G88<5,'Tabel 2 F'!I90<0.5),"-",IFERROR('Tabel 2 F'!I90/'Tabel 1 F'!G88*100,"-")) -> - | J90: =IF(OR('Tabel 1 F'!G88<5,'Tabel 2 F'!J90<0.5),"-",IFERROR('Tabel 2 F'!J90/'Tabel 1 F'!G88*100,"-")) -> -
A91: Cand. Merc. | C91: =IF(OR('Tabel 1 F'!C89<5,'Tabel 2 F'!C91<0.5),"-",IFERROR('Tabel 2 F'!C91/'Tabel 1 F'!C89*100,"-")) -> 2.5 | D91: =IF(OR('Tabel 1 F'!C89<5,'Tabel 2 F'!D91<0.5),"-",IFERROR('Tabel 2 F'!D91/'Tabel 1 F'!C89*100,"-")) -> 2.499532215 | F91: =IF(OR('Tabel 1 F'!E89<5,'Tabel 2 F'!F91<0.5),"-",IFERROR('Tabel 2 F'!F91/'Tabel 1 F'!E89*100,"-")) -> 4.615384615 | G91: =IF(OR('Tabel 1 F'!E89<5,'Tabel 2 F'!G91<0.5),"-",IFERROR('Tabel 2 F'!G91/'Tabel 1 F'!E89*100,"-")) -> 2.903626655 | I91: =IF(OR('Tabel 1 F'!G89<5,'Tabel 2 F'!I91<0.5),"-",IFERROR('Tabel 2 F'!I91/'Tabel 1 F'!G89*100,"-")) -> 3.448275862 | J91: =IF(OR('Tabel 1 F'!G89<5,'Tabel 2 F'!J91<0.5),"-",IFERROR('Tabel 2 F'!J91/'Tabel 1 F'!G89*100,"-")) -> 2.680677998
A92: HA | C92: =IF(OR('Tabel 1 F'!C90<5,'Tabel 2 F'!C92<0.5),"-",IFERROR('Tabel 2 F'!C92/'Tabel 1 F'!C90*100,"-")) -> 4.166666667 | D92: =IF(OR('Tabel 1 F'!C90<5,'Tabel 2 F'!D92<0.5),"-",IFERROR('Tabel 2 F'!D92/'Tabel 1 F'!C90*100,"-")) -> 4.165887025 | F92: =IF(OR('Tabel 1 F'!E90<5,'Tabel 2 F'!F92<0.5),"-",IFERROR('Tabel 2 F'!F92/'Tabel 1 F'!E90*100,"-")) -> 10 | G92: =IF(OR('Tabel 1 F'!E90<5,'Tabel 2 F'!G92<0.5),"-",IFERROR('Tabel 2 F'!G92/'Tabel 1 F'!E90*100,"-")) -> 9.998128859 | I92: =IF(OR('Tabel 1 F'!G90<5,'Tabel 2 F'!I92<0.5),"-",IFERROR('Tabel 2 F'!I92/'Tabel 1 F'!G90*100,"-")) -> 5.882352941 | J92: =IF(OR('Tabel 1 F'!G90<5,'Tabel 2 F'!J92<0.5),"-",IFERROR('Tabel 2 F'!J92/'Tabel 1 F'!G90*100,"-")) -> 5.88125227
A93: HD | C93: =IF(OR('Tabel 1 F'!C91<5,'Tabel 2 F'!C93<0.5),"-",IFERROR('Tabel 2 F'!C93/'Tabel 1 F'!C91*100,"-")) -> - | D93: =IF(OR('Tabel 1 F'!C91<5,'Tabel 2 F'!D93<0.5),"-",IFERROR('Tabel 2 F'!D93/'Tabel 1 F'!C91*100,"-")) -> - | F93: =IF(OR('Tabel 1 F'!E91<5,'Tabel 2 F'!F93<0.5),"-",IFERROR('Tabel 2 F'!F93/'Tabel 1 F'!E91*100,"-")) -> - | G93: =IF(OR('Tabel 1 F'!E91<5,'Tabel 2 F'!G93<0.5),"-",IFERROR('Tabel 2 F'!G93/'Tabel 1 F'!E91*100,"-")) -> - | I93: =IF(OR('Tabel 1 F'!G91<5,'Tabel 2 F'!I93<0.5),"-",IFERROR('Tabel 2 F'!I93/'Tabel 1 F'!G91*100,"-")) -> - | J93: =IF(OR('Tabel 1 F'!G91<5,'Tabel 2 F'!J93<0.5),"-",IFERROR('Tabel 2 F'!J93/'Tabel 1 F'!G91*100,"-")) -> -
A94: Komm. og Sprog | C94: =IF(OR('Tabel 1 F'!C92<5,'Tabel 2 F'!C94<0.5),"-",IFERROR('Tabel 2 F'!C94/'Tabel 1 F'!C92*100,"-")) -> - | D94: =IF(OR('Tabel 1 F'!C92<5,'Tabel 2 F'!D94<0.5),"-",IFERROR('Tabel 2 F'!D94/'Tabel 1 F'!C92*100,"-")) -> - | F94: =IF(OR('Tabel 1 F'!E92<5,'Tabel 2 F'!F94<0.5),"-",IFERROR('Tabel 2 F'!F94/'Tabel 1 F'!E92*100,"-")) -> - | G94: =IF(OR('Tabel 1 F'!E92<5,'Tabel 2 F'!G94<0.5),"-",IFERROR('Tabel 2 F'!G94/'Tabel 1 F'!E92*100,"-")) -> - | I94: =IF(OR('Tabel 1 F'!G92<5,'Tabel 2 F'!I94<0.5),"-",IFERROR('Tabel 2 F'!I94/'Tabel 1 F'!G92*100,"-")) -> - | J94: =IF(OR('Tabel 1 F'!G92<5,'Tabel 2 F'!J94<0.5),"-",IFERROR('Tabel 2 F'!J94/'Tabel 1 F'!G92*100,"-")) -> -
A95: Bygningskonst. | C95: =IF(OR('Tabel 1 F'!C93<5,'Tabel 2 F'!C95<0.5),"-",IFERROR('Tabel 2 F'!C95/'Tabel 1 F'!C93*100,"-")) -> 5 | D95: =IF(OR('Tabel 1 F'!C93<5,'Tabel 2 F'!D95<0.5),"-",IFERROR('Tabel 2 F'!D95/'Tabel 1 F'!C93*100,"-")) -> 4.38460259 | F95: =IF(OR('Tabel 1 F'!E93<5,'Tabel 2 F'!F95<0.5),"-",IFERROR('Tabel 2 F'!F95/'Tabel 1 F'!E93*100,"-")) -> 11.11111111 | G95: =IF(OR('Tabel 1 F'!E93<5,'Tabel 2 F'!G95<0.5),"-",IFERROR('Tabel 2 F'!G95/'Tabel 1 F'!E93*100,"-")) -> - | I95: =IF(OR('Tabel 1 F'!G93<5,'Tabel 2 F'!I95<0.5),"-",IFERROR('Tabel 2 F'!I95/'Tabel 1 F'!G93*100,"-")) -> 5.797101449 | J95: =IF(OR('Tabel 1 F'!G93<5,'Tabel 2 F'!J95<0.5),"-",IFERROR('Tabel 2 F'!J95/'Tabel 1 F'!G93*100,"-")) -> 3.993755633
A96: Cand. IT. | C96: =IF(OR('Tabel 1 F'!C94<5,'Tabel 2 F'!C96<0.5),"-",IFERROR('Tabel 2 F'!C96/'Tabel 1 F'!C94*100,"-")) -> 50 | D96: =IF(OR('Tabel 1 F'!C94<5,'Tabel 2 F'!D96<0.5),"-",IFERROR('Tabel 2 F'!D96/'Tabel 1 F'!C94*100,"-")) -> 28.45173496 | F96: =IF(OR('Tabel 1 F'!E94<5,'Tabel 2 F'!F96<0.5),"-",IFERROR('Tabel 2 F'!F96/'Tabel 1 F'!E94*100,"-")) -> 16.66666667 | G96: =IF(OR('Tabel 1 F'!E94<5,'Tabel 2 F'!G96<0.5),"-",IFERROR('Tabel 2 F'!G96/'Tabel 1 F'!E94*100,"-")) -> 16.6635481 | I96: =IF(OR('Tabel 1 F'!G94<5,'Tabel 2 F'!I96<0.5),"-",IFERROR('Tabel 2 F'!I96/'Tabel 1 F'!G94*100,"-")) -> 33.33333333 | J96: =IF(OR('Tabel 1 F'!G94<5,'Tabel 2 F'!J96<0.5),"-",IFERROR('Tabel 2 F'!J96/'Tabel 1 F'!G94*100,"-")) -> 22.55764153
A97: Bac. Samf. | C97: =IF(OR('Tabel 1 F'!C95<5,'Tabel 2 F'!C97<0.5),"-",IFERROR('Tabel 2 F'!C97/'Tabel 1 F'!C95*100,"-")) -> - | D97: =IF(OR('Tabel 1 F'!C95<5,'Tabel 2 F'!D97<0.5),"-",IFERROR('Tabel 2 F'!D97/'Tabel 1 F'!C95*100,"-")) -> - | F97: =IF(OR('Tabel 1 F'!E95<5,'Tabel 2 F'!F97<0.5),"-",IFERROR('Tabel 2 F'!F97/'Tabel 1 F'!E95*100,"-")) -> - | G97: =IF(OR('Tabel 1 F'!E95<5,'Tabel 2 F'!G97<0.5),"-",IFERROR('Tabel 2 F'!G97/'Tabel 1 F'!E95*100,"-")) -> - | I97: =IF(OR('Tabel 1 F'!G95<5,'Tabel 2 F'!I97<0.5),"-",IFERROR('Tabel 2 F'!I97/'Tabel 1 F'!G95*100,"-")) -> - | J97: =IF(OR('Tabel 1 F'!G95<5,'Tabel 2 F'!J97<0.5),"-",IFERROR('Tabel 2 F'!J97/'Tabel 1 F'!G95*100,"-")) -> -
A98: Bac. Hum. | C98: =IF(OR('Tabel 1 F'!C96<5,'Tabel 2 F'!C98<0.5),"-",IFERROR('Tabel 2 F'!C98/'Tabel 1 F'!C96*100,"-")) -> - | D98: =IF(OR('Tabel 1 F'!C96<5,'Tabel 2 F'!D98<0.5),"-",IFERROR('Tabel 2 F'!D98/'Tabel 1 F'!C96*100,"-")) -> - | F98: =IF(OR('Tabel 1 F'!E96<5,'Tabel 2 F'!F98<0.5),"-",IFERROR('Tabel 2 F'!F98/'Tabel 1 F'!E96*100,"-")) -> - | G98: =IF(OR('Tabel 1 F'!E96<5,'Tabel 2 F'!G98<0.5),"-",IFERROR('Tabel 2 F'!G98/'Tabel 1 F'!E96*100,"-")) -> - | I98: =IF(OR('Tabel 1 F'!G96<5,'Tabel 2 F'!I98<0.5),"-",IFERROR('Tabel 2 F'!I98/'Tabel 1 F'!G96*100,"-")) -> - | J98: =IF(OR('Tabel 1 F'!G96<5,'Tabel 2 F'!J98<0.5),"-",IFERROR('Tabel 2 F'!J98/'Tabel 1 F'!G96*100,"-")) -> -
A99: Bac. Nat. | C99: =IF(OR('Tabel 1 F'!C97<5,'Tabel 2 F'!C99<0.5),"-",IFERROR('Tabel 2 F'!C99/'Tabel 1 F'!C97*100,"-")) -> - | D99: =IF(OR('Tabel 1 F'!C97<5,'Tabel 2 F'!D99<0.5),"-",IFERROR('Tabel 2 F'!D99/'Tabel 1 F'!C97*100,"-")) -> - | F99: =IF(OR('Tabel 1 F'!E97<5,'Tabel 2 F'!F99<0.5),"-",IFERROR('Tabel 2 F'!F99/'Tabel 1 F'!E97*100,"-")) -> - | G99: =IF(OR('Tabel 1 F'!E97<5,'Tabel 2 F'!G99<0.5),"-",IFERROR('Tabel 2 F'!G99/'Tabel 1 F'!E97*100,"-")) -> - | I99: =IF(OR('Tabel 1 F'!G97<5,'Tabel 2 F'!I99<0.5),"-",IFERROR('Tabel 2 F'!I99/'Tabel 1 F'!G97*100,"-")) -> 10 | J99: =IF(OR('Tabel 1 F'!G97<5,'Tabel 2 F'!J99<0.5),"-",IFERROR('Tabel 2 F'!J99/'Tabel 1 F'!G97*100,"-")) -> 9.998128859
A100: Andre | C100: =IF(OR('Tabel 1 F'!C98<5,'Tabel 2 F'!C100<0.5),"-",IFERROR('Tabel 2 F'!C100/'Tabel 1 F'!C98*100,"-")) -> - | D100: =IF(OR('Tabel 1 F'!C98<5,'Tabel 2 F'!D100<0.5),"-",IFERROR('Tabel 2 F'!D100/'Tabel 1 F'!C98*100,"-")) -> - | F100: =IF(OR('Tabel 1 F'!E98<5,'Tabel 2 F'!F100<0.5),"-",IFERROR('Tabel 2 F'!F100/'Tabel 1 F'!E98*100,"-")) -> - | G100: =IF(OR('Tabel 1 F'!E98<5,'Tabel 2 F'!G100<0.5),"-",IFERROR('Tabel 2 F'!G100/'Tabel 1 F'!E98*100,"-")) -> - | I100: =IF(OR('Tabel 1 F'!G98<5,'Tabel 2 F'!I100<0.5),"-",IFERROR('Tabel 2 F'!I100/'Tabel 1 F'!G98*100,"-")) -> - | J100: =IF(OR('Tabel 1 F'!G98<5,'Tabel 2 F'!J100<0.5),"-",IFERROR('Tabel 2 F'!J100/'Tabel 1 F'!G98*100,"-")) -> -
A102: Total | C102: =IF(OR('Tabel 1 F'!C100<5,'Tabel 2 F'!C102<0.5),"-",IFERROR('Tabel 2 F'!C102/'Tabel 1 F'!C100*100,"-")) -> 3.57568534 | D102: =IF(OR('Tabel 1 F'!C100<5,'Tabel 2 F'!D102<0.5),"-",IFERROR('Tabel 2 F'!D102/'Tabel 1 F'!C100*100,"-")) -> 2.988911354 | F102: =IF(OR('Tabel 1 F'!E100<5,'Tabel 2 F'!F102<0.5),"-",IFERROR('Tabel 2 F'!F102/'Tabel 1 F'!E100*100,"-")) -> 4.580152672 | G102: =IF(OR('Tabel 1 F'!E100<5,'Tabel 2 F'!G102<0.5),"-",IFERROR('Tabel 2 F'!G102/'Tabel 1 F'!E100*100,"-")) -> 3.254126468 | I102: =IF(OR('Tabel 1 F'!G100<5,'Tabel 2 F'!I102<0.5),"-",IFERROR('Tabel 2 F'!I102/'Tabel 1 F'!G100*100,"-")) -> 4.061538462 | J102: =IF(OR('Tabel 1 F'!G100<5,'Tabel 2 F'!J102<0.5),"-",IFERROR('Tabel 2 F'!J102/'Tabel 1 F'!G100*100,"-")) -> 3.117193865
A104: Ingeniører i alt | C104: =IF(OR('Tabel 1 F'!C102<5,'Tabel 2 F'!C104<0.5),"-",IFERROR('Tabel 2 F'!C104/'Tabel 1 F'!C102*100,"-")) -> 3.448275862 | D104: =IF(OR('Tabel 1 F'!C102<5,'Tabel 2 F'!D104<0.5),"-",IFERROR('Tabel 2 F'!D104/'Tabel 1 F'!C102*100,"-")) -> 3.084547212 | F104: =IF(OR('Tabel 1 F'!E102<5,'Tabel 2 F'!F104<0.5),"-",IFERROR('Tabel 2 F'!F104/'Tabel 1 F'!E102*100,"-")) -> 3.896103896 | G104: =IF(OR('Tabel 1 F'!E102<5,'Tabel 2 F'!G104<0.5),"-",IFERROR('Tabel 2 F'!G104/'Tabel 1 F'!E102*100,"-")) -> 3.710690856 | I104: =IF(OR('Tabel 1 F'!G102<5,'Tabel 2 F'!I104<0.5),"-",IFERROR('Tabel 2 F'!I104/'Tabel 1 F'!G102*100,"-")) -> 3.535353535 | J104: =IF(OR('Tabel 1 F'!G102<5,'Tabel 2 F'!J104<0.5),"-",IFERROR('Tabel 2 F'!J104/'Tabel 1 F'!G102*100,"-")) -> 3.206297365
A105: Magistre i alt | C105: =IF(OR('Tabel 1 F'!C103<5,'Tabel 2 F'!C105<0.5),"-",IFERROR('Tabel 2 F'!C105/'Tabel 1 F'!C103*100,"-")) -> 4.210526316 | D105: =IF(OR('Tabel 1 F'!C103<5,'Tabel 2 F'!D105<0.5),"-",IFERROR('Tabel 2 F'!D105/'Tabel 1 F'!C103*100,"-")) -> 2.912414198 | F105: =IF(OR('Tabel 1 F'!E103<5,'Tabel 2 F'!F105<0.5),"-",IFERROR('Tabel 2 F'!F105/'Tabel 1 F'!E103*100,"-")) -> 8.379888268 | G105: =IF(OR('Tabel 1 F'!E103<5,'Tabel 2 F'!G105<0.5),"-",IFERROR('Tabel 2 F'!G105/'Tabel 1 F'!E103*100,"-")) -> 6.247240764 | I105: =IF(OR('Tabel 1 F'!G103<5,'Tabel 2 F'!I105<0.5),"-",IFERROR('Tabel 2 F'!I105/'Tabel 1 F'!G103*100,"-")) -> 6.934306569 | J105: =IF(OR('Tabel 1 F'!G103<5,'Tabel 2 F'!J105<0.5),"-",IFERROR('Tabel 2 F'!J105/'Tabel 1 F'!G103*100,"-")) -> 5.091005276
A106: DJØF'ere i alt | C106: =IF(OR('Tabel 1 F'!C104<5,'Tabel 2 F'!C106<0.5),"-",IFERROR('Tabel 2 F'!C106/'Tabel 1 F'!C104*100,"-")) -> 1.754385965 | D106: =IF(OR('Tabel 1 F'!C104<5,'Tabel 2 F'!D106<0.5),"-",IFERROR('Tabel 2 F'!D106/'Tabel 1 F'!C104*100,"-")) -> 1.754057695 | F106: =IF(OR('Tabel 1 F'!E104<5,'Tabel 2 F'!F106<0.5),"-",IFERROR('Tabel 2 F'!F106/'Tabel 1 F'!E104*100,"-")) -> 2.18579235 | G106: =IF(OR('Tabel 1 F'!E104<5,'Tabel 2 F'!G106<0.5),"-",IFERROR('Tabel 2 F'!G106/'Tabel 1 F'!E104*100,"-")) -> 1.57768864 | I106: =IF(OR('Tabel 1 F'!G104<5,'Tabel 2 F'!I106<0.5),"-",IFERROR('Tabel 2 F'!I106/'Tabel 1 F'!G104*100,"-")) -> 1.97740113 | J106: =IF(OR('Tabel 1 F'!G104<5,'Tabel 2 F'!J106<0.5),"-",IFERROR('Tabel 2 F'!J106/'Tabel 1 F'!G104*100,"-")) -> 1.662883861
A111: Assens
C113: Mænd | F113: Kvinder | I113: I alt
C114: Ledigheds- berørte | D114: Gns. brutto- ledighed | F114: Ledigheds- berørte | G114: Gns. brutto- ledighed | I114: Ledigheds- berørte | J114: Gns. brutto- ledighed
A117: Civ. ing. | C117: =IF(OR('Tabel 1 F'!C115<5,'Tabel 2 F'!C117<0.5),"-",IFERROR('Tabel 2 F'!C117/'Tabel 1 F'!C115*100,"-")) -> 3.571428571 | D117: =IF(OR('Tabel 1 F'!C115<5,'Tabel 2 F'!D117<0.5),"-",IFERROR('Tabel 2 F'!D117/'Tabel 1 F'!C115*100,"-")) -> 3.570760307 | F117: =IF(OR('Tabel 1 F'!E115<5,'Tabel 2 F'!F117<0.5),"-",IFERROR('Tabel 2 F'!F117/'Tabel 1 F'!E115*100,"-")) -> 6.666666667 | G117: =IF(OR('Tabel 1 F'!E115<5,'Tabel 2 F'!G117<0.5),"-",IFERROR('Tabel 2 F'!G117/'Tabel 1 F'!E115*100,"-")) -> 6.665419239 | I117: =IF(OR('Tabel 1 F'!G115<5,'Tabel 2 F'!I117<0.5),"-",IFERROR('Tabel 2 F'!I117/'Tabel 1 F'!G115*100,"-")) -> 4.225352113 | J117: =IF(OR('Tabel 1 F'!G115<5,'Tabel 2 F'!J117<0.5),"-",IFERROR('Tabel 2 F'!J117/'Tabel 1 F'!G115*100,"-")) -> 4.22456149
A118: Diplom ing. | C118: =IF(OR('Tabel 1 F'!C116<5,'Tabel 2 F'!C118<0.5),"-",IFERROR('Tabel 2 F'!C118/'Tabel 1 F'!C116*100,"-")) -> 3.645833333 | D118: =IF(OR('Tabel 1 F'!C116<5,'Tabel 2 F'!D118<0.5),"-",IFERROR('Tabel 2 F'!D118/'Tabel 1 F'!C116*100,"-")) -> 3.386894738 | F118: =IF(OR('Tabel 1 F'!E116<5,'Tabel 2 F'!F118<0.5),"-",IFERROR('Tabel 2 F'!F118/'Tabel 1 F'!E116*100,"-")) -> 4.444444444 | G118: =IF(OR('Tabel 1 F'!E116<5,'Tabel 2 F'!G118<0.5),"-",IFERROR('Tabel 2 F'!G118/'Tabel 1 F'!E116*100,"-")) -> 4.443612826 | I118: =IF(OR('Tabel 1 F'!G116<5,'Tabel 2 F'!I118<0.5),"-",IFERROR('Tabel 2 F'!I118/'Tabel 1 F'!G116*100,"-")) -> 3.797468354 | J118: =IF(OR('Tabel 1 F'!G116<5,'Tabel 2 F'!J118<0.5),"-",IFERROR('Tabel 2 F'!J118/'Tabel 1 F'!G116*100,"-")) -> 3.587537413
A119: Cand. Scient. Tek. | C119: =IF(OR('Tabel 1 F'!C117<5,'Tabel 2 F'!C119<0.5),"-",IFERROR('Tabel 2 F'!C119/'Tabel 1 F'!C117*100,"-")) -> - | D119: =IF(OR('Tabel 1 F'!C117<5,'Tabel 2 F'!D119<0.5),"-",IFERROR('Tabel 2 F'!D119/'Tabel 1 F'!C117*100,"-")) -> - | F119: =IF(OR('Tabel 1 F'!E117<5,'Tabel 2 F'!F119<0.5),"-",IFERROR('Tabel 2 F'!F119/'Tabel 1 F'!E117*100,"-")) -> 20 | G119: =IF(OR('Tabel 1 F'!E117<5,'Tabel 2 F'!G119<0.5),"-",IFERROR('Tabel 2 F'!G119/'Tabel 1 F'!E117*100,"-")) -> 16.97748394 | I119: =IF(OR('Tabel 1 F'!G117<5,'Tabel 2 F'!I119<0.5),"-",IFERROR('Tabel 2 F'!I119/'Tabel 1 F'!G117*100,"-")) -> 9.756097561 | J119: =IF(OR('Tabel 1 F'!G117<5,'Tabel 2 F'!J119<0.5),"-",IFERROR('Tabel 2 F'!J119/'Tabel 1 F'!G117*100,"-")) -> 8.281699483
A120: MA. Hum. | C120: =IF(OR('Tabel 1 F'!C118<5,'Tabel 2 F'!C120<0.5),"-",IFERROR('Tabel 2 F'!C120/'Tabel 1 F'!C118*100,"-")) -> 12.19512195 | D120: =IF(OR('Tabel 1 F'!C118<5,'Tabel 2 F'!D120<0.5),"-",IFERROR('Tabel 2 F'!D120/'Tabel 1 F'!C118*100,"-")) -> 11.91597209 | F120: =IF(OR('Tabel 1 F'!E118<5,'Tabel 2 F'!F120<0.5),"-",IFERROR('Tabel 2 F'!F120/'Tabel 1 F'!E118*100,"-")) -> 11.81818182 | G120: =IF(OR('Tabel 1 F'!E118<5,'Tabel 2 F'!G120<0.5),"-",IFERROR('Tabel 2 F'!G120/'Tabel 1 F'!E118*100,"-")) -> 11.6061759 | I120: =IF(OR('Tabel 1 F'!G118<5,'Tabel 2 F'!I120<0.5),"-",IFERROR('Tabel 2 F'!I120/'Tabel 1 F'!G118*100,"-")) -> 11.9205298 | J120: =IF(OR('Tabel 1 F'!G118<5,'Tabel 2 F'!J120<0.5),"-",IFERROR('Tabel 2 F'!J120/'Tabel 1 F'!G118*100,"-")) -> 11.69029274
A121: MA. Nat. | C121: =IF(OR('Tabel 1 F'!C119<5,'Tabel 2 F'!C121<0.5),"-",IFERROR('Tabel 2 F'!C121/'Tabel 1 F'!C119*100,"-")) -> 3.125 | D121: =IF(OR('Tabel 1 F'!C119<5,'Tabel 2 F'!D121<0.5),"-",IFERROR('Tabel 2 F'!D121/'Tabel 1 F'!C119*100,"-")) -> 3.104924219 | F121: =IF(OR('Tabel 1 F'!E119<5,'Tabel 2 F'!F121<0.5),"-",IFERROR('Tabel 2 F'!F121/'Tabel 1 F'!E119*100,"-")) -> 10.71428571 | G121: =IF(OR('Tabel 1 F'!E119<5,'Tabel 2 F'!G121<0.5),"-",IFERROR('Tabel 2 F'!G121/'Tabel 1 F'!E119*100,"-")) -> 10.66772995 | I121: =IF(OR('Tabel 1 F'!G119<5,'Tabel 2 F'!I121<0.5),"-",IFERROR('Tabel 2 F'!I121/'Tabel 1 F'!G119*100,"-")) -> 6.666666667 | J121: =IF(OR('Tabel 1 F'!G119<5,'Tabel 2 F'!J121<0.5),"-",IFERROR('Tabel 2 F'!J121/'Tabel 1 F'!G119*100,"-")) -> 6.63423356
A122: MA. Ph.d. | C122: =IF(OR('Tabel 1 F'!C120<5,'Tabel 2 F'!C122<0.5),"-",IFERROR('Tabel 2 F'!C122/'Tabel 1 F'!C120*100,"-")) -> - | D122: =IF(OR('Tabel 1 F'!C120<5,'Tabel 2 F'!D122<0.5),"-",IFERROR('Tabel 2 F'!D122/'Tabel 1 F'!C120*100,"-")) -> - | F122: =IF(OR('Tabel 1 F'!E120<5,'Tabel 2 F'!F122<0.5),"-",IFERROR('Tabel 2 F'!F122/'Tabel 1 F'!E120*100,"-")) -> - | G122: =IF(OR('Tabel 1 F'!E120<5,'Tabel 2 F'!G122<0.5),"-",IFERROR('Tabel 2 F'!G122/'Tabel 1 F'!E120*100,"-")) -> - | I122: =IF(OR('Tabel 1 F'!G120<5,'Tabel 2 F'!I122<0.5),"-",IFERROR('Tabel 2 F'!I122/'Tabel 1 F'!G120*100,"-")) -> - | J122: =IF(OR('Tabel 1 F'!G120<5,'Tabel 2 F'!J122<0.5),"-",IFERROR('Tabel 2 F'!J122/'Tabel 1 F'!G120*100,"-")) -> -
A123: MA. Samf. | C123: =IF(OR('Tabel 1 F'!C121<5,'Tabel 2 F'!C123<0.5),"-",IFERROR('Tabel 2 F'!C123/'Tabel 1 F'!C121*100,"-")) -> - | D123: =IF(OR('Tabel 1 F'!C121<5,'Tabel 2 F'!D123<0.5),"-",IFERROR('Tabel 2 F'!D123/'Tabel 1 F'!C121*100,"-")) -> - | F123: =IF(OR('Tabel 1 F'!E121<5,'Tabel 2 F'!F123<0.5),"-",IFERROR('Tabel 2 F'!F123/'Tabel 1 F'!E121*100,"-")) -> - | G123: =IF(OR('Tabel 1 F'!E121<5,'Tabel 2 F'!G123<0.5),"-",IFERROR('Tabel 2 F'!G123/'Tabel 1 F'!E121*100,"-")) -> - | I123: =IF(OR('Tabel 1 F'!G121<5,'Tabel 2 F'!I123<0.5),"-",IFERROR('Tabel 2 F'!I123/'Tabel 1 F'!G121*100,"-")) -> 20 | J123: =IF(OR('Tabel 1 F'!G121<5,'Tabel 2 F'!J123<0.5),"-",IFERROR('Tabel 2 F'!J123/'Tabel 1 F'!G121*100,"-")) -> 19.99625772
A124: Øvrige Mag. | C124: =IF(OR('Tabel 1 F'!C122<5,'Tabel 2 F'!C124<0.5),"-",IFERROR('Tabel 2 F'!C124/'Tabel 1 F'!C122*100,"-")) -> - | D124: =IF(OR('Tabel 1 F'!C122<5,'Tabel 2 F'!D124<0.5),"-",IFERROR('Tabel 2 F'!D124/'Tabel 1 F'!C122*100,"-")) -> - | F124: =IF(OR('Tabel 1 F'!E122<5,'Tabel 2 F'!F124<0.5),"-",IFERROR('Tabel 2 F'!F124/'Tabel 1 F'!E122*100,"-")) -> - | G124: =IF(OR('Tabel 1 F'!E122<5,'Tabel 2 F'!G124<0.5),"-",IFERROR('Tabel 2 F'!G124/'Tabel 1 F'!E122*100,"-")) -> - | I124: =IF(OR('Tabel 1 F'!G122<5,'Tabel 2 F'!I124<0.5),"-",IFERROR('Tabel 2 F'!I124/'Tabel 1 F'!G122*100,"-")) -> - | J124: =IF(OR('Tabel 1 F'!G122<5,'Tabel 2 F'!J124<0.5),"-",IFERROR('Tabel 2 F'!J124/'Tabel 1 F'!G122*100,"-")) -> -
A125: Agronom | C125: =IF(OR('Tabel 1 F'!C123<5,'Tabel 2 F'!C125<0.5),"-",IFERROR('Tabel 2 F'!C125/'Tabel 1 F'!C123*100,"-")) -> - | D125: =IF(OR('Tabel 1 F'!C123<5,'Tabel 2 F'!D125<0.5),"-",IFERROR('Tabel 2 F'!D125/'Tabel 1 F'!C123*100,"-")) -> - | F125: =IF(OR('Tabel 1 F'!E123<5,'Tabel 2 F'!F125<0.5),"-",IFERROR('Tabel 2 F'!F125/'Tabel 1 F'!E123*100,"-")) -> - | G125: =IF(OR('Tabel 1 F'!E123<5,'Tabel 2 F'!G125<0.5),"-",IFERROR('Tabel 2 F'!G125/'Tabel 1 F'!E123*100,"-")) -> - | I125: =IF(OR('Tabel 1 F'!G123<5,'Tabel 2 F'!I125<0.5),"-",IFERROR('Tabel 2 F'!I125/'Tabel 1 F'!G123*100,"-")) -> - | J125: =IF(OR('Tabel 1 F'!G123<5,'Tabel 2 F'!J125<0.5),"-",IFERROR('Tabel 2 F'!J125/'Tabel 1 F'!G123*100,"-")) -> -
A126: Landsk. Arkt. | C126: =IF(OR('Tabel 1 F'!C124<5,'Tabel 2 F'!C126<0.5),"-",IFERROR('Tabel 2 F'!C126/'Tabel 1 F'!C124*100,"-")) -> - | D126: =IF(OR('Tabel 1 F'!C124<5,'Tabel 2 F'!D126<0.5),"-",IFERROR('Tabel 2 F'!D126/'Tabel 1 F'!C124*100,"-")) -> - | F126: =IF(OR('Tabel 1 F'!E124<5,'Tabel 2 F'!F126<0.5),"-",IFERROR('Tabel 2 F'!F126/'Tabel 1 F'!E124*100,"-")) -> - | G126: =IF(OR('Tabel 1 F'!E124<5,'Tabel 2 F'!G126<0.5),"-",IFERROR('Tabel 2 F'!G126/'Tabel 1 F'!E124*100,"-")) -> - | I126: =IF(OR('Tabel 1 F'!G124<5,'Tabel 2 F'!I126<0.5),"-",IFERROR('Tabel 2 F'!I126/'Tabel 1 F'!G124*100,"-")) -> - | J126: =IF(OR('Tabel 1 F'!G124<5,'Tabel 2 F'!J126<0.5),"-",IFERROR('Tabel 2 F'!J126/'Tabel 1 F'!G124*100,"-")) -> -
A127: Hortonom | C127: =IF(OR('Tabel 1 F'!C125<5,'Tabel 2 F'!C127<0.5),"-",IFERROR('Tabel 2 F'!C127/'Tabel 1 F'!C125*100,"-")) -> - | D127: =IF(OR('Tabel 1 F'!C125<5,'Tabel 2 F'!D127<0.5),"-",IFERROR('Tabel 2 F'!D127/'Tabel 1 F'!C125*100,"-")) -> - | F127: =IF(OR('Tabel 1 F'!E125<5,'Tabel 2 F'!F127<0.5),"-",IFERROR('Tabel 2 F'!F127/'Tabel 1 F'!E125*100,"-")) -> - | G127: =IF(OR('Tabel 1 F'!E125<5,'Tabel 2 F'!G127<0.5),"-",IFERROR('Tabel 2 F'!G127/'Tabel 1 F'!E125*100,"-")) -> - | I127: =IF(OR('Tabel 1 F'!G125<5,'Tabel 2 F'!I127<0.5),"-",IFERROR('Tabel 2 F'!I127/'Tabel 1 F'!G125*100,"-")) -> - | J127: =IF(OR('Tabel 1 F'!G125<5,'Tabel 2 F'!J127<0.5),"-",IFERROR('Tabel 2 F'!J127/'Tabel 1 F'!G125*100,"-")) -> -
A128: Forstkand. | C128: =IF(OR('Tabel 1 F'!C126<5,'Tabel 2 F'!C128<0.5),"-",IFERROR('Tabel 2 F'!C128/'Tabel 1 F'!C126*100,"-")) -> - | D128: =IF(OR('Tabel 1 F'!C126<5,'Tabel 2 F'!D128<0.5),"-",IFERROR('Tabel 2 F'!D128/'Tabel 1 F'!C126*100,"-")) -> - | F128: =IF(OR('Tabel 1 F'!E126<5,'Tabel 2 F'!F128<0.5),"-",IFERROR('Tabel 2 F'!F128/'Tabel 1 F'!E126*100,"-")) -> - | G128: =IF(OR('Tabel 1 F'!E126<5,'Tabel 2 F'!G128<0.5),"-",IFERROR('Tabel 2 F'!G128/'Tabel 1 F'!E126*100,"-")) -> - | I128: =IF(OR('Tabel 1 F'!G126<5,'Tabel 2 F'!I128<0.5),"-",IFERROR('Tabel 2 F'!I128/'Tabel 1 F'!G126*100,"-")) -> - | J128: =IF(OR('Tabel 1 F'!G126<5,'Tabel 2 F'!J128<0.5),"-",IFERROR('Tabel 2 F'!J128/'Tabel 1 F'!G126*100,"-")) -> -
A129: Jordbrugsakad. | C129: =IF(OR('Tabel 1 F'!C127<5,'Tabel 2 F'!C129<0.5),"-",IFERROR('Tabel 2 F'!C129/'Tabel 1 F'!C127*100,"-")) -> - | D129: =IF(OR('Tabel 1 F'!C127<5,'Tabel 2 F'!D129<0.5),"-",IFERROR('Tabel 2 F'!D129/'Tabel 1 F'!C127*100,"-")) -> - | F129: =IF(OR('Tabel 1 F'!E127<5,'Tabel 2 F'!F129<0.5),"-",IFERROR('Tabel 2 F'!F129/'Tabel 1 F'!E127*100,"-")) -> - | G129: =IF(OR('Tabel 1 F'!E127<5,'Tabel 2 F'!G129<0.5),"-",IFERROR('Tabel 2 F'!G129/'Tabel 1 F'!E127*100,"-")) -> - | I129: =IF(OR('Tabel 1 F'!G127<5,'Tabel 2 F'!I129<0.5),"-",IFERROR('Tabel 2 F'!I129/'Tabel 1 F'!G127*100,"-")) -> - | J129: =IF(OR('Tabel 1 F'!G127<5,'Tabel 2 F'!J129<0.5),"-",IFERROR('Tabel 2 F'!J129/'Tabel 1 F'!G127*100,"-")) -> -
A130: Mejeriing. | C130: =IF(OR('Tabel 1 F'!C128<5,'Tabel 2 F'!C130<0.5),"-",IFERROR('Tabel 2 F'!C130/'Tabel 1 F'!C128*100,"-")) -> - | D130: =IF(OR('Tabel 1 F'!C128<5,'Tabel 2 F'!D130<0.5),"-",IFERROR('Tabel 2 F'!D130/'Tabel 1 F'!C128*100,"-")) -> - | F130: =IF(OR('Tabel 1 F'!E128<5,'Tabel 2 F'!F130<0.5),"-",IFERROR('Tabel 2 F'!F130/'Tabel 1 F'!E128*100,"-")) -> - | G130: =IF(OR('Tabel 1 F'!E128<5,'Tabel 2 F'!G130<0.5),"-",IFERROR('Tabel 2 F'!G130/'Tabel 1 F'!E128*100,"-")) -> - | I130: =IF(OR('Tabel 1 F'!G128<5,'Tabel 2 F'!I130<0.5),"-",IFERROR('Tabel 2 F'!I130/'Tabel 1 F'!G128*100,"-")) -> - | J130: =IF(OR('Tabel 1 F'!G128<5,'Tabel 2 F'!J130<0.5),"-",IFERROR('Tabel 2 F'!J130/'Tabel 1 F'!G128*100,"-")) -> -
A131: Levn.m.kand. | C131: =IF(OR('Tabel 1 F'!C129<5,'Tabel 2 F'!C131<0.5),"-",IFERROR('Tabel 2 F'!C131/'Tabel 1 F'!C129*100,"-")) -> - | D131: =IF(OR('Tabel 1 F'!C129<5,'Tabel 2 F'!D131<0.5),"-",IFERROR('Tabel 2 F'!D131/'Tabel 1 F'!C129*100,"-")) -> - | F131: =IF(OR('Tabel 1 F'!E129<5,'Tabel 2 F'!F131<0.5),"-",IFERROR('Tabel 2 F'!F131/'Tabel 1 F'!E129*100,"-")) -> - | G131: =IF(OR('Tabel 1 F'!E129<5,'Tabel 2 F'!G131<0.5),"-",IFERROR('Tabel 2 F'!G131/'Tabel 1 F'!E129*100,"-")) -> - | I131: =IF(OR('Tabel 1 F'!G129<5,'Tabel 2 F'!I131<0.5),"-",IFERROR('Tabel 2 F'!I131/'Tabel 1 F'!G129*100,"-")) -> - | J131: =IF(OR('Tabel 1 F'!G129<5,'Tabel 2 F'!J131<0.5),"-",IFERROR('Tabel 2 F'!J131/'Tabel 1 F'!G129*100,"-")) -> -
A132: Dyrlæge | C132: =IF(OR('Tabel 1 F'!C130<5,'Tabel 2 F'!C132<0.5),"-",IFERROR('Tabel 2 F'!C132/'Tabel 1 F'!C130*100,"-")) -> - | D132: =IF(OR('Tabel 1 F'!C130<5,'Tabel 2 F'!D132<0.5),"-",IFERROR('Tabel 2 F'!D132/'Tabel 1 F'!C130*100,"-")) -> - | F132: =IF(OR('Tabel 1 F'!E130<5,'Tabel 2 F'!F132<0.5),"-",IFERROR('Tabel 2 F'!F132/'Tabel 1 F'!E130*100,"-")) -> - | G132: =IF(OR('Tabel 1 F'!E130<5,'Tabel 2 F'!G132<0.5),"-",IFERROR('Tabel 2 F'!G132/'Tabel 1 F'!E130*100,"-")) -> - | I132: =IF(OR('Tabel 1 F'!G130<5,'Tabel 2 F'!I132<0.5),"-",IFERROR('Tabel 2 F'!I132/'Tabel 1 F'!G130*100,"-")) -> - | J132: =IF(OR('Tabel 1 F'!G130<5,'Tabel 2 F'!J132<0.5),"-",IFERROR('Tabel 2 F'!J132/'Tabel 1 F'!G130*100,"-")) -> -
A133: Farmaceut | C133: =IF(OR('Tabel 1 F'!C131<5,'Tabel 2 F'!C133<0.5),"-",IFERROR('Tabel 2 F'!C133/'Tabel 1 F'!C131*100,"-")) -> - | D133: =IF(OR('Tabel 1 F'!C131<5,'Tabel 2 F'!D133<0.5),"-",IFERROR('Tabel 2 F'!D133/'Tabel 1 F'!C131*100,"-")) -> - | F133: =IF(OR('Tabel 1 F'!E131<5,'Tabel 2 F'!F133<0.5),"-",IFERROR('Tabel 2 F'!F133/'Tabel 1 F'!E131*100,"-")) -> - | G133: =IF(OR('Tabel 1 F'!E131<5,'Tabel 2 F'!G133<0.5),"-",IFERROR('Tabel 2 F'!G133/'Tabel 1 F'!E131*100,"-")) -> - | I133: =IF(OR('Tabel 1 F'!G131<5,'Tabel 2 F'!I133<0.5),"-",IFERROR('Tabel 2 F'!I133/'Tabel 1 F'!G131*100,"-")) -> - | J133: =IF(OR('Tabel 1 F'!G131<5,'Tabel 2 F'!J133<0.5),"-",IFERROR('Tabel 2 F'!J133/'Tabel 1 F'!G131*100,"-")) -> -
A134: Læge | C134: =IF(OR('Tabel 1 F'!C132<5,'Tabel 2 F'!C134<0.5),"-",IFERROR('Tabel 2 F'!C134/'Tabel 1 F'!C132*100,"-")) -> - | D134: =IF(OR('Tabel 1 F'!C132<5,'Tabel 2 F'!D134<0.5),"-",IFERROR('Tabel 2 F'!D134/'Tabel 1 F'!C132*100,"-")) -> - | F134: =IF(OR('Tabel 1 F'!E132<5,'Tabel 2 F'!F134<0.5),"-",IFERROR('Tabel 2 F'!F134/'Tabel 1 F'!E132*100,"-")) -> 3.703703704 | G134: =IF(OR('Tabel 1 F'!E132<5,'Tabel 2 F'!G134<0.5),"-",IFERROR('Tabel 2 F'!G134/'Tabel 1 F'!E132*100,"-")) -> - | I134: =IF(OR('Tabel 1 F'!G132<5,'Tabel 2 F'!I134<0.5),"-",IFERROR('Tabel 2 F'!I134/'Tabel 1 F'!G132*100,"-")) -> 2.777777778 | J134: =IF(OR('Tabel 1 F'!G132<5,'Tabel 2 F'!J134<0.5),"-",IFERROR('Tabel 2 F'!J134/'Tabel 1 F'!G132*100,"-")) -> -
A135: Tandlæge | C135: =IF(OR('Tabel 1 F'!C133<5,'Tabel 2 F'!C135<0.5),"-",IFERROR('Tabel 2 F'!C135/'Tabel 1 F'!C133*100,"-")) -> - | D135: =IF(OR('Tabel 1 F'!C133<5,'Tabel 2 F'!D135<0.5),"-",IFERROR('Tabel 2 F'!D135/'Tabel 1 F'!C133*100,"-")) -> - | F135: =IF(OR('Tabel 1 F'!E133<5,'Tabel 2 F'!F135<0.5),"-",IFERROR('Tabel 2 F'!F135/'Tabel 1 F'!E133*100,"-")) -> - | G135: =IF(OR('Tabel 1 F'!E133<5,'Tabel 2 F'!G135<0.5),"-",IFERROR('Tabel 2 F'!G135/'Tabel 1 F'!E133*100,"-")) -> - | I135: =IF(OR('Tabel 1 F'!G133<5,'Tabel 2 F'!I135<0.5),"-",IFERROR('Tabel 2 F'!I135/'Tabel 1 F'!G133*100,"-")) -> - | J135: =IF(OR('Tabel 1 F'!G133<5,'Tabel 2 F'!J135<0.5),"-",IFERROR('Tabel 2 F'!J135/'Tabel 1 F'!G133*100,"-")) -> -
A136: Arkitekt | C136: =IF(OR('Tabel 1 F'!C134<5,'Tabel 2 F'!C136<0.5),"-",IFERROR('Tabel 2 F'!C136/'Tabel 1 F'!C134*100,"-")) -> - | D136: =IF(OR('Tabel 1 F'!C134<5,'Tabel 2 F'!D136<0.5),"-",IFERROR('Tabel 2 F'!D136/'Tabel 1 F'!C134*100,"-")) -> - | F136: =IF(OR('Tabel 1 F'!E134<5,'Tabel 2 F'!F136<0.5),"-",IFERROR('Tabel 2 F'!F136/'Tabel 1 F'!E134*100,"-")) -> - | G136: =IF(OR('Tabel 1 F'!E134<5,'Tabel 2 F'!G136<0.5),"-",IFERROR('Tabel 2 F'!G136/'Tabel 1 F'!E134*100,"-")) -> - | I136: =IF(OR('Tabel 1 F'!G134<5,'Tabel 2 F'!I136<0.5),"-",IFERROR('Tabel 2 F'!I136/'Tabel 1 F'!G134*100,"-")) -> - | J136: =IF(OR('Tabel 1 F'!G134<5,'Tabel 2 F'!J136<0.5),"-",IFERROR('Tabel 2 F'!J136/'Tabel 1 F'!G134*100,"-")) -> -
A137: Landinspek. | C137: =IF(OR('Tabel 1 F'!C135<5,'Tabel 2 F'!C137<0.5),"-",IFERROR('Tabel 2 F'!C137/'Tabel 1 F'!C135*100,"-")) -> - | D137: =IF(OR('Tabel 1 F'!C135<5,'Tabel 2 F'!D137<0.5),"-",IFERROR('Tabel 2 F'!D137/'Tabel 1 F'!C135*100,"-")) -> - | F137: =IF(OR('Tabel 1 F'!E135<5,'Tabel 2 F'!F137<0.5),"-",IFERROR('Tabel 2 F'!F137/'Tabel 1 F'!E135*100,"-")) -> - | G137: =IF(OR('Tabel 1 F'!E135<5,'Tabel 2 F'!G137<0.5),"-",IFERROR('Tabel 2 F'!G137/'Tabel 1 F'!E135*100,"-")) -> - | I137: =IF(OR('Tabel 1 F'!G135<5,'Tabel 2 F'!I137<0.5),"-",IFERROR('Tabel 2 F'!I137/'Tabel 1 F'!G135*100,"-")) -> - | J137: =IF(OR('Tabel 1 F'!G135<5,'Tabel 2 F'!J137<0.5),"-",IFERROR('Tabel 2 F'!J137/'Tabel 1 F'!G135*100,"-")) -> -
A138: Bibliotekar | C138: =IF(OR('Tabel 1 F'!C136<5,'Tabel 2 F'!C138<0.5),"-",IFERROR('Tabel 2 F'!C138/'Tabel 1 F'!C136*100,"-")) -> 20 | D138: =IF(OR('Tabel 1 F'!C136<5,'Tabel 2 F'!D138<0.5),"-",IFERROR('Tabel 2 F'!D138/'Tabel 1 F'!C136*100,"-")) -> 19.99625772 | F138: =IF(OR('Tabel 1 F'!E136<5,'Tabel 2 F'!F138<0.5),"-",IFERROR('Tabel 2 F'!F138/'Tabel 1 F'!E136*100,"-")) -> - | G138: =IF(OR('Tabel 1 F'!E136<5,'Tabel 2 F'!G138<0.5),"-",IFERROR('Tabel 2 F'!G138/'Tabel 1 F'!E136*100,"-")) -> - | I138: =IF(OR('Tabel 1 F'!G136<5,'Tabel 2 F'!I138<0.5),"-",IFERROR('Tabel 2 F'!I138/'Tabel 1 F'!G136*100,"-")) -> 6.25 | J138: =IF(OR('Tabel 1 F'!G136<5,'Tabel 2 F'!J138<0.5),"-",IFERROR('Tabel 2 F'!J138/'Tabel 1 F'!G136*100,"-")) -> 6.248830537
A139: Musikudd. | C139: =IF(OR('Tabel 1 F'!C137<5,'Tabel 2 F'!C139<0.5),"-",IFERROR('Tabel 2 F'!C139/'Tabel 1 F'!C137*100,"-")) -> - | D139: =IF(OR('Tabel 1 F'!C137<5,'Tabel 2 F'!D139<0.5),"-",IFERROR('Tabel 2 F'!D139/'Tabel 1 F'!C137*100,"-")) -> - | F139: =IF(OR('Tabel 1 F'!E137<5,'Tabel 2 F'!F139<0.5),"-",IFERROR('Tabel 2 F'!F139/'Tabel 1 F'!E137*100,"-")) -> - | G139: =IF(OR('Tabel 1 F'!E137<5,'Tabel 2 F'!G139<0.5),"-",IFERROR('Tabel 2 F'!G139/'Tabel 1 F'!E137*100,"-")) -> - | I139: =IF(OR('Tabel 1 F'!G137<5,'Tabel 2 F'!I139<0.5),"-",IFERROR('Tabel 2 F'!I139/'Tabel 1 F'!G137*100,"-")) -> - | J139: =IF(OR('Tabel 1 F'!G137<5,'Tabel 2 F'!J139<0.5),"-",IFERROR('Tabel 2 F'!J139/'Tabel 1 F'!G137*100,"-")) -> -
A140: Teolog | C140: =IF(OR('Tabel 1 F'!C138<5,'Tabel 2 F'!C140<0.5),"-",IFERROR('Tabel 2 F'!C140/'Tabel 1 F'!C138*100,"-")) -> - | D140: =IF(OR('Tabel 1 F'!C138<5,'Tabel 2 F'!D140<0.5),"-",IFERROR('Tabel 2 F'!D140/'Tabel 1 F'!C138*100,"-")) -> - | F140: =IF(OR('Tabel 1 F'!E138<5,'Tabel 2 F'!F140<0.5),"-",IFERROR('Tabel 2 F'!F140/'Tabel 1 F'!E138*100,"-")) -> - | G140: =IF(OR('Tabel 1 F'!E138<5,'Tabel 2 F'!G140<0.5),"-",IFERROR('Tabel 2 F'!G140/'Tabel 1 F'!E138*100,"-")) -> - | I140: =IF(OR('Tabel 1 F'!G138<5,'Tabel 2 F'!I140<0.5),"-",IFERROR('Tabel 2 F'!I140/'Tabel 1 F'!G138*100,"-")) -> - | J140: =IF(OR('Tabel 1 F'!G138<5,'Tabel 2 F'!J140<0.5),"-",IFERROR('Tabel 2 F'!J140/'Tabel 1 F'!G138*100,"-")) -> -
A141: Psykolog | C141: =IF(OR('Tabel 1 F'!C139<5,'Tabel 2 F'!C141<0.5),"-",IFERROR('Tabel 2 F'!C141/'Tabel 1 F'!C139*100,"-")) -> - | D141: =IF(OR('Tabel 1 F'!C139<5,'Tabel 2 F'!D141<0.5),"-",IFERROR('Tabel 2 F'!D141/'Tabel 1 F'!C139*100,"-")) -> - | F141: =IF(OR('Tabel 1 F'!E139<5,'Tabel 2 F'!F141<0.5),"-",IFERROR('Tabel 2 F'!F141/'Tabel 1 F'!E139*100,"-")) -> 5.263157895 | G141: =IF(OR('Tabel 1 F'!E139<5,'Tabel 2 F'!G141<0.5),"-",IFERROR('Tabel 2 F'!G141/'Tabel 1 F'!E139*100,"-")) -> 5.262173084 | I141: =IF(OR('Tabel 1 F'!G139<5,'Tabel 2 F'!I141<0.5),"-",IFERROR('Tabel 2 F'!I141/'Tabel 1 F'!G139*100,"-")) -> 4.166666667 | J141: =IF(OR('Tabel 1 F'!G139<5,'Tabel 2 F'!J141<0.5),"-",IFERROR('Tabel 2 F'!J141/'Tabel 1 F'!G139*100,"-")) -> 4.165887025
A142: Jurist | C142: =IF(OR('Tabel 1 F'!C140<5,'Tabel 2 F'!C142<0.5),"-",IFERROR('Tabel 2 F'!C142/'Tabel 1 F'!C140*100,"-")) -> - | D142: =IF(OR('Tabel 1 F'!C140<5,'Tabel 2 F'!D142<0.5),"-",IFERROR('Tabel 2 F'!D142/'Tabel 1 F'!C140*100,"-")) -> - | F142: =IF(OR('Tabel 1 F'!E140<5,'Tabel 2 F'!F142<0.5),"-",IFERROR('Tabel 2 F'!F142/'Tabel 1 F'!E140*100,"-")) -> 5.882352941 | G142: =IF(OR('Tabel 1 F'!E140<5,'Tabel 2 F'!G142<0.5),"-",IFERROR('Tabel 2 F'!G142/'Tabel 1 F'!E140*100,"-")) -> 3.023176463 | I142: =IF(OR('Tabel 1 F'!G140<5,'Tabel 2 F'!I142<0.5),"-",IFERROR('Tabel 2 F'!I142/'Tabel 1 F'!G140*100,"-")) -> 4.166666667 | J142: =IF(OR('Tabel 1 F'!G140<5,'Tabel 2 F'!J142<0.5),"-",IFERROR('Tabel 2 F'!J142/'Tabel 1 F'!G140*100,"-")) -> 2.141416661
A143: Økonom | C143: =IF(OR('Tabel 1 F'!C141<5,'Tabel 2 F'!C143<0.5),"-",IFERROR('Tabel 2 F'!C143/'Tabel 1 F'!C141*100,"-")) -> 11.11111111 | D143: =IF(OR('Tabel 1 F'!C141<5,'Tabel 2 F'!D143<0.5),"-",IFERROR('Tabel 2 F'!D143/'Tabel 1 F'!C141*100,"-")) -> 11.10903207 | F143: =IF(OR('Tabel 1 F'!E141<5,'Tabel 2 F'!F143<0.5),"-",IFERROR('Tabel 2 F'!F143/'Tabel 1 F'!E141*100,"-")) -> - | G143: =IF(OR('Tabel 1 F'!E141<5,'Tabel 2 F'!G143<0.5),"-",IFERROR('Tabel 2 F'!G143/'Tabel 1 F'!E141*100,"-")) -> - | I143: =IF(OR('Tabel 1 F'!G141<5,'Tabel 2 F'!I143<0.5),"-",IFERROR('Tabel 2 F'!I143/'Tabel 1 F'!G141*100,"-")) -> 4.761904762 | J143: =IF(OR('Tabel 1 F'!G141<5,'Tabel 2 F'!J143<0.5),"-",IFERROR('Tabel 2 F'!J143/'Tabel 1 F'!G141*100,"-")) -> 4.761013742
A144: Samf. Adm. | C144: =IF(OR('Tabel 1 F'!C142<5,'Tabel 2 F'!C144<0.5),"-",IFERROR('Tabel 2 F'!C144/'Tabel 1 F'!C142*100,"-")) -> 5.555555556 | D144: =IF(OR('Tabel 1 F'!C142<5,'Tabel 2 F'!D144<0.5),"-",IFERROR('Tabel 2 F'!D144/'Tabel 1 F'!C142*100,"-")) -> 5.554516033 | F144: =IF(OR('Tabel 1 F'!E142<5,'Tabel 2 F'!F144<0.5),"-",IFERROR('Tabel 2 F'!F144/'Tabel 1 F'!E142*100,"-")) -> 7.5 | G144: =IF(OR('Tabel 1 F'!E142<5,'Tabel 2 F'!G144<0.5),"-",IFERROR('Tabel 2 F'!G144/'Tabel 1 F'!E142*100,"-")) -> 7.498596644 | I144: =IF(OR('Tabel 1 F'!G142<5,'Tabel 2 F'!I144<0.5),"-",IFERROR('Tabel 2 F'!I144/'Tabel 1 F'!G142*100,"-")) -> 6.896551724 | J144: =IF(OR('Tabel 1 F'!G142<5,'Tabel 2 F'!J144<0.5),"-",IFERROR('Tabel 2 F'!J144/'Tabel 1 F'!G142*100,"-")) -> 6.895261282
A145: Cand. Merc. | C145: =IF(OR('Tabel 1 F'!C143<5,'Tabel 2 F'!C145<0.5),"-",IFERROR('Tabel 2 F'!C145/'Tabel 1 F'!C143*100,"-")) -> 10 | D145: =IF(OR('Tabel 1 F'!C143<5,'Tabel 2 F'!D145<0.5),"-",IFERROR('Tabel 2 F'!D145/'Tabel 1 F'!C143*100,"-")) -> 7.214287199 | F145: =IF(OR('Tabel 1 F'!E143<5,'Tabel 2 F'!F145<0.5),"-",IFERROR('Tabel 2 F'!F145/'Tabel 1 F'!E143*100,"-")) -> - | G145: =IF(OR('Tabel 1 F'!E143<5,'Tabel 2 F'!G145<0.5),"-",IFERROR('Tabel 2 F'!G145/'Tabel 1 F'!E143*100,"-")) -> - | I145: =IF(OR('Tabel 1 F'!G143<5,'Tabel 2 F'!I145<0.5),"-",IFERROR('Tabel 2 F'!I145/'Tabel 1 F'!G143*100,"-")) -> 5.263157895 | J145: =IF(OR('Tabel 1 F'!G143<5,'Tabel 2 F'!J145<0.5),"-",IFERROR('Tabel 2 F'!J145/'Tabel 1 F'!G143*100,"-")) -> 3.796993263
A146: HA | C146: =IF(OR('Tabel 1 F'!C144<5,'Tabel 2 F'!C146<0.5),"-",IFERROR('Tabel 2 F'!C146/'Tabel 1 F'!C144*100,"-")) -> - | D146: =IF(OR('Tabel 1 F'!C144<5,'Tabel 2 F'!D146<0.5),"-",IFERROR('Tabel 2 F'!D146/'Tabel 1 F'!C144*100,"-")) -> - | F146: =IF(OR('Tabel 1 F'!E144<5,'Tabel 2 F'!F146<0.5),"-",IFERROR('Tabel 2 F'!F146/'Tabel 1 F'!E144*100,"-")) -> 8.333333333 | G146: =IF(OR('Tabel 1 F'!E144<5,'Tabel 2 F'!G146<0.5),"-",IFERROR('Tabel 2 F'!G146/'Tabel 1 F'!E144*100,"-")) -> 8.331774049 | I146: =IF(OR('Tabel 1 F'!G144<5,'Tabel 2 F'!I146<0.5),"-",IFERROR('Tabel 2 F'!I146/'Tabel 1 F'!G144*100,"-")) -> 4.761904762 | J146: =IF(OR('Tabel 1 F'!G144<5,'Tabel 2 F'!J146<0.5),"-",IFERROR('Tabel 2 F'!J146/'Tabel 1 F'!G144*100,"-")) -> 4.761013742
A147: HD | C147: =IF(OR('Tabel 1 F'!C145<5,'Tabel 2 F'!C147<0.5),"-",IFERROR('Tabel 2 F'!C147/'Tabel 1 F'!C145*100,"-")) -> - | D147: =IF(OR('Tabel 1 F'!C145<5,'Tabel 2 F'!D147<0.5),"-",IFERROR('Tabel 2 F'!D147/'Tabel 1 F'!C145*100,"-")) -> - | F147: =IF(OR('Tabel 1 F'!E145<5,'Tabel 2 F'!F147<0.5),"-",IFERROR('Tabel 2 F'!F147/'Tabel 1 F'!E145*100,"-")) -> 11.11111111 | G147: =IF(OR('Tabel 1 F'!E145<5,'Tabel 2 F'!G147<0.5),"-",IFERROR('Tabel 2 F'!G147/'Tabel 1 F'!E145*100,"-")) -> 9.584398844 | I147: =IF(OR('Tabel 1 F'!G145<5,'Tabel 2 F'!I147<0.5),"-",IFERROR('Tabel 2 F'!I147/'Tabel 1 F'!G145*100,"-")) -> 5.263157895 | J147: =IF(OR('Tabel 1 F'!G145<5,'Tabel 2 F'!J147<0.5),"-",IFERROR('Tabel 2 F'!J147/'Tabel 1 F'!G145*100,"-")) -> 4.5399784
A148: Komm. og Sprog | C148: =IF(OR('Tabel 1 F'!C146<5,'Tabel 2 F'!C148<0.5),"-",IFERROR('Tabel 2 F'!C148/'Tabel 1 F'!C146*100,"-")) -> - | D148: =IF(OR('Tabel 1 F'!C146<5,'Tabel 2 F'!D148<0.5),"-",IFERROR('Tabel 2 F'!D148/'Tabel 1 F'!C146*100,"-")) -> - | F148: =IF(OR('Tabel 1 F'!E146<5,'Tabel 2 F'!F148<0.5),"-",IFERROR('Tabel 2 F'!F148/'Tabel 1 F'!E146*100,"-")) -> 16.66666667 | G148: =IF(OR('Tabel 1 F'!E146<5,'Tabel 2 F'!G148<0.5),"-",IFERROR('Tabel 2 F'!G148/'Tabel 1 F'!E146*100,"-")) -> 14.34194751 | I148: =IF(OR('Tabel 1 F'!G146<5,'Tabel 2 F'!I148<0.5),"-",IFERROR('Tabel 2 F'!I148/'Tabel 1 F'!G146*100,"-")) -> 15 | J148: =IF(OR('Tabel 1 F'!G146<5,'Tabel 2 F'!J148<0.5),"-",IFERROR('Tabel 2 F'!J148/'Tabel 1 F'!G146*100,"-")) -> 12.90775276
A149: Bygningskonst. | C149: =IF(OR('Tabel 1 F'!C147<5,'Tabel 2 F'!C149<0.5),"-",IFERROR('Tabel 2 F'!C149/'Tabel 1 F'!C147*100,"-")) -> 2.173913043 | D149: =IF(OR('Tabel 1 F'!C147<5,'Tabel 2 F'!D149<0.5),"-",IFERROR('Tabel 2 F'!D149/'Tabel 1 F'!C147*100,"-")) -> 2.173913043 | F149: =IF(OR('Tabel 1 F'!E147<5,'Tabel 2 F'!F149<0.5),"-",IFERROR('Tabel 2 F'!F149/'Tabel 1 F'!E147*100,"-")) -> - | G149: =IF(OR('Tabel 1 F'!E147<5,'Tabel 2 F'!G149<0.5),"-",IFERROR('Tabel 2 F'!G149/'Tabel 1 F'!E147*100,"-")) -> - | I149: =IF(OR('Tabel 1 F'!G147<5,'Tabel 2 F'!I149<0.5),"-",IFERROR('Tabel 2 F'!I149/'Tabel 1 F'!G147*100,"-")) -> 1.960784314 | J149: =IF(OR('Tabel 1 F'!G147<5,'Tabel 2 F'!J149<0.5),"-",IFERROR('Tabel 2 F'!J149/'Tabel 1 F'!G147*100,"-")) -> 1.960784314
A150: Cand. IT. | C150: =IF(OR('Tabel 1 F'!C148<5,'Tabel 2 F'!C150<0.5),"-",IFERROR('Tabel 2 F'!C150/'Tabel 1 F'!C148*100,"-")) -> 16.66666667 | D150: =IF(OR('Tabel 1 F'!C148<5,'Tabel 2 F'!D150<0.5),"-",IFERROR('Tabel 2 F'!D150/'Tabel 1 F'!C148*100,"-")) -> 16.6635481 | F150: =IF(OR('Tabel 1 F'!E148<5,'Tabel 2 F'!F150<0.5),"-",IFERROR('Tabel 2 F'!F150/'Tabel 1 F'!E148*100,"-")) -> - | G150: =IF(OR('Tabel 1 F'!E148<5,'Tabel 2 F'!G150<0.5),"-",IFERROR('Tabel 2 F'!G150/'Tabel 1 F'!E148*100,"-")) -> - | I150: =IF(OR('Tabel 1 F'!G148<5,'Tabel 2 F'!I150<0.5),"-",IFERROR('Tabel 2 F'!I150/'Tabel 1 F'!G148*100,"-")) -> 12.5 | J150: =IF(OR('Tabel 1 F'!G148<5,'Tabel 2 F'!J150<0.5),"-",IFERROR('Tabel 2 F'!J150/'Tabel 1 F'!G148*100,"-")) -> 12.49766107
A151: Bac. Samf. | C151: =IF(OR('Tabel 1 F'!C149<5,'Tabel 2 F'!C151<0.5),"-",IFERROR('Tabel 2 F'!C151/'Tabel 1 F'!C149*100,"-")) -> - | D151: =IF(OR('Tabel 1 F'!C149<5,'Tabel 2 F'!D151<0.5),"-",IFERROR('Tabel 2 F'!D151/'Tabel 1 F'!C149*100,"-")) -> - | F151: =IF(OR('Tabel 1 F'!E149<5,'Tabel 2 F'!F151<0.5),"-",IFERROR('Tabel 2 F'!F151/'Tabel 1 F'!E149*100,"-")) -> - | G151: =IF(OR('Tabel 1 F'!E149<5,'Tabel 2 F'!G151<0.5),"-",IFERROR('Tabel 2 F'!G151/'Tabel 1 F'!E149*100,"-")) -> - | I151: =IF(OR('Tabel 1 F'!G149<5,'Tabel 2 F'!I151<0.5),"-",IFERROR('Tabel 2 F'!I151/'Tabel 1 F'!G149*100,"-")) -> - | J151: =IF(OR('Tabel 1 F'!G149<5,'Tabel 2 F'!J151<0.5),"-",IFERROR('Tabel 2 F'!J151/'Tabel 1 F'!G149*100,"-")) -> -
A152: Bac. Hum. | C152: =IF(OR('Tabel 1 F'!C150<5,'Tabel 2 F'!C152<0.5),"-",IFERROR('Tabel 2 F'!C152/'Tabel 1 F'!C150*100,"-")) -> 16.66666667 | D152: =IF(OR('Tabel 1 F'!C150<5,'Tabel 2 F'!D152<0.5),"-",IFERROR('Tabel 2 F'!D152/'Tabel 1 F'!C150*100,"-")) -> 16.6635481 | F152: =IF(OR('Tabel 1 F'!E150<5,'Tabel 2 F'!F152<0.5),"-",IFERROR('Tabel 2 F'!F152/'Tabel 1 F'!E150*100,"-")) -> - | G152: =IF(OR('Tabel 1 F'!E150<5,'Tabel 2 F'!G152<0.5),"-",IFERROR('Tabel 2 F'!G152/'Tabel 1 F'!E150*100,"-")) -> - | I152: =IF(OR('Tabel 1 F'!G150<5,'Tabel 2 F'!I152<0.5),"-",IFERROR('Tabel 2 F'!I152/'Tabel 1 F'!G150*100,"-")) -> 6.25 | J152: =IF(OR('Tabel 1 F'!G150<5,'Tabel 2 F'!J152<0.5),"-",IFERROR('Tabel 2 F'!J152/'Tabel 1 F'!G150*100,"-")) -> 6.248830537
A153: Bac. Nat. | C153: =IF(OR('Tabel 1 F'!C151<5,'Tabel 2 F'!C153<0.5),"-",IFERROR('Tabel 2 F'!C153/'Tabel 1 F'!C151*100,"-")) -> - | D153: =IF(OR('Tabel 1 F'!C151<5,'Tabel 2 F'!D153<0.5),"-",IFERROR('Tabel 2 F'!D153/'Tabel 1 F'!C151*100,"-")) -> - | F153: =IF(OR('Tabel 1 F'!E151<5,'Tabel 2 F'!F153<0.5),"-",IFERROR('Tabel 2 F'!F153/'Tabel 1 F'!E151*100,"-")) -> - | G153: =IF(OR('Tabel 1 F'!E151<5,'Tabel 2 F'!G153<0.5),"-",IFERROR('Tabel 2 F'!G153/'Tabel 1 F'!E151*100,"-")) -> - | I153: =IF(OR('Tabel 1 F'!G151<5,'Tabel 2 F'!I153<0.5),"-",IFERROR('Tabel 2 F'!I153/'Tabel 1 F'!G151*100,"-")) -> - | J153: =IF(OR('Tabel 1 F'!G151<5,'Tabel 2 F'!J153<0.5),"-",IFERROR('Tabel 2 F'!J153/'Tabel 1 F'!G151*100,"-")) -> -
A154: Andre | C154: =IF(OR('Tabel 1 F'!C152<5,'Tabel 2 F'!C154<0.5),"-",IFERROR('Tabel 2 F'!C154/'Tabel 1 F'!C152*100,"-")) -> 5.769230769 | D154: =IF(OR('Tabel 1 F'!C152<5,'Tabel 2 F'!D154<0.5),"-",IFERROR('Tabel 2 F'!D154/'Tabel 1 F'!C152*100,"-")) -> 5.768151265 | F154: =IF(OR('Tabel 1 F'!E152<5,'Tabel 2 F'!F154<0.5),"-",IFERROR('Tabel 2 F'!F154/'Tabel 1 F'!E152*100,"-")) -> 9.523809524 | G154: =IF(OR('Tabel 1 F'!E152<5,'Tabel 2 F'!G154<0.5),"-",IFERROR('Tabel 2 F'!G154/'Tabel 1 F'!E152*100,"-")) -> 9.522027485 | I154: =IF(OR('Tabel 1 F'!G152<5,'Tabel 2 F'!I154<0.5),"-",IFERROR('Tabel 2 F'!I154/'Tabel 1 F'!G152*100,"-")) -> 6.849315068 | J154: =IF(OR('Tabel 1 F'!G152<5,'Tabel 2 F'!J154<0.5),"-",IFERROR('Tabel 2 F'!J154/'Tabel 1 F'!G152*100,"-")) -> 6.848033465
A156: Total | C156: =IF(OR('Tabel 1 F'!C154<5,'Tabel 2 F'!C156<0.5),"-",IFERROR('Tabel 2 F'!C156/'Tabel 1 F'!C154*100,"-")) -> 4.545454545 | D156: =IF(OR('Tabel 1 F'!C154<5,'Tabel 2 F'!D156<0.5),"-",IFERROR('Tabel 2 F'!D156/'Tabel 1 F'!C154*100,"-")) -> 4.300400206 | F156: =IF(OR('Tabel 1 F'!E154<5,'Tabel 2 F'!F156<0.5),"-",IFERROR('Tabel 2 F'!F156/'Tabel 1 F'!E154*100,"-")) -> 7.020872865 | G156: =IF(OR('Tabel 1 F'!E154<5,'Tabel 2 F'!G156<0.5),"-",IFERROR('Tabel 2 F'!G156/'Tabel 1 F'!E154*100,"-")) -> 6.556212158 | I156: =IF(OR('Tabel 1 F'!G154<5,'Tabel 2 F'!I156<0.5),"-",IFERROR('Tabel 2 F'!I156/'Tabel 1 F'!G154*100,"-")) -> 5.709188225 | J156: =IF(OR('Tabel 1 F'!G154<5,'Tabel 2 F'!J156<0.5),"-",IFERROR('Tabel 2 F'!J156/'Tabel 1 F'!G154*100,"-")) -> 5.360893425
A158: Ingeniører i alt | C158: =IF(OR('Tabel 1 F'!C156<5,'Tabel 2 F'!C158<0.5),"-",IFERROR('Tabel 2 F'!C158/'Tabel 1 F'!C156*100,"-")) -> 3.629032258 | D158: =IF(OR('Tabel 1 F'!C156<5,'Tabel 2 F'!D158<0.5),"-",IFERROR('Tabel 2 F'!D158/'Tabel 1 F'!C156*100,"-")) -> 3.42841277 | F158: =IF(OR('Tabel 1 F'!E156<5,'Tabel 2 F'!F158<0.5),"-",IFERROR('Tabel 2 F'!F158/'Tabel 1 F'!E156*100,"-")) -> 5 | G158: =IF(OR('Tabel 1 F'!E156<5,'Tabel 2 F'!G158<0.5),"-",IFERROR('Tabel 2 F'!G158/'Tabel 1 F'!E156*100,"-")) -> 4.99906443 | I158: =IF(OR('Tabel 1 F'!G156<5,'Tabel 2 F'!I158<0.5),"-",IFERROR('Tabel 2 F'!I158/'Tabel 1 F'!G156*100,"-")) -> 3.896103896 | J158: =IF(OR('Tabel 1 F'!G156<5,'Tabel 2 F'!J158<0.5),"-",IFERROR('Tabel 2 F'!J158/'Tabel 1 F'!G156*100,"-")) -> 3.734383872
A159: Magistre i alt | C159: =IF(OR('Tabel 1 F'!C157<5,'Tabel 2 F'!C159<0.5),"-",IFERROR('Tabel 2 F'!C159/'Tabel 1 F'!C157*100,"-")) -> 7.792207792 | D159: =IF(OR('Tabel 1 F'!C157<5,'Tabel 2 F'!D159<0.5),"-",IFERROR('Tabel 2 F'!D159/'Tabel 1 F'!C157*100,"-")) -> 7.635226372 | F159: =IF(OR('Tabel 1 F'!E157<5,'Tabel 2 F'!F159<0.5),"-",IFERROR('Tabel 2 F'!F159/'Tabel 1 F'!E157*100,"-")) -> 11.72413793 | G159: =IF(OR('Tabel 1 F'!E157<5,'Tabel 2 F'!G159<0.5),"-",IFERROR('Tabel 2 F'!G159/'Tabel 1 F'!E157*100,"-")) -> 11.55418673 | I159: =IF(OR('Tabel 1 F'!G157<5,'Tabel 2 F'!I159<0.5),"-",IFERROR('Tabel 2 F'!I159/'Tabel 1 F'!G157*100,"-")) -> 10.36036036 | J159: =IF(OR('Tabel 1 F'!G157<5,'Tabel 2 F'!J159<0.5),"-",IFERROR('Tabel 2 F'!J159/'Tabel 1 F'!G157*100,"-")) -> 10.19490769
A160: DJØF'ere i alt | C160: =IF(OR('Tabel 1 F'!C158<5,'Tabel 2 F'!C160<0.5),"-",IFERROR('Tabel 2 F'!C160/'Tabel 1 F'!C158*100,"-")) -> 6.849315068 | D160: =IF(OR('Tabel 1 F'!C158<5,'Tabel 2 F'!D160<0.5),"-",IFERROR('Tabel 2 F'!D160/'Tabel 1 F'!C158*100,"-")) -> 5.703988947 | F160: =IF(OR('Tabel 1 F'!E158<5,'Tabel 2 F'!F160<0.5),"-",IFERROR('Tabel 2 F'!F160/'Tabel 1 F'!E158*100,"-")) -> 4.62962963 | G160: =IF(OR('Tabel 1 F'!E158<5,'Tabel 2 F'!G160<0.5),"-",IFERROR('Tabel 2 F'!G160/'Tabel 1 F'!E158*100,"-")) -> 4.178881058 | I160: =IF(OR('Tabel 1 F'!G158<5,'Tabel 2 F'!I160<0.5),"-",IFERROR('Tabel 2 F'!I160/'Tabel 1 F'!G158*100,"-")) -> 5.524861878 | J160: =IF(OR('Tabel 1 F'!G158<5,'Tabel 2 F'!J160<0.5),"-",IFERROR('Tabel 2 F'!J160/'Tabel 1 F'!G158*100,"-")) -> 4.79397982
A165: Faaborg-Midtfyn
C167: Mænd | F167: Kvinder | I167: I alt
C168: Ledigheds- berørte | D168: Gns. brutto- ledighed | F168: Ledigheds- berørte | G168: Gns. brutto- ledighed | I168: Ledigheds- berørte | J168: Gns. brutto- ledighed
A171: Civ. ing. | C171: =IF(OR('Tabel 1 F'!C169<5,'Tabel 2 F'!C171<0.5),"-",IFERROR('Tabel 2 F'!C171/'Tabel 1 F'!C169*100,"-")) -> 1.538461538 | D171: =IF(OR('Tabel 1 F'!C169<5,'Tabel 2 F'!D171<0.5),"-",IFERROR('Tabel 2 F'!D171/'Tabel 1 F'!C169*100,"-")) -> 1.538173671 | F171: =IF(OR('Tabel 1 F'!E169<5,'Tabel 2 F'!F171<0.5),"-",IFERROR('Tabel 2 F'!F171/'Tabel 1 F'!E169*100,"-")) -> 28.57142857 | G171: =IF(OR('Tabel 1 F'!E169<5,'Tabel 2 F'!G171<0.5),"-",IFERROR('Tabel 2 F'!G171/'Tabel 1 F'!E169*100,"-")) -> 20.32415286 | I171: =IF(OR('Tabel 1 F'!G169<5,'Tabel 2 F'!I171<0.5),"-",IFERROR('Tabel 2 F'!I171/'Tabel 1 F'!G169*100,"-")) -> 6.329113924 | J171: =IF(OR('Tabel 1 F'!G169<5,'Tabel 2 F'!J171<0.5),"-",IFERROR('Tabel 2 F'!J171/'Tabel 1 F'!G169*100,"-")) -> 4.86733454
A172: Diplom ing. | C172: =IF(OR('Tabel 1 F'!C170<5,'Tabel 2 F'!C172<0.5),"-",IFERROR('Tabel 2 F'!C172/'Tabel 1 F'!C170*100,"-")) -> 1.709401709 | D172: =IF(OR('Tabel 1 F'!C170<5,'Tabel 2 F'!D172<0.5),"-",IFERROR('Tabel 2 F'!D172/'Tabel 1 F'!C170*100,"-")) -> 1.427877652 | F172: =IF(OR('Tabel 1 F'!E170<5,'Tabel 2 F'!F172<0.5),"-",IFERROR('Tabel 2 F'!F172/'Tabel 1 F'!E170*100,"-")) -> 2.325581395 | G172: =IF(OR('Tabel 1 F'!E170<5,'Tabel 2 F'!G172<0.5),"-",IFERROR('Tabel 2 F'!G172/'Tabel 1 F'!E170*100,"-")) -> - | I172: =IF(OR('Tabel 1 F'!G170<5,'Tabel 2 F'!I172<0.5),"-",IFERROR('Tabel 2 F'!I172/'Tabel 1 F'!G170*100,"-")) -> 1.805054152 | J172: =IF(OR('Tabel 1 F'!G170<5,'Tabel 2 F'!J172<0.5),"-",IFERROR('Tabel 2 F'!J172/'Tabel 1 F'!G170*100,"-")) -> 1.367216218
A173: Cand. Scient. Tek. | C173: =IF(OR('Tabel 1 F'!C171<5,'Tabel 2 F'!C173<0.5),"-",IFERROR('Tabel 2 F'!C173/'Tabel 1 F'!C171*100,"-")) -> 3.225806452 | D173: =IF(OR('Tabel 1 F'!C171<5,'Tabel 2 F'!D173<0.5),"-",IFERROR('Tabel 2 F'!D173/'Tabel 1 F'!C171*100,"-")) -> 2.927429918 | F173: =IF(OR('Tabel 1 F'!E171<5,'Tabel 2 F'!F173<0.5),"-",IFERROR('Tabel 2 F'!F173/'Tabel 1 F'!E171*100,"-")) -> 14.28571429 | G173: =IF(OR('Tabel 1 F'!E171<5,'Tabel 2 F'!G173<0.5),"-",IFERROR('Tabel 2 F'!G173/'Tabel 1 F'!E171*100,"-")) -> 14.28304123 | I173: =IF(OR('Tabel 1 F'!G171<5,'Tabel 2 F'!I173<0.5),"-",IFERROR('Tabel 2 F'!I173/'Tabel 1 F'!G171*100,"-")) -> 9.090909091 | J173: =IF(OR('Tabel 1 F'!G171<5,'Tabel 2 F'!J173<0.5),"-",IFERROR('Tabel 2 F'!J173/'Tabel 1 F'!G171*100,"-")) -> 8.949345006
A174: MA. Hum. | C174: =IF(OR('Tabel 1 F'!C172<5,'Tabel 2 F'!C174<0.5),"-",IFERROR('Tabel 2 F'!C174/'Tabel 1 F'!C172*100,"-")) -> 9.523809524 | D174: =IF(OR('Tabel 1 F'!C172<5,'Tabel 2 F'!D174<0.5),"-",IFERROR('Tabel 2 F'!D174/'Tabel 1 F'!C172*100,"-")) -> 8.208268858 | F174: =IF(OR('Tabel 1 F'!E172<5,'Tabel 2 F'!F174<0.5),"-",IFERROR('Tabel 2 F'!F174/'Tabel 1 F'!E172*100,"-")) -> 12.60504202 | G174: =IF(OR('Tabel 1 F'!E172<5,'Tabel 2 F'!G174<0.5),"-",IFERROR('Tabel 2 F'!G174/'Tabel 1 F'!E172*100,"-")) -> 12.40508678 | I174: =IF(OR('Tabel 1 F'!G172<5,'Tabel 2 F'!I174<0.5),"-",IFERROR('Tabel 2 F'!I174/'Tabel 1 F'!G172*100,"-")) -> 11.53846154 | J174: =IF(OR('Tabel 1 F'!G172<5,'Tabel 2 F'!J174<0.5),"-",IFERROR('Tabel 2 F'!J174/'Tabel 1 F'!G172*100,"-")) -> 10.95234211
A175: MA. Nat. | C175: =IF(OR('Tabel 1 F'!C173<5,'Tabel 2 F'!C175<0.5),"-",IFERROR('Tabel 2 F'!C175/'Tabel 1 F'!C173*100,"-")) -> 6.060606061 | D175: =IF(OR('Tabel 1 F'!C173<5,'Tabel 2 F'!D175<0.5),"-",IFERROR('Tabel 2 F'!D175/'Tabel 1 F'!C173*100,"-")) -> 4.842285513 | F175: =IF(OR('Tabel 1 F'!E173<5,'Tabel 2 F'!F175<0.5),"-",IFERROR('Tabel 2 F'!F175/'Tabel 1 F'!E173*100,"-")) -> 7.692307692 | G175: =IF(OR('Tabel 1 F'!E173<5,'Tabel 2 F'!G175<0.5),"-",IFERROR('Tabel 2 F'!G175/'Tabel 1 F'!E173*100,"-")) -> 7.690868353 | I175: =IF(OR('Tabel 1 F'!G173<5,'Tabel 2 F'!I175<0.5),"-",IFERROR('Tabel 2 F'!I175/'Tabel 1 F'!G173*100,"-")) -> 6.944444444 | J175: =IF(OR('Tabel 1 F'!G173<5,'Tabel 2 F'!J175<0.5),"-",IFERROR('Tabel 2 F'!J175/'Tabel 1 F'!G173*100,"-")) -> 6.385267885
A176: MA. Ph.d. | C176: =IF(OR('Tabel 1 F'!C174<5,'Tabel 2 F'!C176<0.5),"-",IFERROR('Tabel 2 F'!C176/'Tabel 1 F'!C174*100,"-")) -> - | D176: =IF(OR('Tabel 1 F'!C174<5,'Tabel 2 F'!D176<0.5),"-",IFERROR('Tabel 2 F'!D176/'Tabel 1 F'!C174*100,"-")) -> - | F176: =IF(OR('Tabel 1 F'!E174<5,'Tabel 2 F'!F176<0.5),"-",IFERROR('Tabel 2 F'!F176/'Tabel 1 F'!E174*100,"-")) -> - | G176: =IF(OR('Tabel 1 F'!E174<5,'Tabel 2 F'!G176<0.5),"-",IFERROR('Tabel 2 F'!G176/'Tabel 1 F'!E174*100,"-")) -> - | I176: =IF(OR('Tabel 1 F'!G174<5,'Tabel 2 F'!I176<0.5),"-",IFERROR('Tabel 2 F'!I176/'Tabel 1 F'!G174*100,"-")) -> 14.28571429 | J176: =IF(OR('Tabel 1 F'!G174<5,'Tabel 2 F'!J176<0.5),"-",IFERROR('Tabel 2 F'!J176/'Tabel 1 F'!G174*100,"-")) -> 14.28304123
A177: MA. Samf. | C177: =IF(OR('Tabel 1 F'!C175<5,'Tabel 2 F'!C177<0.5),"-",IFERROR('Tabel 2 F'!C177/'Tabel 1 F'!C175*100,"-")) -> - | D177: =IF(OR('Tabel 1 F'!C175<5,'Tabel 2 F'!D177<0.5),"-",IFERROR('Tabel 2 F'!D177/'Tabel 1 F'!C175*100,"-")) -> - | F177: =IF(OR('Tabel 1 F'!E175<5,'Tabel 2 F'!F177<0.5),"-",IFERROR('Tabel 2 F'!F177/'Tabel 1 F'!E175*100,"-")) -> - | G177: =IF(OR('Tabel 1 F'!E175<5,'Tabel 2 F'!G177<0.5),"-",IFERROR('Tabel 2 F'!G177/'Tabel 1 F'!E175*100,"-")) -> - | I177: =IF(OR('Tabel 1 F'!G175<5,'Tabel 2 F'!I177<0.5),"-",IFERROR('Tabel 2 F'!I177/'Tabel 1 F'!G175*100,"-")) -> 42.85714286 | J177: =IF(OR('Tabel 1 F'!G175<5,'Tabel 2 F'!J177<0.5),"-",IFERROR('Tabel 2 F'!J177/'Tabel 1 F'!G175*100,"-")) -> 40.21170621
A178: Øvrige Mag. | C178: =IF(OR('Tabel 1 F'!C176<5,'Tabel 2 F'!C178<0.5),"-",IFERROR('Tabel 2 F'!C178/'Tabel 1 F'!C176*100,"-")) -> 12.5 | D178: =IF(OR('Tabel 1 F'!C176<5,'Tabel 2 F'!D178<0.5),"-",IFERROR('Tabel 2 F'!D178/'Tabel 1 F'!C176*100,"-")) -> 11.23464105 | F178: =IF(OR('Tabel 1 F'!E176<5,'Tabel 2 F'!F178<0.5),"-",IFERROR('Tabel 2 F'!F178/'Tabel 1 F'!E176*100,"-")) -> - | G178: =IF(OR('Tabel 1 F'!E176<5,'Tabel 2 F'!G178<0.5),"-",IFERROR('Tabel 2 F'!G178/'Tabel 1 F'!E176*100,"-")) -> - | I178: =IF(OR('Tabel 1 F'!G176<5,'Tabel 2 F'!I178<0.5),"-",IFERROR('Tabel 2 F'!I178/'Tabel 1 F'!G176*100,"-")) -> 5.882352941 | J178: =IF(OR('Tabel 1 F'!G176<5,'Tabel 2 F'!J178<0.5),"-",IFERROR('Tabel 2 F'!J178/'Tabel 1 F'!G176*100,"-")) -> 5.286889907
A179: Agronom | C179: =IF(OR('Tabel 1 F'!C177<5,'Tabel 2 F'!C179<0.5),"-",IFERROR('Tabel 2 F'!C179/'Tabel 1 F'!C177*100,"-")) -> 20 | D179: =IF(OR('Tabel 1 F'!C177<5,'Tabel 2 F'!D179<0.5),"-",IFERROR('Tabel 2 F'!D179/'Tabel 1 F'!C177*100,"-")) -> 18.93594461 | F179: =IF(OR('Tabel 1 F'!E177<5,'Tabel 2 F'!F179<0.5),"-",IFERROR('Tabel 2 F'!F179/'Tabel 1 F'!E177*100,"-")) -> - | G179: =IF(OR('Tabel 1 F'!E177<5,'Tabel 2 F'!G179<0.5),"-",IFERROR('Tabel 2 F'!G179/'Tabel 1 F'!E177*100,"-")) -> - | I179: =IF(OR('Tabel 1 F'!G177<5,'Tabel 2 F'!I179<0.5),"-",IFERROR('Tabel 2 F'!I179/'Tabel 1 F'!G177*100,"-")) -> 8 | J179: =IF(OR('Tabel 1 F'!G177<5,'Tabel 2 F'!J179<0.5),"-",IFERROR('Tabel 2 F'!J179/'Tabel 1 F'!G177*100,"-")) -> 7.574377846
A180: Landsk. Arkt. | C180: =IF(OR('Tabel 1 F'!C178<5,'Tabel 2 F'!C180<0.5),"-",IFERROR('Tabel 2 F'!C180/'Tabel 1 F'!C178*100,"-")) -> - | D180: =IF(OR('Tabel 1 F'!C178<5,'Tabel 2 F'!D180<0.5),"-",IFERROR('Tabel 2 F'!D180/'Tabel 1 F'!C178*100,"-")) -> - | F180: =IF(OR('Tabel 1 F'!E178<5,'Tabel 2 F'!F180<0.5),"-",IFERROR('Tabel 2 F'!F180/'Tabel 1 F'!E178*100,"-")) -> - | G180: =IF(OR('Tabel 1 F'!E178<5,'Tabel 2 F'!G180<0.5),"-",IFERROR('Tabel 2 F'!G180/'Tabel 1 F'!E178*100,"-")) -> - | I180: =IF(OR('Tabel 1 F'!G178<5,'Tabel 2 F'!I180<0.5),"-",IFERROR('Tabel 2 F'!I180/'Tabel 1 F'!G178*100,"-")) -> - | J180: =IF(OR('Tabel 1 F'!G178<5,'Tabel 2 F'!J180<0.5),"-",IFERROR('Tabel 2 F'!J180/'Tabel 1 F'!G178*100,"-")) -> -
A181: Hortonom | C181: =IF(OR('Tabel 1 F'!C179<5,'Tabel 2 F'!C181<0.5),"-",IFERROR('Tabel 2 F'!C181/'Tabel 1 F'!C179*100,"-")) -> - | D181: =IF(OR('Tabel 1 F'!C179<5,'Tabel 2 F'!D181<0.5),"-",IFERROR('Tabel 2 F'!D181/'Tabel 1 F'!C179*100,"-")) -> - | F181: =IF(OR('Tabel 1 F'!E179<5,'Tabel 2 F'!F181<0.5),"-",IFERROR('Tabel 2 F'!F181/'Tabel 1 F'!E179*100,"-")) -> - | G181: =IF(OR('Tabel 1 F'!E179<5,'Tabel 2 F'!G181<0.5),"-",IFERROR('Tabel 2 F'!G181/'Tabel 1 F'!E179*100,"-")) -> - | I181: =IF(OR('Tabel 1 F'!G179<5,'Tabel 2 F'!I181<0.5),"-",IFERROR('Tabel 2 F'!I181/'Tabel 1 F'!G179*100,"-")) -> - | J181: =IF(OR('Tabel 1 F'!G179<5,'Tabel 2 F'!J181<0.5),"-",IFERROR('Tabel 2 F'!J181/'Tabel 1 F'!G179*100,"-")) -> -
A182: Forstkand. | C182: =IF(OR('Tabel 1 F'!C180<5,'Tabel 2 F'!C182<0.5),"-",IFERROR('Tabel 2 F'!C182/'Tabel 1 F'!C180*100,"-")) -> 16.66666667 | D182: =IF(OR('Tabel 1 F'!C180<5,'Tabel 2 F'!D182<0.5),"-",IFERROR('Tabel 2 F'!D182/'Tabel 1 F'!C180*100,"-")) -> 16.6635481 | F182: =IF(OR('Tabel 1 F'!E180<5,'Tabel 2 F'!F182<0.5),"-",IFERROR('Tabel 2 F'!F182/'Tabel 1 F'!E180*100,"-")) -> - | G182: =IF(OR('Tabel 1 F'!E180<5,'Tabel 2 F'!G182<0.5),"-",IFERROR('Tabel 2 F'!G182/'Tabel 1 F'!E180*100,"-")) -> - | I182: =IF(OR('Tabel 1 F'!G180<5,'Tabel 2 F'!I182<0.5),"-",IFERROR('Tabel 2 F'!I182/'Tabel 1 F'!G180*100,"-")) -> 14.28571429 | J182: =IF(OR('Tabel 1 F'!G180<5,'Tabel 2 F'!J182<0.5),"-",IFERROR('Tabel 2 F'!J182/'Tabel 1 F'!G180*100,"-")) -> 14.28304123
A183: Jordbrugsakad. | C183: =IF(OR('Tabel 1 F'!C181<5,'Tabel 2 F'!C183<0.5),"-",IFERROR('Tabel 2 F'!C183/'Tabel 1 F'!C181*100,"-")) -> 15.78947368 | D183: =IF(OR('Tabel 1 F'!C181<5,'Tabel 2 F'!D183<0.5),"-",IFERROR('Tabel 2 F'!D183/'Tabel 1 F'!C181*100,"-")) -> 15.22845972 | F183: =IF(OR('Tabel 1 F'!E181<5,'Tabel 2 F'!F183<0.5),"-",IFERROR('Tabel 2 F'!F183/'Tabel 1 F'!E181*100,"-")) -> 4.347826087 | G183: =IF(OR('Tabel 1 F'!E181<5,'Tabel 2 F'!G183<0.5),"-",IFERROR('Tabel 2 F'!G183/'Tabel 1 F'!E181*100,"-")) -> 4.347012547 | I183: =IF(OR('Tabel 1 F'!G181<5,'Tabel 2 F'!I183<0.5),"-",IFERROR('Tabel 2 F'!I183/'Tabel 1 F'!G181*100,"-")) -> 9.523809524 | J183: =IF(OR('Tabel 1 F'!G181<5,'Tabel 2 F'!J183<0.5),"-",IFERROR('Tabel 2 F'!J183/'Tabel 1 F'!G181*100,"-")) -> 9.269571984
A184: Mejeriing. | C184: =IF(OR('Tabel 1 F'!C182<5,'Tabel 2 F'!C184<0.5),"-",IFERROR('Tabel 2 F'!C184/'Tabel 1 F'!C182*100,"-")) -> - | D184: =IF(OR('Tabel 1 F'!C182<5,'Tabel 2 F'!D184<0.5),"-",IFERROR('Tabel 2 F'!D184/'Tabel 1 F'!C182*100,"-")) -> - | F184: =IF(OR('Tabel 1 F'!E182<5,'Tabel 2 F'!F184<0.5),"-",IFERROR('Tabel 2 F'!F184/'Tabel 1 F'!E182*100,"-")) -> - | G184: =IF(OR('Tabel 1 F'!E182<5,'Tabel 2 F'!G184<0.5),"-",IFERROR('Tabel 2 F'!G184/'Tabel 1 F'!E182*100,"-")) -> - | I184: =IF(OR('Tabel 1 F'!G182<5,'Tabel 2 F'!I184<0.5),"-",IFERROR('Tabel 2 F'!I184/'Tabel 1 F'!G182*100,"-")) -> - | J184: =IF(OR('Tabel 1 F'!G182<5,'Tabel 2 F'!J184<0.5),"-",IFERROR('Tabel 2 F'!J184/'Tabel 1 F'!G182*100,"-")) -> -
A185: Levn.m.kand. | C185: =IF(OR('Tabel 1 F'!C183<5,'Tabel 2 F'!C185<0.5),"-",IFERROR('Tabel 2 F'!C185/'Tabel 1 F'!C183*100,"-")) -> - | D185: =IF(OR('Tabel 1 F'!C183<5,'Tabel 2 F'!D185<0.5),"-",IFERROR('Tabel 2 F'!D185/'Tabel 1 F'!C183*100,"-")) -> - | F185: =IF(OR('Tabel 1 F'!E183<5,'Tabel 2 F'!F185<0.5),"-",IFERROR('Tabel 2 F'!F185/'Tabel 1 F'!E183*100,"-")) -> - | G185: =IF(OR('Tabel 1 F'!E183<5,'Tabel 2 F'!G185<0.5),"-",IFERROR('Tabel 2 F'!G185/'Tabel 1 F'!E183*100,"-")) -> - | I185: =IF(OR('Tabel 1 F'!G183<5,'Tabel 2 F'!I185<0.5),"-",IFERROR('Tabel 2 F'!I185/'Tabel 1 F'!G183*100,"-")) -> - | J185: =IF(OR('Tabel 1 F'!G183<5,'Tabel 2 F'!J185<0.5),"-",IFERROR('Tabel 2 F'!J185/'Tabel 1 F'!G183*100,"-")) -> -
A186: Dyrlæge | C186: =IF(OR('Tabel 1 F'!C184<5,'Tabel 2 F'!C186<0.5),"-",IFERROR('Tabel 2 F'!C186/'Tabel 1 F'!C184*100,"-")) -> - | D186: =IF(OR('Tabel 1 F'!C184<5,'Tabel 2 F'!D186<0.5),"-",IFERROR('Tabel 2 F'!D186/'Tabel 1 F'!C184*100,"-")) -> - | F186: =IF(OR('Tabel 1 F'!E184<5,'Tabel 2 F'!F186<0.5),"-",IFERROR('Tabel 2 F'!F186/'Tabel 1 F'!E184*100,"-")) -> - | G186: =IF(OR('Tabel 1 F'!E184<5,'Tabel 2 F'!G186<0.5),"-",IFERROR('Tabel 2 F'!G186/'Tabel 1 F'!E184*100,"-")) -> - | I186: =IF(OR('Tabel 1 F'!G184<5,'Tabel 2 F'!I186<0.5),"-",IFERROR('Tabel 2 F'!I186/'Tabel 1 F'!G184*100,"-")) -> - | J186: =IF(OR('Tabel 1 F'!G184<5,'Tabel 2 F'!J186<0.5),"-",IFERROR('Tabel 2 F'!J186/'Tabel 1 F'!G184*100,"-")) -> -
A187: Farmaceut | C187: =IF(OR('Tabel 1 F'!C185<5,'Tabel 2 F'!C187<0.5),"-",IFERROR('Tabel 2 F'!C187/'Tabel 1 F'!C185*100,"-")) -> - | D187: =IF(OR('Tabel 1 F'!C185<5,'Tabel 2 F'!D187<0.5),"-",IFERROR('Tabel 2 F'!D187/'Tabel 1 F'!C185*100,"-")) -> - | F187: =IF(OR('Tabel 1 F'!E185<5,'Tabel 2 F'!F187<0.5),"-",IFERROR('Tabel 2 F'!F187/'Tabel 1 F'!E185*100,"-")) -> - | G187: =IF(OR('Tabel 1 F'!E185<5,'Tabel 2 F'!G187<0.5),"-",IFERROR('Tabel 2 F'!G187/'Tabel 1 F'!E185*100,"-")) -> - | I187: =IF(OR('Tabel 1 F'!G185<5,'Tabel 2 F'!I187<0.5),"-",IFERROR('Tabel 2 F'!I187/'Tabel 1 F'!G185*100,"-")) -> - | J187: =IF(OR('Tabel 1 F'!G185<5,'Tabel 2 F'!J187<0.5),"-",IFERROR('Tabel 2 F'!J187/'Tabel 1 F'!G185*100,"-")) -> -
A188: Læge | C188: =IF(OR('Tabel 1 F'!C186<5,'Tabel 2 F'!C188<0.5),"-",IFERROR('Tabel 2 F'!C188/'Tabel 1 F'!C186*100,"-")) -> - | D188: =IF(OR('Tabel 1 F'!C186<5,'Tabel 2 F'!D188<0.5),"-",IFERROR('Tabel 2 F'!D188/'Tabel 1 F'!C186*100,"-")) -> - | F188: =IF(OR('Tabel 1 F'!E186<5,'Tabel 2 F'!F188<0.5),"-",IFERROR('Tabel 2 F'!F188/'Tabel 1 F'!E186*100,"-")) -> - | G188: =IF(OR('Tabel 1 F'!E186<5,'Tabel 2 F'!G188<0.5),"-",IFERROR('Tabel 2 F'!G188/'Tabel 1 F'!E186*100,"-")) -> - | I188: =IF(OR('Tabel 1 F'!G186<5,'Tabel 2 F'!I188<0.5),"-",IFERROR('Tabel 2 F'!I188/'Tabel 1 F'!G186*100,"-")) -> - | J188: =IF(OR('Tabel 1 F'!G186<5,'Tabel 2 F'!J188<0.5),"-",IFERROR('Tabel 2 F'!J188/'Tabel 1 F'!G186*100,"-")) -> -
A189: Tandlæge | C189: =IF(OR('Tabel 1 F'!C187<5,'Tabel 2 F'!C189<0.5),"-",IFERROR('Tabel 2 F'!C189/'Tabel 1 F'!C187*100,"-")) -> - | D189: =IF(OR('Tabel 1 F'!C187<5,'Tabel 2 F'!D189<0.5),"-",IFERROR('Tabel 2 F'!D189/'Tabel 1 F'!C187*100,"-")) -> - | F189: =IF(OR('Tabel 1 F'!E187<5,'Tabel 2 F'!F189<0.5),"-",IFERROR('Tabel 2 F'!F189/'Tabel 1 F'!E187*100,"-")) -> - | G189: =IF(OR('Tabel 1 F'!E187<5,'Tabel 2 F'!G189<0.5),"-",IFERROR('Tabel 2 F'!G189/'Tabel 1 F'!E187*100,"-")) -> - | I189: =IF(OR('Tabel 1 F'!G187<5,'Tabel 2 F'!I189<0.5),"-",IFERROR('Tabel 2 F'!I189/'Tabel 1 F'!G187*100,"-")) -> - | J189: =IF(OR('Tabel 1 F'!G187<5,'Tabel 2 F'!J189<0.5),"-",IFERROR('Tabel 2 F'!J189/'Tabel 1 F'!G187*100,"-")) -> -
A190: Arkitekt | C190: =IF(OR('Tabel 1 F'!C188<5,'Tabel 2 F'!C190<0.5),"-",IFERROR('Tabel 2 F'!C190/'Tabel 1 F'!C188*100,"-")) -> 16.66666667 | D190: =IF(OR('Tabel 1 F'!C188<5,'Tabel 2 F'!D190<0.5),"-",IFERROR('Tabel 2 F'!D190/'Tabel 1 F'!C188*100,"-")) -> 16.6635481 | F190: =IF(OR('Tabel 1 F'!E188<5,'Tabel 2 F'!F190<0.5),"-",IFERROR('Tabel 2 F'!F190/'Tabel 1 F'!E188*100,"-")) -> - | G190: =IF(OR('Tabel 1 F'!E188<5,'Tabel 2 F'!G190<0.5),"-",IFERROR('Tabel 2 F'!G190/'Tabel 1 F'!E188*100,"-")) -> - | I190: =IF(OR('Tabel 1 F'!G188<5,'Tabel 2 F'!I190<0.5),"-",IFERROR('Tabel 2 F'!I190/'Tabel 1 F'!G188*100,"-")) -> 9.090909091 | J190: =IF(OR('Tabel 1 F'!G188<5,'Tabel 2 F'!J190<0.5),"-",IFERROR('Tabel 2 F'!J190/'Tabel 1 F'!G188*100,"-")) -> 9.089208054
A191: Landinspek. | C191: =IF(OR('Tabel 1 F'!C189<5,'Tabel 2 F'!C191<0.5),"-",IFERROR('Tabel 2 F'!C191/'Tabel 1 F'!C189*100,"-")) -> - | D191: =IF(OR('Tabel 1 F'!C189<5,'Tabel 2 F'!D191<0.5),"-",IFERROR('Tabel 2 F'!D191/'Tabel 1 F'!C189*100,"-")) -> - | F191: =IF(OR('Tabel 1 F'!E189<5,'Tabel 2 F'!F191<0.5),"-",IFERROR('Tabel 2 F'!F191/'Tabel 1 F'!E189*100,"-")) -> - | G191: =IF(OR('Tabel 1 F'!E189<5,'Tabel 2 F'!G191<0.5),"-",IFERROR('Tabel 2 F'!G191/'Tabel 1 F'!E189*100,"-")) -> - | I191: =IF(OR('Tabel 1 F'!G189<5,'Tabel 2 F'!I191<0.5),"-",IFERROR('Tabel 2 F'!I191/'Tabel 1 F'!G189*100,"-")) -> - | J191: =IF(OR('Tabel 1 F'!G189<5,'Tabel 2 F'!J191<0.5),"-",IFERROR('Tabel 2 F'!J191/'Tabel 1 F'!G189*100,"-")) -> -
A192: Bibliotekar | C192: =IF(OR('Tabel 1 F'!C190<5,'Tabel 2 F'!C192<0.5),"-",IFERROR('Tabel 2 F'!C192/'Tabel 1 F'!C190*100,"-")) -> - | D192: =IF(OR('Tabel 1 F'!C190<5,'Tabel 2 F'!D192<0.5),"-",IFERROR('Tabel 2 F'!D192/'Tabel 1 F'!C190*100,"-")) -> - | F192: =IF(OR('Tabel 1 F'!E190<5,'Tabel 2 F'!F192<0.5),"-",IFERROR('Tabel 2 F'!F192/'Tabel 1 F'!E190*100,"-")) -> - | G192: =IF(OR('Tabel 1 F'!E190<5,'Tabel 2 F'!G192<0.5),"-",IFERROR('Tabel 2 F'!G192/'Tabel 1 F'!E190*100,"-")) -> - | I192: =IF(OR('Tabel 1 F'!G190<5,'Tabel 2 F'!I192<0.5),"-",IFERROR('Tabel 2 F'!I192/'Tabel 1 F'!G190*100,"-")) -> - | J192: =IF(OR('Tabel 1 F'!G190<5,'Tabel 2 F'!J192<0.5),"-",IFERROR('Tabel 2 F'!J192/'Tabel 1 F'!G190*100,"-")) -> -
A193: Musikudd. | C193: =IF(OR('Tabel 1 F'!C191<5,'Tabel 2 F'!C193<0.5),"-",IFERROR('Tabel 2 F'!C193/'Tabel 1 F'!C191*100,"-")) -> - | D193: =IF(OR('Tabel 1 F'!C191<5,'Tabel 2 F'!D193<0.5),"-",IFERROR('Tabel 2 F'!D193/'Tabel 1 F'!C191*100,"-")) -> - | F193: =IF(OR('Tabel 1 F'!E191<5,'Tabel 2 F'!F193<0.5),"-",IFERROR('Tabel 2 F'!F193/'Tabel 1 F'!E191*100,"-")) -> - | G193: =IF(OR('Tabel 1 F'!E191<5,'Tabel 2 F'!G193<0.5),"-",IFERROR('Tabel 2 F'!G193/'Tabel 1 F'!E191*100,"-")) -> - | I193: =IF(OR('Tabel 1 F'!G191<5,'Tabel 2 F'!I193<0.5),"-",IFERROR('Tabel 2 F'!I193/'Tabel 1 F'!G191*100,"-")) -> - | J193: =IF(OR('Tabel 1 F'!G191<5,'Tabel 2 F'!J193<0.5),"-",IFERROR('Tabel 2 F'!J193/'Tabel 1 F'!G191*100,"-")) -> -
A194: Teolog | C194: =IF(OR('Tabel 1 F'!C192<5,'Tabel 2 F'!C194<0.5),"-",IFERROR('Tabel 2 F'!C194/'Tabel 1 F'!C192*100,"-")) -> - | D194: =IF(OR('Tabel 1 F'!C192<5,'Tabel 2 F'!D194<0.5),"-",IFERROR('Tabel 2 F'!D194/'Tabel 1 F'!C192*100,"-")) -> - | F194: =IF(OR('Tabel 1 F'!E192<5,'Tabel 2 F'!F194<0.5),"-",IFERROR('Tabel 2 F'!F194/'Tabel 1 F'!E192*100,"-")) -> - | G194: =IF(OR('Tabel 1 F'!E192<5,'Tabel 2 F'!G194<0.5),"-",IFERROR('Tabel 2 F'!G194/'Tabel 1 F'!E192*100,"-")) -> - | I194: =IF(OR('Tabel 1 F'!G192<5,'Tabel 2 F'!I194<0.5),"-",IFERROR('Tabel 2 F'!I194/'Tabel 1 F'!G192*100,"-")) -> - | J194: =IF(OR('Tabel 1 F'!G192<5,'Tabel 2 F'!J194<0.5),"-",IFERROR('Tabel 2 F'!J194/'Tabel 1 F'!G192*100,"-")) -> -
A195: Psykolog | C195: =IF(OR('Tabel 1 F'!C193<5,'Tabel 2 F'!C195<0.5),"-",IFERROR('Tabel 2 F'!C195/'Tabel 1 F'!C193*100,"-")) -> - | D195: =IF(OR('Tabel 1 F'!C193<5,'Tabel 2 F'!D195<0.5),"-",IFERROR('Tabel 2 F'!D195/'Tabel 1 F'!C193*100,"-")) -> - | F195: =IF(OR('Tabel 1 F'!E193<5,'Tabel 2 F'!F195<0.5),"-",IFERROR('Tabel 2 F'!F195/'Tabel 1 F'!E193*100,"-")) -> 21.05263158 | G195: =IF(OR('Tabel 1 F'!E193<5,'Tabel 2 F'!G195<0.5),"-",IFERROR('Tabel 2 F'!G195/'Tabel 1 F'!E193*100,"-")) -> 17.16525456 | I195: =IF(OR('Tabel 1 F'!G193<5,'Tabel 2 F'!I195<0.5),"-",IFERROR('Tabel 2 F'!I195/'Tabel 1 F'!G193*100,"-")) -> 19.04761905 | J195: =IF(OR('Tabel 1 F'!G193<5,'Tabel 2 F'!J195<0.5),"-",IFERROR('Tabel 2 F'!J195/'Tabel 1 F'!G193*100,"-")) -> 15.53046841
A196: Jurist | C196: =IF(OR('Tabel 1 F'!C194<5,'Tabel 2 F'!C196<0.5),"-",IFERROR('Tabel 2 F'!C196/'Tabel 1 F'!C194*100,"-")) -> - | D196: =IF(OR('Tabel 1 F'!C194<5,'Tabel 2 F'!D196<0.5),"-",IFERROR('Tabel 2 F'!D196/'Tabel 1 F'!C194*100,"-")) -> - | F196: =IF(OR('Tabel 1 F'!E194<5,'Tabel 2 F'!F196<0.5),"-",IFERROR('Tabel 2 F'!F196/'Tabel 1 F'!E194*100,"-")) -> 4.166666667 | G196: =IF(OR('Tabel 1 F'!E194<5,'Tabel 2 F'!G196<0.5),"-",IFERROR('Tabel 2 F'!G196/'Tabel 1 F'!E194*100,"-")) -> 4.165887025 | I196: =IF(OR('Tabel 1 F'!G194<5,'Tabel 2 F'!I196<0.5),"-",IFERROR('Tabel 2 F'!I196/'Tabel 1 F'!G194*100,"-")) -> 3.125 | J196: =IF(OR('Tabel 1 F'!G194<5,'Tabel 2 F'!J196<0.5),"-",IFERROR('Tabel 2 F'!J196/'Tabel 1 F'!G194*100,"-")) -> 3.124415269
A197: Økonom | C197: =IF(OR('Tabel 1 F'!C195<5,'Tabel 2 F'!C197<0.5),"-",IFERROR('Tabel 2 F'!C197/'Tabel 1 F'!C195*100,"-")) -> - | D197: =IF(OR('Tabel 1 F'!C195<5,'Tabel 2 F'!D197<0.5),"-",IFERROR('Tabel 2 F'!D197/'Tabel 1 F'!C195*100,"-")) -> - | F197: =IF(OR('Tabel 1 F'!E195<5,'Tabel 2 F'!F197<0.5),"-",IFERROR('Tabel 2 F'!F197/'Tabel 1 F'!E195*100,"-")) -> - | G197: =IF(OR('Tabel 1 F'!E195<5,'Tabel 2 F'!G197<0.5),"-",IFERROR('Tabel 2 F'!G197/'Tabel 1 F'!E195*100,"-")) -> - | I197: =IF(OR('Tabel 1 F'!G195<5,'Tabel 2 F'!I197<0.5),"-",IFERROR('Tabel 2 F'!I197/'Tabel 1 F'!G195*100,"-")) -> - | J197: =IF(OR('Tabel 1 F'!G195<5,'Tabel 2 F'!J197<0.5),"-",IFERROR('Tabel 2 F'!J197/'Tabel 1 F'!G195*100,"-")) -> -
A198: Samf. Adm. | C198: =IF(OR('Tabel 1 F'!C196<5,'Tabel 2 F'!C198<0.5),"-",IFERROR('Tabel 2 F'!C198/'Tabel 1 F'!C196*100,"-")) -> 14.28571429 | D198: =IF(OR('Tabel 1 F'!C196<5,'Tabel 2 F'!D198<0.5),"-",IFERROR('Tabel 2 F'!D198/'Tabel 1 F'!C196*100,"-")) -> 12.61015228 | F198: =IF(OR('Tabel 1 F'!E196<5,'Tabel 2 F'!F198<0.5),"-",IFERROR('Tabel 2 F'!F198/'Tabel 1 F'!E196*100,"-")) -> 12.28070175 | G198: =IF(OR('Tabel 1 F'!E196<5,'Tabel 2 F'!G198<0.5),"-",IFERROR('Tabel 2 F'!G198/'Tabel 1 F'!E196*100,"-")) -> 9.613943172 | I198: =IF(OR('Tabel 1 F'!G196<5,'Tabel 2 F'!I198<0.5),"-",IFERROR('Tabel 2 F'!I198/'Tabel 1 F'!G196*100,"-")) -> 12.94117647 | J198: =IF(OR('Tabel 1 F'!G196<5,'Tabel 2 F'!J198<0.5),"-",IFERROR('Tabel 2 F'!J198/'Tabel 1 F'!G196*100,"-")) -> 10.6009297
A199: Cand. Merc. | C199: =IF(OR('Tabel 1 F'!C197<5,'Tabel 2 F'!C199<0.5),"-",IFERROR('Tabel 2 F'!C199/'Tabel 1 F'!C197*100,"-")) -> 5.405405405 | D199: =IF(OR('Tabel 1 F'!C197<5,'Tabel 2 F'!D199<0.5),"-",IFERROR('Tabel 2 F'!D199/'Tabel 1 F'!C197*100,"-")) -> 5.404393978 | F199: =IF(OR('Tabel 1 F'!E197<5,'Tabel 2 F'!F199<0.5),"-",IFERROR('Tabel 2 F'!F199/'Tabel 1 F'!E197*100,"-")) -> 4.545454545 | G199: =IF(OR('Tabel 1 F'!E197<5,'Tabel 2 F'!G199<0.5),"-",IFERROR('Tabel 2 F'!G199/'Tabel 1 F'!E197*100,"-")) -> 4.544604027 | I199: =IF(OR('Tabel 1 F'!G197<5,'Tabel 2 F'!I199<0.5),"-",IFERROR('Tabel 2 F'!I199/'Tabel 1 F'!G197*100,"-")) -> 4.938271605 | J199: =IF(OR('Tabel 1 F'!G197<5,'Tabel 2 F'!J199<0.5),"-",IFERROR('Tabel 2 F'!J199/'Tabel 1 F'!G197*100,"-")) -> 4.937347585
A200: HA | C200: =IF(OR('Tabel 1 F'!C198<5,'Tabel 2 F'!C200<0.5),"-",IFERROR('Tabel 2 F'!C200/'Tabel 1 F'!C198*100,"-")) -> 18.75 | D200: =IF(OR('Tabel 1 F'!C198<5,'Tabel 2 F'!D200<0.5),"-",IFERROR('Tabel 2 F'!D200/'Tabel 1 F'!C198*100,"-")) -> 18.51259901 | F200: =IF(OR('Tabel 1 F'!E198<5,'Tabel 2 F'!F200<0.5),"-",IFERROR('Tabel 2 F'!F200/'Tabel 1 F'!E198*100,"-")) -> - | G200: =IF(OR('Tabel 1 F'!E198<5,'Tabel 2 F'!G200<0.5),"-",IFERROR('Tabel 2 F'!G200/'Tabel 1 F'!E198*100,"-")) -> - | I200: =IF(OR('Tabel 1 F'!G198<5,'Tabel 2 F'!I200<0.5),"-",IFERROR('Tabel 2 F'!I200/'Tabel 1 F'!G198*100,"-")) -> 10.34482759 | J200: =IF(OR('Tabel 1 F'!G198<5,'Tabel 2 F'!J200<0.5),"-",IFERROR('Tabel 2 F'!J200/'Tabel 1 F'!G198*100,"-")) -> 10.21384773
A201: HD | C201: =IF(OR('Tabel 1 F'!C199<5,'Tabel 2 F'!C201<0.5),"-",IFERROR('Tabel 2 F'!C201/'Tabel 1 F'!C199*100,"-")) -> 8.333333333 | D201: =IF(OR('Tabel 1 F'!C199<5,'Tabel 2 F'!D201<0.5),"-",IFERROR('Tabel 2 F'!D201/'Tabel 1 F'!C199*100,"-")) -> 8.331774049 | F201: =IF(OR('Tabel 1 F'!E199<5,'Tabel 2 F'!F201<0.5),"-",IFERROR('Tabel 2 F'!F201/'Tabel 1 F'!E199*100,"-")) -> - | G201: =IF(OR('Tabel 1 F'!E199<5,'Tabel 2 F'!G201<0.5),"-",IFERROR('Tabel 2 F'!G201/'Tabel 1 F'!E199*100,"-")) -> - | I201: =IF(OR('Tabel 1 F'!G199<5,'Tabel 2 F'!I201<0.5),"-",IFERROR('Tabel 2 F'!I201/'Tabel 1 F'!G199*100,"-")) -> 4 | J201: =IF(OR('Tabel 1 F'!G199<5,'Tabel 2 F'!J201<0.5),"-",IFERROR('Tabel 2 F'!J201/'Tabel 1 F'!G199*100,"-")) -> 3.999251544
A202: Komm. og Sprog | C202: =IF(OR('Tabel 1 F'!C200<5,'Tabel 2 F'!C202<0.5),"-",IFERROR('Tabel 2 F'!C202/'Tabel 1 F'!C200*100,"-")) -> - | D202: =IF(OR('Tabel 1 F'!C200<5,'Tabel 2 F'!D202<0.5),"-",IFERROR('Tabel 2 F'!D202/'Tabel 1 F'!C200*100,"-")) -> - | F202: =IF(OR('Tabel 1 F'!E200<5,'Tabel 2 F'!F202<0.5),"-",IFERROR('Tabel 2 F'!F202/'Tabel 1 F'!E200*100,"-")) -> 25 | G202: =IF(OR('Tabel 1 F'!E200<5,'Tabel 2 F'!G202<0.5),"-",IFERROR('Tabel 2 F'!G202/'Tabel 1 F'!E200*100,"-")) -> 20.10436807 | I202: =IF(OR('Tabel 1 F'!G200<5,'Tabel 2 F'!I202<0.5),"-",IFERROR('Tabel 2 F'!I202/'Tabel 1 F'!G200*100,"-")) -> 18.75 | J202: =IF(OR('Tabel 1 F'!G200<5,'Tabel 2 F'!J202<0.5),"-",IFERROR('Tabel 2 F'!J202/'Tabel 1 F'!G200*100,"-")) -> 15.07827606
A203: Bygningskonst. | C203: =IF(OR('Tabel 1 F'!C201<5,'Tabel 2 F'!C203<0.5),"-",IFERROR('Tabel 2 F'!C203/'Tabel 1 F'!C201*100,"-")) -> 8.064516129 | D203: =IF(OR('Tabel 1 F'!C201<5,'Tabel 2 F'!D203<0.5),"-",IFERROR('Tabel 2 F'!D203/'Tabel 1 F'!C201*100,"-")) -> 8.064516129 | F203: =IF(OR('Tabel 1 F'!E201<5,'Tabel 2 F'!F203<0.5),"-",IFERROR('Tabel 2 F'!F203/'Tabel 1 F'!E201*100,"-")) -> 10 | G203: =IF(OR('Tabel 1 F'!E201<5,'Tabel 2 F'!G203<0.5),"-",IFERROR('Tabel 2 F'!G203/'Tabel 1 F'!E201*100,"-")) -> 9.076903886 | I203: =IF(OR('Tabel 1 F'!G201<5,'Tabel 2 F'!I203<0.5),"-",IFERROR('Tabel 2 F'!I203/'Tabel 1 F'!G201*100,"-")) -> 8.333333333 | J203: =IF(OR('Tabel 1 F'!G201<5,'Tabel 2 F'!J203<0.5),"-",IFERROR('Tabel 2 F'!J203/'Tabel 1 F'!G201*100,"-")) -> 8.20512554
A204: Cand. IT. | C204: =IF(OR('Tabel 1 F'!C202<5,'Tabel 2 F'!C204<0.5),"-",IFERROR('Tabel 2 F'!C204/'Tabel 1 F'!C202*100,"-")) -> - | D204: =IF(OR('Tabel 1 F'!C202<5,'Tabel 2 F'!D204<0.5),"-",IFERROR('Tabel 2 F'!D204/'Tabel 1 F'!C202*100,"-")) -> - | F204: =IF(OR('Tabel 1 F'!E202<5,'Tabel 2 F'!F204<0.5),"-",IFERROR('Tabel 2 F'!F204/'Tabel 1 F'!E202*100,"-")) -> - | G204: =IF(OR('Tabel 1 F'!E202<5,'Tabel 2 F'!G204<0.5),"-",IFERROR('Tabel 2 F'!G204/'Tabel 1 F'!E202*100,"-")) -> - | I204: =IF(OR('Tabel 1 F'!G202<5,'Tabel 2 F'!I204<0.5),"-",IFERROR('Tabel 2 F'!I204/'Tabel 1 F'!G202*100,"-")) -> 12.5 | J204: =IF(OR('Tabel 1 F'!G202<5,'Tabel 2 F'!J204<0.5),"-",IFERROR('Tabel 2 F'!J204/'Tabel 1 F'!G202*100,"-")) -> 12.49766107
A205: Bac. Samf. | C205: =IF(OR('Tabel 1 F'!C203<5,'Tabel 2 F'!C205<0.5),"-",IFERROR('Tabel 2 F'!C205/'Tabel 1 F'!C203*100,"-")) -> - | D205: =IF(OR('Tabel 1 F'!C203<5,'Tabel 2 F'!D205<0.5),"-",IFERROR('Tabel 2 F'!D205/'Tabel 1 F'!C203*100,"-")) -> - | F205: =IF(OR('Tabel 1 F'!E203<5,'Tabel 2 F'!F205<0.5),"-",IFERROR('Tabel 2 F'!F205/'Tabel 1 F'!E203*100,"-")) -> - | G205: =IF(OR('Tabel 1 F'!E203<5,'Tabel 2 F'!G205<0.5),"-",IFERROR('Tabel 2 F'!G205/'Tabel 1 F'!E203*100,"-")) -> - | I205: =IF(OR('Tabel 1 F'!G203<5,'Tabel 2 F'!I205<0.5),"-",IFERROR('Tabel 2 F'!I205/'Tabel 1 F'!G203*100,"-")) -> - | J205: =IF(OR('Tabel 1 F'!G203<5,'Tabel 2 F'!J205<0.5),"-",IFERROR('Tabel 2 F'!J205/'Tabel 1 F'!G203*100,"-")) -> -
A206: Bac. Hum. | C206: =IF(OR('Tabel 1 F'!C204<5,'Tabel 2 F'!C206<0.5),"-",IFERROR('Tabel 2 F'!C206/'Tabel 1 F'!C204*100,"-")) -> - | D206: =IF(OR('Tabel 1 F'!C204<5,'Tabel 2 F'!D206<0.5),"-",IFERROR('Tabel 2 F'!D206/'Tabel 1 F'!C204*100,"-")) -> - | F206: =IF(OR('Tabel 1 F'!E204<5,'Tabel 2 F'!F206<0.5),"-",IFERROR('Tabel 2 F'!F206/'Tabel 1 F'!E204*100,"-")) -> 7.142857143 | G206: =IF(OR('Tabel 1 F'!E204<5,'Tabel 2 F'!G206<0.5),"-",IFERROR('Tabel 2 F'!G206/'Tabel 1 F'!E204*100,"-")) -> 7.141520614 | I206: =IF(OR('Tabel 1 F'!G204<5,'Tabel 2 F'!I206<0.5),"-",IFERROR('Tabel 2 F'!I206/'Tabel 1 F'!G204*100,"-")) -> 5.882352941 | J206: =IF(OR('Tabel 1 F'!G204<5,'Tabel 2 F'!J206<0.5),"-",IFERROR('Tabel 2 F'!J206/'Tabel 1 F'!G204*100,"-")) -> 5.88125227
A207: Bac. Nat. | C207: =IF(OR('Tabel 1 F'!C205<5,'Tabel 2 F'!C207<0.5),"-",IFERROR('Tabel 2 F'!C207/'Tabel 1 F'!C205*100,"-")) -> 20 | D207: =IF(OR('Tabel 1 F'!C205<5,'Tabel 2 F'!D207<0.5),"-",IFERROR('Tabel 2 F'!D207/'Tabel 1 F'!C205*100,"-")) -> 19.99625772 | F207: =IF(OR('Tabel 1 F'!E205<5,'Tabel 2 F'!F207<0.5),"-",IFERROR('Tabel 2 F'!F207/'Tabel 1 F'!E205*100,"-")) -> - | G207: =IF(OR('Tabel 1 F'!E205<5,'Tabel 2 F'!G207<0.5),"-",IFERROR('Tabel 2 F'!G207/'Tabel 1 F'!E205*100,"-")) -> - | I207: =IF(OR('Tabel 1 F'!G205<5,'Tabel 2 F'!I207<0.5),"-",IFERROR('Tabel 2 F'!I207/'Tabel 1 F'!G205*100,"-")) -> 25 | J207: =IF(OR('Tabel 1 F'!G205<5,'Tabel 2 F'!J207<0.5),"-",IFERROR('Tabel 2 F'!J207/'Tabel 1 F'!G205*100,"-")) -> 23.84145201
A208: Andre | C208: =IF(OR('Tabel 1 F'!C206<5,'Tabel 2 F'!C208<0.5),"-",IFERROR('Tabel 2 F'!C208/'Tabel 1 F'!C206*100,"-")) -> 3.921568627 | D208: =IF(OR('Tabel 1 F'!C206<5,'Tabel 2 F'!D208<0.5),"-",IFERROR('Tabel 2 F'!D208/'Tabel 1 F'!C206*100,"-")) -> 3.237195833 | F208: =IF(OR('Tabel 1 F'!E206<5,'Tabel 2 F'!F208<0.5),"-",IFERROR('Tabel 2 F'!F208/'Tabel 1 F'!E206*100,"-")) -> 5.128205128 | G208: =IF(OR('Tabel 1 F'!E206<5,'Tabel 2 F'!G208<0.5),"-",IFERROR('Tabel 2 F'!G208/'Tabel 1 F'!E206*100,"-")) -> 3.707097701 | I208: =IF(OR('Tabel 1 F'!G206<5,'Tabel 2 F'!I208<0.5),"-",IFERROR('Tabel 2 F'!I208/'Tabel 1 F'!G206*100,"-")) -> 4.444444444 | J208: =IF(OR('Tabel 1 F'!G206<5,'Tabel 2 F'!J208<0.5),"-",IFERROR('Tabel 2 F'!J208/'Tabel 1 F'!G206*100,"-")) -> 3.440819975
A210: Total | C210: =IF(OR('Tabel 1 F'!C208<5,'Tabel 2 F'!C210<0.5),"-",IFERROR('Tabel 2 F'!C210/'Tabel 1 F'!C208*100,"-")) -> 5.234899329 | D210: =IF(OR('Tabel 1 F'!C208<5,'Tabel 2 F'!D210<0.5),"-",IFERROR('Tabel 2 F'!D210/'Tabel 1 F'!C208*100,"-")) -> 4.80104583 | F210: =IF(OR('Tabel 1 F'!E208<5,'Tabel 2 F'!F210<0.5),"-",IFERROR('Tabel 2 F'!F210/'Tabel 1 F'!E208*100,"-")) -> 8.181818182 | G210: =IF(OR('Tabel 1 F'!E208<5,'Tabel 2 F'!G210<0.5),"-",IFERROR('Tabel 2 F'!G210/'Tabel 1 F'!E208*100,"-")) -> 7.343216359 | I210: =IF(OR('Tabel 1 F'!G208<5,'Tabel 2 F'!I210<0.5),"-",IFERROR('Tabel 2 F'!I210/'Tabel 1 F'!G208*100,"-")) -> 6.619217082 | J210: =IF(OR('Tabel 1 F'!G208<5,'Tabel 2 F'!J210<0.5),"-",IFERROR('Tabel 2 F'!J210/'Tabel 1 F'!G208*100,"-")) -> 5.995232697
A212: Ingeniører i alt | C212: =IF(OR('Tabel 1 F'!C210<5,'Tabel 2 F'!C212<0.5),"-",IFERROR('Tabel 2 F'!C212/'Tabel 1 F'!C210*100,"-")) -> 1.672240803 | D212: =IF(OR('Tabel 1 F'!C210<5,'Tabel 2 F'!D212<0.5),"-",IFERROR('Tabel 2 F'!D212/'Tabel 1 F'!C210*100,"-")) -> 1.451855047 | F212: =IF(OR('Tabel 1 F'!E210<5,'Tabel 2 F'!F212<0.5),"-",IFERROR('Tabel 2 F'!F212/'Tabel 1 F'!E210*100,"-")) -> 8.771929825 | G212: =IF(OR('Tabel 1 F'!E210<5,'Tabel 2 F'!G212<0.5),"-",IFERROR('Tabel 2 F'!G212/'Tabel 1 F'!E210*100,"-")) -> 5.774274769 | I212: =IF(OR('Tabel 1 F'!G210<5,'Tabel 2 F'!I212<0.5),"-",IFERROR('Tabel 2 F'!I212/'Tabel 1 F'!G210*100,"-")) -> 2.808988764 | J212: =IF(OR('Tabel 1 F'!G210<5,'Tabel 2 F'!J212<0.5),"-",IFERROR('Tabel 2 F'!J212/'Tabel 1 F'!G210*100,"-")) -> 2.143927868
A213: Magistre i alt | C213: =IF(OR('Tabel 1 F'!C211<5,'Tabel 2 F'!C213<0.5),"-",IFERROR('Tabel 2 F'!C213/'Tabel 1 F'!C211*100,"-")) -> 9.90990991 | D213: =IF(OR('Tabel 1 F'!C211<5,'Tabel 2 F'!D213<0.5),"-",IFERROR('Tabel 2 F'!D213/'Tabel 1 F'!C211*100,"-")) -> 8.54319048 | F213: =IF(OR('Tabel 1 F'!E211<5,'Tabel 2 F'!F213<0.5),"-",IFERROR('Tabel 2 F'!F213/'Tabel 1 F'!E211*100,"-")) -> 11.49425287 | G213: =IF(OR('Tabel 1 F'!E211<5,'Tabel 2 F'!G213<0.5),"-",IFERROR('Tabel 2 F'!G213/'Tabel 1 F'!E211*100,"-")) -> 11.35696419 | I213: =IF(OR('Tabel 1 F'!G211<5,'Tabel 2 F'!I213<0.5),"-",IFERROR('Tabel 2 F'!I213/'Tabel 1 F'!G211*100,"-")) -> 10.87719298 | J213: =IF(OR('Tabel 1 F'!G211<5,'Tabel 2 F'!J213<0.5),"-",IFERROR('Tabel 2 F'!J213/'Tabel 1 F'!G211*100,"-")) -> 10.26107338
A214: DJØF'ere i alt | C214: =IF(OR('Tabel 1 F'!C212<5,'Tabel 2 F'!C214<0.5),"-",IFERROR('Tabel 2 F'!C214/'Tabel 1 F'!C212*100,"-")) -> 9 | D214: =IF(OR('Tabel 1 F'!C212<5,'Tabel 2 F'!D214<0.5),"-",IFERROR('Tabel 2 F'!D214/'Tabel 1 F'!C212*100,"-")) -> 8.492484251 | F214: =IF(OR('Tabel 1 F'!E212<5,'Tabel 2 F'!F214<0.5),"-",IFERROR('Tabel 2 F'!F214/'Tabel 1 F'!E212*100,"-")) -> 6.622516556 | G214: =IF(OR('Tabel 1 F'!E212<5,'Tabel 2 F'!G214<0.5),"-",IFERROR('Tabel 2 F'!G214/'Tabel 1 F'!E212*100,"-")) -> 5.615487593 | I214: =IF(OR('Tabel 1 F'!G212<5,'Tabel 2 F'!I214<0.5),"-",IFERROR('Tabel 2 F'!I214/'Tabel 1 F'!G212*100,"-")) -> 7.569721116 | J214: =IF(OR('Tabel 1 F'!G212<5,'Tabel 2 F'!J214<0.5),"-",IFERROR('Tabel 2 F'!J214/'Tabel 1 F'!G212*100,"-")) -> 6.761701401
A219: Kerteminde
C221: Mænd | F221: Kvinder | I221: I alt
C222: Ledigheds- berørte | D222: Gns. brutto- ledighed | F222: Ledigheds- berørte | G222: Gns. brutto- ledighed | I222: Ledigheds- berørte | J222: Gns. brutto- ledighed
A225: Civ. ing. | C225: =IF(OR('Tabel 1 F'!C223<5,'Tabel 2 F'!C225<0.5),"-",IFERROR('Tabel 2 F'!C225/'Tabel 1 F'!C223*100,"-")) -> - | D225: =IF(OR('Tabel 1 F'!C223<5,'Tabel 2 F'!D225<0.5),"-",IFERROR('Tabel 2 F'!D225/'Tabel 1 F'!C223*100,"-")) -> - | F225: =IF(OR('Tabel 1 F'!E223<5,'Tabel 2 F'!F225<0.5),"-",IFERROR('Tabel 2 F'!F225/'Tabel 1 F'!E223*100,"-")) -> - | G225: =IF(OR('Tabel 1 F'!E223<5,'Tabel 2 F'!G225<0.5),"-",IFERROR('Tabel 2 F'!G225/'Tabel 1 F'!E223*100,"-")) -> - | I225: =IF(OR('Tabel 1 F'!G223<5,'Tabel 2 F'!I225<0.5),"-",IFERROR('Tabel 2 F'!I225/'Tabel 1 F'!G223*100,"-")) -> - | J225: =IF(OR('Tabel 1 F'!G223<5,'Tabel 2 F'!J225<0.5),"-",IFERROR('Tabel 2 F'!J225/'Tabel 1 F'!G223*100,"-")) -> -
A226: Diplom ing. | C226: =IF(OR('Tabel 1 F'!C224<5,'Tabel 2 F'!C226<0.5),"-",IFERROR('Tabel 2 F'!C226/'Tabel 1 F'!C224*100,"-")) -> 3.539823009 | D226: =IF(OR('Tabel 1 F'!C224<5,'Tabel 2 F'!D226<0.5),"-",IFERROR('Tabel 2 F'!D226/'Tabel 1 F'!C224*100,"-")) -> 3.0534368 | F226: =IF(OR('Tabel 1 F'!E224<5,'Tabel 2 F'!F226<0.5),"-",IFERROR('Tabel 2 F'!F226/'Tabel 1 F'!E224*100,"-")) -> 16 | G226: =IF(OR('Tabel 1 F'!E224<5,'Tabel 2 F'!G226<0.5),"-",IFERROR('Tabel 2 F'!G226/'Tabel 1 F'!E224*100,"-")) -> 15.62277802 | I226: =IF(OR('Tabel 1 F'!G224<5,'Tabel 2 F'!I226<0.5),"-",IFERROR('Tabel 2 F'!I226/'Tabel 1 F'!G224*100,"-")) -> 5.797101449 | J226: =IF(OR('Tabel 1 F'!G224<5,'Tabel 2 F'!J226<0.5),"-",IFERROR('Tabel 2 F'!J226/'Tabel 1 F'!G224*100,"-")) -> 5.330491369
A227: Cand. Scient. Tek. | C227: =IF(OR('Tabel 1 F'!C225<5,'Tabel 2 F'!C227<0.5),"-",IFERROR('Tabel 2 F'!C227/'Tabel 1 F'!C225*100,"-")) -> 10 | D227: =IF(OR('Tabel 1 F'!C225<5,'Tabel 2 F'!D227<0.5),"-",IFERROR('Tabel 2 F'!D227/'Tabel 1 F'!C225*100,"-")) -> 9.998128859 | F227: =IF(OR('Tabel 1 F'!E225<5,'Tabel 2 F'!F227<0.5),"-",IFERROR('Tabel 2 F'!F227/'Tabel 1 F'!E225*100,"-")) -> - | G227: =IF(OR('Tabel 1 F'!E225<5,'Tabel 2 F'!G227<0.5),"-",IFERROR('Tabel 2 F'!G227/'Tabel 1 F'!E225*100,"-")) -> - | I227: =IF(OR('Tabel 1 F'!G225<5,'Tabel 2 F'!I227<0.5),"-",IFERROR('Tabel 2 F'!I227/'Tabel 1 F'!G225*100,"-")) -> 5.882352941 | J227: =IF(OR('Tabel 1 F'!G225<5,'Tabel 2 F'!J227<0.5),"-",IFERROR('Tabel 2 F'!J227/'Tabel 1 F'!G225*100,"-")) -> 5.88125227
A228: MA. Hum. | C228: =IF(OR('Tabel 1 F'!C226<5,'Tabel 2 F'!C228<0.5),"-",IFERROR('Tabel 2 F'!C228/'Tabel 1 F'!C226*100,"-")) -> 7.692307692 | D228: =IF(OR('Tabel 1 F'!C226<5,'Tabel 2 F'!D228<0.5),"-",IFERROR('Tabel 2 F'!D228/'Tabel 1 F'!C226*100,"-")) -> 7.335831386 | F228: =IF(OR('Tabel 1 F'!E226<5,'Tabel 2 F'!F228<0.5),"-",IFERROR('Tabel 2 F'!F228/'Tabel 1 F'!E226*100,"-")) -> 8.219178082 | G228: =IF(OR('Tabel 1 F'!E226<5,'Tabel 2 F'!G228<0.5),"-",IFERROR('Tabel 2 F'!G228/'Tabel 1 F'!E226*100,"-")) -> 7.095810097 | I228: =IF(OR('Tabel 1 F'!G226<5,'Tabel 2 F'!I228<0.5),"-",IFERROR('Tabel 2 F'!I228/'Tabel 1 F'!G226*100,"-")) -> 8.080808081 | J228: =IF(OR('Tabel 1 F'!G226<5,'Tabel 2 F'!J228<0.5),"-",IFERROR('Tabel 2 F'!J228/'Tabel 1 F'!G226*100,"-")) -> 7.158845991
A229: MA. Nat. | C229: =IF(OR('Tabel 1 F'!C227<5,'Tabel 2 F'!C229<0.5),"-",IFERROR('Tabel 2 F'!C229/'Tabel 1 F'!C227*100,"-")) -> - | D229: =IF(OR('Tabel 1 F'!C227<5,'Tabel 2 F'!D229<0.5),"-",IFERROR('Tabel 2 F'!D229/'Tabel 1 F'!C227*100,"-")) -> - | F229: =IF(OR('Tabel 1 F'!E227<5,'Tabel 2 F'!F229<0.5),"-",IFERROR('Tabel 2 F'!F229/'Tabel 1 F'!E227*100,"-")) -> - | G229: =IF(OR('Tabel 1 F'!E227<5,'Tabel 2 F'!G229<0.5),"-",IFERROR('Tabel 2 F'!G229/'Tabel 1 F'!E227*100,"-")) -> - | I229: =IF(OR('Tabel 1 F'!G227<5,'Tabel 2 F'!I229<0.5),"-",IFERROR('Tabel 2 F'!I229/'Tabel 1 F'!G227*100,"-")) -> - | J229: =IF(OR('Tabel 1 F'!G227<5,'Tabel 2 F'!J229<0.5),"-",IFERROR('Tabel 2 F'!J229/'Tabel 1 F'!G227*100,"-")) -> -
A230: MA. Ph.d. | C230: =IF(OR('Tabel 1 F'!C228<5,'Tabel 2 F'!C230<0.5),"-",IFERROR('Tabel 2 F'!C230/'Tabel 1 F'!C228*100,"-")) -> - | D230: =IF(OR('Tabel 1 F'!C228<5,'Tabel 2 F'!D230<0.5),"-",IFERROR('Tabel 2 F'!D230/'Tabel 1 F'!C228*100,"-")) -> - | F230: =IF(OR('Tabel 1 F'!E228<5,'Tabel 2 F'!F230<0.5),"-",IFERROR('Tabel 2 F'!F230/'Tabel 1 F'!E228*100,"-")) -> - | G230: =IF(OR('Tabel 1 F'!E228<5,'Tabel 2 F'!G230<0.5),"-",IFERROR('Tabel 2 F'!G230/'Tabel 1 F'!E228*100,"-")) -> - | I230: =IF(OR('Tabel 1 F'!G228<5,'Tabel 2 F'!I230<0.5),"-",IFERROR('Tabel 2 F'!I230/'Tabel 1 F'!G228*100,"-")) -> - | J230: =IF(OR('Tabel 1 F'!G228<5,'Tabel 2 F'!J230<0.5),"-",IFERROR('Tabel 2 F'!J230/'Tabel 1 F'!G228*100,"-")) -> -
A231: MA. Samf. | C231: =IF(OR('Tabel 1 F'!C229<5,'Tabel 2 F'!C231<0.5),"-",IFERROR('Tabel 2 F'!C231/'Tabel 1 F'!C229*100,"-")) -> - | D231: =IF(OR('Tabel 1 F'!C229<5,'Tabel 2 F'!D231<0.5),"-",IFERROR('Tabel 2 F'!D231/'Tabel 1 F'!C229*100,"-")) -> - | F231: =IF(OR('Tabel 1 F'!E229<5,'Tabel 2 F'!F231<0.5),"-",IFERROR('Tabel 2 F'!F231/'Tabel 1 F'!E229*100,"-")) -> - | G231: =IF(OR('Tabel 1 F'!E229<5,'Tabel 2 F'!G231<0.5),"-",IFERROR('Tabel 2 F'!G231/'Tabel 1 F'!E229*100,"-")) -> - | I231: =IF(OR('Tabel 1 F'!G229<5,'Tabel 2 F'!I231<0.5),"-",IFERROR('Tabel 2 F'!I231/'Tabel 1 F'!G229*100,"-")) -> - | J231: =IF(OR('Tabel 1 F'!G229<5,'Tabel 2 F'!J231<0.5),"-",IFERROR('Tabel 2 F'!J231/'Tabel 1 F'!G229*100,"-")) -> -
A232: Øvrige Mag. | C232: =IF(OR('Tabel 1 F'!C230<5,'Tabel 2 F'!C232<0.5),"-",IFERROR('Tabel 2 F'!C232/'Tabel 1 F'!C230*100,"-")) -> - | D232: =IF(OR('Tabel 1 F'!C230<5,'Tabel 2 F'!D232<0.5),"-",IFERROR('Tabel 2 F'!D232/'Tabel 1 F'!C230*100,"-")) -> - | F232: =IF(OR('Tabel 1 F'!E230<5,'Tabel 2 F'!F232<0.5),"-",IFERROR('Tabel 2 F'!F232/'Tabel 1 F'!E230*100,"-")) -> - | G232: =IF(OR('Tabel 1 F'!E230<5,'Tabel 2 F'!G232<0.5),"-",IFERROR('Tabel 2 F'!G232/'Tabel 1 F'!E230*100,"-")) -> - | I232: =IF(OR('Tabel 1 F'!G230<5,'Tabel 2 F'!I232<0.5),"-",IFERROR('Tabel 2 F'!I232/'Tabel 1 F'!G230*100,"-")) -> 16.66666667 | J232: =IF(OR('Tabel 1 F'!G230<5,'Tabel 2 F'!J232<0.5),"-",IFERROR('Tabel 2 F'!J232/'Tabel 1 F'!G230*100,"-")) -> 16.6635481
A233: Agronom | C233: =IF(OR('Tabel 1 F'!C231<5,'Tabel 2 F'!C233<0.5),"-",IFERROR('Tabel 2 F'!C233/'Tabel 1 F'!C231*100,"-")) -> - | D233: =IF(OR('Tabel 1 F'!C231<5,'Tabel 2 F'!D233<0.5),"-",IFERROR('Tabel 2 F'!D233/'Tabel 1 F'!C231*100,"-")) -> - | F233: =IF(OR('Tabel 1 F'!E231<5,'Tabel 2 F'!F233<0.5),"-",IFERROR('Tabel 2 F'!F233/'Tabel 1 F'!E231*100,"-")) -> - | G233: =IF(OR('Tabel 1 F'!E231<5,'Tabel 2 F'!G233<0.5),"-",IFERROR('Tabel 2 F'!G233/'Tabel 1 F'!E231*100,"-")) -> - | I233: =IF(OR('Tabel 1 F'!G231<5,'Tabel 2 F'!I233<0.5),"-",IFERROR('Tabel 2 F'!I233/'Tabel 1 F'!G231*100,"-")) -> - | J233: =IF(OR('Tabel 1 F'!G231<5,'Tabel 2 F'!J233<0.5),"-",IFERROR('Tabel 2 F'!J233/'Tabel 1 F'!G231*100,"-")) -> -
A234: Landsk. Arkt. | C234: =IF(OR('Tabel 1 F'!C232<5,'Tabel 2 F'!C234<0.5),"-",IFERROR('Tabel 2 F'!C234/'Tabel 1 F'!C232*100,"-")) -> - | D234: =IF(OR('Tabel 1 F'!C232<5,'Tabel 2 F'!D234<0.5),"-",IFERROR('Tabel 2 F'!D234/'Tabel 1 F'!C232*100,"-")) -> - | F234: =IF(OR('Tabel 1 F'!E232<5,'Tabel 2 F'!F234<0.5),"-",IFERROR('Tabel 2 F'!F234/'Tabel 1 F'!E232*100,"-")) -> - | G234: =IF(OR('Tabel 1 F'!E232<5,'Tabel 2 F'!G234<0.5),"-",IFERROR('Tabel 2 F'!G234/'Tabel 1 F'!E232*100,"-")) -> - | I234: =IF(OR('Tabel 1 F'!G232<5,'Tabel 2 F'!I234<0.5),"-",IFERROR('Tabel 2 F'!I234/'Tabel 1 F'!G232*100,"-")) -> - | J234: =IF(OR('Tabel 1 F'!G232<5,'Tabel 2 F'!J234<0.5),"-",IFERROR('Tabel 2 F'!J234/'Tabel 1 F'!G232*100,"-")) -> -
A235: Hortonom | C235: =IF(OR('Tabel 1 F'!C233<5,'Tabel 2 F'!C235<0.5),"-",IFERROR('Tabel 2 F'!C235/'Tabel 1 F'!C233*100,"-")) -> - | D235: =IF(OR('Tabel 1 F'!C233<5,'Tabel 2 F'!D235<0.5),"-",IFERROR('Tabel 2 F'!D235/'Tabel 1 F'!C233*100,"-")) -> - | F235: =IF(OR('Tabel 1 F'!E233<5,'Tabel 2 F'!F235<0.5),"-",IFERROR('Tabel 2 F'!F235/'Tabel 1 F'!E233*100,"-")) -> - | G235: =IF(OR('Tabel 1 F'!E233<5,'Tabel 2 F'!G235<0.5),"-",IFERROR('Tabel 2 F'!G235/'Tabel 1 F'!E233*100,"-")) -> - | I235: =IF(OR('Tabel 1 F'!G233<5,'Tabel 2 F'!I235<0.5),"-",IFERROR('Tabel 2 F'!I235/'Tabel 1 F'!G233*100,"-")) -> - | J235: =IF(OR('Tabel 1 F'!G233<5,'Tabel 2 F'!J235<0.5),"-",IFERROR('Tabel 2 F'!J235/'Tabel 1 F'!G233*100,"-")) -> -
A236: Forstkand. | C236: =IF(OR('Tabel 1 F'!C234<5,'Tabel 2 F'!C236<0.5),"-",IFERROR('Tabel 2 F'!C236/'Tabel 1 F'!C234*100,"-")) -> - | D236: =IF(OR('Tabel 1 F'!C234<5,'Tabel 2 F'!D236<0.5),"-",IFERROR('Tabel 2 F'!D236/'Tabel 1 F'!C234*100,"-")) -> - | F236: =IF(OR('Tabel 1 F'!E234<5,'Tabel 2 F'!F236<0.5),"-",IFERROR('Tabel 2 F'!F236/'Tabel 1 F'!E234*100,"-")) -> - | G236: =IF(OR('Tabel 1 F'!E234<5,'Tabel 2 F'!G236<0.5),"-",IFERROR('Tabel 2 F'!G236/'Tabel 1 F'!E234*100,"-")) -> - | I236: =IF(OR('Tabel 1 F'!G234<5,'Tabel 2 F'!I236<0.5),"-",IFERROR('Tabel 2 F'!I236/'Tabel 1 F'!G234*100,"-")) -> - | J236: =IF(OR('Tabel 1 F'!G234<5,'Tabel 2 F'!J236<0.5),"-",IFERROR('Tabel 2 F'!J236/'Tabel 1 F'!G234*100,"-")) -> -
A237: Jordbrugsakad. | C237: =IF(OR('Tabel 1 F'!C235<5,'Tabel 2 F'!C237<0.5),"-",IFERROR('Tabel 2 F'!C237/'Tabel 1 F'!C235*100,"-")) -> - | D237: =IF(OR('Tabel 1 F'!C235<5,'Tabel 2 F'!D237<0.5),"-",IFERROR('Tabel 2 F'!D237/'Tabel 1 F'!C235*100,"-")) -> - | F237: =IF(OR('Tabel 1 F'!E235<5,'Tabel 2 F'!F237<0.5),"-",IFERROR('Tabel 2 F'!F237/'Tabel 1 F'!E235*100,"-")) -> - | G237: =IF(OR('Tabel 1 F'!E235<5,'Tabel 2 F'!G237<0.5),"-",IFERROR('Tabel 2 F'!G237/'Tabel 1 F'!E235*100,"-")) -> - | I237: =IF(OR('Tabel 1 F'!G235<5,'Tabel 2 F'!I237<0.5),"-",IFERROR('Tabel 2 F'!I237/'Tabel 1 F'!G235*100,"-")) -> - | J237: =IF(OR('Tabel 1 F'!G235<5,'Tabel 2 F'!J237<0.5),"-",IFERROR('Tabel 2 F'!J237/'Tabel 1 F'!G235*100,"-")) -> -
A238: Mejeriing. | C238: =IF(OR('Tabel 1 F'!C236<5,'Tabel 2 F'!C238<0.5),"-",IFERROR('Tabel 2 F'!C238/'Tabel 1 F'!C236*100,"-")) -> - | D238: =IF(OR('Tabel 1 F'!C236<5,'Tabel 2 F'!D238<0.5),"-",IFERROR('Tabel 2 F'!D238/'Tabel 1 F'!C236*100,"-")) -> - | F238: =IF(OR('Tabel 1 F'!E236<5,'Tabel 2 F'!F238<0.5),"-",IFERROR('Tabel 2 F'!F238/'Tabel 1 F'!E236*100,"-")) -> - | G238: =IF(OR('Tabel 1 F'!E236<5,'Tabel 2 F'!G238<0.5),"-",IFERROR('Tabel 2 F'!G238/'Tabel 1 F'!E236*100,"-")) -> - | I238: =IF(OR('Tabel 1 F'!G236<5,'Tabel 2 F'!I238<0.5),"-",IFERROR('Tabel 2 F'!I238/'Tabel 1 F'!G236*100,"-")) -> - | J238: =IF(OR('Tabel 1 F'!G236<5,'Tabel 2 F'!J238<0.5),"-",IFERROR('Tabel 2 F'!J238/'Tabel 1 F'!G236*100,"-")) -> -
A239: Levn.m.kand. | C239: =IF(OR('Tabel 1 F'!C237<5,'Tabel 2 F'!C239<0.5),"-",IFERROR('Tabel 2 F'!C239/'Tabel 1 F'!C237*100,"-")) -> - | D239: =IF(OR('Tabel 1 F'!C237<5,'Tabel 2 F'!D239<0.5),"-",IFERROR('Tabel 2 F'!D239/'Tabel 1 F'!C237*100,"-")) -> - | F239: =IF(OR('Tabel 1 F'!E237<5,'Tabel 2 F'!F239<0.5),"-",IFERROR('Tabel 2 F'!F239/'Tabel 1 F'!E237*100,"-")) -> - | G239: =IF(OR('Tabel 1 F'!E237<5,'Tabel 2 F'!G239<0.5),"-",IFERROR('Tabel 2 F'!G239/'Tabel 1 F'!E237*100,"-")) -> - | I239: =IF(OR('Tabel 1 F'!G237<5,'Tabel 2 F'!I239<0.5),"-",IFERROR('Tabel 2 F'!I239/'Tabel 1 F'!G237*100,"-")) -> - | J239: =IF(OR('Tabel 1 F'!G237<5,'Tabel 2 F'!J239<0.5),"-",IFERROR('Tabel 2 F'!J239/'Tabel 1 F'!G237*100,"-")) -> -
A240: Dyrlæge | C240: =IF(OR('Tabel 1 F'!C238<5,'Tabel 2 F'!C240<0.5),"-",IFERROR('Tabel 2 F'!C240/'Tabel 1 F'!C238*100,"-")) -> - | D240: =IF(OR('Tabel 1 F'!C238<5,'Tabel 2 F'!D240<0.5),"-",IFERROR('Tabel 2 F'!D240/'Tabel 1 F'!C238*100,"-")) -> - | F240: =IF(OR('Tabel 1 F'!E238<5,'Tabel 2 F'!F240<0.5),"-",IFERROR('Tabel 2 F'!F240/'Tabel 1 F'!E238*100,"-")) -> - | G240: =IF(OR('Tabel 1 F'!E238<5,'Tabel 2 F'!G240<0.5),"-",IFERROR('Tabel 2 F'!G240/'Tabel 1 F'!E238*100,"-")) -> - | I240: =IF(OR('Tabel 1 F'!G238<5,'Tabel 2 F'!I240<0.5),"-",IFERROR('Tabel 2 F'!I240/'Tabel 1 F'!G238*100,"-")) -> - | J240: =IF(OR('Tabel 1 F'!G238<5,'Tabel 2 F'!J240<0.5),"-",IFERROR('Tabel 2 F'!J240/'Tabel 1 F'!G238*100,"-")) -> -
... 296 more rows

Sheet Tabel 4F F
A1: Tabel 4. Antal forsikrede - aldersfordelt
A3: Fyn
C5: Under 30 år | D5: 30 - 39 år | E5: 40 - 49 år | F5: 50 - 59 år | G5: Over 60 år | I5: I alt
A7: Civ. ing. | C7: 467 | D7: 494 | E7: 303 | F7: 152 | G7: 45 | I7: 1461
A8: Diplom ing. | C8: 359 | D8: 650 | E8: 795 | F8: 1001 | G8: 339 | I8: 3144
A9: Cand. Scient. Tek. | C9: 520 | D9: 566 | E9: 131 | F9: 51 | G9: 5 | I9: 1273
A10: MA. Hum. | C10: 543 | D10: 1044 | E10: 1098 | F10: 464 | G10: 182 | I10: 3331
A11: MA. Nat. | C11: 132 | D11: 275 | E11: 393 | F11: 276 | G11: 110 | I11: 1186
A12: MA. Ph.d. | C12: 3 | D12: 41 | E12: 67 | F12: 39 | G12: 8 | I12: 158
A13: MA. Samf. | C13: 47 | D13: 108 | E13: 25 | F13: 10 | G13: 1 | I13: 191
A14: Øvrige Mag. | C14: 49 | D14: 47 | E14: 58 | F14: 63 | G14: 31 | I14: 248
A15: Agronom | C15: 3 | D15: 17 | E15: 40 | F15: 58 | G15: 32 | I15: 150
A16: Landsk. Arkt. | C16: 2 | D16: 8 | E16: 11 | F16: 9 | G16: 0 | I16: 30
A17: Hortonom | C17: 0 | D17: 1 | E17: 7 | F17: 19 | G17: 11 | I17: 38
A18: Forstkand. | C18: 2 | D18: 7 | E18: 9 | F18: 4 | G18: 4 | I18: 26
A19: Jordbrugsakad. | C19: 7 | D19: 33 | E19: 67 | F19: 90 | G19: 47 | I19: 244
A20: Mejeriing. | C20: 0 | D20: 1 | E20: 4 | F20: 10 | G20: 0 | I20: 15
A21: Levn.m.kand. | C21: 3 | D21: 10 | E21: 1 | F21: 0 | G21: 0 | I21: 14
A22: Dyrlæge | C22: 14 | D22: 47 | E22: 37 | F22: 33 | G22: 3 | I22: 134
A23: Farmaceut | C23: 100 | D23: 100 | E23: 55 | F23: 19 | G23: 9 | I23: 283
A24: Læge | C24: 232 | D24: 554 | E24: 274 | F24: 173 | G24: 64 | I24: 1297
A25: Tandlæge | C25: 25 | D25: 32 | E25: 25 | F25: 20 | G25: 12 | I25: 114
A26: Arkitekt | C26: 5 | D26: 26 | E26: 47 | F26: 34 | G26: 26 | I26: 138
A27: Landinspek. | C27: 6 | D27: 11 | E27: 15 | F27: 21 | G27: 11 | I27: 64
A28: Bibliotekar | C28: 5 | D28: 40 | E28: 64 | F28: 58 | G28: 38 | I28: 205
A29: Musikudd. | C29: 0 | D29: 19 | E29: 17 | F29: 33 | G29: 26 | I29: 95
A30: Teolog | C30: 3 | D30: 19 | E30: 36 | F30: 41 | G30: 22 | I30: 121
A31: Psykolog | C31: 148 | D31: 201 | E31: 124 | F31: 63 | G31: 29 | I31: 565
A32: Jurist | C32: 97 | D32: 250 | E32: 158 | F32: 80 | G32: 35 | I32: 620
A33: Økonom | C33: 151 | D33: 160 | E33: 149 | F33: 114 | G33: 22 | I33: 596
A34: Samf. Adm. | C34: 295 | D34: 571 | E34: 371 | F34: 215 | G34: 47 | I34: 1499
A35: Cand. Merc. | C35: 448 | D35: 710 | E35: 339 | F35: 272 | G35: 48 | I35: 1817
A36: HA | C36: 131 | D36: 85 | E36: 62 | F36: 111 | G36: 43 | I36: 432
A37: HD | C37: 40 | D37: 56 | E37: 51 | F37: 111 | G37: 44 | I37: 302
A38: Komm. og Sprog | C38: 86 | D38: 116 | E38: 111 | F38: 88 | G38: 39 | I38: 440
A39: Bygninskonst. | C39: 147 | D39: 362 | E39: 208 | F39: 100 | G39: 30 | I39: 847
A40: Cand. IT. | C40: 46 | D40: 81 | E40: 54 | F40: 3 | G40: 1 | I40: 185
A41: Bac. Samf. | C41: 27 | D41: 19 | E41: 16 | F41: 12 | G41: 2 | I41: 76
A42: Bac. Hum. | C42: 125 | D42: 88 | E42: 77 | F42: 50 | G42: 12 | I42: 352
A43: Bac. Nat. | C43: 88 | D43: 54 | E43: 24 | F43: 14 | G43: 2 | I43: 182
A44: Andre | C44: 241 | D44: 365 | E44: 310 | F44: 249 | G44: 134 | I44: 1299
A46: Total | C46: 4590 | D46: 7235 | E46: 5566 | F46: 4070 | G46: 1467 | I46: 22928
A48: Ingeniører i alt | C48: 826 | D48: 1144 | E48: 1098 | F48: 1153 | G48: 384 | I48: 4605
A49: Magistre i alt | C49: 774 | D49: 1515 | E49: 1641 | F49: 852 | G49: 332 | I49: 5114
A50: DJØF'ere i alt | C50: 1122 | D50: 1776 | E50: 1079 | F50: 792 | G50: 195 | I50: 4964
A57: Middelfart
C59: Under 30 år | D59: 30 - 39 år | E59: 40 - 49 år | F59: 50 - 59 år | G59: Over 60 år | I59: I alt
A61: Civ. ing. | C61: 8 | D61: 29 | E61: 41 | F61: 19 | G61: 7 | I61: 104
A62: Diplom ing. | C62: 16 | D62: 55 | E62: 74 | F62: 111 | G62: 36 | I62: 292
A63: Cand. Scient. Tek. | C63: 14 | D63: 27 | E63: 18 | F63: 5 | G63: 0 | I63: 64
A64: MA. Hum. | C64: 17 | D64: 52 | E64: 64 | F64: 26 | G64: 12 | I64: 171
A65: MA. Nat. | C65: 8 | D65: 11 | E65: 28 | F65: 18 | G65: 5 | I65: 70
A66: MA. Ph.d. | C66: 0 | D66: 1 | E66: 3 | F66: 2 | G66: 0 | I66: 6
A67: MA. Samf. | C67: 3 | D67: 10 | E67: 1 | F67: 1 | G67: 0 | I67: 15
A68: Øvrige Mag. | C68: 0 | D68: 3 | E68: 3 | F68: 2 | G68: 4 | I68: 12
A69: Agronom | C69: 1 | D69: 0 | E69: 9 | F69: 14 | G69: 7 | I69: 31
A70: Landsk. Arkt. | C70: 0 | D70: 0 | E70: 1 | F70: 1 | G70: 0 | I70: 2
A71: Hortonom | C71: 0 | D71: 0 | E71: 1 | F71: 2 | G71: 1 | I71: 4
A72: Forstkand. | C72: 0 | D72: 0 | E72: 1 | F72: 0 | G72: 0 | I72: 1
A73: Jordbrugsakad. | C73: 1 | D73: 0 | E73: 12 | F73: 17 | G73: 8 | I73: 38
A74: Mejeriing. | C74: 0 | D74: 0 | E74: 1 | F74: 3 | G74: 0 | I74: 4
A75: Levn.m.kand. | C75: 0 | D75: 1 | E75: 0 | F75: 0 | G75: 0 | I75: 1
A76: Dyrlæge | C76: 3 | D76: 7 | E76: 6 | F76: 2 | G76: 0 | I76: 18
A77: Farmaceut | C77: 2 | D77: 4 | E77: 4 | F77: 0 | G77: 1 | I77: 11
A78: Læge | C78: 7 | D78: 53 | E78: 27 | F78: 14 | G78: 5 | I78: 106
A79: Tandlæge | C79: 1 | D79: 1 | E79: 4 | F79: 3 | G79: 1 | I79: 10
A80: Arkitekt | C80: 1 | D80: 1 | E80: 6 | F80: 5 | G80: 2 | I80: 15
A81: Landinspek. | C81: 0 | D81: 1 | E81: 3 | F81: 7 | G81: 1 | I81: 12
A82: Bibliotekar | C82: 0 | D82: 4 | E82: 8 | F82: 2 | G82: 5 | I82: 19
A83: Musikudd. | C83: 0 | D83: 1 | E83: 1 | F83: 1 | G83: 3 | I83: 6
A84: Teolog | C84: 0 | D84: 2 | E84: 5 | F84: 5 | G84: 2 | I84: 14
A85: Psykolog | C85: 2 | D85: 14 | E85: 15 | F85: 8 | G85: 6 | I85: 45
A86: Jurist | C86: 4 | D86: 16 | E86: 13 | F86: 2 | G86: 3 | I86: 38
A87: Økonom | C87: 7 | D87: 11 | E87: 17 | F87: 13 | G87: 1 | I87: 49
A88: Samf. Adm. | C88: 3 | D88: 36 | E88: 30 | F88: 17 | G88: 2 | I88: 88
A89: Cand. Merc. | C89: 12 | D89: 56 | E89: 42 | F89: 29 | G89: 6 | I89: 145
A90: HA | C90: 3 | D90: 6 | E90: 8 | F90: 14 | G90: 3 | I90: 34
A91: HD | C91: 2 | D91: 3 | E91: 5 | F91: 7 | G91: 3 | I91: 20
A92: Komm. og Sprog | C92: 3 | D92: 5 | E92: 12 | F92: 6 | G92: 7 | I92: 33
A93: Bygningskonst. | C93: 7 | D93: 32 | E93: 19 | F93: 10 | G93: 1 | I93: 69
A94: Cand. IT. | C94: 2 | D94: 7 | E94: 3 | F94: 0 | G94: 0 | I94: 12
A95: Bac. Samf. | C95: 1 | D95: 1 | E95: 1 | F95: 1 | G95: 1 | I95: 5
A96: Bac. Hum. | C96: 3 | D96: 2 | E96: 3 | F96: 3 | G96: 0 | I96: 11
A97: Bac. Nat. | C97: 2 | D97: 6 | E97: 1 | F97: 1 | G97: 0 | I97: 10
A98: Andre | C98: 9 | D98: 16 | E98: 21 | F98: 20 | G98: 12 | I98: 78
A100: Total | C100: 141 | D100: 474 | E100: 499 | F100: 374 | G100: 137 | I100: 1625
A102: Ingeniører i alt | C102: 24 | D102: 84 | E102: 115 | F102: 130 | G102: 43 | I102: 396
A103: Magistre i alt | C103: 28 | D103: 77 | E103: 99 | F103: 49 | G103: 21 | I103: 274
A104: DJØF'ere i alt | C104: 29 | D104: 125 | E104: 110 | F104: 75 | G104: 15 | I104: 354
A111: Assens
C113: Under 30 år | D113: 30 - 39 år | E113: 40 - 49 år | F113: 50 - 59 år | G113: Over 60 år | I113: I alt
A115: Civ. ing. | C115: 7 | D115: 27 | E115: 17 | F115: 17 | G115: 3 | I115: 71
A116: Diplom ing. | C116: 6 | D116: 39 | E116: 70 | F116: 96 | G116: 26 | I116: 237
A117: Cand. Scient. Tek. | C117: 8 | D117: 22 | E117: 8 | F117: 2 | G117: 1 | I117: 41
A118: MA. Hum. | C118: 11 | D118: 42 | E118: 69 | F118: 22 | G118: 7 | I118: 151
A119: MA. Nat. | C119: 0 | D119: 15 | E119: 23 | F119: 17 | G119: 5 | I119: 60
A120: MA. Ph.d. | C120: 0 | D120: 0 | E120: 2 | F120: 0 | G120: 0 | I120: 2
A121: MA. Samf. | C121: 0 | D121: 3 | E121: 1 | F121: 1 | G121: 0 | I121: 5
A122: Øvrige Mag. | C122: 0 | D122: 0 | E122: 2 | F122: 2 | G122: 0 | I122: 4
A123: Agronom | C123: 0 | D123: 1 | E123: 6 | F123: 7 | G123: 3 | I123: 17
A124: Landsk. Arkt. | C124: 0 | D124: 3 | E124: 1 | F124: 3 | G124: 0 | I124: 7
A125: Hortonom | C125: 0 | D125: 0 | E125: 0 | F125: 2 | G125: 1 | I125: 3
A126: Forstkand. | C126: 1 | D126: 2 | E126: 2 | F126: 1 | G126: 0 | I126: 6
A127: Jordbrugsakad. | C127: 1 | D127: 6 | E127: 9 | F127: 13 | G127: 4 | I127: 33
A128: Mejeriing. | C128: 0 | D128: 0 | E128: 0 | F128: 1 | G128: 0 | I128: 1
A129: Levn.m.kand. | C129: 0 | D129: 1 | E129: 0 | F129: 0 | G129: 0 | I129: 1
A130: Dyrlæge | C130: 0 | D130: 5 | E130: 8 | F130: 4 | G130: 0 | I130: 17
A131: Farmaceut | C131: 0 | D131: 6 | E131: 5 | F131: 0 | G131: 0 | I131: 11
A132: Læge | C132: 3 | D132: 18 | E132: 10 | F132: 5 | G132: 0 | I132: 36
A133: Tandlæge | C133: 0 | D133: 2 | E133: 0 | F133: 2 | G133: 0 | I133: 4
A134: Arkitekt | C134: 0 | D134: 0 | E134: 2 | F134: 1 | G134: 1 | I134: 4
A135: Landinspek. | C135: 0 | D135: 1 | E135: 1 | F135: 1 | G135: 0 | I135: 3
A136: Bibliotekar | C136: 1 | D136: 1 | E136: 6 | F136: 7 | G136: 1 | I136: 16
A137: Musikudd. | C137: 0 | D137: 1 | E137: 1 | F137: 7 | G137: 2 | I137: 11
A138: Teolog | C138: 0 | D138: 2 | E138: 4 | F138: 3 | G138: 3 | I138: 12
A139: Psykolog | C139: 3 | D139: 6 | E139: 10 | F139: 1 | G139: 4 | I139: 24
A140: Jurist | C140: 0 | D140: 8 | E140: 8 | F140: 6 | G140: 2 | I140: 24
A141: Økonom | C141: 3 | D141: 4 | E141: 7 | F141: 7 | G141: 0 | I141: 21
A142: Samf. Adm. | C142: 0 | D142: 18 | E142: 18 | F142: 16 | G142: 6 | I142: 58
A143: Cand. Merc. | C143: 5 | D143: 15 | E143: 16 | F143: 17 | G143: 4 | I143: 57
A144: HA | C144: 1 | D144: 4 | E144: 3 | F144: 10 | G144: 3 | I144: 21
A145: HD | C145: 2 | D145: 2 | E145: 5 | F145: 8 | G145: 2 | I145: 19
A146: Komm. og Sprog | C146: 3 | D146: 3 | E146: 5 | F146: 6 | G146: 3 | I146: 20
A147: Bygningskonst. | C147: 4 | D147: 19 | E147: 13 | F147: 12 | G147: 3 | I147: 51
A148: Cand. IT. | C148: 4 | D148: 3 | E148: 1 | F148: 0 | G148: 0 | I148: 8
A149: Bac. Samf. | C149: 0 | D149: 1 | E149: 2 | F149: 1 | G149: 0 | I149: 4
A150: Bac. Hum. | C150: 4 | D150: 5 | E150: 3 | F150: 4 | G150: 0 | I150: 16
A151: Bac. Nat. | C151: 1 | D151: 3 | E151: 1 | F151: 0 | G151: 0 | I151: 5
A152: Andre | C152: 7 | D152: 22 | E152: 16 | F152: 19 | G152: 9 | I152: 73
A154: Total | C154: 74 | D154: 304 | E154: 346 | F154: 308 | G154: 89 | I154: 1121
A156: Ingeniører i alt | C156: 13 | D156: 66 | E156: 87 | F156: 113 | G156: 29 | I156: 308
A157: Magistre i alt | C157: 11 | D157: 60 | E157: 97 | F157: 42 | G157: 12 | I157: 222
A158: DJØF'ere i alt | C158: 9 | D158: 49 | E158: 52 | F158: 56 | G158: 15 | I158: 181
A165: Faaborg-Midtfyn
C167: Under 30 år | D167: 30 - 39 år | E167: 40 - 49 år | F167: 50 - 59 år | G167: Over 60 år | I167: I alt
A169: Civ. ing. | C169: 8 | D169: 38 | E169: 23 | F169: 6 | G169: 4 | I169: 79
A170: Diplom ing. | C170: 14 | D170: 61 | E170: 74 | F170: 94 | G170: 34 | I170: 277
A171: Cand. Scient. Tek. | C171: 14 | D171: 40 | E171: 4 | F171: 7 | G171: 1 | I171: 66
A172: MA. Hum. | C172: 11 | D172: 65 | E172: 68 | F172: 22 | G172: 16 | I172: 182
A173: MA. Nat. | C173: 3 | D173: 13 | E173: 33 | F173: 17 | G173: 6 | I173: 72
A174: MA. Ph.d. | C174: 0 | D174: 2 | E174: 3 | F174: 2 | G174: 0 | I174: 7
A175: MA. Samf. | C175: 3 | D175: 3 | E175: 1 | F175: 0 | G175: 0 | I175: 7
A176: Øvrige Mag. | C176: 3 | D176: 3 | E176: 2 | F176: 7 | G176: 2 | I176: 17
A177: Agronom | C177: 0 | D177: 3 | E177: 2 | F177: 13 | G177: 7 | I177: 25
A178: Landsk. Arkt. | C178: 1 | D178: 0 | E178: 3 | F178: 2 | G178: 0 | I178: 6
A179: Hortonom | C179: 0 | D179: 0 | E179: 0 | F179: 1 | G179: 3 | I179: 4
A180: Forstkand. | C180: 0 | D180: 2 | E180: 1 | F180: 2 | G180: 2 | I180: 7
A181: Jordbrugsakad. | C181: 1 | D181: 5 | E181: 6 | F181: 18 | G181: 12 | I181: 42
A182: Mejeriing. | C182: 0 | D182: 0 | E182: 1 | F182: 2 | G182: 0 | I182: 3
A183: Levn.m.kand. | C183: 1 | D183: 3 | E183: 0 | F183: 0 | G183: 0 | I183: 4
A184: Dyrlæge | C184: 2 | D184: 6 | E184: 2 | F184: 4 | G184: 0 | I184: 14
A185: Farmaceut | C185: 2 | D185: 7 | E185: 7 | F185: 0 | G185: 1 | I185: 17
A186: Læge | C186: 1 | D186: 17 | E186: 17 | F186: 7 | G186: 3 | I186: 45
A187: Tandlæge | C187: 0 | D187: 1 | E187: 1 | F187: 0 | G187: 0 | I187: 2
A188: Arkitekt | C188: 0 | D188: 1 | E188: 4 | F188: 2 | G188: 4 | I188: 11
A189: Landinspek. | C189: 1 | D189: 1 | E189: 0 | F189: 1 | G189: 1 | I189: 4
A190: Bibliotekar | C190: 0 | D190: 1 | E190: 5 | F190: 4 | G190: 2 | I190: 12
A191: Musikudd. | C191: 0 | D191: 2 | E191: 2 | F191: 1 | G191: 4 | I191: 9
A192: Teolog | C192: 1 | D192: 2 | E192: 6 | F192: 4 | G192: 5 | I192: 18
A193: Psykolog | C193: 0 | D193: 11 | E193: 6 | F193: 4 | G193: 0 | I193: 21
A194: Jurist | C194: 3 | D194: 10 | E194: 7 | F194: 7 | G194: 5 | I194: 32
A195: Økonom | C195: 4 | D195: 7 | E195: 7 | F195: 4 | G195: 2 | I195: 24
A196: Samf. Adm. | C196: 9 | D196: 29 | E196: 27 | F196: 19 | G196: 1 | I196: 85
A197: Cand. Merc. | C197: 5 | D197: 38 | E197: 16 | F197: 19 | G197: 3 | I197: 81
A198: HA | C198: 5 | D198: 5 | E198: 4 | F198: 13 | G198: 2 | I198: 29
A199: HD | C199: 0 | D199: 2 | E199: 2 | F199: 16 | G199: 5 | I199: 25
A200: Komm. og Sprog | C200: 1 | D200: 3 | E200: 7 | F200: 4 | G200: 1 | I200: 16
A201: Bygningskonst. | C201: 10 | D201: 23 | E201: 23 | F201: 8 | G201: 8 | I201: 72
A202: Cand. IT. | C202: 0 | D202: 0 | E202: 7 | F202: 1 | G202: 0 | I202: 8
A203: Bac. Samf. | C203: 2 | D203: 3 | E203: 2 | F203: 2 | G203: 0 | I203: 9
A204: Bac. Hum. | C204: 2 | D204: 5 | E204: 6 | F204: 2 | G204: 2 | I204: 17
A205: Bac. Nat. | C205: 5 | D205: 1 | E205: 0 | F205: 2 | G205: 0 | I205: 8
A206: Andre | C206: 10 | D206: 23 | E206: 23 | F206: 25 | G206: 9 | I206: 90
A208: Total | C208: 121 | D208: 431 | E208: 396 | F208: 324 | G208: 133 | I208: 1405
A210: Ingeniører i alt | C210: 22 | D210: 99 | E210: 97 | F210: 100 | G210: 38 | I210: 356
A211: Magistre i alt | C211: 20 | D211: 86 | E211: 107 | F211: 48 | G211: 24 | I211: 285
A212: DJØF'ere i alt | C212: 26 | D212: 89 | E212: 61 | F212: 62 | G212: 13 | I212: 251
A219: Kerteminde
C221: Under 30 år | D221: 30 - 39 år | E221: 40 - 49 år | F221: 50 - 59 år | G221: Over 60 år | I221: I alt
A223: Civ. ing. | C223: 2 | D223: 6 | E223: 14 | F223: 5 | G223: 2 | I223: 29
A224: Diplom ing. | C224: 7 | D224: 18 | E224: 30 | F224: 58 | G224: 25 | I224: 138
A225: Cand. Scient. Tek. | C225: 9 | D225: 18 | E225: 2 | F225: 4 | G225: 1 | I225: 34
A226: MA. Hum. | C226: 6 | D226: 30 | E226: 39 | F226: 16 | G226: 8 | I226: 99
A227: MA. Nat. | C227: 1 | D227: 4 | E227: 10 | F227: 10 | G227: 4 | I227: 29
A228: MA. Ph.d. | C228: 0 | D228: 4 | E228: 1 | F228: 2 | G228: 0 | I228: 7
A229: MA. Samf. | C229: 0 | D229: 3 | E229: 0 | F229: 0 | G229: 0 | I229: 3
A230: Øvrige Mag. | C230: 2 | D230: 1 | E230: 0 | F230: 1 | G230: 2 | I230: 6
A231: Agronom | C231: 0 | D231: 0 | E231: 2 | F231: 1 | G231: 0 | I231: 3
A232: Landsk. Arkt. | C232: 0 | D232: 0 | E232: 0 | F232: 2 | G232: 0 | I232: 2
A233: Hortonom | C233: 0 | D233: 0 | E233: 1 | F233: 2 | G233: 0 | I233: 3
A234: Forstkand. | C234: 0 | D234: 0 | E234: 1 | F234: 0 | G234: 0 | I234: 1
A235: Jordbrugsakad. | C235: 0 | D235: 0 | E235: 4 | F235: 5 | G235: 0 | I235: 9
A236: Mejeriing. | C236: 0 | D236: 0 | E236: 0 | F236: 0 | G236: 0 | I236: 0
A237: Levn.m.kand. | C237: 1 | D237: 0 | E237: 0 | F237: 0 | G237: 0 | I237: 1
A238: Dyrlæge | C238: 0 | D238: 0 | E238: 2 | F238: 0 | G238: 0 | I238: 2
A239: Farmaceut | C239: 1 | D239: 2 | E239: 0 | F239: 1 | G239: 0 | I239: 4
A240: Læge | C240: 0 | D240: 5 | E240: 8 | F240: 3 | G240: 1 | I240: 17
A241: Tandlæge | C241: 0 | D241: 0 | E241: 1 | F241: 0 | G241: 1 | I241: 2
A242: Arkitekt | C242: 1 | D242: 0 | E242: 1 | F242: 1 | G242: 1 | I242: 4
A243: Landinspek. | C243: 0 | D243: 1 | E243: 1 | F243: 2 | G243: 1 | I243: 5
... 285 more rows

Sheet Tabel 4 F
A1: Tabel 4. Ledighedsberørte - aldersfordelt
A3: Fyn
C5: Under 30 år | D5: 30 - 39 år | E5: 40 - 49 år | F5: 50 - 59 år | G5: Over 60 år | I5: I alt
A7: Civ. ing. | C7: 98 | D7: 17 | E7: 13 | F7: 2 | G7: 0 | I7: 130
A8: Diplom ing. | C8: 43 | D8: 13 | E8: 15 | F8: 38 | G8: 15 | I8: 124
A9: Cand. Scient. Tek | C9: 119 | D9: 43 | E9: 3 | F9: 1 | G9: 1 | I9: 167
A10: MA. Hum. | C10: 205 | D10: 143 | E10: 69 | F10: 30 | G10: 22 | I10: 469
A11: MA. Nat. | C11: 30 | D11: 30 | E11: 10 | F11: 8 | G11: 7 | I11: 85
A12: MA. Ph.d. | C12: 1 | D12: 0 | E12: 5 | F12: 1 | G12: 0 | I12: 7
A13: MA. Samf. | C13: 14 | D13: 16 | E13: 3 | F13: 1 | G13: 0 | I13: 34
A14: Øvrige Mag. | C14: 7 | D14: 3 | E14: 1 | F14: 2 | G14: 1 | I14: 14
A15: Agronom | C15: 1 | D15: 0 | E15: 0 | F15: 1 | G15: 2 | I15: 4
A16: Landsk. Arkt. | C16: 0 | D16: 0 | E16: 0 | F16: 0 | G16: 0 | I16: 0
A17: Hortonom | C17: 0 | D17: 0 | E17: 0 | F17: 0 | G17: 2 | I17: 2
A18: Forstkand. | C18: 1 | D18: 0 | E18: 2 | F18: 0 | G18: 0 | I18: 3
A19: Jordbrugsakad. | C19: 2 | D19: 0 | E19: 2 | F19: 1 | G19: 4 | I19: 9
A20: Mejeriing. | C20: 0 | D20: 0 | E20: 0 | F20: 0 | G20: 0 | I20: 0
A21: Levn.m.kand. | C21: 1 | D21: 1 | E21: 0 | F21: 0 | G21: 0 | I21: 2
A22: Dyrlæge | C22: 0 | D22: 1 | E22: 0 | F22: 0 | G22: 1 | I22: 2
A23: Farmaceut | C23: 24 | D23: 7 | E23: 1 | F23: 0 | G23: 1 | I23: 33
A24: Læge | C24: 4 | D24: 4 | E24: 0 | F24: 0 | G24: 0 | I24: 8
A25: Tandlæge | C25: 1 | D25: 0 | E25: 0 | F25: 0 | G25: 1 | I25: 2
A26: Arkitekt | C26: 0 | D26: 0 | E26: 1 | F26: 2 | G26: 1 | I26: 4
A27: Landinspek. | C27: 0 | D27: 0 | E27: 0 | F27: 0 | G27: 0 | I27: 0
A28: Bibliotekar | C28: 0 | D28: 4 | E28: 2 | F28: 2 | G28: 2 | I28: 10
A29: Musikudd. | C29: 0 | D29: 2 | E29: 1 | F29: 0 | G29: 2 | I29: 5
A30: Teolog | C30: 0 | D30: 0 | E30: 0 | F30: 1 | G30: 0 | I30: 1
A31: Psykolog | C31: 24 | D31: 15 | E31: 3 | F31: 1 | G31: 1 | I31: 44
A32: Jurist | C32: 5 | D32: 8 | E32: 3 | F32: 0 | G32: 5 | I32: 21
A33: Økonom | C33: 13 | D33: 6 | E33: 1 | F33: 3 | G33: 0 | I33: 23
A34: Samf. Adm. | C34: 83 | D34: 43 | E34: 20 | F34: 8 | G34: 4 | I34: 158
A35: Cand. Merc. | C35: 84 | D35: 55 | E35: 11 | F35: 12 | G35: 2 | I35: 164
A36: HA | C36: 33 | D36: 8 | E36: 5 | F36: 6 | G36: 4 | I36: 56
A37: HD | C37: 17 | D37: 8 | E37: 2 | F37: 2 | G37: 5 | I37: 34
A38: Komm. og Sprog | C38: 29 | D38: 13 | E38: 5 | F38: 6 | G38: 2 | I38: 55
A39: Bygningskonst. | C39: 23 | D39: 23 | E39: 10 | F39: 5 | G39: 0 | I39: 61
A40: Cand. IT. | C40: 16 | D40: 22 | E40: 3 | F40: 0 | G40: 1 | I40: 42
A41: Bac. Samf. | C41: 10 | D41: 0 | E41: 2 | F41: 0 | G41: 1 | I41: 13
A42: Bac. Hum. | C42: 36 | D42: 17 | E42: 3 | F42: 5 | G42: 2 | I42: 63
A43: Bac. Nat. | C43: 20 | D43: 3 | E43: 2 | F43: 1 | G43: 0 | I43: 26
A44: Andre | C44: 46 | D44: 24 | E44: 23 | F44: 13 | G44: 19 | I44: 125
A46: Total | C46: 988 | D46: 529 | E46: 219 | F46: 151 | G46: 104 | I46: 1991
A48: Ingeniører i alt | C48: 141 | D48: 30 | E48: 28 | F48: 40 | G48: 15 | I48: 254
A49: Magistre i alt | C49: 257 | D49: 192 | E49: 88 | F49: 42 | G49: 30 | I49: 609
A50: DJØF'ere i alt | C50: 218 | D50: 120 | E50: 40 | F50: 29 | G50: 15 | I50: 422
A57: Middelfart
C59: Under 30 år | D59: 30 - 39 år | E59: 40 - 49 år | F59: 50 - 59 år | G59: Over 60 år | I59: I alt
A61: Civ. ing. | C61: 0 | D61: 0 | E61: 0 | F61: 0 | G61: 0 | I61: 0
A62: Diplom ing. | C62: 3 | D62: 2 | E62: 4 | F62: 3 | G62: 2 | I62: 14
A63: Cand. Scient. Tek | C63: 2 | D63: 3 | E63: 1 | F63: 0 | G63: 0 | I63: 6
A64: MA. Hum. | C64: 5 | D64: 3 | E64: 3 | F64: 0 | G64: 1 | I64: 12
A65: MA. Nat. | C65: 0 | D65: 2 | E65: 0 | F65: 1 | G65: 0 | I65: 3
A66: MA. Ph.d. | C66: 0 | D66: 0 | E66: 1 | F66: 0 | G66: 0 | I66: 1
A67: MA. Samf. | C67: 1 | D67: 2 | E67: 0 | F67: 0 | G67: 0 | I67: 3
A68: Øvrige Mag. | C68: 0 | D68: 0 | E68: 0 | F68: 0 | G68: 0 | I68: 0
A69: Agronom | C69: 0 | D69: 0 | E69: 0 | F69: 0 | G69: 0 | I69: 0
A70: Landsk. Arkt. | C70: 0 | D70: 0 | E70: 0 | F70: 0 | G70: 0 | I70: 0
A71: Hortonom | C71: 0 | D71: 0 | E71: 0 | F71: 0 | G71: 0 | I71: 0
A72: Forstkand. | C72: 0 | D72: 0 | E72: 1 | F72: 0 | G72: 0 | I72: 1
A73: Jordbrugsakad. | C73: 0 | D73: 0 | E73: 1 | F73: 0 | G73: 0 | I73: 1
A74: Mejeriing. | C74: 0 | D74: 0 | E74: 0 | F74: 0 | G74: 0 | I74: 0
A75: Levn.m.kand. | C75: 0 | D75: 0 | E75: 0 | F75: 0 | G75: 0 | I75: 0
A76: Dyrlæge | C76: 0 | D76: 1 | E76: 0 | F76: 0 | G76: 0 | I76: 1
A77: Farmaceut | C77: 0 | D77: 0 | E77: 1 | F77: 0 | G77: 0 | I77: 1
A78: Læge | C78: 0 | D78: 1 | E78: 0 | F78: 0 | G78: 0 | I78: 1
A79: Tandlæge | C79: 0 | D79: 0 | E79: 0 | F79: 0 | G79: 0 | I79: 0
A80: Arkitekt | C80: 0 | D80: 0 | E80: 0 | F80: 0 | G80: 0 | I80: 0
A81: Landinspek. | C81: 0 | D81: 0 | E81: 0 | F81: 0 | G81: 0 | I81: 0
A82: Bibliotekar | C82: 0 | D82: 1 | E82: 1 | F82: 0 | G82: 1 | I82: 3
A83: Musikudd. | C83: 0 | D83: 0 | E83: 0 | F83: 0 | G83: 0 | I83: 0
A84: Teolog | C84: 0 | D84: 0 | E84: 0 | F84: 0 | G84: 0 | I84: 0
A85: Psykolog | C85: 0 | D85: 0 | E85: 0 | F85: 0 | G85: 0 | I85: 0
A86: Jurist | C86: 0 | D86: 0 | E86: 0 | F86: 0 | G86: 0 | I86: 0
A87: Økonom | C87: 0 | D87: 0 | E87: 0 | F87: 0 | G87: 0 | I87: 0
A88: Samf. Adm. | C88: 0 | D88: 0 | E88: 0 | F88: 0 | G88: 0 | I88: 0
A89: Cand. Merc. | C89: 0 | D89: 4 | E89: 1 | F89: 0 | G89: 0 | I89: 5
A90: HA | C90: 0 | D90: 0 | E90: 1 | F90: 1 | G90: 0 | I90: 2
A91: HD | C91: 0 | D91: 0 | E91: 0 | F91: 0 | G91: 0 | I91: 0
A92: Komm. og Sprog | C92: 0 | D92: 0 | E92: 0 | F92: 0 | G92: 0 | I92: 0
A93: Bygningskonst. | C93: 1 | D93: 1 | E93: 0 | F93: 2 | G93: 0 | I93: 4
A94: Cand. IT. | C94: 0 | D94: 4 | E94: 0 | F94: 0 | G94: 0 | I94: 4
A95: Bac. Samf. | C95: 0 | D95: 0 | E95: 0 | F95: 0 | G95: 0 | I95: 0
A96: Bac. Hum. | C96: 0 | D96: 0 | E96: 0 | F96: 0 | G96: 0 | I96: 0
A97: Bac. Nat. | C97: 1 | D97: 0 | E97: 0 | F97: 0 | G97: 0 | I97: 1
A98: Andre | C98: 0 | D98: 0 | E98: 2 | F98: 1 | G98: 1 | I98: 4
A100: Total | C100: 13 | D100: 24 | E100: 16 | F100: 8 | G100: 5 | I100: 66
A102: Ingeniører i alt | C102: 3 | D102: 2 | E102: 4 | F102: 3 | G102: 2 | I102: 14
A103: Magistre i alt | C103: 6 | D103: 7 | E103: 4 | F103: 1 | G103: 1 | I103: 19
A104: DJØF'ere i alt | C104: 0 | D104: 4 | E104: 2 | F104: 1 | G104: 0 | I104: 7
A111: Assens
C113: Under 30 år | D113: 30 - 39 år | E113: 40 - 49 år | F113: 50 - 59 år | G113: Over 60 år | I113: I alt
A115: Civ. ing. | C115: 1 | D115: 2 | E115: 0 | F115: 0 | G115: 0 | I115: 3
A116: Diplom ing. | C116: 1 | D116: 1 | E116: 3 | F116: 3 | G116: 1 | I116: 9
A117: Cand. Scient. Tek | C117: 2 | D117: 2 | E117: 0 | F117: 0 | G117: 0 | I117: 4
A118: MA. Hum. | C118: 6 | D118: 6 | E118: 3 | F118: 2 | G118: 1 | I118: 18
A119: MA. Nat. | C119: 0 | D119: 2 | E119: 2 | F119: 0 | G119: 0 | I119: 4
A120: MA. Ph.d. | C120: 0 | D120: 0 | E120: 0 | F120: 0 | G120: 0 | I120: 0
A121: MA. Samf. | C121: 0 | D121: 1 | E121: 0 | F121: 0 | G121: 0 | I121: 1
A122: Øvrige Mag. | C122: 0 | D122: 0 | E122: 0 | F122: 0 | G122: 0 | I122: 0
A123: Agronom | C123: 0 | D123: 0 | E123: 0 | F123: 0 | G123: 0 | I123: 0
A124: Landsk. Arkt. | C124: 0 | D124: 0 | E124: 0 | F124: 0 | G124: 0 | I124: 0
A125: Hortonom | C125: 0 | D125: 0 | E125: 0 | F125: 0 | G125: 0 | I125: 0
A126: Forstkand. | C126: 0 | D126: 0 | E126: 0 | F126: 0 | G126: 0 | I126: 0
A127: Jordbrugsakad. | C127: 0 | D127: 0 | E127: 0 | F127: 0 | G127: 0 | I127: 0
A128: Mejeriing. | C128: 0 | D128: 0 | E128: 0 | F128: 0 | G128: 0 | I128: 0
A129: Levn.m.kand. | C129: 0 | D129: 0 | E129: 0 | F129: 0 | G129: 0 | I129: 0
A130: Dyrlæge | C130: 0 | D130: 0 | E130: 0 | F130: 0 | G130: 0 | I130: 0
A131: Farmaceut | C131: 0 | D131: 0 | E131: 0 | F131: 0 | G131: 0 | I131: 0
A132: Læge | C132: 0 | D132: 1 | E132: 0 | F132: 0 | G132: 0 | I132: 1
A133: Tandlæge | C133: 0 | D133: 0 | E133: 0 | F133: 0 | G133: 0 | I133: 0
A134: Arkitekt | C134: 0 | D134: 0 | E134: 0 | F134: 0 | G134: 0 | I134: 0
A135: Landinspek. | C135: 0 | D135: 0 | E135: 0 | F135: 0 | G135: 0 | I135: 0
A136: Bibliotekar | C136: 0 | D136: 0 | E136: 1 | F136: 0 | G136: 0 | I136: 1
A137: Musikudd. | C137: 0 | D137: 0 | E137: 0 | F137: 0 | G137: 0 | I137: 0
A138: Teolog | C138: 0 | D138: 0 | E138: 0 | F138: 0 | G138: 0 | I138: 0
A139: Psykolog | C139: 1 | D139: 0 | E139: 0 | F139: 0 | G139: 0 | I139: 1
A140: Jurist | C140: 0 | D140: 0 | E140: 0 | F140: 0 | G140: 1 | I140: 1
A141: Økonom | C141: 0 | D141: 0 | E141: 0 | F141: 1 | G141: 0 | I141: 1
A142: Samf. Adm. | C142: 0 | D142: 2 | E142: 1 | F142: 0 | G142: 1 | I142: 4
A143: Cand. Merc. | C143: 1 | D143: 0 | E143: 1 | F143: 1 | G143: 0 | I143: 3
A144: HA | C144: 0 | D144: 1 | E144: 0 | F144: 0 | G144: 0 | I144: 1
A145: HD | C145: 0 | D145: 0 | E145: 0 | F145: 0 | G145: 1 | I145: 1
A146: Komm. og Sprog | C146: 0 | D146: 0 | E146: 1 | F146: 1 | G146: 1 | I146: 3
A147: Bygningskonst. | C147: 0 | D147: 1 | E147: 0 | F147: 0 | G147: 0 | I147: 1
A148: Cand. IT. | C148: 1 | D148: 0 | E148: 0 | F148: 0 | G148: 0 | I148: 1
A149: Bac. Samf. | C149: 0 | D149: 0 | E149: 0 | F149: 0 | G149: 0 | I149: 0
A150: Bac. Hum. | C150: 1 | D150: 0 | E150: 0 | F150: 0 | G150: 0 | I150: 1
A151: Bac. Nat. | C151: 0 | D151: 0 | E151: 0 | F151: 0 | G151: 0 | I151: 0
A152: Andre | C152: 0 | D152: 2 | E152: 2 | F152: 0 | G152: 1 | I152: 5
A154: Total | C154: 14 | D154: 21 | E154: 14 | F154: 8 | G154: 7 | I154: 64
A156: Ingeniører i alt | C156: 2 | D156: 3 | E156: 3 | F156: 3 | G156: 1 | I156: 12
A157: Magistre i alt | C157: 6 | D157: 9 | E157: 5 | F157: 2 | G157: 1 | I157: 23
A158: DJØF'ere i alt | C158: 1 | D158: 3 | E158: 2 | F158: 2 | G158: 2 | I158: 10
A165: Faaborg-Midtfyn
C167: Under 30 år | D167: 30 - 39 år | E167: 40 - 49 år | F167: 50 - 59 år | G167: Over 60 år | I167: I alt
A169: Civ. ing. | C169: 2 | D169: 2 | E169: 1 | F169: 0 | G169: 0 | I169: 5
A170: Diplom ing. | C170: 2 | D170: 0 | E170: 0 | F170: 3 | G170: 0 | I170: 5
A171: Cand. Scient. Tek | C171: 4 | D171: 1 | E171: 1 | F171: 0 | G171: 0 | I171: 6
A172: MA. Hum. | C172: 3 | D172: 8 | E172: 6 | F172: 1 | G172: 3 | I172: 21
A173: MA. Nat. | C173: 0 | D173: 0 | E173: 2 | F173: 1 | G173: 2 | I173: 5
A174: MA. Ph.d. | C174: 0 | D174: 0 | E174: 1 | F174: 0 | G174: 0 | I174: 1
A175: MA. Samf. | C175: 3 | D175: 0 | E175: 0 | F175: 0 | G175: 0 | I175: 3
A176: Øvrige Mag. | C176: 0 | D176: 0 | E176: 0 | F176: 1 | G176: 0 | I176: 1
A177: Agronom | C177: 0 | D177: 0 | E177: 0 | F177: 1 | G177: 1 | I177: 2
A178: Landsk. Arkt. | C178: 0 | D178: 0 | E178: 0 | F178: 0 | G178: 0 | I178: 0
A179: Hortonom | C179: 0 | D179: 0 | E179: 0 | F179: 0 | G179: 1 | I179: 1
A180: Forstkand. | C180: 0 | D180: 0 | E180: 1 | F180: 0 | G180: 0 | I180: 1
A181: Jordbrugsakad. | C181: 0 | D181: 0 | E181: 1 | F181: 1 | G181: 2 | I181: 4
A182: Mejeriing. | C182: 0 | D182: 0 | E182: 0 | F182: 0 | G182: 0 | I182: 0
A183: Levn.m.kand. | C183: 0 | D183: 0 | E183: 0 | F183: 0 | G183: 0 | I183: 0
A184: Dyrlæge | C184: 0 | D184: 0 | E184: 0 | F184: 0 | G184: 0 | I184: 0
A185: Farmaceut | C185: 0 | D185: 0 | E185: 0 | F185: 0 | G185: 0 | I185: 0
A186: Læge | C186: 0 | D186: 0 | E186: 0 | F186: 0 | G186: 0 | I186: 0
A187: Tandlæge | C187: 0 | D187: 0 | E187: 0 | F187: 0 | G187: 0 | I187: 0
A188: Arkitekt | C188: 0 | D188: 0 | E188: 0 | F188: 0 | G188: 1 | I188: 1
A189: Landinspek. | C189: 0 | D189: 0 | E189: 0 | F189: 0 | G189: 0 | I189: 0
A190: Bibliotekar | C190: 0 | D190: 0 | E190: 0 | F190: 0 | G190: 0 | I190: 0
A191: Musikudd. | C191: 0 | D191: 0 | E191: 0 | F191: 0 | G191: 0 | I191: 0
A192: Teolog | C192: 0 | D192: 0 | E192: 0 | F192: 0 | G192: 0 | I192: 0
A193: Psykolog | C193: 0 | D193: 4 | E193: 0 | F193: 0 | G193: 0 | I193: 4
A194: Jurist | C194: 0 | D194: 0 | E194: 0 | F194: 0 | G194: 1 | I194: 1
A195: Økonom | C195: 0 | D195: 0 | E195: 0 | F195: 0 | G195: 0 | I195: 0
A196: Samf. Adm. | C196: 2 | D196: 5 | E196: 3 | F196: 1 | G196: 0 | I196: 11
A197: Cand. Merc. | C197: 0 | D197: 4 | E197: 0 | F197: 0 | G197: 0 | I197: 4
A198: HA | C198: 2 | D198: 0 | E198: 0 | F198: 0 | G198: 1 | I198: 3
A199: HD | C199: 0 | D199: 0 | E199: 0 | F199: 0 | G199: 1 | I199: 1
A200: Komm. og Sprog | C200: 1 | D200: 1 | E200: 1 | F200: 0 | G200: 0 | I200: 3
A201: Bygningskonst. | C201: 3 | D201: 0 | E201: 2 | F201: 1 | G201: 0 | I201: 6
A202: Cand. IT. | C202: 0 | D202: 0 | E202: 1 | F202: 0 | G202: 0 | I202: 1
A203: Bac. Samf. | C203: 0 | D203: 0 | E203: 0 | F203: 0 | G203: 0 | I203: 0
A204: Bac. Hum. | C204: 1 | D204: 0 | E204: 0 | F204: 0 | G204: 0 | I204: 1
A205: Bac. Nat. | C205: 2 | D205: 0 | E205: 0 | F205: 0 | G205: 0 | I205: 2
A206: Andre | C206: 2 | D206: 1 | E206: 0 | F206: 0 | G206: 1 | I206: 4
A208: Total | C208: 27 | D208: 26 | E208: 19 | F208: 9 | G208: 12 | I208: 93
A210: Ingeniører i alt | C210: 4 | D210: 2 | E210: 1 | F210: 3 | G210: 0 | I210: 10
A211: Magistre i alt | C211: 6 | D211: 8 | E211: 9 | F211: 3 | G211: 5 | I211: 31
A212: DJØF'ere i alt | C212: 4 | D212: 9 | E212: 3 | F212: 1 | G212: 2 | I212: 19
A219: Kerteminde
C221: Under 30 år | D221: 30 - 39 år | E221: 40 - 49 år | F221: 50 - 59 år | G221: Over 60 år | I221: I alt
A223: Civ. ing. | C223: 0 | D223: 0 | E223: 0 | F223: 0 | G223: 0 | I223: 0
A224: Diplom ing. | C224: 0 | D224: 0 | E224: 0 | F224: 2 | G224: 6 | I224: 8
A225: Cand. Scient. Tek | C225: 2 | D225: 0 | E225: 0 | F225: 0 | G225: 0 | I225: 2
A226: MA. Hum. | C226: 1 | D226: 2 | E226: 4 | F226: 0 | G226: 1 | I226: 8
A227: MA. Nat. | C227: 0 | D227: 0 | E227: 0 | F227: 0 | G227: 0 | I227: 0
A228: MA. Ph.d. | C228: 0 | D228: 0 | E228: 0 | F228: 0 | G228: 0 | I228: 0
A229: MA. Samf. | C229: 0 | D229: 0 | E229: 0 | F229: 0 | G229: 0 | I229: 0
A230: Øvrige Mag. | C230: 1 | D230: 0 | E230: 0 | F230: 0 | G230: 0 | I230: 1
A231: Agronom | C231: 0 | D231: 0 | E231: 0 | F231: 0 | G231: 0 | I231: 0
A232: Landsk. Arkt. | C232: 0 | D232: 0 | E232: 0 | F232: 0 | G232: 0 | I232: 0
A233: Hortonom | C233: 0 | D233: 0 | E233: 0 | F233: 0 | G233: 0 | I233: 0
A234: Forstkand. | C234: 0 | D234: 0 | E234: 0 | F234: 0 | G234: 0 | I234: 0
A235: Jordbrugsakad. | C235: 0 | D235: 0 | E235: 0 | F235: 0 | G235: 0 | I235: 0
A236: Mejeriing. | C236: 0 | D236: 0 | E236: 0 | F236: 0 | G236: 0 | I236: 0
A237: Levn.m.kand. | C237: 1 | D237: 0 | E237: 0 | F237: 0 | G237: 0 | I237: 1
A238: Dyrlæge | C238: 0 | D238: 0 | E238: 0 | F238: 0 | G238: 0 | I238: 0
A239: Farmaceut | C239: 0 | D239: 0 | E239: 0 | F239: 0 | G239: 0 | I239: 0
A240: Læge | C240: 0 | D240: 0 | E240: 0 | F240: 0 | G240: 0 | I240: 0
A241: Tandlæge | C241: 0 | D241: 0 | E241: 0 | F241: 0 | G241: 1 | I241: 1
A242: Arkitekt | C242: 0 | D242: 0 | E242: 0 | F242: 0 | G242: 0 | I242: 0
A243: Landinspek. | C243: 0 | D243: 0 | E243: 0 | F243: 0 | G243: 0 | I243: 0
... 285 more rows

Sheet Tabel 4(Br) F
A1: Tabel 4. Ledighedsberørte - aldersfordelt
A3: Fyn
C5: Under 30 år | D5: 30 - 39 år | E5: 40 - 49 år | F5: 50 - 59 år | G5: Over 60 år | I5: I alt
A7: Civ. ing. | C7: 92.59589596 | D7: 16.1311046 | E7: 11.32352024 | F7: 1.999625772 | G7: 0 | I7: 122.0501466
A8: Diplom ing. | C8: 37.96108027 | D8: 12.48549866 | E8: 13.56639431 | F8: 35.33399863 | G8: 13.32127487 | I8: 112.6682467
A9: Cand. Scient. Tek | C9: 107.2831036 | D9: 34.8599763 | E9: 2.076342544 | F9: 0.9998128859 | G9: 0.3243310672 | I9: 145.5435664
A10: MA. Hum. | C10: 185.1450134 | D10: 127.1970311 | E10: 60.33368677 | F10: 27.34110896 | G10: 18.98708913 | I10: 419.0039294
A11: MA. Nat. | C11: 26.83901952 | D11: 24.96600761 | E11: 9.293332502 | F11: 7.998503087 | G11: 4.940435352 | I11: 74.03729807
A12: MA. Ph.d. | C12: 0.9998128859 | D12: 0 | E12: 4.356639431 | F12: 0.9998128859 | G12: 0 | I12: 6.356265203
A13: MA. Samf. | C13: 13.69487931 | D13: 12.46117383 | E13: 2.156177883 | F13: 0.9998128859 | G13: 0 | I13: 29.31204391
A14: Øvrige Mag. | C14: 6.63194661 | D14: 2.868458804 | E14: 0.9998128859 | F14: 1.437036113 | G14: 0.9998128859 | I14: 12.9370673
A15: Agronom | C15: 0.9998128859 | D15: 0 | E15: 0 | F15: 0.9998128859 | G15: 1.662820433 | I15: 3.662446205
A16: Landsk. Arkt. | C16: 0 | D16: 0 | E16: 0 | F16: 0 | G16: 0 | I16: 0
A17: Hortonom | C17: 0 | D17: 0 | E17: 0 | F17: 0 | G17: 1.999625772 | I17: 1.999625772
A18: Forstkand. | C18: 0.9998128859 | D18: 0 | E18: 1.999625772 | F18: 0 | G18: 0 | I18: 2.999438658
A19: Jordbrugsakad. | C19: 1.999625772 | D19: 0 | E19: 1.999625772 | F19: 0.9998128859 | G19: 3.662446205 | I19: 8.661510634
A20: Mejeriing. | C20: 0 | D20: 0 | E20: 0 | F20: 0 | G20: 0 | I20: 0
A21: Levn.m.kand. | C21: 0.7690388574 | D21: 0.9062558473 | E21: 0 | F21: 0 | G21: 0 | I21: 1.675294705
A22: Dyrlæge | C22: 0 | D22: 0.9075032745 | E22: 0 | F22: 0 | G22: 0.8501216242 | I22: 1.757624899
A23: Farmaceut | C23: 22.74932951 | D23: 6.814070979 | E23: 0.9998128859 | F23: 0 | G23: 0.9998128859 | I23: 31.56302626
A24: Læge | C24: 3.295702613 | D24: 2.758061498 | E24: 0 | F24: 0 | G24: 0 | I24: 6.053764112
A25: Tandlæge | C25: 0.2076966257 | D25: 0 | E25: 0 | F25: 0 | G25: 0.9998128859 | I25: 1.207509512
A26: Arkitekt | C26: 0 | D26: 0 | E26: 0.6767292459 | F26: 1.999625772 | G26: 0.9998128859 | I26: 3.676167904
A27: Landinspek. | C27: 0 | D27: 0 | E27: 0 | F27: 0 | G27: 0 | I27: 0
A28: Bibliotekar | C28: 0 | D28: 2.791742032 | E28: 1.999625772 | F28: 1.423314414 | G28: 1.120189609 | I28: 7.334871827
A29: Musikudd. | C29: 0 | D29: 1.962202956 | E29: 0.3573878875 | F29: 0 | G29: 1.525603443 | I29: 3.845194287
A30: Teolog | C30: 0 | D30: 0 | E30: 0 | F30: 0.9998128859 | G30: 0 | I30: 0.9998128859
A31: Psykolog | C31: 21.40335558 | D31: 13.03748519 | E31: 2.178631572 | F31: 0.9187301191 | G31: 0.9998128859 | I31: 38.53801534
A32: Jurist | C32: 3.691760743 | D32: 6.54337928 | E32: 2.949541571 | F32: 0 | G32: 4.420881931 | I32: 17.60556353
A33: Økonom | C33: 11.84619223 | D33: 5.906567704 | E33: 0.9998128859 | F33: 2.999438658 | G33: 0 | I33: 21.75201148
A34: Samf. Adm. | C34: 74.3691137 | D34: 40.14532527 | E34: 17.30430986 | F34: 6.399925154 | G34: 3.459115574 | I34: 141.6777896
A35: Cand. Merc. | C35: 78.93906318 | D35: 50.42537267 | E35: 9.985654587 | F35: 9.453626895 | G35: 1.607933637 | I35: 150.411651
A36: HA | C36: 29.32638932 | D36: 6.669369426 | E36: 4.127736543 | F36: 5.323395497 | G36: 3.168465041 | I36: 48.61535583
A37: HD | C37: 15.88910372 | D37: 5.271003555 | E37: 1.999625772 | F37: 1.999625772 | G37: 4.67598079 | I37: 29.83533961
A38: Komm. og Sprog | C38: 25.94024824 | D38: 11.03598827 | E38: 4.244994698 | F38: 5.958335932 | G38: 1.612923346 | I38: 48.79249049
A39: Bygningskonst. | C39: 21.38863594 | D39: 21.7519491 | E39: 9.806648787 | F39: 3.049273374 | G39: 0 | I39: 55.9965072
A40: Cand. IT. | C40: 15.13565771 | D40: 17.05170586 | E40: 2.999438658 | F40: 0 | G40: 0.9998128859 | I40: 36.18661511
A41: Bac. Samf. | C41: 8.587288717 | D41: 0 | E41: 1.435788686 | F41: 0 | G41: 0.9998128859 | I41: 11.02289029
A42: Bac. Hum. | C42: 32.58217427 | D42: 15.05020894 | E42: 2.622715649 | F42: 3.278238633 | G42: 1.395871016 | I42: 54.92920851
A43: Bac. Nat. | C43: 18.74196969 | D43: 2.999438658 | E43: 1.768851743 | F43: 0.9998128859 | G43: 0 | I43: 24.51007297
A44: Andre | C44: 40.79086883 | D44: 20.72725005 | E44: 20.20769663 | F44: 10.4222541 | G44: 17.24505707 | I44: 109.3931267
A46: Total | C46: 898.8039668 | D46: 463.7241315 | E46: 192.7705358 | F46: 133.3349342 | G46: 89.3164099 | I46: 1777.949978
A48: Ingeniører i alt | C48: 130.5569762 | D48: 28.61660326 | E48: 24.88991455 | F48: 37.3336244 | G48: 13.32127487 | I48: 234.7183933
A49: Magistre i alt | C49: 233.3106717 | D49: 167.4926714 | E49: 77.13964947 | F49: 38.77627394 | G49: 24.92733737 | I49: 541.6466039
A50: DJØF'ere i alt | C50: 198.1725192 | D50: 109.6900143 | E50: 35.36705545 | F50: 24.1763862 | G50: 12.65639618 | I50: 380.0623714
A57: Middelfart
C59: Under 30 år | D59: 30 - 39 år | E59: 40 - 49 år | F59: 50 - 59 år | G59: Over 60 år | I59: I alt
A61: Civ. ing. | C61: 0 | D61: 0 | E61: 0 | F61: 0 | G61: 0 | I61: 0
A62: Diplom ing. | C62: 2.584045406 | D62: 1.810640554 | E62: 3.537703487 | F62: 2.764922348 | G62: 1.999625772 | I62: 12.69693757
A63: Cand. Scient. Tek | C63: 1.962202956 | D63: 1.654088443 | E63: 0.1690263831 | F63: 0 | G63: 0 | I63: 3.785317782
A64: MA. Hum. | C64: 3.827730306 | D64: 2.575313416 | E64: 1.34784507 | F64: 0 | G64: 0.9998128859 | I64: 8.750701678
A65: MA. Nat. | C65: 0 | D65: 1.030374852 | E65: 0 | F65: 0.9998128859 | G65: 0 | I65: 2.030187738
A66: MA. Ph.d. | C66: 0 | D66: 0 | E66: 0.7690388574 | F66: 0 | G66: 0 | I66: 0.7690388574
A67: MA. Samf. | C67: 0.9998128859 | D67: 1.399613298 | E67: 0 | F67: 0 | G67: 0 | I67: 2.399426183
A68: Øvrige Mag. | C68: 0 | D68: 0 | E68: 0 | F68: 0 | G68: 0 | I68: 0
A69: Agronom | C69: 0 | D69: 0 | E69: 0 | F69: 0 | G69: 0 | I69: 0
A70: Landsk. Arkt. | C70: 0 | D70: 0 | E70: 0 | F70: 0 | G70: 0 | I70: 0
A71: Hortonom | C71: 0 | D71: 0 | E71: 0 | F71: 0 | G71: 0 | I71: 0
A72: Forstkand. | C72: 0 | D72: 0 | E72: 0.9998128859 | F72: 0 | G72: 0 | I72: 0.9998128859
A73: Jordbrugsakad. | C73: 0 | D73: 0 | E73: 0.9998128859 | F73: 0 | G73: 0 | I73: 0.9998128859
A74: Mejeriing. | C74: 0 | D74: 0 | E74: 0 | F74: 0 | G74: 0 | I74: 0
A75: Levn.m.kand. | C75: 0 | D75: 0 | E75: 0 | F75: 0 | G75: 0 | I75: 0
A76: Dyrlæge | C76: 0 | D76: 0.9075032745 | E76: 0 | F76: 0 | G76: 0 | I76: 0.9075032745
A77: Farmaceut | C77: 0 | D77: 0 | E77: 0.9998128859 | F77: 0 | G77: 0 | I77: 0.9998128859
A78: Læge | C78: 0 | D78: 0.9998128859 | E78: 0 | F78: 0 | G78: 0 | I78: 0.9998128859
A79: Tandlæge | C79: 0 | D79: 0 | E79: 0 | F79: 0 | G79: 0 | I79: 0
A80: Arkitekt | C80: 0 | D80: 0 | E80: 0 | F80: 0 | G80: 0 | I80: 0
A81: Landinspek. | C81: 0 | D81: 0 | E81: 0 | F81: 0 | G81: 0 | I81: 0
A82: Bibliotekar | C82: 0 | D82: 0.3461610428 | E82: 0.9998128859 | F82: 0 | G82: 0.1328509948 | I82: 1.478824924
A83: Musikudd. | C83: 0 | D83: 0 | E83: 0 | F83: 0 | G83: 0 | I83: 0
A84: Teolog | C84: 0 | D84: 0 | E84: 0 | F84: 0 | G84: 0 | I84: 0
A85: Psykolog | C85: 0 | D85: 0 | E85: 0 | F85: 0 | G85: 0 | I85: 0
A86: Jurist | C86: 0 | D86: 0 | E86: 0 | F86: 0 | G86: 0 | I86: 0
A87: Økonom | C87: 0 | D87: 0 | E87: 0 | F87: 0 | G87: 0 | I87: 0
A88: Samf. Adm. | C88: 0 | D88: 0 | E88: 0 | F88: 0 | G88: 0 | I88: 0
A89: Cand. Merc. | C89: 0 | D89: 2.887170211 | E89: 0.9998128859 | F89: 0 | G89: 0 | I89: 3.886983097
A90: HA | C90: 0 | D90: 0 | E90: 0.9998128859 | F90: 0.9998128859 | G90: 0 | I90: 1.999625772
A91: HD | C91: 0 | D91: 0 | E91: 0 | F91: 0 | G91: 0 | I91: 0
A92: Komm. og Sprog | C92: 0 | D92: 0 | E92: 0 | F92: 0 | G92: 0 | I92: 0
A93: Bygningskonst. | C93: 0.67691636 | D93: 0.9538451943 | E93: 0 | F93: 1.124929832 | G93: 0 | I93: 2.755691387
A94: Cand. IT. | C94: 0 | D94: 2.706916984 | E94: 0 | F94: 0 | G94: 0 | I94: 2.706916984
A95: Bac. Samf. | C95: 0 | D95: 0 | E95: 0 | F95: 0 | G95: 0 | I95: 0
A96: Bac. Hum. | C96: 0 | D96: 0 | E96: 0 | F96: 0 | G96: 0 | I96: 0
A97: Bac. Nat. | C97: 0.9998128859 | D97: 0 | E97: 0 | F97: 0 | G97: 0 | I97: 0.9998128859
A98: Andre | C98: 0 | D98: 0 | E98: 1.089003929 | F98: 0.3991766981 | G98: 0.9998128859 | I98: 2.487993513
A100: Total | C100: 11.0505208 | D100: 17.27144015 | E100: 11.91168216 | F100: 6.28865465 | G100: 4.132102539 | I100: 50.6544003
A102: Ingeniører i alt | C102: 2.584045406 | D102: 1.810640554 | E102: 3.537703487 | F102: 2.764922348 | G102: 1.999625772 | I102: 12.69693757
A103: Magistre i alt | C103: 4.827543192 | D103: 5.005301566 | E103: 2.116883927 | F103: 0.9998128859 | G103: 0.9998128859 | I103: 13.94935446
A104: DJØF'ere i alt | C104: 0 | D104: 2.887170211 | E104: 1.999625772 | F104: 0.9998128859 | G104: 0 | I104: 5.886608869
A111: Assens
C113: Under 30 år | D113: 30 - 39 år | E113: 40 - 49 år | F113: 50 - 59 år | G113: Over 60 år | I113: I alt
A115: Civ. ing. | C115: 0.9998128859 | D115: 1.999625772 | E115: 0 | F115: 0 | G115: 0 | I115: 2.999438658
A116: Diplom ing. | C116: 0.9998128859 | D116: 0.9998128859 | E116: 2.999438658 | F116: 2.907129046 | G116: 0.5962701927 | I116: 8.502463669
A117: Cand. Scient. Tek | C117: 1.814382835 | D117: 1.581113952 | E117: 0 | F117: 0 | G117: 0 | I117: 3.395496788
A118: MA. Hum. | C118: 5.998877316 | D118: 5.885361442 | E118: 2.768664629 | F118: 1.999625772 | G118: 0.9998128859 | I118: 17.65234204
A119: MA. Nat. | C119: 0 | D119: 1.993388636 | E119: 1.9871515 | F119: 0 | G119: 0 | I119: 3.980540136
A120: MA. Ph.d. | C120: 0 | D120: 0 | E120: 0 | F120: 0 | G120: 0 | I120: 0
A121: MA. Samf. | C121: 0 | D121: 0.9998128859 | E121: 0 | F121: 0 | G121: 0 | I121: 0.9998128859
A122: Øvrige Mag. | C122: 0 | D122: 0 | E122: 0 | F122: 0 | G122: 0 | I122: 0
A123: Agronom | C123: 0 | D123: 0 | E123: 0 | F123: 0 | G123: 0 | I123: 0
A124: Landsk. Arkt. | C124: 0 | D124: 0 | E124: 0 | F124: 0 | G124: 0 | I124: 0
A125: Hortonom | C125: 0 | D125: 0 | E125: 0 | F125: 0 | G125: 0 | I125: 0
A126: Forstkand. | C126: 0 | D126: 0 | E126: 0 | F126: 0 | G126: 0 | I126: 0
A127: Jordbrugsakad. | C127: 0 | D127: 0 | E127: 0 | F127: 0 | G127: 0 | I127: 0
A128: Mejeriing. | C128: 0 | D128: 0 | E128: 0 | F128: 0 | G128: 0 | I128: 0
A129: Levn.m.kand. | C129: 0 | D129: 0 | E129: 0 | F129: 0 | G129: 0 | I129: 0
A130: Dyrlæge | C130: 0 | D130: 0 | E130: 0 | F130: 0 | G130: 0 | I130: 0
A131: Farmaceut | C131: 0 | D131: 0 | E131: 0 | F131: 0 | G131: 0 | I131: 0
A132: Læge | C132: 0 | D132: 0.4459552174 | E132: 0 | F132: 0 | G132: 0 | I132: 0.4459552174
A133: Tandlæge | C133: 0 | D133: 0 | E133: 0 | F133: 0 | G133: 0 | I133: 0
A134: Arkitekt | C134: 0 | D134: 0 | E134: 0 | F134: 0 | G134: 0 | I134: 0
A135: Landinspek. | C135: 0 | D135: 0 | E135: 0 | F135: 0 | G135: 0 | I135: 0
A136: Bibliotekar | C136: 0 | D136: 0 | E136: 0.9998128859 | F136: 0 | G136: 0 | I136: 0.9998128859
A137: Musikudd. | C137: 0 | D137: 0 | E137: 0 | F137: 0 | G137: 0 | I137: 0
A138: Teolog | C138: 0 | D138: 0 | E138: 0 | F138: 0 | G138: 0 | I138: 0
A139: Psykolog | C139: 0.9998128859 | D139: 0 | E139: 0 | F139: 0 | G139: 0 | I139: 0.9998128859
A140: Jurist | C140: 0 | D140: 0 | E140: 0 | F140: 0 | G140: 0.5139399988 | I140: 0.5139399988
A141: Økonom | C141: 0 | D141: 0 | E141: 0 | F141: 0.9998128859 | G141: 0 | I141: 0.9998128859
A142: Samf. Adm. | C142: 0 | D142: 1.999625772 | E142: 0.9998128859 | F142: 0 | G142: 0.9998128859 | I142: 3.999251544
A143: Cand. Merc. | C143: 0.9748643423 | D143: 0 | E143: 0.3106093682 | F143: 0.8788124493 | G143: 0 | I143: 2.16428616
A144: HA | C144: 0 | D144: 0.9998128859 | E144: 0 | F144: 0 | G144: 0 | I144: 0.9998128859
A145: HD | C145: 0 | D145: 0 | E145: 0 | F145: 0 | G145: 0.862595896 | I145: 0.862595896
A146: Komm. og Sprog | C146: 0 | D146: 0 | E146: 0.9686272064 | F146: 0.9998128859 | G146: 0.6131104597 | I146: 2.581550552
A147: Bygningskonst. | C147: 0 | D147: 1 | E147: 0 | F147: 0 | G147: 0 | I147: 1
A148: Cand. IT. | C148: 0.9998128859 | D148: 0 | E148: 0 | F148: 0 | G148: 0 | I148: 0.9998128859
A149: Bac. Samf. | C149: 0 | D149: 0 | E149: 0 | F149: 0 | G149: 0 | I149: 0
A150: Bac. Hum. | C150: 0.9998128859 | D150: 0 | E150: 0 | F150: 0 | G150: 0 | I150: 0.9998128859
A151: Bac. Nat. | C151: 0 | D151: 0 | E151: 0 | F151: 0 | G151: 0 | I151: 0
A152: Andre | C152: 0 | D152: 1.999625772 | E152: 1.999625772 | F152: 0 | G152: 0.9998128859 | I152: 4.99906443
A154: Total | C154: 13.78718892 | D154: 19.90413522 | E154: 13.03374291 | F154: 7.785193039 | G154: 5.585355205 | I154: 60.09561529
A156: Ingeniører i alt | C156: 1.999625772 | D156: 2.999438658 | E156: 2.999438658 | F156: 2.907129046 | G156: 0.5962701927 | I156: 11.50190233
A157: Magistre i alt | C157: 5.998877316 | D157: 8.878562964 | E157: 4.755816129 | F157: 1.999625772 | G157: 0.9998128859 | I157: 22.63269507
A158: DJØF'ere i alt | C158: 0.9748643423 | D158: 2.999438658 | E158: 1.310422254 | F158: 1.878625335 | G158: 1.513752885 | I158: 8.677103474
A165: Faaborg-Midtfyn
C167: Under 30 år | D167: 30 - 39 år | E167: 40 - 49 år | F167: 50 - 59 år | G167: Over 60 år | I167: I alt
A169: Civ. ing. | C169: 1.076529658 | D169: 1.768851743 | E169: 0.9998128859 | F169: 0 | G169: 0 | I169: 3.845194287
A170: Diplom ing. | C170: 0.8919104347 | D170: 0 | E170: 0 | F170: 2.895278488 | G170: 0 | I170: 3.787188923
A171: Cand. Scient. Tek | C171: 3.999251544 | D171: 0.9998128859 | E171: 0.9075032745 | F171: 0 | G171: 0 | I171: 5.906567704
A172: MA. Hum. | C172: 2.999438658 | D172: 7.767729059 | E172: 5.390132851 | F172: 0.9998128859 | G172: 2.776149192 | I172: 19.93326265
A173: MA. Nat. | C173: 0 | D173: 0 | E173: 1.999625772 | F173: 0.9998128859 | G173: 1.597954219 | I173: 4.597392877
A174: MA. Ph.d. | C174: 0 | D174: 0 | E174: 0.9998128859 | F174: 0 | G174: 0 | I174: 0.9998128859
A175: MA. Samf. | C175: 2.814819435 | D175: 0 | E175: 0 | F175: 0 | G175: 0 | I175: 2.814819435
A176: Øvrige Mag. | C176: 0 | D176: 0 | E176: 0 | F176: 0.8987712842 | G176: 0 | I176: 0.8987712842
A177: Agronom | C177: 0 | D177: 0 | E177: 0 | F177: 0.9998128859 | G177: 0.8937815755 | I177: 1.893594461
A178: Landsk. Arkt. | C178: 0 | D178: 0 | E178: 0 | F178: 0 | G178: 0 | I178: 0
A179: Hortonom | C179: 0 | D179: 0 | E179: 0 | F179: 0 | G179: 0.9998128859 | I179: 0.9998128859
A180: Forstkand. | C180: 0 | D180: 0 | E180: 0.9998128859 | F180: 0 | G180: 0 | I180: 0.9998128859
A181: Jordbrugsakad. | C181: 0 | D181: 0 | E181: 0.9998128859 | F181: 0.9998128859 | G181: 1.893594461 | I181: 3.893220233
A182: Mejeriing. | C182: 0 | D182: 0 | E182: 0 | F182: 0 | G182: 0 | I182: 0
A183: Levn.m.kand. | C183: 0 | D183: 0 | E183: 0 | F183: 0 | G183: 0 | I183: 0
A184: Dyrlæge | C184: 0 | D184: 0 | E184: 0 | F184: 0 | G184: 0 | I184: 0
A185: Farmaceut | C185: 0 | D185: 0 | E185: 0 | F185: 0 | G185: 0 | I185: 0
A186: Læge | C186: 0 | D186: 0 | E186: 0 | F186: 0 | G186: 0 | I186: 0
A187: Tandlæge | C187: 0 | D187: 0 | E187: 0 | F187: 0 | G187: 0 | I187: 0
A188: Arkitekt | C188: 0 | D188: 0 | E188: 0 | F188: 0 | G188: 0.9998128859 | I188: 0.9998128859
A189: Landinspek. | C189: 0 | D189: 0 | E189: 0 | F189: 0 | G189: 0 | I189: 0
A190: Bibliotekar | C190: 0 | D190: 0 | E190: 0 | F190: 0 | G190: 0 | I190: 0
A191: Musikudd. | C191: 0 | D191: 0 | E191: 0 | F191: 0 | G191: 0 | I191: 0
A192: Teolog | C192: 0 | D192: 0 | E192: 0 | F192: 0 | G192: 0 | I192: 0
A193: Psykolog | C193: 0 | D193: 3.261398366 | E193: 0 | F193: 0 | G193: 0 | I193: 3.261398366
A194: Jurist | C194: 0 | D194: 0 | E194: 0 | F194: 0 | G194: 0.9998128859 | I194: 0.9998128859
A195: Økonom | C195: 0 | D195: 0 | E195: 0 | F195: 0 | G195: 0 | I195: 0
A196: Samf. Adm. | C196: 1.428927836 | D196: 4.424624213 | E196: 2.469282106 | F196: 0.6879560906 | G196: 0 | I196: 9.010790245
A197: Cand. Merc. | C197: 0 | D197: 3.999251544 | E197: 0 | F197: 0 | G197: 0 | I197: 3.999251544
A198: HA | C198: 1.962202956 | D198: 0 | E198: 0 | F198: 0 | G198: 0.9998128859 | I198: 2.962015842
A199: HD | C199: 0 | D199: 0 | E199: 0 | F199: 0 | G199: 0.9998128859 | I199: 0.9998128859
A200: Komm. og Sprog | C200: 0.7690388574 | D200: 0.9998128859 | E200: 0.6436724256 | F200: 0 | G200: 0 | I200: 2.412524169
A201: Bygningskonst. | C201: 2.907690389 | D201: 0 | E201: 2 | F201: 1 | G201: 0 | I201: 5.907690389
A202: Cand. IT. | C202: 0 | D202: 0 | E202: 0.9998128859 | F202: 0 | G202: 0 | I202: 0.9998128859
A203: Bac. Samf. | C203: 0 | D203: 0 | E203: 0 | F203: 0 | G203: 0 | I203: 0
A204: Bac. Hum. | C204: 0.9998128859 | D204: 0 | E204: 0 | F204: 0 | G204: 0 | I204: 0.9998128859
A205: Bac. Nat. | C205: 1.90731616 | D205: 0 | E205: 0 | F205: 0 | G205: 0 | I205: 1.90731616
A206: Andre | C206: 1.881743903 | D206: 0.4459552174 | E206: 0 | F206: 0 | G206: 0.7690388574 | I206: 3.096737978
A208: Total | C208: 23.63868272 | D208: 23.66743591 | E208: 17.40946797 | F208: 8.481444521 | G208: 11.03598827 | I208: 84.2330194
A210: Ingeniører i alt | C210: 1.968440092 | D210: 1.768851743 | E210: 0.9998128859 | F210: 2.895278488 | G210: 0 | I210: 7.63238321
A211: Magistre i alt | C211: 5.814258093 | D211: 7.767729059 | E211: 8.389571509 | F211: 2.898397056 | G211: 4.374103412 | I211: 29.24405913
A212: DJØF'ere i alt | C212: 3.391130793 | D212: 8.423875756 | E212: 2.469282106 | F212: 0.6879560906 | G212: 1.999625772 | I212: 16.97187052
A219: Kerteminde
C221: Under 30 år | D221: 30 - 39 år | E221: 40 - 49 år | F221: 50 - 59 år | G221: Over 60 år | I221: I alt
A223: Civ. ing. | C223: 0 | D223: 0 | E223: 0 | F223: 0 | G223: 0 | I223: 0
A224: Diplom ing. | C224: 0 | D224: 0 | E224: 0 | F224: 1.768851743 | G224: 5.587226346 | I224: 7.356078089
A225: Cand. Scient. Tek | C225: 1.999625772 | D225: 0 | E225: 0 | F225: 0 | G225: 0 | I225: 1.999625772
A226: MA. Hum. | C226: 0.9998128859 | D226: 1.180689827 | E226: 3.999251544 | F226: 0 | G226: 0.9075032745 | I226: 7.087257531
A227: MA. Nat. | C227: 0 | D227: 0 | E227: 0 | F227: 0 | G227: 0 | I227: 0
A228: MA. Ph.d. | C228: 0 | D228: 0 | E228: 0 | F228: 0 | G228: 0 | I228: 0
A229: MA. Samf. | C229: 0 | D229: 0 | E229: 0 | F229: 0 | G229: 0 | I229: 0
A230: Øvrige Mag. | C230: 0.9998128859 | D230: 0 | E230: 0 | F230: 0 | G230: 0 | I230: 0.9998128859
A231: Agronom | C231: 0 | D231: 0 | E231: 0 | F231: 0 | G231: 0 | I231: 0
A232: Landsk. Arkt. | C232: 0 | D232: 0 | E232: 0 | F232: 0 | G232: 0 | I232: 0
A233: Hortonom | C233: 0 | D233: 0 | E233: 0 | F233: 0 | G233: 0 | I233: 0
A234: Forstkand. | C234: 0 | D234: 0 | E234: 0 | F234: 0 | G234: 0 | I234: 0
A235: Jordbrugsakad. | C235: 0 | D235: 0 | E235: 0 | F235: 0 | G235: 0 | I235: 0
A236: Mejeriing. | C236: 0 | D236: 0 | E236: 0 | F236: 0 | G236: 0 | I236: 0
A237: Levn.m.kand. | C237: 0.7690388574 | D237: 0 | E237: 0 | F237: 0 | G237: 0 | I237: 0.7690388574
A238: Dyrlæge | C238: 0 | D238: 0 | E238: 0 | F238: 0 | G238: 0 | I238: 0
A239: Farmaceut | C239: 0 | D239: 0 | E239: 0 | F239: 0 | G239: 0 | I239: 0
A240: Læge | C240: 0 | D240: 0 | E240: 0 | F240: 0 | G240: 0 | I240: 0
A241: Tandlæge | C241: 0 | D241: 0 | E241: 0 | F241: 0 | G241: 0.9998128859 | I241: 0.9998128859
A242: Arkitekt | C242: 0 | D242: 0 | E242: 0 | F242: 0 | G242: 0 | I242: 0
A243: Landinspek. | C243: 0 | D243: 0 | E243: 0 | F243: 0 | G243: 0 | I243: 0
... 285 more rows

Sheet Tabel 4P F
A1: Tabel 4. Ledighedsberørte - aldersfordelt
A3: Fyn
C5: Under 30 år | D5: 30 - 39 år | E5: 40 - 49 år | F5: 50 - 59 år | G5: Over 60 år | I5: I alt
A7: Civ. ing. | C7: =IF(OR('Tabel 4F F'!C7<5,'Tabel 4 F'!C7<0.5),"-",IFERROR('Tabel 4 F'!C7/'Tabel 4F F'!C7*100,"-")) -> 20.98501071 | D7: =IF(OR('Tabel 4F F'!D7<5,'Tabel 4 F'!D7<0.5),"-",IFERROR('Tabel 4 F'!D7/'Tabel 4F F'!D7*100,"-")) -> 3.441295547 | E7: =IF(OR('Tabel 4F F'!E7<5,'Tabel 4 F'!E7<0.5),"-",IFERROR('Tabel 4 F'!E7/'Tabel 4F F'!E7*100,"-")) -> 4.290429043 | F7: =IF(OR('Tabel 4F F'!F7<5,'Tabel 4 F'!F7<0.5),"-",IFERROR('Tabel 4 F'!F7/'Tabel 4F F'!F7*100,"-")) -> 1.315789474 | G7: =IF(OR('Tabel 4F F'!G7<5,'Tabel 4 F'!G7<0.5),"-",IFERROR('Tabel 4 F'!G7/'Tabel 4F F'!G7*100,"-")) -> - | I7: =IF(OR('Tabel 4F F'!I7<5,'Tabel 4 F'!I7<0.5),"-",IFERROR('Tabel 4 F'!I7/'Tabel 4F F'!I7*100,"-")) -> 8.898015058
A8: Diplom ing. | C8: =IF(OR('Tabel 4F F'!C8<5,'Tabel 4 F'!C8<0.5),"-",IFERROR('Tabel 4 F'!C8/'Tabel 4F F'!C8*100,"-")) -> 11.97771588 | D8: =IF(OR('Tabel 4F F'!D8<5,'Tabel 4 F'!D8<0.5),"-",IFERROR('Tabel 4 F'!D8/'Tabel 4F F'!D8*100,"-")) -> 2 | E8: =IF(OR('Tabel 4F F'!E8<5,'Tabel 4 F'!E8<0.5),"-",IFERROR('Tabel 4 F'!E8/'Tabel 4F F'!E8*100,"-")) -> 1.886792453 | F8: =IF(OR('Tabel 4F F'!F8<5,'Tabel 4 F'!F8<0.5),"-",IFERROR('Tabel 4 F'!F8/'Tabel 4F F'!F8*100,"-")) -> 3.796203796 | G8: =IF(OR('Tabel 4F F'!G8<5,'Tabel 4 F'!G8<0.5),"-",IFERROR('Tabel 4 F'!G8/'Tabel 4F F'!G8*100,"-")) -> 4.424778761 | I8: =IF(OR('Tabel 4F F'!I8<5,'Tabel 4 F'!I8<0.5),"-",IFERROR('Tabel 4 F'!I8/'Tabel 4F F'!I8*100,"-")) -> 3.944020356
A9: Cand. Scient. Tek | C9: =IF(OR('Tabel 4F F'!C9<5,'Tabel 4 F'!C9<0.5),"-",IFERROR('Tabel 4 F'!C9/'Tabel 4F F'!C9*100,"-")) -> 22.88461538 | D9: =IF(OR('Tabel 4F F'!D9<5,'Tabel 4 F'!D9<0.5),"-",IFERROR('Tabel 4 F'!D9/'Tabel 4F F'!D9*100,"-")) -> 7.597173145 | E9: =IF(OR('Tabel 4F F'!E9<5,'Tabel 4 F'!E9<0.5),"-",IFERROR('Tabel 4 F'!E9/'Tabel 4F F'!E9*100,"-")) -> 2.290076336 | F9: =IF(OR('Tabel 4F F'!F9<5,'Tabel 4 F'!F9<0.5),"-",IFERROR('Tabel 4 F'!F9/'Tabel 4F F'!F9*100,"-")) -> 1.960784314 | G9: =IF(OR('Tabel 4F F'!G9<5,'Tabel 4 F'!G9<0.5),"-",IFERROR('Tabel 4 F'!G9/'Tabel 4F F'!G9*100,"-")) -> 20 | I9: =IF(OR('Tabel 4F F'!I9<5,'Tabel 4 F'!I9<0.5),"-",IFERROR('Tabel 4 F'!I9/'Tabel 4F F'!I9*100,"-")) -> 13.11861744
A10: MA. Hum. | C10: =IF(OR('Tabel 4F F'!C10<5,'Tabel 4 F'!C10<0.5),"-",IFERROR('Tabel 4 F'!C10/'Tabel 4F F'!C10*100,"-")) -> 37.75322284 | D10: =IF(OR('Tabel 4F F'!D10<5,'Tabel 4 F'!D10<0.5),"-",IFERROR('Tabel 4 F'!D10/'Tabel 4F F'!D10*100,"-")) -> 13.69731801 | E10: =IF(OR('Tabel 4F F'!E10<5,'Tabel 4 F'!E10<0.5),"-",IFERROR('Tabel 4 F'!E10/'Tabel 4F F'!E10*100,"-")) -> 6.284153005 | F10: =IF(OR('Tabel 4F F'!F10<5,'Tabel 4 F'!F10<0.5),"-",IFERROR('Tabel 4 F'!F10/'Tabel 4F F'!F10*100,"-")) -> 6.465517241 | G10: =IF(OR('Tabel 4F F'!G10<5,'Tabel 4 F'!G10<0.5),"-",IFERROR('Tabel 4 F'!G10/'Tabel 4F F'!G10*100,"-")) -> 12.08791209 | I10: =IF(OR('Tabel 4F F'!I10<5,'Tabel 4 F'!I10<0.5),"-",IFERROR('Tabel 4 F'!I10/'Tabel 4F F'!I10*100,"-")) -> 14.0798559
A11: MA. Nat. | C11: =IF(OR('Tabel 4F F'!C11<5,'Tabel 4 F'!C11<0.5),"-",IFERROR('Tabel 4 F'!C11/'Tabel 4F F'!C11*100,"-")) -> 22.72727273 | D11: =IF(OR('Tabel 4F F'!D11<5,'Tabel 4 F'!D11<0.5),"-",IFERROR('Tabel 4 F'!D11/'Tabel 4F F'!D11*100,"-")) -> 10.90909091 | E11: =IF(OR('Tabel 4F F'!E11<5,'Tabel 4 F'!E11<0.5),"-",IFERROR('Tabel 4 F'!E11/'Tabel 4F F'!E11*100,"-")) -> 2.544529262 | F11: =IF(OR('Tabel 4F F'!F11<5,'Tabel 4 F'!F11<0.5),"-",IFERROR('Tabel 4 F'!F11/'Tabel 4F F'!F11*100,"-")) -> 2.898550725 | G11: =IF(OR('Tabel 4F F'!G11<5,'Tabel 4 F'!G11<0.5),"-",IFERROR('Tabel 4 F'!G11/'Tabel 4F F'!G11*100,"-")) -> 6.363636364 | I11: =IF(OR('Tabel 4F F'!I11<5,'Tabel 4 F'!I11<0.5),"-",IFERROR('Tabel 4 F'!I11/'Tabel 4F F'!I11*100,"-")) -> 7.166947723
A12: MA. Ph.d. | C12: =IF(OR('Tabel 4F F'!C12<5,'Tabel 4 F'!C12<0.5),"-",IFERROR('Tabel 4 F'!C12/'Tabel 4F F'!C12*100,"-")) -> - | D12: =IF(OR('Tabel 4F F'!D12<5,'Tabel 4 F'!D12<0.5),"-",IFERROR('Tabel 4 F'!D12/'Tabel 4F F'!D12*100,"-")) -> - | E12: =IF(OR('Tabel 4F F'!E12<5,'Tabel 4 F'!E12<0.5),"-",IFERROR('Tabel 4 F'!E12/'Tabel 4F F'!E12*100,"-")) -> 7.462686567 | F12: =IF(OR('Tabel 4F F'!F12<5,'Tabel 4 F'!F12<0.5),"-",IFERROR('Tabel 4 F'!F12/'Tabel 4F F'!F12*100,"-")) -> 2.564102564 | G12: =IF(OR('Tabel 4F F'!G12<5,'Tabel 4 F'!G12<0.5),"-",IFERROR('Tabel 4 F'!G12/'Tabel 4F F'!G12*100,"-")) -> - | I12: =IF(OR('Tabel 4F F'!I12<5,'Tabel 4 F'!I12<0.5),"-",IFERROR('Tabel 4 F'!I12/'Tabel 4F F'!I12*100,"-")) -> 4.430379747
A13: MA. Samf. | C13: =IF(OR('Tabel 4F F'!C13<5,'Tabel 4 F'!C13<0.5),"-",IFERROR('Tabel 4 F'!C13/'Tabel 4F F'!C13*100,"-")) -> 29.78723404 | D13: =IF(OR('Tabel 4F F'!D13<5,'Tabel 4 F'!D13<0.5),"-",IFERROR('Tabel 4 F'!D13/'Tabel 4F F'!D13*100,"-")) -> 14.81481481 | E13: =IF(OR('Tabel 4F F'!E13<5,'Tabel 4 F'!E13<0.5),"-",IFERROR('Tabel 4 F'!E13/'Tabel 4F F'!E13*100,"-")) -> 12 | F13: =IF(OR('Tabel 4F F'!F13<5,'Tabel 4 F'!F13<0.5),"-",IFERROR('Tabel 4 F'!F13/'Tabel 4F F'!F13*100,"-")) -> 10 | G13: =IF(OR('Tabel 4F F'!G13<5,'Tabel 4 F'!G13<0.5),"-",IFERROR('Tabel 4 F'!G13/'Tabel 4F F'!G13*100,"-")) -> - | I13: =IF(OR('Tabel 4F F'!I13<5,'Tabel 4 F'!I13<0.5),"-",IFERROR('Tabel 4 F'!I13/'Tabel 4F F'!I13*100,"-")) -> 17.80104712
A14: Øvrige Mag. | C14: =IF(OR('Tabel 4F F'!C14<5,'Tabel 4 F'!C14<0.5),"-",IFERROR('Tabel 4 F'!C14/'Tabel 4F F'!C14*100,"-")) -> 14.28571429 | D14: =IF(OR('Tabel 4F F'!D14<5,'Tabel 4 F'!D14<0.5),"-",IFERROR('Tabel 4 F'!D14/'Tabel 4F F'!D14*100,"-")) -> 6.382978723 | E14: =IF(OR('Tabel 4F F'!E14<5,'Tabel 4 F'!E14<0.5),"-",IFERROR('Tabel 4 F'!E14/'Tabel 4F F'!E14*100,"-")) -> 1.724137931 | F14: =IF(OR('Tabel 4F F'!F14<5,'Tabel 4 F'!F14<0.5),"-",IFERROR('Tabel 4 F'!F14/'Tabel 4F F'!F14*100,"-")) -> 3.174603175 | G14: =IF(OR('Tabel 4F F'!G14<5,'Tabel 4 F'!G14<0.5),"-",IFERROR('Tabel 4 F'!G14/'Tabel 4F F'!G14*100,"-")) -> 3.225806452 | I14: =IF(OR('Tabel 4F F'!I14<5,'Tabel 4 F'!I14<0.5),"-",IFERROR('Tabel 4 F'!I14/'Tabel 4F F'!I14*100,"-")) -> 5.64516129
A15: Agronom | C15: =IF(OR('Tabel 4F F'!C15<5,'Tabel 4 F'!C15<0.5),"-",IFERROR('Tabel 4 F'!C15/'Tabel 4F F'!C15*100,"-")) -> - | D15: =IF(OR('Tabel 4F F'!D15<5,'Tabel 4 F'!D15<0.5),"-",IFERROR('Tabel 4 F'!D15/'Tabel 4F F'!D15*100,"-")) -> - | E15: =IF(OR('Tabel 4F F'!E15<5,'Tabel 4 F'!E15<0.5),"-",IFERROR('Tabel 4 F'!E15/'Tabel 4F F'!E15*100,"-")) -> - | F15: =IF(OR('Tabel 4F F'!F15<5,'Tabel 4 F'!F15<0.5),"-",IFERROR('Tabel 4 F'!F15/'Tabel 4F F'!F15*100,"-")) -> 1.724137931 | G15: =IF(OR('Tabel 4F F'!G15<5,'Tabel 4 F'!G15<0.5),"-",IFERROR('Tabel 4 F'!G15/'Tabel 4F F'!G15*100,"-")) -> 6.25 | I15: =IF(OR('Tabel 4F F'!I15<5,'Tabel 4 F'!I15<0.5),"-",IFERROR('Tabel 4 F'!I15/'Tabel 4F F'!I15*100,"-")) -> 2.666666667
A16: Landsk. Arkt. | C16: =IF(OR('Tabel 4F F'!C16<5,'Tabel 4 F'!C16<0.5),"-",IFERROR('Tabel 4 F'!C16/'Tabel 4F F'!C16*100,"-")) -> - | D16: =IF(OR('Tabel 4F F'!D16<5,'Tabel 4 F'!D16<0.5),"-",IFERROR('Tabel 4 F'!D16/'Tabel 4F F'!D16*100,"-")) -> - | E16: =IF(OR('Tabel 4F F'!E16<5,'Tabel 4 F'!E16<0.5),"-",IFERROR('Tabel 4 F'!E16/'Tabel 4F F'!E16*100,"-")) -> - | F16: =IF(OR('Tabel 4F F'!F16<5,'Tabel 4 F'!F16<0.5),"-",IFERROR('Tabel 4 F'!F16/'Tabel 4F F'!F16*100,"-")) -> - | G16: =IF(OR('Tabel 4F F'!G16<5,'Tabel 4 F'!G16<0.5),"-",IFERROR('Tabel 4 F'!G16/'Tabel 4F F'!G16*100,"-")) -> - | I16: =IF(OR('Tabel 4F F'!I16<5,'Tabel 4 F'!I16<0.5),"-",IFERROR('Tabel 4 F'!I16/'Tabel 4F F'!I16*100,"-")) -> -
A17: Hortonom | C17: =IF(OR('Tabel 4F F'!C17<5,'Tabel 4 F'!C17<0.5),"-",IFERROR('Tabel 4 F'!C17/'Tabel 4F F'!C17*100,"-")) -> - | D17: =IF(OR('Tabel 4F F'!D17<5,'Tabel 4 F'!D17<0.5),"-",IFERROR('Tabel 4 F'!D17/'Tabel 4F F'!D17*100,"-")) -> - | E17: =IF(OR('Tabel 4F F'!E17<5,'Tabel 4 F'!E17<0.5),"-",IFERROR('Tabel 4 F'!E17/'Tabel 4F F'!E17*100,"-")) -> - | F17: =IF(OR('Tabel 4F F'!F17<5,'Tabel 4 F'!F17<0.5),"-",IFERROR('Tabel 4 F'!F17/'Tabel 4F F'!F17*100,"-")) -> - | G17: =IF(OR('Tabel 4F F'!G17<5,'Tabel 4 F'!G17<0.5),"-",IFERROR('Tabel 4 F'!G17/'Tabel 4F F'!G17*100,"-")) -> 18.18181818 | I17: =IF(OR('Tabel 4F F'!I17<5,'Tabel 4 F'!I17<0.5),"-",IFERROR('Tabel 4 F'!I17/'Tabel 4F F'!I17*100,"-")) -> 5.263157895
A18: Forstkand. | C18: =IF(OR('Tabel 4F F'!C18<5,'Tabel 4 F'!C18<0.5),"-",IFERROR('Tabel 4 F'!C18/'Tabel 4F F'!C18*100,"-")) -> - | D18: =IF(OR('Tabel 4F F'!D18<5,'Tabel 4 F'!D18<0.5),"-",IFERROR('Tabel 4 F'!D18/'Tabel 4F F'!D18*100,"-")) -> - | E18: =IF(OR('Tabel 4F F'!E18<5,'Tabel 4 F'!E18<0.5),"-",IFERROR('Tabel 4 F'!E18/'Tabel 4F F'!E18*100,"-")) -> 22.22222222 | F18: =IF(OR('Tabel 4F F'!F18<5,'Tabel 4 F'!F18<0.5),"-",IFERROR('Tabel 4 F'!F18/'Tabel 4F F'!F18*100,"-")) -> - | G18: =IF(OR('Tabel 4F F'!G18<5,'Tabel 4 F'!G18<0.5),"-",IFERROR('Tabel 4 F'!G18/'Tabel 4F F'!G18*100,"-")) -> - | I18: =IF(OR('Tabel 4F F'!I18<5,'Tabel 4 F'!I18<0.5),"-",IFERROR('Tabel 4 F'!I18/'Tabel 4F F'!I18*100,"-")) -> 11.53846154
A19: Jordbrugsakad. | C19: =IF(OR('Tabel 4F F'!C19<5,'Tabel 4 F'!C19<0.5),"-",IFERROR('Tabel 4 F'!C19/'Tabel 4F F'!C19*100,"-")) -> 28.57142857 | D19: =IF(OR('Tabel 4F F'!D19<5,'Tabel 4 F'!D19<0.5),"-",IFERROR('Tabel 4 F'!D19/'Tabel 4F F'!D19*100,"-")) -> - | E19: =IF(OR('Tabel 4F F'!E19<5,'Tabel 4 F'!E19<0.5),"-",IFERROR('Tabel 4 F'!E19/'Tabel 4F F'!E19*100,"-")) -> 2.985074627 | F19: =IF(OR('Tabel 4F F'!F19<5,'Tabel 4 F'!F19<0.5),"-",IFERROR('Tabel 4 F'!F19/'Tabel 4F F'!F19*100,"-")) -> 1.111111111 | G19: =IF(OR('Tabel 4F F'!G19<5,'Tabel 4 F'!G19<0.5),"-",IFERROR('Tabel 4 F'!G19/'Tabel 4F F'!G19*100,"-")) -> 8.510638298 | I19: =IF(OR('Tabel 4F F'!I19<5,'Tabel 4 F'!I19<0.5),"-",IFERROR('Tabel 4 F'!I19/'Tabel 4F F'!I19*100,"-")) -> 3.68852459
A20: Mejeriing. | C20: =IF(OR('Tabel 4F F'!C20<5,'Tabel 4 F'!C20<0.5),"-",IFERROR('Tabel 4 F'!C20/'Tabel 4F F'!C20*100,"-")) -> - | D20: =IF(OR('Tabel 4F F'!D20<5,'Tabel 4 F'!D20<0.5),"-",IFERROR('Tabel 4 F'!D20/'Tabel 4F F'!D20*100,"-")) -> - | E20: =IF(OR('Tabel 4F F'!E20<5,'Tabel 4 F'!E20<0.5),"-",IFERROR('Tabel 4 F'!E20/'Tabel 4F F'!E20*100,"-")) -> - | F20: =IF(OR('Tabel 4F F'!F20<5,'Tabel 4 F'!F20<0.5),"-",IFERROR('Tabel 4 F'!F20/'Tabel 4F F'!F20*100,"-")) -> - | G20: =IF(OR('Tabel 4F F'!G20<5,'Tabel 4 F'!G20<0.5),"-",IFERROR('Tabel 4 F'!G20/'Tabel 4F F'!G20*100,"-")) -> - | I20: =IF(OR('Tabel 4F F'!I20<5,'Tabel 4 F'!I20<0.5),"-",IFERROR('Tabel 4 F'!I20/'Tabel 4F F'!I20*100,"-")) -> -
A21: Levn.m.kand. | C21: =IF(OR('Tabel 4F F'!C21<5,'Tabel 4 F'!C21<0.5),"-",IFERROR('Tabel 4 F'!C21/'Tabel 4F F'!C21*100,"-")) -> - | D21: =IF(OR('Tabel 4F F'!D21<5,'Tabel 4 F'!D21<0.5),"-",IFERROR('Tabel 4 F'!D21/'Tabel 4F F'!D21*100,"-")) -> 10 | E21: =IF(OR('Tabel 4F F'!E21<5,'Tabel 4 F'!E21<0.5),"-",IFERROR('Tabel 4 F'!E21/'Tabel 4F F'!E21*100,"-")) -> - | F21: =IF(OR('Tabel 4F F'!F21<5,'Tabel 4 F'!F21<0.5),"-",IFERROR('Tabel 4 F'!F21/'Tabel 4F F'!F21*100,"-")) -> - | G21: =IF(OR('Tabel 4F F'!G21<5,'Tabel 4 F'!G21<0.5),"-",IFERROR('Tabel 4 F'!G21/'Tabel 4F F'!G21*100,"-")) -> - | I21: =IF(OR('Tabel 4F F'!I21<5,'Tabel 4 F'!I21<0.5),"-",IFERROR('Tabel 4 F'!I21/'Tabel 4F F'!I21*100,"-")) -> 14.28571429
A22: Dyrlæge | C22: =IF(OR('Tabel 4F F'!C22<5,'Tabel 4 F'!C22<0.5),"-",IFERROR('Tabel 4 F'!C22/'Tabel 4F F'!C22*100,"-")) -> - | D22: =IF(OR('Tabel 4F F'!D22<5,'Tabel 4 F'!D22<0.5),"-",IFERROR('Tabel 4 F'!D22/'Tabel 4F F'!D22*100,"-")) -> 2.127659574 | E22: =IF(OR('Tabel 4F F'!E22<5,'Tabel 4 F'!E22<0.5),"-",IFERROR('Tabel 4 F'!E22/'Tabel 4F F'!E22*100,"-")) -> - | F22: =IF(OR('Tabel 4F F'!F22<5,'Tabel 4 F'!F22<0.5),"-",IFERROR('Tabel 4 F'!F22/'Tabel 4F F'!F22*100,"-")) -> - | G22: =IF(OR('Tabel 4F F'!G22<5,'Tabel 4 F'!G22<0.5),"-",IFERROR('Tabel 4 F'!G22/'Tabel 4F F'!G22*100,"-")) -> - | I22: =IF(OR('Tabel 4F F'!I22<5,'Tabel 4 F'!I22<0.5),"-",IFERROR('Tabel 4 F'!I22/'Tabel 4F F'!I22*100,"-")) -> 1.492537313
A23: Farmaceut | C23: =IF(OR('Tabel 4F F'!C23<5,'Tabel 4 F'!C23<0.5),"-",IFERROR('Tabel 4 F'!C23/'Tabel 4F F'!C23*100,"-")) -> 24 | D23: =IF(OR('Tabel 4F F'!D23<5,'Tabel 4 F'!D23<0.5),"-",IFERROR('Tabel 4 F'!D23/'Tabel 4F F'!D23*100,"-")) -> 7 | E23: =IF(OR('Tabel 4F F'!E23<5,'Tabel 4 F'!E23<0.5),"-",IFERROR('Tabel 4 F'!E23/'Tabel 4F F'!E23*100,"-")) -> 1.818181818 | F23: =IF(OR('Tabel 4F F'!F23<5,'Tabel 4 F'!F23<0.5),"-",IFERROR('Tabel 4 F'!F23/'Tabel 4F F'!F23*100,"-")) -> - | G23: =IF(OR('Tabel 4F F'!G23<5,'Tabel 4 F'!G23<0.5),"-",IFERROR('Tabel 4 F'!G23/'Tabel 4F F'!G23*100,"-")) -> 11.11111111 | I23: =IF(OR('Tabel 4F F'!I23<5,'Tabel 4 F'!I23<0.5),"-",IFERROR('Tabel 4 F'!I23/'Tabel 4F F'!I23*100,"-")) -> 11.66077739
A24: Læge | C24: =IF(OR('Tabel 4F F'!C24<5,'Tabel 4 F'!C24<0.5),"-",IFERROR('Tabel 4 F'!C24/'Tabel 4F F'!C24*100,"-")) -> 1.724137931 | D24: =IF(OR('Tabel 4F F'!D24<5,'Tabel 4 F'!D24<0.5),"-",IFERROR('Tabel 4 F'!D24/'Tabel 4F F'!D24*100,"-")) -> 0.7220216606 | E24: =IF(OR('Tabel 4F F'!E24<5,'Tabel 4 F'!E24<0.5),"-",IFERROR('Tabel 4 F'!E24/'Tabel 4F F'!E24*100,"-")) -> - | F24: =IF(OR('Tabel 4F F'!F24<5,'Tabel 4 F'!F24<0.5),"-",IFERROR('Tabel 4 F'!F24/'Tabel 4F F'!F24*100,"-")) -> - | G24: =IF(OR('Tabel 4F F'!G24<5,'Tabel 4 F'!G24<0.5),"-",IFERROR('Tabel 4 F'!G24/'Tabel 4F F'!G24*100,"-")) -> - | I24: =IF(OR('Tabel 4F F'!I24<5,'Tabel 4 F'!I24<0.5),"-",IFERROR('Tabel 4 F'!I24/'Tabel 4F F'!I24*100,"-")) -> 0.6168080185
A25: Tandlæge | C25: =IF(OR('Tabel 4F F'!C25<5,'Tabel 4 F'!C25<0.5),"-",IFERROR('Tabel 4 F'!C25/'Tabel 4F F'!C25*100,"-")) -> 4 | D25: =IF(OR('Tabel 4F F'!D25<5,'Tabel 4 F'!D25<0.5),"-",IFERROR('Tabel 4 F'!D25/'Tabel 4F F'!D25*100,"-")) -> - | E25: =IF(OR('Tabel 4F F'!E25<5,'Tabel 4 F'!E25<0.5),"-",IFERROR('Tabel 4 F'!E25/'Tabel 4F F'!E25*100,"-")) -> - | F25: =IF(OR('Tabel 4F F'!F25<5,'Tabel 4 F'!F25<0.5),"-",IFERROR('Tabel 4 F'!F25/'Tabel 4F F'!F25*100,"-")) -> - | G25: =IF(OR('Tabel 4F F'!G25<5,'Tabel 4 F'!G25<0.5),"-",IFERROR('Tabel 4 F'!G25/'Tabel 4F F'!G25*100,"-")) -> 8.333333333 | I25: =IF(OR('Tabel 4F F'!I25<5,'Tabel 4 F'!I25<0.5),"-",IFERROR('Tabel 4 F'!I25/'Tabel 4F F'!I25*100,"-")) -> 1.754385965
A26: Arkitekt | C26: =IF(OR('Tabel 4F F'!C26<5,'Tabel 4 F'!C26<0.5),"-",IFERROR('Tabel 4 F'!C26/'Tabel 4F F'!C26*100,"-")) -> - | D26: =IF(OR('Tabel 4F F'!D26<5,'Tabel 4 F'!D26<0.5),"-",IFERROR('Tabel 4 F'!D26/'Tabel 4F F'!D26*100,"-")) -> - | E26: =IF(OR('Tabel 4F F'!E26<5,'Tabel 4 F'!E26<0.5),"-",IFERROR('Tabel 4 F'!E26/'Tabel 4F F'!E26*100,"-")) -> 2.127659574 | F26: =IF(OR('Tabel 4F F'!F26<5,'Tabel 4 F'!F26<0.5),"-",IFERROR('Tabel 4 F'!F26/'Tabel 4F F'!F26*100,"-")) -> 5.882352941 | G26: =IF(OR('Tabel 4F F'!G26<5,'Tabel 4 F'!G26<0.5),"-",IFERROR('Tabel 4 F'!G26/'Tabel 4F F'!G26*100,"-")) -> 3.846153846 | I26: =IF(OR('Tabel 4F F'!I26<5,'Tabel 4 F'!I26<0.5),"-",IFERROR('Tabel 4 F'!I26/'Tabel 4F F'!I26*100,"-")) -> 2.898550725
A27: Landinspek. | C27: =IF(OR('Tabel 4F F'!C27<5,'Tabel 4 F'!C27<0.5),"-",IFERROR('Tabel 4 F'!C27/'Tabel 4F F'!C27*100,"-")) -> - | D27: =IF(OR('Tabel 4F F'!D27<5,'Tabel 4 F'!D27<0.5),"-",IFERROR('Tabel 4 F'!D27/'Tabel 4F F'!D27*100,"-")) -> - | E27: =IF(OR('Tabel 4F F'!E27<5,'Tabel 4 F'!E27<0.5),"-",IFERROR('Tabel 4 F'!E27/'Tabel 4F F'!E27*100,"-")) -> - | F27: =IF(OR('Tabel 4F F'!F27<5,'Tabel 4 F'!F27<0.5),"-",IFERROR('Tabel 4 F'!F27/'Tabel 4F F'!F27*100,"-")) -> - | G27: =IF(OR('Tabel 4F F'!G27<5,'Tabel 4 F'!G27<0.5),"-",IFERROR('Tabel 4 F'!G27/'Tabel 4F F'!G27*100,"-")) -> - | I27: =IF(OR('Tabel 4F F'!I27<5,'Tabel 4 F'!I27<0.5),"-",IFERROR('Tabel 4 F'!I27/'Tabel 4F F'!I27*100,"-")) -> -
A28: Bibliotekar | C28: =IF(OR('Tabel 4F F'!C28<5,'Tabel 4 F'!C28<0.5),"-",IFERROR('Tabel 4 F'!C28/'Tabel 4F F'!C28*100,"-")) -> - | D28: =IF(OR('Tabel 4F F'!D28<5,'Tabel 4 F'!D28<0.5),"-",IFERROR('Tabel 4 F'!D28/'Tabel 4F F'!D28*100,"-")) -> 10 | E28: =IF(OR('Tabel 4F F'!E28<5,'Tabel 4 F'!E28<0.5),"-",IFERROR('Tabel 4 F'!E28/'Tabel 4F F'!E28*100,"-")) -> 3.125 | F28: =IF(OR('Tabel 4F F'!F28<5,'Tabel 4 F'!F28<0.5),"-",IFERROR('Tabel 4 F'!F28/'Tabel 4F F'!F28*100,"-")) -> 3.448275862 | G28: =IF(OR('Tabel 4F F'!G28<5,'Tabel 4 F'!G28<0.5),"-",IFERROR('Tabel 4 F'!G28/'Tabel 4F F'!G28*100,"-")) -> 5.263157895 | I28: =IF(OR('Tabel 4F F'!I28<5,'Tabel 4 F'!I28<0.5),"-",IFERROR('Tabel 4 F'!I28/'Tabel 4F F'!I28*100,"-")) -> 4.87804878
A29: Musikudd. | C29: =IF(OR('Tabel 4F F'!C29<5,'Tabel 4 F'!C29<0.5),"-",IFERROR('Tabel 4 F'!C29/'Tabel 4F F'!C29*100,"-")) -> - | D29: =IF(OR('Tabel 4F F'!D29<5,'Tabel 4 F'!D29<0.5),"-",IFERROR('Tabel 4 F'!D29/'Tabel 4F F'!D29*100,"-")) -> 10.52631579 | E29: =IF(OR('Tabel 4F F'!E29<5,'Tabel 4 F'!E29<0.5),"-",IFERROR('Tabel 4 F'!E29/'Tabel 4F F'!E29*100,"-")) -> 5.882352941 | F29: =IF(OR('Tabel 4F F'!F29<5,'Tabel 4 F'!F29<0.5),"-",IFERROR('Tabel 4 F'!F29/'Tabel 4F F'!F29*100,"-")) -> - | G29: =IF(OR('Tabel 4F F'!G29<5,'Tabel 4 F'!G29<0.5),"-",IFERROR('Tabel 4 F'!G29/'Tabel 4F F'!G29*100,"-")) -> 7.692307692 | I29: =IF(OR('Tabel 4F F'!I29<5,'Tabel 4 F'!I29<0.5),"-",IFERROR('Tabel 4 F'!I29/'Tabel 4F F'!I29*100,"-")) -> 5.263157895
A30: Teolog | C30: =IF(OR('Tabel 4F F'!C30<5,'Tabel 4 F'!C30<0.5),"-",IFERROR('Tabel 4 F'!C30/'Tabel 4F F'!C30*100,"-")) -> - | D30: =IF(OR('Tabel 4F F'!D30<5,'Tabel 4 F'!D30<0.5),"-",IFERROR('Tabel 4 F'!D30/'Tabel 4F F'!D30*100,"-")) -> - | E30: =IF(OR('Tabel 4F F'!E30<5,'Tabel 4 F'!E30<0.5),"-",IFERROR('Tabel 4 F'!E30/'Tabel 4F F'!E30*100,"-")) -> - | F30: =IF(OR('Tabel 4F F'!F30<5,'Tabel 4 F'!F30<0.5),"-",IFERROR('Tabel 4 F'!F30/'Tabel 4F F'!F30*100,"-")) -> 2.43902439 | G30: =IF(OR('Tabel 4F F'!G30<5,'Tabel 4 F'!G30<0.5),"-",IFERROR('Tabel 4 F'!G30/'Tabel 4F F'!G30*100,"-")) -> - | I30: =IF(OR('Tabel 4F F'!I30<5,'Tabel 4 F'!I30<0.5),"-",IFERROR('Tabel 4 F'!I30/'Tabel 4F F'!I30*100,"-")) -> 0.826446281
A31: Psykolog | C31: =IF(OR('Tabel 4F F'!C31<5,'Tabel 4 F'!C31<0.5),"-",IFERROR('Tabel 4 F'!C31/'Tabel 4F F'!C31*100,"-")) -> 16.21621622 | D31: =IF(OR('Tabel 4F F'!D31<5,'Tabel 4 F'!D31<0.5),"-",IFERROR('Tabel 4 F'!D31/'Tabel 4F F'!D31*100,"-")) -> 7.462686567 | E31: =IF(OR('Tabel 4F F'!E31<5,'Tabel 4 F'!E31<0.5),"-",IFERROR('Tabel 4 F'!E31/'Tabel 4F F'!E31*100,"-")) -> 2.419354839 | F31: =IF(OR('Tabel 4F F'!F31<5,'Tabel 4 F'!F31<0.5),"-",IFERROR('Tabel 4 F'!F31/'Tabel 4F F'!F31*100,"-")) -> 1.587301587 | G31: =IF(OR('Tabel 4F F'!G31<5,'Tabel 4 F'!G31<0.5),"-",IFERROR('Tabel 4 F'!G31/'Tabel 4F F'!G31*100,"-")) -> 3.448275862 | I31: =IF(OR('Tabel 4F F'!I31<5,'Tabel 4 F'!I31<0.5),"-",IFERROR('Tabel 4 F'!I31/'Tabel 4F F'!I31*100,"-")) -> 7.787610619
A32: Jurist | C32: =IF(OR('Tabel 4F F'!C32<5,'Tabel 4 F'!C32<0.5),"-",IFERROR('Tabel 4 F'!C32/'Tabel 4F F'!C32*100,"-")) -> 5.154639175 | D32: =IF(OR('Tabel 4F F'!D32<5,'Tabel 4 F'!D32<0.5),"-",IFERROR('Tabel 4 F'!D32/'Tabel 4F F'!D32*100,"-")) -> 3.2 | E32: =IF(OR('Tabel 4F F'!E32<5,'Tabel 4 F'!E32<0.5),"-",IFERROR('Tabel 4 F'!E32/'Tabel 4F F'!E32*100,"-")) -> 1.898734177 | F32: =IF(OR('Tabel 4F F'!F32<5,'Tabel 4 F'!F32<0.5),"-",IFERROR('Tabel 4 F'!F32/'Tabel 4F F'!F32*100,"-")) -> - | G32: =IF(OR('Tabel 4F F'!G32<5,'Tabel 4 F'!G32<0.5),"-",IFERROR('Tabel 4 F'!G32/'Tabel 4F F'!G32*100,"-")) -> 14.28571429 | I32: =IF(OR('Tabel 4F F'!I32<5,'Tabel 4 F'!I32<0.5),"-",IFERROR('Tabel 4 F'!I32/'Tabel 4F F'!I32*100,"-")) -> 3.387096774
A33: Økonom | C33: =IF(OR('Tabel 4F F'!C33<5,'Tabel 4 F'!C33<0.5),"-",IFERROR('Tabel 4 F'!C33/'Tabel 4F F'!C33*100,"-")) -> 8.609271523 | D33: =IF(OR('Tabel 4F F'!D33<5,'Tabel 4 F'!D33<0.5),"-",IFERROR('Tabel 4 F'!D33/'Tabel 4F F'!D33*100,"-")) -> 3.75 | E33: =IF(OR('Tabel 4F F'!E33<5,'Tabel 4 F'!E33<0.5),"-",IFERROR('Tabel 4 F'!E33/'Tabel 4F F'!E33*100,"-")) -> 0.6711409396 | F33: =IF(OR('Tabel 4F F'!F33<5,'Tabel 4 F'!F33<0.5),"-",IFERROR('Tabel 4 F'!F33/'Tabel 4F F'!F33*100,"-")) -> 2.631578947 | G33: =IF(OR('Tabel 4F F'!G33<5,'Tabel 4 F'!G33<0.5),"-",IFERROR('Tabel 4 F'!G33/'Tabel 4F F'!G33*100,"-")) -> - | I33: =IF(OR('Tabel 4F F'!I33<5,'Tabel 4 F'!I33<0.5),"-",IFERROR('Tabel 4 F'!I33/'Tabel 4F F'!I33*100,"-")) -> 3.859060403
A34: Samf. Adm. | C34: =IF(OR('Tabel 4F F'!C34<5,'Tabel 4 F'!C34<0.5),"-",IFERROR('Tabel 4 F'!C34/'Tabel 4F F'!C34*100,"-")) -> 28.13559322 | D34: =IF(OR('Tabel 4F F'!D34<5,'Tabel 4 F'!D34<0.5),"-",IFERROR('Tabel 4 F'!D34/'Tabel 4F F'!D34*100,"-")) -> 7.530647986 | E34: =IF(OR('Tabel 4F F'!E34<5,'Tabel 4 F'!E34<0.5),"-",IFERROR('Tabel 4 F'!E34/'Tabel 4F F'!E34*100,"-")) -> 5.39083558 | F34: =IF(OR('Tabel 4F F'!F34<5,'Tabel 4 F'!F34<0.5),"-",IFERROR('Tabel 4 F'!F34/'Tabel 4F F'!F34*100,"-")) -> 3.720930233 | G34: =IF(OR('Tabel 4F F'!G34<5,'Tabel 4 F'!G34<0.5),"-",IFERROR('Tabel 4 F'!G34/'Tabel 4F F'!G34*100,"-")) -> 8.510638298 | I34: =IF(OR('Tabel 4F F'!I34<5,'Tabel 4 F'!I34<0.5),"-",IFERROR('Tabel 4 F'!I34/'Tabel 4F F'!I34*100,"-")) -> 10.54036024
A35: Cand. Merc. | C35: =IF(OR('Tabel 4F F'!C35<5,'Tabel 4 F'!C35<0.5),"-",IFERROR('Tabel 4 F'!C35/'Tabel 4F F'!C35*100,"-")) -> 18.75 | D35: =IF(OR('Tabel 4F F'!D35<5,'Tabel 4 F'!D35<0.5),"-",IFERROR('Tabel 4 F'!D35/'Tabel 4F F'!D35*100,"-")) -> 7.746478873 | E35: =IF(OR('Tabel 4F F'!E35<5,'Tabel 4 F'!E35<0.5),"-",IFERROR('Tabel 4 F'!E35/'Tabel 4F F'!E35*100,"-")) -> 3.244837758 | F35: =IF(OR('Tabel 4F F'!F35<5,'Tabel 4 F'!F35<0.5),"-",IFERROR('Tabel 4 F'!F35/'Tabel 4F F'!F35*100,"-")) -> 4.411764706 | G35: =IF(OR('Tabel 4F F'!G35<5,'Tabel 4 F'!G35<0.5),"-",IFERROR('Tabel 4 F'!G35/'Tabel 4F F'!G35*100,"-")) -> 4.166666667 | I35: =IF(OR('Tabel 4F F'!I35<5,'Tabel 4 F'!I35<0.5),"-",IFERROR('Tabel 4 F'!I35/'Tabel 4F F'!I35*100,"-")) -> 9.025866813
A36: HA | C36: =IF(OR('Tabel 4F F'!C36<5,'Tabel 4 F'!C36<0.5),"-",IFERROR('Tabel 4 F'!C36/'Tabel 4F F'!C36*100,"-")) -> 25.19083969 | D36: =IF(OR('Tabel 4F F'!D36<5,'Tabel 4 F'!D36<0.5),"-",IFERROR('Tabel 4 F'!D36/'Tabel 4F F'!D36*100,"-")) -> 9.411764706 | E36: =IF(OR('Tabel 4F F'!E36<5,'Tabel 4 F'!E36<0.5),"-",IFERROR('Tabel 4 F'!E36/'Tabel 4F F'!E36*100,"-")) -> 8.064516129 | F36: =IF(OR('Tabel 4F F'!F36<5,'Tabel 4 F'!F36<0.5),"-",IFERROR('Tabel 4 F'!F36/'Tabel 4F F'!F36*100,"-")) -> 5.405405405 | G36: =IF(OR('Tabel 4F F'!G36<5,'Tabel 4 F'!G36<0.5),"-",IFERROR('Tabel 4 F'!G36/'Tabel 4F F'!G36*100,"-")) -> 9.302325581 | I36: =IF(OR('Tabel 4F F'!I36<5,'Tabel 4 F'!I36<0.5),"-",IFERROR('Tabel 4 F'!I36/'Tabel 4F F'!I36*100,"-")) -> 12.96296296
A37: HD | C37: =IF(OR('Tabel 4F F'!C37<5,'Tabel 4 F'!C37<0.5),"-",IFERROR('Tabel 4 F'!C37/'Tabel 4F F'!C37*100,"-")) -> 42.5 | D37: =IF(OR('Tabel 4F F'!D37<5,'Tabel 4 F'!D37<0.5),"-",IFERROR('Tabel 4 F'!D37/'Tabel 4F F'!D37*100,"-")) -> 14.28571429 | E37: =IF(OR('Tabel 4F F'!E37<5,'Tabel 4 F'!E37<0.5),"-",IFERROR('Tabel 4 F'!E37/'Tabel 4F F'!E37*100,"-")) -> 3.921568627 | F37: =IF(OR('Tabel 4F F'!F37<5,'Tabel 4 F'!F37<0.5),"-",IFERROR('Tabel 4 F'!F37/'Tabel 4F F'!F37*100,"-")) -> 1.801801802 | G37: =IF(OR('Tabel 4F F'!G37<5,'Tabel 4 F'!G37<0.5),"-",IFERROR('Tabel 4 F'!G37/'Tabel 4F F'!G37*100,"-")) -> 11.36363636 | I37: =IF(OR('Tabel 4F F'!I37<5,'Tabel 4 F'!I37<0.5),"-",IFERROR('Tabel 4 F'!I37/'Tabel 4F F'!I37*100,"-")) -> 11.25827815
A38: Komm. og Sprog | C38: =IF(OR('Tabel 4F F'!C38<5,'Tabel 4 F'!C38<0.5),"-",IFERROR('Tabel 4 F'!C38/'Tabel 4F F'!C38*100,"-")) -> 33.72093023 | D38: =IF(OR('Tabel 4F F'!D38<5,'Tabel 4 F'!D38<0.5),"-",IFERROR('Tabel 4 F'!D38/'Tabel 4F F'!D38*100,"-")) -> 11.20689655 | E38: =IF(OR('Tabel 4F F'!E38<5,'Tabel 4 F'!E38<0.5),"-",IFERROR('Tabel 4 F'!E38/'Tabel 4F F'!E38*100,"-")) -> 4.504504505 | F38: =IF(OR('Tabel 4F F'!F38<5,'Tabel 4 F'!F38<0.5),"-",IFERROR('Tabel 4 F'!F38/'Tabel 4F F'!F38*100,"-")) -> 6.818181818 | G38: =IF(OR('Tabel 4F F'!G38<5,'Tabel 4 F'!G38<0.5),"-",IFERROR('Tabel 4 F'!G38/'Tabel 4F F'!G38*100,"-")) -> 5.128205128 | I38: =IF(OR('Tabel 4F F'!I38<5,'Tabel 4 F'!I38<0.5),"-",IFERROR('Tabel 4 F'!I38/'Tabel 4F F'!I38*100,"-")) -> 12.5
A39: Bygningskonst. | C39: =IF(OR('Tabel 4F F'!C39<5,'Tabel 4 F'!C39<0.5),"-",IFERROR('Tabel 4 F'!C39/'Tabel 4F F'!C39*100,"-")) -> 15.6462585 | D39: =IF(OR('Tabel 4F F'!D39<5,'Tabel 4 F'!D39<0.5),"-",IFERROR('Tabel 4 F'!D39/'Tabel 4F F'!D39*100,"-")) -> 6.35359116 | E39: =IF(OR('Tabel 4F F'!E39<5,'Tabel 4 F'!E39<0.5),"-",IFERROR('Tabel 4 F'!E39/'Tabel 4F F'!E39*100,"-")) -> 4.807692308 | F39: =IF(OR('Tabel 4F F'!F39<5,'Tabel 4 F'!F39<0.5),"-",IFERROR('Tabel 4 F'!F39/'Tabel 4F F'!F39*100,"-")) -> 5 | G39: =IF(OR('Tabel 4F F'!G39<5,'Tabel 4 F'!G39<0.5),"-",IFERROR('Tabel 4 F'!G39/'Tabel 4F F'!G39*100,"-")) -> - | I39: =IF(OR('Tabel 4F F'!I39<5,'Tabel 4 F'!I39<0.5),"-",IFERROR('Tabel 4 F'!I39/'Tabel 4F F'!I39*100,"-")) -> 7.20188902
A40: Cand. IT. | C40: =IF(OR('Tabel 4F F'!C40<5,'Tabel 4 F'!C40<0.5),"-",IFERROR('Tabel 4 F'!C40/'Tabel 4F F'!C40*100,"-")) -> 34.7826087 | D40: =IF(OR('Tabel 4F F'!D40<5,'Tabel 4 F'!D40<0.5),"-",IFERROR('Tabel 4 F'!D40/'Tabel 4F F'!D40*100,"-")) -> 27.16049383 | E40: =IF(OR('Tabel 4F F'!E40<5,'Tabel 4 F'!E40<0.5),"-",IFERROR('Tabel 4 F'!E40/'Tabel 4F F'!E40*100,"-")) -> 5.555555556 | F40: =IF(OR('Tabel 4F F'!F40<5,'Tabel 4 F'!F40<0.5),"-",IFERROR('Tabel 4 F'!F40/'Tabel 4F F'!F40*100,"-")) -> - | G40: =IF(OR('Tabel 4F F'!G40<5,'Tabel 4 F'!G40<0.5),"-",IFERROR('Tabel 4 F'!G40/'Tabel 4F F'!G40*100,"-")) -> - | I40: =IF(OR('Tabel 4F F'!I40<5,'Tabel 4 F'!I40<0.5),"-",IFERROR('Tabel 4 F'!I40/'Tabel 4F F'!I40*100,"-")) -> 22.7027027
A41: Bac. Samf. | C41: =IF(OR('Tabel 4F F'!C41<5,'Tabel 4 F'!C41<0.5),"-",IFERROR('Tabel 4 F'!C41/'Tabel 4F F'!C41*100,"-")) -> 37.03703704 | D41: =IF(OR('Tabel 4F F'!D41<5,'Tabel 4 F'!D41<0.5),"-",IFERROR('Tabel 4 F'!D41/'Tabel 4F F'!D41*100,"-")) -> - | E41: =IF(OR('Tabel 4F F'!E41<5,'Tabel 4 F'!E41<0.5),"-",IFERROR('Tabel 4 F'!E41/'Tabel 4F F'!E41*100,"-")) -> 12.5 | F41: =IF(OR('Tabel 4F F'!F41<5,'Tabel 4 F'!F41<0.5),"-",IFERROR('Tabel 4 F'!F41/'Tabel 4F F'!F41*100,"-")) -> - | G41: =IF(OR('Tabel 4F F'!G41<5,'Tabel 4 F'!G41<0.5),"-",IFERROR('Tabel 4 F'!G41/'Tabel 4F F'!G41*100,"-")) -> - | I41: =IF(OR('Tabel 4F F'!I41<5,'Tabel 4 F'!I41<0.5),"-",IFERROR('Tabel 4 F'!I41/'Tabel 4F F'!I41*100,"-")) -> 17.10526316
A42: Bac. Hum. | C42: =IF(OR('Tabel 4F F'!C42<5,'Tabel 4 F'!C42<0.5),"-",IFERROR('Tabel 4 F'!C42/'Tabel 4F F'!C42*100,"-")) -> 28.8 | D42: =IF(OR('Tabel 4F F'!D42<5,'Tabel 4 F'!D42<0.5),"-",IFERROR('Tabel 4 F'!D42/'Tabel 4F F'!D42*100,"-")) -> 19.31818182 | E42: =IF(OR('Tabel 4F F'!E42<5,'Tabel 4 F'!E42<0.5),"-",IFERROR('Tabel 4 F'!E42/'Tabel 4F F'!E42*100,"-")) -> 3.896103896 | F42: =IF(OR('Tabel 4F F'!F42<5,'Tabel 4 F'!F42<0.5),"-",IFERROR('Tabel 4 F'!F42/'Tabel 4F F'!F42*100,"-")) -> 10 | G42: =IF(OR('Tabel 4F F'!G42<5,'Tabel 4 F'!G42<0.5),"-",IFERROR('Tabel 4 F'!G42/'Tabel 4F F'!G42*100,"-")) -> 16.66666667 | I42: =IF(OR('Tabel 4F F'!I42<5,'Tabel 4 F'!I42<0.5),"-",IFERROR('Tabel 4 F'!I42/'Tabel 4F F'!I42*100,"-")) -> 17.89772727
A43: Bac. Nat. | C43: =IF(OR('Tabel 4F F'!C43<5,'Tabel 4 F'!C43<0.5),"-",IFERROR('Tabel 4 F'!C43/'Tabel 4F F'!C43*100,"-")) -> 22.72727273 | D43: =IF(OR('Tabel 4F F'!D43<5,'Tabel 4 F'!D43<0.5),"-",IFERROR('Tabel 4 F'!D43/'Tabel 4F F'!D43*100,"-")) -> 5.555555556 | E43: =IF(OR('Tabel 4F F'!E43<5,'Tabel 4 F'!E43<0.5),"-",IFERROR('Tabel 4 F'!E43/'Tabel 4F F'!E43*100,"-")) -> 8.333333333 | F43: =IF(OR('Tabel 4F F'!F43<5,'Tabel 4 F'!F43<0.5),"-",IFERROR('Tabel 4 F'!F43/'Tabel 4F F'!F43*100,"-")) -> 7.142857143 | G43: =IF(OR('Tabel 4F F'!G43<5,'Tabel 4 F'!G43<0.5),"-",IFERROR('Tabel 4 F'!G43/'Tabel 4F F'!G43*100,"-")) -> - | I43: =IF(OR('Tabel 4F F'!I43<5,'Tabel 4 F'!I43<0.5),"-",IFERROR('Tabel 4 F'!I43/'Tabel 4F F'!I43*100,"-")) -> 14.28571429
A44: Andre | C44: =IF(OR('Tabel 4F F'!C44<5,'Tabel 4 F'!C44<0.5),"-",IFERROR('Tabel 4 F'!C44/'Tabel 4F F'!C44*100,"-")) -> 19.08713693 | D44: =IF(OR('Tabel 4F F'!D44<5,'Tabel 4 F'!D44<0.5),"-",IFERROR('Tabel 4 F'!D44/'Tabel 4F F'!D44*100,"-")) -> 6.575342466 | E44: =IF(OR('Tabel 4F F'!E44<5,'Tabel 4 F'!E44<0.5),"-",IFERROR('Tabel 4 F'!E44/'Tabel 4F F'!E44*100,"-")) -> 7.419354839 | F44: =IF(OR('Tabel 4F F'!F44<5,'Tabel 4 F'!F44<0.5),"-",IFERROR('Tabel 4 F'!F44/'Tabel 4F F'!F44*100,"-")) -> 5.220883534 | G44: =IF(OR('Tabel 4F F'!G44<5,'Tabel 4 F'!G44<0.5),"-",IFERROR('Tabel 4 F'!G44/'Tabel 4F F'!G44*100,"-")) -> 14.17910448 | I44: =IF(OR('Tabel 4F F'!I44<5,'Tabel 4 F'!I44<0.5),"-",IFERROR('Tabel 4 F'!I44/'Tabel 4F F'!I44*100,"-")) -> 9.622786759
A46: Total | C46: =IF(OR('Tabel 4F F'!C46<5,'Tabel 4 F'!C46<0.5),"-",IFERROR('Tabel 4 F'!C46/'Tabel 4F F'!C46*100,"-")) -> 21.52505447 | D46: =IF(OR('Tabel 4F F'!D46<5,'Tabel 4 F'!D46<0.5),"-",IFERROR('Tabel 4 F'!D46/'Tabel 4F F'!D46*100,"-")) -> 7.311679337 | E46: =IF(OR('Tabel 4F F'!E46<5,'Tabel 4 F'!E46<0.5),"-",IFERROR('Tabel 4 F'!E46/'Tabel 4F F'!E46*100,"-")) -> 3.934602946 | F46: =IF(OR('Tabel 4F F'!F46<5,'Tabel 4 F'!F46<0.5),"-",IFERROR('Tabel 4 F'!F46/'Tabel 4F F'!F46*100,"-")) -> 3.71007371 | G46: =IF(OR('Tabel 4F F'!G46<5,'Tabel 4 F'!G46<0.5),"-",IFERROR('Tabel 4 F'!G46/'Tabel 4F F'!G46*100,"-")) -> 7.089297887 | I46: =IF(OR('Tabel 4F F'!I46<5,'Tabel 4 F'!I46<0.5),"-",IFERROR('Tabel 4 F'!I46/'Tabel 4F F'!I46*100,"-")) -> 8.683705513
A48: Ingeniører i alt | C48: =IF(OR('Tabel 4F F'!C48<5,'Tabel 4 F'!C48<0.5),"-",IFERROR('Tabel 4 F'!C48/'Tabel 4F F'!C48*100,"-")) -> 17.07021792 | D48: =IF(OR('Tabel 4F F'!D48<5,'Tabel 4 F'!D48<0.5),"-",IFERROR('Tabel 4 F'!D48/'Tabel 4F F'!D48*100,"-")) -> 2.622377622 | E48: =IF(OR('Tabel 4F F'!E48<5,'Tabel 4 F'!E48<0.5),"-",IFERROR('Tabel 4 F'!E48/'Tabel 4F F'!E48*100,"-")) -> 2.550091075 | F48: =IF(OR('Tabel 4F F'!F48<5,'Tabel 4 F'!F48<0.5),"-",IFERROR('Tabel 4 F'!F48/'Tabel 4F F'!F48*100,"-")) -> 3.469210755 | G48: =IF(OR('Tabel 4F F'!G48<5,'Tabel 4 F'!G48<0.5),"-",IFERROR('Tabel 4 F'!G48/'Tabel 4F F'!G48*100,"-")) -> 3.90625 | I48: =IF(OR('Tabel 4F F'!I48<5,'Tabel 4 F'!I48<0.5),"-",IFERROR('Tabel 4 F'!I48/'Tabel 4F F'!I48*100,"-")) -> 5.515743757
A49: Magistre i alt | C49: =IF(OR('Tabel 4F F'!C49<5,'Tabel 4 F'!C49<0.5),"-",IFERROR('Tabel 4 F'!C49/'Tabel 4F F'!C49*100,"-")) -> 33.20413437 | D49: =IF(OR('Tabel 4F F'!D49<5,'Tabel 4 F'!D49<0.5),"-",IFERROR('Tabel 4 F'!D49/'Tabel 4F F'!D49*100,"-")) -> 12.67326733 | E49: =IF(OR('Tabel 4F F'!E49<5,'Tabel 4 F'!E49<0.5),"-",IFERROR('Tabel 4 F'!E49/'Tabel 4F F'!E49*100,"-")) -> 5.36258379 | F49: =IF(OR('Tabel 4F F'!F49<5,'Tabel 4 F'!F49<0.5),"-",IFERROR('Tabel 4 F'!F49/'Tabel 4F F'!F49*100,"-")) -> 4.929577465 | G49: =IF(OR('Tabel 4F F'!G49<5,'Tabel 4 F'!G49<0.5),"-",IFERROR('Tabel 4 F'!G49/'Tabel 4F F'!G49*100,"-")) -> 9.036144578 | I49: =IF(OR('Tabel 4F F'!I49<5,'Tabel 4 F'!I49<0.5),"-",IFERROR('Tabel 4 F'!I49/'Tabel 4F F'!I49*100,"-")) -> 11.90848651
A50: DJØF'ere i alt | C50: =IF(OR('Tabel 4F F'!C50<5,'Tabel 4 F'!C50<0.5),"-",IFERROR('Tabel 4 F'!C50/'Tabel 4F F'!C50*100,"-")) -> 19.42959002 | D50: =IF(OR('Tabel 4F F'!D50<5,'Tabel 4 F'!D50<0.5),"-",IFERROR('Tabel 4 F'!D50/'Tabel 4F F'!D50*100,"-")) -> 6.756756757 | E50: =IF(OR('Tabel 4F F'!E50<5,'Tabel 4 F'!E50<0.5),"-",IFERROR('Tabel 4 F'!E50/'Tabel 4F F'!E50*100,"-")) -> 3.707136237 | F50: =IF(OR('Tabel 4F F'!F50<5,'Tabel 4 F'!F50<0.5),"-",IFERROR('Tabel 4 F'!F50/'Tabel 4F F'!F50*100,"-")) -> 3.661616162 | G50: =IF(OR('Tabel 4F F'!G50<5,'Tabel 4 F'!G50<0.5),"-",IFERROR('Tabel 4 F'!G50/'Tabel 4F F'!G50*100,"-")) -> 7.692307692 | I50: =IF(OR('Tabel 4F F'!I50<5,'Tabel 4 F'!I50<0.5),"-",IFERROR('Tabel 4 F'!I50/'Tabel 4F F'!I50*100,"-")) -> 8.501208703
A57: Middelfart
C59: Under 30 år | D59: 30 - 39 år | E59: 40 - 49 år | F59: 50 - 59 år | G59: Over 60 år | I59: I alt
A61: Civ. ing. | C61: =IF(OR('Tabel 4F F'!C61<5,'Tabel 4 F'!C61<0.5),"-",IFERROR('Tabel 4 F'!C61/'Tabel 4F F'!C61*100,"-")) -> - | D61: =IF(OR('Tabel 4F F'!D61<5,'Tabel 4 F'!D61<0.5),"-",IFERROR('Tabel 4 F'!D61/'Tabel 4F F'!D61*100,"-")) -> - | E61: =IF(OR('Tabel 4F F'!E61<5,'Tabel 4 F'!E61<0.5),"-",IFERROR('Tabel 4 F'!E61/'Tabel 4F F'!E61*100,"-")) -> - | F61: =IF(OR('Tabel 4F F'!F61<5,'Tabel 4 F'!F61<0.5),"-",IFERROR('Tabel 4 F'!F61/'Tabel 4F F'!F61*100,"-")) -> - | G61: =IF(OR('Tabel 4F F'!G61<5,'Tabel 4 F'!G61<0.5),"-",IFERROR('Tabel 4 F'!G61/'Tabel 4F F'!G61*100,"-")) -> - | I61: =IF(OR('Tabel 4F F'!I61<5,'Tabel 4 F'!I61<0.5),"-",IFERROR('Tabel 4 F'!I61/'Tabel 4F F'!I61*100,"-")) -> -
A62: Diplom ing. | C62: =IF(OR('Tabel 4F F'!C62<5,'Tabel 4 F'!C62<0.5),"-",IFERROR('Tabel 4 F'!C62/'Tabel 4F F'!C62*100,"-")) -> 18.75 | D62: =IF(OR('Tabel 4F F'!D62<5,'Tabel 4 F'!D62<0.5),"-",IFERROR('Tabel 4 F'!D62/'Tabel 4F F'!D62*100,"-")) -> 3.636363636 | E62: =IF(OR('Tabel 4F F'!E62<5,'Tabel 4 F'!E62<0.5),"-",IFERROR('Tabel 4 F'!E62/'Tabel 4F F'!E62*100,"-")) -> 5.405405405 | F62: =IF(OR('Tabel 4F F'!F62<5,'Tabel 4 F'!F62<0.5),"-",IFERROR('Tabel 4 F'!F62/'Tabel 4F F'!F62*100,"-")) -> 2.702702703 | G62: =IF(OR('Tabel 4F F'!G62<5,'Tabel 4 F'!G62<0.5),"-",IFERROR('Tabel 4 F'!G62/'Tabel 4F F'!G62*100,"-")) -> 5.555555556 | I62: =IF(OR('Tabel 4F F'!I62<5,'Tabel 4 F'!I62<0.5),"-",IFERROR('Tabel 4 F'!I62/'Tabel 4F F'!I62*100,"-")) -> 4.794520548
A63: Cand. Scient. Tek | C63: =IF(OR('Tabel 4F F'!C63<5,'Tabel 4 F'!C63<0.5),"-",IFERROR('Tabel 4 F'!C63/'Tabel 4F F'!C63*100,"-")) -> 14.28571429 | D63: =IF(OR('Tabel 4F F'!D63<5,'Tabel 4 F'!D63<0.5),"-",IFERROR('Tabel 4 F'!D63/'Tabel 4F F'!D63*100,"-")) -> 11.11111111 | E63: =IF(OR('Tabel 4F F'!E63<5,'Tabel 4 F'!E63<0.5),"-",IFERROR('Tabel 4 F'!E63/'Tabel 4F F'!E63*100,"-")) -> 5.555555556 | F63: =IF(OR('Tabel 4F F'!F63<5,'Tabel 4 F'!F63<0.5),"-",IFERROR('Tabel 4 F'!F63/'Tabel 4F F'!F63*100,"-")) -> - | G63: =IF(OR('Tabel 4F F'!G63<5,'Tabel 4 F'!G63<0.5),"-",IFERROR('Tabel 4 F'!G63/'Tabel 4F F'!G63*100,"-")) -> - | I63: =IF(OR('Tabel 4F F'!I63<5,'Tabel 4 F'!I63<0.5),"-",IFERROR('Tabel 4 F'!I63/'Tabel 4F F'!I63*100,"-")) -> 9.375
A64: MA. Hum. | C64: =IF(OR('Tabel 4F F'!C64<5,'Tabel 4 F'!C64<0.5),"-",IFERROR('Tabel 4 F'!C64/'Tabel 4F F'!C64*100,"-")) -> 29.41176471 | D64: =IF(OR('Tabel 4F F'!D64<5,'Tabel 4 F'!D64<0.5),"-",IFERROR('Tabel 4 F'!D64/'Tabel 4F F'!D64*100,"-")) -> 5.769230769 | E64: =IF(OR('Tabel 4F F'!E64<5,'Tabel 4 F'!E64<0.5),"-",IFERROR('Tabel 4 F'!E64/'Tabel 4F F'!E64*100,"-")) -> 4.6875 | F64: =IF(OR('Tabel 4F F'!F64<5,'Tabel 4 F'!F64<0.5),"-",IFERROR('Tabel 4 F'!F64/'Tabel 4F F'!F64*100,"-")) -> - | G64: =IF(OR('Tabel 4F F'!G64<5,'Tabel 4 F'!G64<0.5),"-",IFERROR('Tabel 4 F'!G64/'Tabel 4F F'!G64*100,"-")) -> 8.333333333 | I64: =IF(OR('Tabel 4F F'!I64<5,'Tabel 4 F'!I64<0.5),"-",IFERROR('Tabel 4 F'!I64/'Tabel 4F F'!I64*100,"-")) -> 7.01754386
A65: MA. Nat. | C65: =IF(OR('Tabel 4F F'!C65<5,'Tabel 4 F'!C65<0.5),"-",IFERROR('Tabel 4 F'!C65/'Tabel 4F F'!C65*100,"-")) -> - | D65: =IF(OR('Tabel 4F F'!D65<5,'Tabel 4 F'!D65<0.5),"-",IFERROR('Tabel 4 F'!D65/'Tabel 4F F'!D65*100,"-")) -> 18.18181818 | E65: =IF(OR('Tabel 4F F'!E65<5,'Tabel 4 F'!E65<0.5),"-",IFERROR('Tabel 4 F'!E65/'Tabel 4F F'!E65*100,"-")) -> - | F65: =IF(OR('Tabel 4F F'!F65<5,'Tabel 4 F'!F65<0.5),"-",IFERROR('Tabel 4 F'!F65/'Tabel 4F F'!F65*100,"-")) -> 5.555555556 | G65: =IF(OR('Tabel 4F F'!G65<5,'Tabel 4 F'!G65<0.5),"-",IFERROR('Tabel 4 F'!G65/'Tabel 4F F'!G65*100,"-")) -> - | I65: =IF(OR('Tabel 4F F'!I65<5,'Tabel 4 F'!I65<0.5),"-",IFERROR('Tabel 4 F'!I65/'Tabel 4F F'!I65*100,"-")) -> 4.285714286
A66: MA. Ph.d. | C66: =IF(OR('Tabel 4F F'!C66<5,'Tabel 4 F'!C66<0.5),"-",IFERROR('Tabel 4 F'!C66/'Tabel 4F F'!C66*100,"-")) -> - | D66: =IF(OR('Tabel 4F F'!D66<5,'Tabel 4 F'!D66<0.5),"-",IFERROR('Tabel 4 F'!D66/'Tabel 4F F'!D66*100,"-")) -> - | E66: =IF(OR('Tabel 4F F'!E66<5,'Tabel 4 F'!E66<0.5),"-",IFERROR('Tabel 4 F'!E66/'Tabel 4F F'!E66*100,"-")) -> - | F66: =IF(OR('Tabel 4F F'!F66<5,'Tabel 4 F'!F66<0.5),"-",IFERROR('Tabel 4 F'!F66/'Tabel 4F F'!F66*100,"-")) -> - | G66: =IF(OR('Tabel 4F F'!G66<5,'Tabel 4 F'!G66<0.5),"-",IFERROR('Tabel 4 F'!G66/'Tabel 4F F'!G66*100,"-")) -> - | I66: =IF(OR('Tabel 4F F'!I66<5,'Tabel 4 F'!I66<0.5),"-",IFERROR('Tabel 4 F'!I66/'Tabel 4F F'!I66*100,"-")) -> 16.66666667
A67: MA. Samf. | C67: =IF(OR('Tabel 4F F'!C67<5,'Tabel 4 F'!C67<0.5),"-",IFERROR('Tabel 4 F'!C67/'Tabel 4F F'!C67*100,"-")) -> - | D67: =IF(OR('Tabel 4F F'!D67<5,'Tabel 4 F'!D67<0.5),"-",IFERROR('Tabel 4 F'!D67/'Tabel 4F F'!D67*100,"-")) -> 20 | E67: =IF(OR('Tabel 4F F'!E67<5,'Tabel 4 F'!E67<0.5),"-",IFERROR('Tabel 4 F'!E67/'Tabel 4F F'!E67*100,"-")) -> - | F67: =IF(OR('Tabel 4F F'!F67<5,'Tabel 4 F'!F67<0.5),"-",IFERROR('Tabel 4 F'!F67/'Tabel 4F F'!F67*100,"-")) -> - | G67: =IF(OR('Tabel 4F F'!G67<5,'Tabel 4 F'!G67<0.5),"-",IFERROR('Tabel 4 F'!G67/'Tabel 4F F'!G67*100,"-")) -> - | I67: =IF(OR('Tabel 4F F'!I67<5,'Tabel 4 F'!I67<0.5),"-",IFERROR('Tabel 4 F'!I67/'Tabel 4F F'!I67*100,"-")) -> 20
A68: Øvrige Mag. | C68: =IF(OR('Tabel 4F F'!C68<5,'Tabel 4 F'!C68<0.5),"-",IFERROR('Tabel 4 F'!C68/'Tabel 4F F'!C68*100,"-")) -> - | D68: =IF(OR('Tabel 4F F'!D68<5,'Tabel 4 F'!D68<0.5),"-",IFERROR('Tabel 4 F'!D68/'Tabel 4F F'!D68*100,"-")) -> - | E68: =IF(OR('Tabel 4F F'!E68<5,'Tabel 4 F'!E68<0.5),"-",IFERROR('Tabel 4 F'!E68/'Tabel 4F F'!E68*100,"-")) -> - | F68: =IF(OR('Tabel 4F F'!F68<5,'Tabel 4 F'!F68<0.5),"-",IFERROR('Tabel 4 F'!F68/'Tabel 4F F'!F68*100,"-")) -> - | G68: =IF(OR('Tabel 4F F'!G68<5,'Tabel 4 F'!G68<0.5),"-",IFERROR('Tabel 4 F'!G68/'Tabel 4F F'!G68*100,"-")) -> - | I68: =IF(OR('Tabel 4F F'!I68<5,'Tabel 4 F'!I68<0.5),"-",IFERROR('Tabel 4 F'!I68/'Tabel 4F F'!I68*100,"-")) -> -
A69: Agronom | C69: =IF(OR('Tabel 4F F'!C69<5,'Tabel 4 F'!C69<0.5),"-",IFERROR('Tabel 4 F'!C69/'Tabel 4F F'!C69*100,"-")) -> - | D69: =IF(OR('Tabel 4F F'!D69<5,'Tabel 4 F'!D69<0.5),"-",IFERROR('Tabel 4 F'!D69/'Tabel 4F F'!D69*100,"-")) -> - | E69: =IF(OR('Tabel 4F F'!E69<5,'Tabel 4 F'!E69<0.5),"-",IFERROR('Tabel 4 F'!E69/'Tabel 4F F'!E69*100,"-")) -> - | F69: =IF(OR('Tabel 4F F'!F69<5,'Tabel 4 F'!F69<0.5),"-",IFERROR('Tabel 4 F'!F69/'Tabel 4F F'!F69*100,"-")) -> - | G69: =IF(OR('Tabel 4F F'!G69<5,'Tabel 4 F'!G69<0.5),"-",IFERROR('Tabel 4 F'!G69/'Tabel 4F F'!G69*100,"-")) -> - | I69: =IF(OR('Tabel 4F F'!I69<5,'Tabel 4 F'!I69<0.5),"-",IFERROR('Tabel 4 F'!I69/'Tabel 4F F'!I69*100,"-")) -> -
A70: Landsk. Arkt. | C70: =IF(OR('Tabel 4F F'!C70<5,'Tabel 4 F'!C70<0.5),"-",IFERROR('Tabel 4 F'!C70/'Tabel 4F F'!C70*100,"-")) -> - | D70: =IF(OR('Tabel 4F F'!D70<5,'Tabel 4 F'!D70<0.5),"-",IFERROR('Tabel 4 F'!D70/'Tabel 4F F'!D70*100,"-")) -> - | E70: =IF(OR('Tabel 4F F'!E70<5,'Tabel 4 F'!E70<0.5),"-",IFERROR('Tabel 4 F'!E70/'Tabel 4F F'!E70*100,"-")) -> - | F70: =IF(OR('Tabel 4F F'!F70<5,'Tabel 4 F'!F70<0.5),"-",IFERROR('Tabel 4 F'!F70/'Tabel 4F F'!F70*100,"-")) -> - | G70: =IF(OR('Tabel 4F F'!G70<5,'Tabel 4 F'!G70<0.5),"-",IFERROR('Tabel 4 F'!G70/'Tabel 4F F'!G70*100,"-")) -> - | I70: =IF(OR('Tabel 4F F'!I70<5,'Tabel 4 F'!I70<0.5),"-",IFERROR('Tabel 4 F'!I70/'Tabel 4F F'!I70*100,"-")) -> -
A71: Hortonom | C71: =IF(OR('Tabel 4F F'!C71<5,'Tabel 4 F'!C71<0.5),"-",IFERROR('Tabel 4 F'!C71/'Tabel 4F F'!C71*100,"-")) -> - | D71: =IF(OR('Tabel 4F F'!D71<5,'Tabel 4 F'!D71<0.5),"-",IFERROR('Tabel 4 F'!D71/'Tabel 4F F'!D71*100,"-")) -> - | E71: =IF(OR('Tabel 4F F'!E71<5,'Tabel 4 F'!E71<0.5),"-",IFERROR('Tabel 4 F'!E71/'Tabel 4F F'!E71*100,"-")) -> - | F71: =IF(OR('Tabel 4F F'!F71<5,'Tabel 4 F'!F71<0.5),"-",IFERROR('Tabel 4 F'!F71/'Tabel 4F F'!F71*100,"-")) -> - | G71: =IF(OR('Tabel 4F F'!G71<5,'Tabel 4 F'!G71<0.5),"-",IFERROR('Tabel 4 F'!G71/'Tabel 4F F'!G71*100,"-")) -> - | I71: =IF(OR('Tabel 4F F'!I71<5,'Tabel 4 F'!I71<0.5),"-",IFERROR('Tabel 4 F'!I71/'Tabel 4F F'!I71*100,"-")) -> -
A72: Forstkand. | C72: =IF(OR('Tabel 4F F'!C72<5,'Tabel 4 F'!C72<0.5),"-",IFERROR('Tabel 4 F'!C72/'Tabel 4F F'!C72*100,"-")) -> - | D72: =IF(OR('Tabel 4F F'!D72<5,'Tabel 4 F'!D72<0.5),"-",IFERROR('Tabel 4 F'!D72/'Tabel 4F F'!D72*100,"-")) -> - | E72: =IF(OR('Tabel 4F F'!E72<5,'Tabel 4 F'!E72<0.5),"-",IFERROR('Tabel 4 F'!E72/'Tabel 4F F'!E72*100,"-")) -> - | F72: =IF(OR('Tabel 4F F'!F72<5,'Tabel 4 F'!F72<0.5),"-",IFERROR('Tabel 4 F'!F72/'Tabel 4F F'!F72*100,"-")) -> - | G72: =IF(OR('Tabel 4F F'!G72<5,'Tabel 4 F'!G72<0.5),"-",IFERROR('Tabel 4 F'!G72/'Tabel 4F F'!G72*100,"-")) -> - | I72: =IF(OR('Tabel 4F F'!I72<5,'Tabel 4 F'!I72<0.5),"-",IFERROR('Tabel 4 F'!I72/'Tabel 4F F'!I72*100,"-")) -> -
A73: Jordbrugsakad. | C73: =IF(OR('Tabel 4F F'!C73<5,'Tabel 4 F'!C73<0.5),"-",IFERROR('Tabel 4 F'!C73/'Tabel 4F F'!C73*100,"-")) -> - | D73: =IF(OR('Tabel 4F F'!D73<5,'Tabel 4 F'!D73<0.5),"-",IFERROR('Tabel 4 F'!D73/'Tabel 4F F'!D73*100,"-")) -> - | E73: =IF(OR('Tabel 4F F'!E73<5,'Tabel 4 F'!E73<0.5),"-",IFERROR('Tabel 4 F'!E73/'Tabel 4F F'!E73*100,"-")) -> 8.333333333 | F73: =IF(OR('Tabel 4F F'!F73<5,'Tabel 4 F'!F73<0.5),"-",IFERROR('Tabel 4 F'!F73/'Tabel 4F F'!F73*100,"-")) -> - | G73: =IF(OR('Tabel 4F F'!G73<5,'Tabel 4 F'!G73<0.5),"-",IFERROR('Tabel 4 F'!G73/'Tabel 4F F'!G73*100,"-")) -> - | I73: =IF(OR('Tabel 4F F'!I73<5,'Tabel 4 F'!I73<0.5),"-",IFERROR('Tabel 4 F'!I73/'Tabel 4F F'!I73*100,"-")) -> 2.631578947
A74: Mejeriing. | C74: =IF(OR('Tabel 4F F'!C74<5,'Tabel 4 F'!C74<0.5),"-",IFERROR('Tabel 4 F'!C74/'Tabel 4F F'!C74*100,"-")) -> - | D74: =IF(OR('Tabel 4F F'!D74<5,'Tabel 4 F'!D74<0.5),"-",IFERROR('Tabel 4 F'!D74/'Tabel 4F F'!D74*100,"-")) -> - | E74: =IF(OR('Tabel 4F F'!E74<5,'Tabel 4 F'!E74<0.5),"-",IFERROR('Tabel 4 F'!E74/'Tabel 4F F'!E74*100,"-")) -> - | F74: =IF(OR('Tabel 4F F'!F74<5,'Tabel 4 F'!F74<0.5),"-",IFERROR('Tabel 4 F'!F74/'Tabel 4F F'!F74*100,"-")) -> - | G74: =IF(OR('Tabel 4F F'!G74<5,'Tabel 4 F'!G74<0.5),"-",IFERROR('Tabel 4 F'!G74/'Tabel 4F F'!G74*100,"-")) -> - | I74: =IF(OR('Tabel 4F F'!I74<5,'Tabel 4 F'!I74<0.5),"-",IFERROR('Tabel 4 F'!I74/'Tabel 4F F'!I74*100,"-")) -> -
A75: Levn.m.kand. | C75: =IF(OR('Tabel 4F F'!C75<5,'Tabel 4 F'!C75<0.5),"-",IFERROR('Tabel 4 F'!C75/'Tabel 4F F'!C75*100,"-")) -> - | D75: =IF(OR('Tabel 4F F'!D75<5,'Tabel 4 F'!D75<0.5),"-",IFERROR('Tabel 4 F'!D75/'Tabel 4F F'!D75*100,"-")) -> - | E75: =IF(OR('Tabel 4F F'!E75<5,'Tabel 4 F'!E75<0.5),"-",IFERROR('Tabel 4 F'!E75/'Tabel 4F F'!E75*100,"-")) -> - | F75: =IF(OR('Tabel 4F F'!F75<5,'Tabel 4 F'!F75<0.5),"-",IFERROR('Tabel 4 F'!F75/'Tabel 4F F'!F75*100,"-")) -> - | G75: =IF(OR('Tabel 4F F'!G75<5,'Tabel 4 F'!G75<0.5),"-",IFERROR('Tabel 4 F'!G75/'Tabel 4F F'!G75*100,"-")) -> - | I75: =IF(OR('Tabel 4F F'!I75<5,'Tabel 4 F'!I75<0.5),"-",IFERROR('Tabel 4 F'!I75/'Tabel 4F F'!I75*100,"-")) -> -
A76: Dyrlæge | C76: =IF(OR('Tabel 4F F'!C76<5,'Tabel 4 F'!C76<0.5),"-",IFERROR('Tabel 4 F'!C76/'Tabel 4F F'!C76*100,"-")) -> - | D76: =IF(OR('Tabel 4F F'!D76<5,'Tabel 4 F'!D76<0.5),"-",IFERROR('Tabel 4 F'!D76/'Tabel 4F F'!D76*100,"-")) -> 14.28571429 | E76: =IF(OR('Tabel 4F F'!E76<5,'Tabel 4 F'!E76<0.5),"-",IFERROR('Tabel 4 F'!E76/'Tabel 4F F'!E76*100,"-")) -> - | F76: =IF(OR('Tabel 4F F'!F76<5,'Tabel 4 F'!F76<0.5),"-",IFERROR('Tabel 4 F'!F76/'Tabel 4F F'!F76*100,"-")) -> - | G76: =IF(OR('Tabel 4F F'!G76<5,'Tabel 4 F'!G76<0.5),"-",IFERROR('Tabel 4 F'!G76/'Tabel 4F F'!G76*100,"-")) -> - | I76: =IF(OR('Tabel 4F F'!I76<5,'Tabel 4 F'!I76<0.5),"-",IFERROR('Tabel 4 F'!I76/'Tabel 4F F'!I76*100,"-")) -> 5.555555556
A77: Farmaceut | C77: =IF(OR('Tabel 4F F'!C77<5,'Tabel 4 F'!C77<0.5),"-",IFERROR('Tabel 4 F'!C77/'Tabel 4F F'!C77*100,"-")) -> - | D77: =IF(OR('Tabel 4F F'!D77<5,'Tabel 4 F'!D77<0.5),"-",IFERROR('Tabel 4 F'!D77/'Tabel 4F F'!D77*100,"-")) -> - | E77: =IF(OR('Tabel 4F F'!E77<5,'Tabel 4 F'!E77<0.5),"-",IFERROR('Tabel 4 F'!E77/'Tabel 4F F'!E77*100,"-")) -> - | F77: =IF(OR('Tabel 4F F'!F77<5,'Tabel 4 F'!F77<0.5),"-",IFERROR('Tabel 4 F'!F77/'Tabel 4F F'!F77*100,"-")) -> - | G77: =IF(OR('Tabel 4F F'!G77<5,'Tabel 4 F'!G77<0.5),"-",IFERROR('Tabel 4 F'!G77/'Tabel 4F F'!G77*100,"-")) -> - | I77: =IF(OR('Tabel 4F F'!I77<5,'Tabel 4 F'!I77<0.5),"-",IFERROR('Tabel 4 F'!I77/'Tabel 4F F'!I77*100,"-")) -> 9.090909091
A78: Læge | C78: =IF(OR('Tabel 4F F'!C78<5,'Tabel 4 F'!C78<0.5),"-",IFERROR('Tabel 4 F'!C78/'Tabel 4F F'!C78*100,"-")) -> - | D78: =IF(OR('Tabel 4F F'!D78<5,'Tabel 4 F'!D78<0.5),"-",IFERROR('Tabel 4 F'!D78/'Tabel 4F F'!D78*100,"-")) -> 1.886792453 | E78: =IF(OR('Tabel 4F F'!E78<5,'Tabel 4 F'!E78<0.5),"-",IFERROR('Tabel 4 F'!E78/'Tabel 4F F'!E78*100,"-")) -> - | F78: =IF(OR('Tabel 4F F'!F78<5,'Tabel 4 F'!F78<0.5),"-",IFERROR('Tabel 4 F'!F78/'Tabel 4F F'!F78*100,"-")) -> - | G78: =IF(OR('Tabel 4F F'!G78<5,'Tabel 4 F'!G78<0.5),"-",IFERROR('Tabel 4 F'!G78/'Tabel 4F F'!G78*100,"-")) -> - | I78: =IF(OR('Tabel 4F F'!I78<5,'Tabel 4 F'!I78<0.5),"-",IFERROR('Tabel 4 F'!I78/'Tabel 4F F'!I78*100,"-")) -> 0.9433962264
A79: Tandlæge | C79: =IF(OR('Tabel 4F F'!C79<5,'Tabel 4 F'!C79<0.5),"-",IFERROR('Tabel 4 F'!C79/'Tabel 4F F'!C79*100,"-")) -> - | D79: =IF(OR('Tabel 4F F'!D79<5,'Tabel 4 F'!D79<0.5),"-",IFERROR('Tabel 4 F'!D79/'Tabel 4F F'!D79*100,"-")) -> - | E79: =IF(OR('Tabel 4F F'!E79<5,'Tabel 4 F'!E79<0.5),"-",IFERROR('Tabel 4 F'!E79/'Tabel 4F F'!E79*100,"-")) -> - | F79: =IF(OR('Tabel 4F F'!F79<5,'Tabel 4 F'!F79<0.5),"-",IFERROR('Tabel 4 F'!F79/'Tabel 4F F'!F79*100,"-")) -> - | G79: =IF(OR('Tabel 4F F'!G79<5,'Tabel 4 F'!G79<0.5),"-",IFERROR('Tabel 4 F'!G79/'Tabel 4F F'!G79*100,"-")) -> - | I79: =IF(OR('Tabel 4F F'!I79<5,'Tabel 4 F'!I79<0.5),"-",IFERROR('Tabel 4 F'!I79/'Tabel 4F F'!I79*100,"-")) -> -
A80: Arkitekt | C80: =IF(OR('Tabel 4F F'!C80<5,'Tabel 4 F'!C80<0.5),"-",IFERROR('Tabel 4 F'!C80/'Tabel 4F F'!C80*100,"-")) -> - | D80: =IF(OR('Tabel 4F F'!D80<5,'Tabel 4 F'!D80<0.5),"-",IFERROR('Tabel 4 F'!D80/'Tabel 4F F'!D80*100,"-")) -> - | E80: =IF(OR('Tabel 4F F'!E80<5,'Tabel 4 F'!E80<0.5),"-",IFERROR('Tabel 4 F'!E80/'Tabel 4F F'!E80*100,"-")) -> - | F80: =IF(OR('Tabel 4F F'!F80<5,'Tabel 4 F'!F80<0.5),"-",IFERROR('Tabel 4 F'!F80/'Tabel 4F F'!F80*100,"-")) -> - | G80: =IF(OR('Tabel 4F F'!G80<5,'Tabel 4 F'!G80<0.5),"-",IFERROR('Tabel 4 F'!G80/'Tabel 4F F'!G80*100,"-")) -> - | I80: =IF(OR('Tabel 4F F'!I80<5,'Tabel 4 F'!I80<0.5),"-",IFERROR('Tabel 4 F'!I80/'Tabel 4F F'!I80*100,"-")) -> -
A81: Landinspek. | C81: =IF(OR('Tabel 4F F'!C81<5,'Tabel 4 F'!C81<0.5),"-",IFERROR('Tabel 4 F'!C81/'Tabel 4F F'!C81*100,"-")) -> - | D81: =IF(OR('Tabel 4F F'!D81<5,'Tabel 4 F'!D81<0.5),"-",IFERROR('Tabel 4 F'!D81/'Tabel 4F F'!D81*100,"-")) -> - | E81: =IF(OR('Tabel 4F F'!E81<5,'Tabel 4 F'!E81<0.5),"-",IFERROR('Tabel 4 F'!E81/'Tabel 4F F'!E81*100,"-")) -> - | F81: =IF(OR('Tabel 4F F'!F81<5,'Tabel 4 F'!F81<0.5),"-",IFERROR('Tabel 4 F'!F81/'Tabel 4F F'!F81*100,"-")) -> - | G81: =IF(OR('Tabel 4F F'!G81<5,'Tabel 4 F'!G81<0.5),"-",IFERROR('Tabel 4 F'!G81/'Tabel 4F F'!G81*100,"-")) -> - | I81: =IF(OR('Tabel 4F F'!I81<5,'Tabel 4 F'!I81<0.5),"-",IFERROR('Tabel 4 F'!I81/'Tabel 4F F'!I81*100,"-")) -> -
A82: Bibliotekar | C82: =IF(OR('Tabel 4F F'!C82<5,'Tabel 4 F'!C82<0.5),"-",IFERROR('Tabel 4 F'!C82/'Tabel 4F F'!C82*100,"-")) -> - | D82: =IF(OR('Tabel 4F F'!D82<5,'Tabel 4 F'!D82<0.5),"-",IFERROR('Tabel 4 F'!D82/'Tabel 4F F'!D82*100,"-")) -> - | E82: =IF(OR('Tabel 4F F'!E82<5,'Tabel 4 F'!E82<0.5),"-",IFERROR('Tabel 4 F'!E82/'Tabel 4F F'!E82*100,"-")) -> 12.5 | F82: =IF(OR('Tabel 4F F'!F82<5,'Tabel 4 F'!F82<0.5),"-",IFERROR('Tabel 4 F'!F82/'Tabel 4F F'!F82*100,"-")) -> - | G82: =IF(OR('Tabel 4F F'!G82<5,'Tabel 4 F'!G82<0.5),"-",IFERROR('Tabel 4 F'!G82/'Tabel 4F F'!G82*100,"-")) -> 20 | I82: =IF(OR('Tabel 4F F'!I82<5,'Tabel 4 F'!I82<0.5),"-",IFERROR('Tabel 4 F'!I82/'Tabel 4F F'!I82*100,"-")) -> 15.78947368
A83: Musikudd. | C83: =IF(OR('Tabel 4F F'!C83<5,'Tabel 4 F'!C83<0.5),"-",IFERROR('Tabel 4 F'!C83/'Tabel 4F F'!C83*100,"-")) -> - | D83: =IF(OR('Tabel 4F F'!D83<5,'Tabel 4 F'!D83<0.5),"-",IFERROR('Tabel 4 F'!D83/'Tabel 4F F'!D83*100,"-")) -> - | E83: =IF(OR('Tabel 4F F'!E83<5,'Tabel 4 F'!E83<0.5),"-",IFERROR('Tabel 4 F'!E83/'Tabel 4F F'!E83*100,"-")) -> - | F83: =IF(OR('Tabel 4F F'!F83<5,'Tabel 4 F'!F83<0.5),"-",IFERROR('Tabel 4 F'!F83/'Tabel 4F F'!F83*100,"-")) -> - | G83: =IF(OR('Tabel 4F F'!G83<5,'Tabel 4 F'!G83<0.5),"-",IFERROR('Tabel 4 F'!G83/'Tabel 4F F'!G83*100,"-")) -> - | I83: =IF(OR('Tabel 4F F'!I83<5,'Tabel 4 F'!I83<0.5),"-",IFERROR('Tabel 4 F'!I83/'Tabel 4F F'!I83*100,"-")) -> -
A84: Teolog | C84: =IF(OR('Tabel 4F F'!C84<5,'Tabel 4 F'!C84<0.5),"-",IFERROR('Tabel 4 F'!C84/'Tabel 4F F'!C84*100,"-")) -> - | D84: =IF(OR('Tabel 4F F'!D84<5,'Tabel 4 F'!D84<0.5),"-",IFERROR('Tabel 4 F'!D84/'Tabel 4F F'!D84*100,"-")) -> - | E84: =IF(OR('Tabel 4F F'!E84<5,'Tabel 4 F'!E84<0.5),"-",IFERROR('Tabel 4 F'!E84/'Tabel 4F F'!E84*100,"-")) -> - | F84: =IF(OR('Tabel 4F F'!F84<5,'Tabel 4 F'!F84<0.5),"-",IFERROR('Tabel 4 F'!F84/'Tabel 4F F'!F84*100,"-")) -> - | G84: =IF(OR('Tabel 4F F'!G84<5,'Tabel 4 F'!G84<0.5),"-",IFERROR('Tabel 4 F'!G84/'Tabel 4F F'!G84*100,"-")) -> - | I84: =IF(OR('Tabel 4F F'!I84<5,'Tabel 4 F'!I84<0.5),"-",IFERROR('Tabel 4 F'!I84/'Tabel 4F F'!I84*100,"-")) -> -
A85: Psykolog | C85: =IF(OR('Tabel 4F F'!C85<5,'Tabel 4 F'!C85<0.5),"-",IFERROR('Tabel 4 F'!C85/'Tabel 4F F'!C85*100,"-")) -> - | D85: =IF(OR('Tabel 4F F'!D85<5,'Tabel 4 F'!D85<0.5),"-",IFERROR('Tabel 4 F'!D85/'Tabel 4F F'!D85*100,"-")) -> - | E85: =IF(OR('Tabel 4F F'!E85<5,'Tabel 4 F'!E85<0.5),"-",IFERROR('Tabel 4 F'!E85/'Tabel 4F F'!E85*100,"-")) -> - | F85: =IF(OR('Tabel 4F F'!F85<5,'Tabel 4 F'!F85<0.5),"-",IFERROR('Tabel 4 F'!F85/'Tabel 4F F'!F85*100,"-")) -> - | G85: =IF(OR('Tabel 4F F'!G85<5,'Tabel 4 F'!G85<0.5),"-",IFERROR('Tabel 4 F'!G85/'Tabel 4F F'!G85*100,"-")) -> - | I85: =IF(OR('Tabel 4F F'!I85<5,'Tabel 4 F'!I85<0.5),"-",IFERROR('Tabel 4 F'!I85/'Tabel 4F F'!I85*100,"-")) -> -
A86: Jurist | C86: =IF(OR('Tabel 4F F'!C86<5,'Tabel 4 F'!C86<0.5),"-",IFERROR('Tabel 4 F'!C86/'Tabel 4F F'!C86*100,"-")) -> - | D86: =IF(OR('Tabel 4F F'!D86<5,'Tabel 4 F'!D86<0.5),"-",IFERROR('Tabel 4 F'!D86/'Tabel 4F F'!D86*100,"-")) -> - | E86: =IF(OR('Tabel 4F F'!E86<5,'Tabel 4 F'!E86<0.5),"-",IFERROR('Tabel 4 F'!E86/'Tabel 4F F'!E86*100,"-")) -> - | F86: =IF(OR('Tabel 4F F'!F86<5,'Tabel 4 F'!F86<0.5),"-",IFERROR('Tabel 4 F'!F86/'Tabel 4F F'!F86*100,"-")) -> - | G86: =IF(OR('Tabel 4F F'!G86<5,'Tabel 4 F'!G86<0.5),"-",IFERROR('Tabel 4 F'!G86/'Tabel 4F F'!G86*100,"-")) -> - | I86: =IF(OR('Tabel 4F F'!I86<5,'Tabel 4 F'!I86<0.5),"-",IFERROR('Tabel 4 F'!I86/'Tabel 4F F'!I86*100,"-")) -> -
A87: Økonom | C87: =IF(OR('Tabel 4F F'!C87<5,'Tabel 4 F'!C87<0.5),"-",IFERROR('Tabel 4 F'!C87/'Tabel 4F F'!C87*100,"-")) -> - | D87: =IF(OR('Tabel 4F F'!D87<5,'Tabel 4 F'!D87<0.5),"-",IFERROR('Tabel 4 F'!D87/'Tabel 4F F'!D87*100,"-")) -> - | E87: =IF(OR('Tabel 4F F'!E87<5,'Tabel 4 F'!E87<0.5),"-",IFERROR('Tabel 4 F'!E87/'Tabel 4F F'!E87*100,"-")) -> - | F87: =IF(OR('Tabel 4F F'!F87<5,'Tabel 4 F'!F87<0.5),"-",IFERROR('Tabel 4 F'!F87/'Tabel 4F F'!F87*100,"-")) -> - | G87: =IF(OR('Tabel 4F F'!G87<5,'Tabel 4 F'!G87<0.5),"-",IFERROR('Tabel 4 F'!G87/'Tabel 4F F'!G87*100,"-")) -> - | I87: =IF(OR('Tabel 4F F'!I87<5,'Tabel 4 F'!I87<0.5),"-",IFERROR('Tabel 4 F'!I87/'Tabel 4F F'!I87*100,"-")) -> -
A88: Samf. Adm. | C88: =IF(OR('Tabel 4F F'!C88<5,'Tabel 4 F'!C88<0.5),"-",IFERROR('Tabel 4 F'!C88/'Tabel 4F F'!C88*100,"-")) -> - | D88: =IF(OR('Tabel 4F F'!D88<5,'Tabel 4 F'!D88<0.5),"-",IFERROR('Tabel 4 F'!D88/'Tabel 4F F'!D88*100,"-")) -> - | E88: =IF(OR('Tabel 4F F'!E88<5,'Tabel 4 F'!E88<0.5),"-",IFERROR('Tabel 4 F'!E88/'Tabel 4F F'!E88*100,"-")) -> - | F88: =IF(OR('Tabel 4F F'!F88<5,'Tabel 4 F'!F88<0.5),"-",IFERROR('Tabel 4 F'!F88/'Tabel 4F F'!F88*100,"-")) -> - | G88: =IF(OR('Tabel 4F F'!G88<5,'Tabel 4 F'!G88<0.5),"-",IFERROR('Tabel 4 F'!G88/'Tabel 4F F'!G88*100,"-")) -> - | I88: =IF(OR('Tabel 4F F'!I88<5,'Tabel 4 F'!I88<0.5),"-",IFERROR('Tabel 4 F'!I88/'Tabel 4F F'!I88*100,"-")) -> -
A89: Cand. Merc. | C89: =IF(OR('Tabel 4F F'!C89<5,'Tabel 4 F'!C89<0.5),"-",IFERROR('Tabel 4 F'!C89/'Tabel 4F F'!C89*100,"-")) -> - | D89: =IF(OR('Tabel 4F F'!D89<5,'Tabel 4 F'!D89<0.5),"-",IFERROR('Tabel 4 F'!D89/'Tabel 4F F'!D89*100,"-")) -> 7.142857143 | E89: =IF(OR('Tabel 4F F'!E89<5,'Tabel 4 F'!E89<0.5),"-",IFERROR('Tabel 4 F'!E89/'Tabel 4F F'!E89*100,"-")) -> 2.380952381 | F89: =IF(OR('Tabel 4F F'!F89<5,'Tabel 4 F'!F89<0.5),"-",IFERROR('Tabel 4 F'!F89/'Tabel 4F F'!F89*100,"-")) -> - | G89: =IF(OR('Tabel 4F F'!G89<5,'Tabel 4 F'!G89<0.5),"-",IFERROR('Tabel 4 F'!G89/'Tabel 4F F'!G89*100,"-")) -> - | I89: =IF(OR('Tabel 4F F'!I89<5,'Tabel 4 F'!I89<0.5),"-",IFERROR('Tabel 4 F'!I89/'Tabel 4F F'!I89*100,"-")) -> 3.448275862
A90: HA | C90: =IF(OR('Tabel 4F F'!C90<5,'Tabel 4 F'!C90<0.5),"-",IFERROR('Tabel 4 F'!C90/'Tabel 4F F'!C90*100,"-")) -> - | D90: =IF(OR('Tabel 4F F'!D90<5,'Tabel 4 F'!D90<0.5),"-",IFERROR('Tabel 4 F'!D90/'Tabel 4F F'!D90*100,"-")) -> - | E90: =IF(OR('Tabel 4F F'!E90<5,'Tabel 4 F'!E90<0.5),"-",IFERROR('Tabel 4 F'!E90/'Tabel 4F F'!E90*100,"-")) -> 12.5 | F90: =IF(OR('Tabel 4F F'!F90<5,'Tabel 4 F'!F90<0.5),"-",IFERROR('Tabel 4 F'!F90/'Tabel 4F F'!F90*100,"-")) -> 7.142857143 | G90: =IF(OR('Tabel 4F F'!G90<5,'Tabel 4 F'!G90<0.5),"-",IFERROR('Tabel 4 F'!G90/'Tabel 4F F'!G90*100,"-")) -> - | I90: =IF(OR('Tabel 4F F'!I90<5,'Tabel 4 F'!I90<0.5),"-",IFERROR('Tabel 4 F'!I90/'Tabel 4F F'!I90*100,"-")) -> 5.882352941
A91: HD | C91: =IF(OR('Tabel 4F F'!C91<5,'Tabel 4 F'!C91<0.5),"-",IFERROR('Tabel 4 F'!C91/'Tabel 4F F'!C91*100,"-")) -> - | D91: =IF(OR('Tabel 4F F'!D91<5,'Tabel 4 F'!D91<0.5),"-",IFERROR('Tabel 4 F'!D91/'Tabel 4F F'!D91*100,"-")) -> - | E91: =IF(OR('Tabel 4F F'!E91<5,'Tabel 4 F'!E91<0.5),"-",IFERROR('Tabel 4 F'!E91/'Tabel 4F F'!E91*100,"-")) -> - | F91: =IF(OR('Tabel 4F F'!F91<5,'Tabel 4 F'!F91<0.5),"-",IFERROR('Tabel 4 F'!F91/'Tabel 4F F'!F91*100,"-")) -> - | G91: =IF(OR('Tabel 4F F'!G91<5,'Tabel 4 F'!G91<0.5),"-",IFERROR('Tabel 4 F'!G91/'Tabel 4F F'!G91*100,"-")) -> - | I91: =IF(OR('Tabel 4F F'!I91<5,'Tabel 4 F'!I91<0.5),"-",IFERROR('Tabel 4 F'!I91/'Tabel 4F F'!I91*100,"-")) -> -
A92: Komm. og Sprog | C92: =IF(OR('Tabel 4F F'!C92<5,'Tabel 4 F'!C92<0.5),"-",IFERROR('Tabel 4 F'!C92/'Tabel 4F F'!C92*100,"-")) -> - | D92: =IF(OR('Tabel 4F F'!D92<5,'Tabel 4 F'!D92<0.5),"-",IFERROR('Tabel 4 F'!D92/'Tabel 4F F'!D92*100,"-")) -> - | E92: =IF(OR('Tabel 4F F'!E92<5,'Tabel 4 F'!E92<0.5),"-",IFERROR('Tabel 4 F'!E92/'Tabel 4F F'!E92*100,"-")) -> - | F92: =IF(OR('Tabel 4F F'!F92<5,'Tabel 4 F'!F92<0.5),"-",IFERROR('Tabel 4 F'!F92/'Tabel 4F F'!F92*100,"-")) -> - | G92: =IF(OR('Tabel 4F F'!G92<5,'Tabel 4 F'!G92<0.5),"-",IFERROR('Tabel 4 F'!G92/'Tabel 4F F'!G92*100,"-")) -> - | I92: =IF(OR('Tabel 4F F'!I92<5,'Tabel 4 F'!I92<0.5),"-",IFERROR('Tabel 4 F'!I92/'Tabel 4F F'!I92*100,"-")) -> -
A93: Bygningskonst. | C93: =IF(OR('Tabel 4F F'!C93<5,'Tabel 4 F'!C93<0.5),"-",IFERROR('Tabel 4 F'!C93/'Tabel 4F F'!C93*100,"-")) -> 14.28571429 | D93: =IF(OR('Tabel 4F F'!D93<5,'Tabel 4 F'!D93<0.5),"-",IFERROR('Tabel 4 F'!D93/'Tabel 4F F'!D93*100,"-")) -> 3.125 | E93: =IF(OR('Tabel 4F F'!E93<5,'Tabel 4 F'!E93<0.5),"-",IFERROR('Tabel 4 F'!E93/'Tabel 4F F'!E93*100,"-")) -> - | F93: =IF(OR('Tabel 4F F'!F93<5,'Tabel 4 F'!F93<0.5),"-",IFERROR('Tabel 4 F'!F93/'Tabel 4F F'!F93*100,"-")) -> 20 | G93: =IF(OR('Tabel 4F F'!G93<5,'Tabel 4 F'!G93<0.5),"-",IFERROR('Tabel 4 F'!G93/'Tabel 4F F'!G93*100,"-")) -> - | I93: =IF(OR('Tabel 4F F'!I93<5,'Tabel 4 F'!I93<0.5),"-",IFERROR('Tabel 4 F'!I93/'Tabel 4F F'!I93*100,"-")) -> 5.797101449
A94: Cand. IT. | C94: =IF(OR('Tabel 4F F'!C94<5,'Tabel 4 F'!C94<0.5),"-",IFERROR('Tabel 4 F'!C94/'Tabel 4F F'!C94*100,"-")) -> - | D94: =IF(OR('Tabel 4F F'!D94<5,'Tabel 4 F'!D94<0.5),"-",IFERROR('Tabel 4 F'!D94/'Tabel 4F F'!D94*100,"-")) -> 57.14285714 | E94: =IF(OR('Tabel 4F F'!E94<5,'Tabel 4 F'!E94<0.5),"-",IFERROR('Tabel 4 F'!E94/'Tabel 4F F'!E94*100,"-")) -> - | F94: =IF(OR('Tabel 4F F'!F94<5,'Tabel 4 F'!F94<0.5),"-",IFERROR('Tabel 4 F'!F94/'Tabel 4F F'!F94*100,"-")) -> - | G94: =IF(OR('Tabel 4F F'!G94<5,'Tabel 4 F'!G94<0.5),"-",IFERROR('Tabel 4 F'!G94/'Tabel 4F F'!G94*100,"-")) -> - | I94: =IF(OR('Tabel 4F F'!I94<5,'Tabel 4 F'!I94<0.5),"-",IFERROR('Tabel 4 F'!I94/'Tabel 4F F'!I94*100,"-")) -> 33.33333333
A95: Bac. Samf. | C95: =IF(OR('Tabel 4F F'!C95<5,'Tabel 4 F'!C95<0.5),"-",IFERROR('Tabel 4 F'!C95/'Tabel 4F F'!C95*100,"-")) -> - | D95: =IF(OR('Tabel 4F F'!D95<5,'Tabel 4 F'!D95<0.5),"-",IFERROR('Tabel 4 F'!D95/'Tabel 4F F'!D95*100,"-")) -> - | E95: =IF(OR('Tabel 4F F'!E95<5,'Tabel 4 F'!E95<0.5),"-",IFERROR('Tabel 4 F'!E95/'Tabel 4F F'!E95*100,"-")) -> - | F95: =IF(OR('Tabel 4F F'!F95<5,'Tabel 4 F'!F95<0.5),"-",IFERROR('Tabel 4 F'!F95/'Tabel 4F F'!F95*100,"-")) -> - | G95: =IF(OR('Tabel 4F F'!G95<5,'Tabel 4 F'!G95<0.5),"-",IFERROR('Tabel 4 F'!G95/'Tabel 4F F'!G95*100,"-")) -> - | I95: =IF(OR('Tabel 4F F'!I95<5,'Tabel 4 F'!I95<0.5),"-",IFERROR('Tabel 4 F'!I95/'Tabel 4F F'!I95*100,"-")) -> -
A96: Bac. Hum. | C96: =IF(OR('Tabel 4F F'!C96<5,'Tabel 4 F'!C96<0.5),"-",IFERROR('Tabel 4 F'!C96/'Tabel 4F F'!C96*100,"-")) -> - | D96: =IF(OR('Tabel 4F F'!D96<5,'Tabel 4 F'!D96<0.5),"-",IFERROR('Tabel 4 F'!D96/'Tabel 4F F'!D96*100,"-")) -> - | E96: =IF(OR('Tabel 4F F'!E96<5,'Tabel 4 F'!E96<0.5),"-",IFERROR('Tabel 4 F'!E96/'Tabel 4F F'!E96*100,"-")) -> - | F96: =IF(OR('Tabel 4F F'!F96<5,'Tabel 4 F'!F96<0.5),"-",IFERROR('Tabel 4 F'!F96/'Tabel 4F F'!F96*100,"-")) -> - | G96: =IF(OR('Tabel 4F F'!G96<5,'Tabel 4 F'!G96<0.5),"-",IFERROR('Tabel 4 F'!G96/'Tabel 4F F'!G96*100,"-")) -> - | I96: =IF(OR('Tabel 4F F'!I96<5,'Tabel 4 F'!I96<0.5),"-",IFERROR('Tabel 4 F'!I96/'Tabel 4F F'!I96*100,"-")) -> -
A97: Bac. Nat. | C97: =IF(OR('Tabel 4F F'!C97<5,'Tabel 4 F'!C97<0.5),"-",IFERROR('Tabel 4 F'!C97/'Tabel 4F F'!C97*100,"-")) -> - | D97: =IF(OR('Tabel 4F F'!D97<5,'Tabel 4 F'!D97<0.5),"-",IFERROR('Tabel 4 F'!D97/'Tabel 4F F'!D97*100,"-")) -> - | E97: =IF(OR('Tabel 4F F'!E97<5,'Tabel 4 F'!E97<0.5),"-",IFERROR('Tabel 4 F'!E97/'Tabel 4F F'!E97*100,"-")) -> - | F97: =IF(OR('Tabel 4F F'!F97<5,'Tabel 4 F'!F97<0.5),"-",IFERROR('Tabel 4 F'!F97/'Tabel 4F F'!F97*100,"-")) -> - | G97: =IF(OR('Tabel 4F F'!G97<5,'Tabel 4 F'!G97<0.5),"-",IFERROR('Tabel 4 F'!G97/'Tabel 4F F'!G97*100,"-")) -> - | I97: =IF(OR('Tabel 4F F'!I97<5,'Tabel 4 F'!I97<0.5),"-",IFERROR('Tabel 4 F'!I97/'Tabel 4F F'!I97*100,"-")) -> 10
A98: Andre | C98: =IF(OR('Tabel 4F F'!C98<5,'Tabel 4 F'!C98<0.5),"-",IFERROR('Tabel 4 F'!C98/'Tabel 4F F'!C98*100,"-")) -> - | D98: =IF(OR('Tabel 4F F'!D98<5,'Tabel 4 F'!D98<0.5),"-",IFERROR('Tabel 4 F'!D98/'Tabel 4F F'!D98*100,"-")) -> - | E98: =IF(OR('Tabel 4F F'!E98<5,'Tabel 4 F'!E98<0.5),"-",IFERROR('Tabel 4 F'!E98/'Tabel 4F F'!E98*100,"-")) -> 9.523809524 | F98: =IF(OR('Tabel 4F F'!F98<5,'Tabel 4 F'!F98<0.5),"-",IFERROR('Tabel 4 F'!F98/'Tabel 4F F'!F98*100,"-")) -> 5 | G98: =IF(OR('Tabel 4F F'!G98<5,'Tabel 4 F'!G98<0.5),"-",IFERROR('Tabel 4 F'!G98/'Tabel 4F F'!G98*100,"-")) -> 8.333333333 | I98: =IF(OR('Tabel 4F F'!I98<5,'Tabel 4 F'!I98<0.5),"-",IFERROR('Tabel 4 F'!I98/'Tabel 4F F'!I98*100,"-")) -> 5.128205128
A100: Total | C100: =IF(OR('Tabel 4F F'!C100<5,'Tabel 4 F'!C100<0.5),"-",IFERROR('Tabel 4 F'!C100/'Tabel 4F F'!C100*100,"-")) -> 9.219858156 | D100: =IF(OR('Tabel 4F F'!D100<5,'Tabel 4 F'!D100<0.5),"-",IFERROR('Tabel 4 F'!D100/'Tabel 4F F'!D100*100,"-")) -> 5.063291139 | E100: =IF(OR('Tabel 4F F'!E100<5,'Tabel 4 F'!E100<0.5),"-",IFERROR('Tabel 4 F'!E100/'Tabel 4F F'!E100*100,"-")) -> 3.206412826 | F100: =IF(OR('Tabel 4F F'!F100<5,'Tabel 4 F'!F100<0.5),"-",IFERROR('Tabel 4 F'!F100/'Tabel 4F F'!F100*100,"-")) -> 2.139037433 | G100: =IF(OR('Tabel 4F F'!G100<5,'Tabel 4 F'!G100<0.5),"-",IFERROR('Tabel 4 F'!G100/'Tabel 4F F'!G100*100,"-")) -> 3.649635036 | I100: =IF(OR('Tabel 4F F'!I100<5,'Tabel 4 F'!I100<0.5),"-",IFERROR('Tabel 4 F'!I100/'Tabel 4F F'!I100*100,"-")) -> 4.061538462
A102: Ingeniører i alt | C102: =IF(OR('Tabel 4F F'!C102<5,'Tabel 4 F'!C102<0.5),"-",IFERROR('Tabel 4 F'!C102/'Tabel 4F F'!C102*100,"-")) -> 12.5 | D102: =IF(OR('Tabel 4F F'!D102<5,'Tabel 4 F'!D102<0.5),"-",IFERROR('Tabel 4 F'!D102/'Tabel 4F F'!D102*100,"-")) -> 2.380952381 | E102: =IF(OR('Tabel 4F F'!E102<5,'Tabel 4 F'!E102<0.5),"-",IFERROR('Tabel 4 F'!E102/'Tabel 4F F'!E102*100,"-")) -> 3.47826087 | F102: =IF(OR('Tabel 4F F'!F102<5,'Tabel 4 F'!F102<0.5),"-",IFERROR('Tabel 4 F'!F102/'Tabel 4F F'!F102*100,"-")) -> 2.307692308 | G102: =IF(OR('Tabel 4F F'!G102<5,'Tabel 4 F'!G102<0.5),"-",IFERROR('Tabel 4 F'!G102/'Tabel 4F F'!G102*100,"-")) -> 4.651162791 | I102: =IF(OR('Tabel 4F F'!I102<5,'Tabel 4 F'!I102<0.5),"-",IFERROR('Tabel 4 F'!I102/'Tabel 4F F'!I102*100,"-")) -> 3.535353535
A103: Magistre i alt | C103: =IF(OR('Tabel 4F F'!C103<5,'Tabel 4 F'!C103<0.5),"-",IFERROR('Tabel 4 F'!C103/'Tabel 4F F'!C103*100,"-")) -> 21.42857143 | D103: =IF(OR('Tabel 4F F'!D103<5,'Tabel 4 F'!D103<0.5),"-",IFERROR('Tabel 4 F'!D103/'Tabel 4F F'!D103*100,"-")) -> 9.090909091 | E103: =IF(OR('Tabel 4F F'!E103<5,'Tabel 4 F'!E103<0.5),"-",IFERROR('Tabel 4 F'!E103/'Tabel 4F F'!E103*100,"-")) -> 4.04040404 | F103: =IF(OR('Tabel 4F F'!F103<5,'Tabel 4 F'!F103<0.5),"-",IFERROR('Tabel 4 F'!F103/'Tabel 4F F'!F103*100,"-")) -> 2.040816327 | G103: =IF(OR('Tabel 4F F'!G103<5,'Tabel 4 F'!G103<0.5),"-",IFERROR('Tabel 4 F'!G103/'Tabel 4F F'!G103*100,"-")) -> 4.761904762 | I103: =IF(OR('Tabel 4F F'!I103<5,'Tabel 4 F'!I103<0.5),"-",IFERROR('Tabel 4 F'!I103/'Tabel 4F F'!I103*100,"-")) -> 6.934306569
A104: DJØF'ere i alt | C104: =IF(OR('Tabel 4F F'!C104<5,'Tabel 4 F'!C104<0.5),"-",IFERROR('Tabel 4 F'!C104/'Tabel 4F F'!C104*100,"-")) -> - | D104: =IF(OR('Tabel 4F F'!D104<5,'Tabel 4 F'!D104<0.5),"-",IFERROR('Tabel 4 F'!D104/'Tabel 4F F'!D104*100,"-")) -> 3.2 | E104: =IF(OR('Tabel 4F F'!E104<5,'Tabel 4 F'!E104<0.5),"-",IFERROR('Tabel 4 F'!E104/'Tabel 4F F'!E104*100,"-")) -> 1.818181818 | F104: =IF(OR('Tabel 4F F'!F104<5,'Tabel 4 F'!F104<0.5),"-",IFERROR('Tabel 4 F'!F104/'Tabel 4F F'!F104*100,"-")) -> 1.333333333 | G104: =IF(OR('Tabel 4F F'!G104<5,'Tabel 4 F'!G104<0.5),"-",IFERROR('Tabel 4 F'!G104/'Tabel 4F F'!G104*100,"-")) -> - | I104: =IF(OR('Tabel 4F F'!I104<5,'Tabel 4 F'!I104<0.5),"-",IFERROR('Tabel 4 F'!I104/'Tabel 4F F'!I104*100,"-")) -> 1.97740113
A111: Assens
C113: Under 30 år | D113: 30 - 39 år | E113: 40 - 49 år | F113: 50 - 59 år | G113: Over 60 år | I113: I alt
A115: Civ. ing. | C115: =IF(OR('Tabel 4F F'!C115<5,'Tabel 4 F'!C115<0.5),"-",IFERROR('Tabel 4 F'!C115/'Tabel 4F F'!C115*100,"-")) -> 14.28571429 | D115: =IF(OR('Tabel 4F F'!D115<5,'Tabel 4 F'!D115<0.5),"-",IFERROR('Tabel 4 F'!D115/'Tabel 4F F'!D115*100,"-")) -> 7.407407407 | E115: =IF(OR('Tabel 4F F'!E115<5,'Tabel 4 F'!E115<0.5),"-",IFERROR('Tabel 4 F'!E115/'Tabel 4F F'!E115*100,"-")) -> - | F115: =IF(OR('Tabel 4F F'!F115<5,'Tabel 4 F'!F115<0.5),"-",IFERROR('Tabel 4 F'!F115/'Tabel 4F F'!F115*100,"-")) -> - | G115: =IF(OR('Tabel 4F F'!G115<5,'Tabel 4 F'!G115<0.5),"-",IFERROR('Tabel 4 F'!G115/'Tabel 4F F'!G115*100,"-")) -> - | I115: =IF(OR('Tabel 4F F'!I115<5,'Tabel 4 F'!I115<0.5),"-",IFERROR('Tabel 4 F'!I115/'Tabel 4F F'!I115*100,"-")) -> 4.225352113
A116: Diplom ing. | C116: =IF(OR('Tabel 4F F'!C116<5,'Tabel 4 F'!C116<0.5),"-",IFERROR('Tabel 4 F'!C116/'Tabel 4F F'!C116*100,"-")) -> 16.66666667 | D116: =IF(OR('Tabel 4F F'!D116<5,'Tabel 4 F'!D116<0.5),"-",IFERROR('Tabel 4 F'!D116/'Tabel 4F F'!D116*100,"-")) -> 2.564102564 | E116: =IF(OR('Tabel 4F F'!E116<5,'Tabel 4 F'!E116<0.5),"-",IFERROR('Tabel 4 F'!E116/'Tabel 4F F'!E116*100,"-")) -> 4.285714286 | F116: =IF(OR('Tabel 4F F'!F116<5,'Tabel 4 F'!F116<0.5),"-",IFERROR('Tabel 4 F'!F116/'Tabel 4F F'!F116*100,"-")) -> 3.125 | G116: =IF(OR('Tabel 4F F'!G116<5,'Tabel 4 F'!G116<0.5),"-",IFERROR('Tabel 4 F'!G116/'Tabel 4F F'!G116*100,"-")) -> 3.846153846 | I116: =IF(OR('Tabel 4F F'!I116<5,'Tabel 4 F'!I116<0.5),"-",IFERROR('Tabel 4 F'!I116/'Tabel 4F F'!I116*100,"-")) -> 3.797468354
A117: Cand. Scient. Tek | C117: =IF(OR('Tabel 4F F'!C117<5,'Tabel 4 F'!C117<0.5),"-",IFERROR('Tabel 4 F'!C117/'Tabel 4F F'!C117*100,"-")) -> 25 | D117: =IF(OR('Tabel 4F F'!D117<5,'Tabel 4 F'!D117<0.5),"-",IFERROR('Tabel 4 F'!D117/'Tabel 4F F'!D117*100,"-")) -> 9.090909091 | E117: =IF(OR('Tabel 4F F'!E117<5,'Tabel 4 F'!E117<0.5),"-",IFERROR('Tabel 4 F'!E117/'Tabel 4F F'!E117*100,"-")) -> - | F117: =IF(OR('Tabel 4F F'!F117<5,'Tabel 4 F'!F117<0.5),"-",IFERROR('Tabel 4 F'!F117/'Tabel 4F F'!F117*100,"-")) -> - | G117: =IF(OR('Tabel 4F F'!G117<5,'Tabel 4 F'!G117<0.5),"-",IFERROR('Tabel 4 F'!G117/'Tabel 4F F'!G117*100,"-")) -> - | I117: =IF(OR('Tabel 4F F'!I117<5,'Tabel 4 F'!I117<0.5),"-",IFERROR('Tabel 4 F'!I117/'Tabel 4F F'!I117*100,"-")) -> 9.756097561
A118: MA. Hum. | C118: =IF(OR('Tabel 4F F'!C118<5,'Tabel 4 F'!C118<0.5),"-",IFERROR('Tabel 4 F'!C118/'Tabel 4F F'!C118*100,"-")) -> 54.54545455 | D118: =IF(OR('Tabel 4F F'!D118<5,'Tabel 4 F'!D118<0.5),"-",IFERROR('Tabel 4 F'!D118/'Tabel 4F F'!D118*100,"-")) -> 14.28571429 | E118: =IF(OR('Tabel 4F F'!E118<5,'Tabel 4 F'!E118<0.5),"-",IFERROR('Tabel 4 F'!E118/'Tabel 4F F'!E118*100,"-")) -> 4.347826087 | F118: =IF(OR('Tabel 4F F'!F118<5,'Tabel 4 F'!F118<0.5),"-",IFERROR('Tabel 4 F'!F118/'Tabel 4F F'!F118*100,"-")) -> 9.090909091 | G118: =IF(OR('Tabel 4F F'!G118<5,'Tabel 4 F'!G118<0.5),"-",IFERROR('Tabel 4 F'!G118/'Tabel 4F F'!G118*100,"-")) -> 14.28571429 | I118: =IF(OR('Tabel 4F F'!I118<5,'Tabel 4 F'!I118<0.5),"-",IFERROR('Tabel 4 F'!I118/'Tabel 4F F'!I118*100,"-")) -> 11.9205298
A119: MA. Nat. | C119: =IF(OR('Tabel 4F F'!C119<5,'Tabel 4 F'!C119<0.5),"-",IFERROR('Tabel 4 F'!C119/'Tabel 4F F'!C119*100,"-")) -> - | D119: =IF(OR('Tabel 4F F'!D119<5,'Tabel 4 F'!D119<0.5),"-",IFERROR('Tabel 4 F'!D119/'Tabel 4F F'!D119*100,"-")) -> 13.33333333 | E119: =IF(OR('Tabel 4F F'!E119<5,'Tabel 4 F'!E119<0.5),"-",IFERROR('Tabel 4 F'!E119/'Tabel 4F F'!E119*100,"-")) -> 8.695652174 | F119: =IF(OR('Tabel 4F F'!F119<5,'Tabel 4 F'!F119<0.5),"-",IFERROR('Tabel 4 F'!F119/'Tabel 4F F'!F119*100,"-")) -> - | G119: =IF(OR('Tabel 4F F'!G119<5,'Tabel 4 F'!G119<0.5),"-",IFERROR('Tabel 4 F'!G119/'Tabel 4F F'!G119*100,"-")) -> - | I119: =IF(OR('Tabel 4F F'!I119<5,'Tabel 4 F'!I119<0.5),"-",IFERROR('Tabel 4 F'!I119/'Tabel 4F F'!I119*100,"-")) -> 6.666666667
A120: MA. Ph.d. | C120: =IF(OR('Tabel 4F F'!C120<5,'Tabel 4 F'!C120<0.5),"-",IFERROR('Tabel 4 F'!C120/'Tabel 4F F'!C120*100,"-")) -> - | D120: =IF(OR('Tabel 4F F'!D120<5,'Tabel 4 F'!D120<0.5),"-",IFERROR('Tabel 4 F'!D120/'Tabel 4F F'!D120*100,"-")) -> - | E120: =IF(OR('Tabel 4F F'!E120<5,'Tabel 4 F'!E120<0.5),"-",IFERROR('Tabel 4 F'!E120/'Tabel 4F F'!E120*100,"-")) -> - | F120: =IF(OR('Tabel 4F F'!F120<5,'Tabel 4 F'!F120<0.5),"-",IFERROR('Tabel 4 F'!F120/'Tabel 4F F'!F120*100,"-")) -> - | G120: =IF(OR('Tabel 4F F'!G120<5,'Tabel 4 F'!G120<0.5),"-",IFERROR('Tabel 4 F'!G120/'Tabel 4F F'!G120*100,"-")) -> - | I120: =IF(OR('Tabel 4F F'!I120<5,'Tabel 4 F'!I120<0.5),"-",IFERROR('Tabel 4 F'!I120/'Tabel 4F F'!I120*100,"-")) -> -
A121: MA. Samf. | C121: =IF(OR('Tabel 4F F'!C121<5,'Tabel 4 F'!C121<0.5),"-",IFERROR('Tabel 4 F'!C121/'Tabel 4F F'!C121*100,"-")) -> - | D121: =IF(OR('Tabel 4F F'!D121<5,'Tabel 4 F'!D121<0.5),"-",IFERROR('Tabel 4 F'!D121/'Tabel 4F F'!D121*100,"-")) -> - | E121: =IF(OR('Tabel 4F F'!E121<5,'Tabel 4 F'!E121<0.5),"-",IFERROR('Tabel 4 F'!E121/'Tabel 4F F'!E121*100,"-")) -> - | F121: =IF(OR('Tabel 4F F'!F121<5,'Tabel 4 F'!F121<0.5),"-",IFERROR('Tabel 4 F'!F121/'Tabel 4F F'!F121*100,"-")) -> - | G121: =IF(OR('Tabel 4F F'!G121<5,'Tabel 4 F'!G121<0.5),"-",IFERROR('Tabel 4 F'!G121/'Tabel 4F F'!G121*100,"-")) -> - | I121: =IF(OR('Tabel 4F F'!I121<5,'Tabel 4 F'!I121<0.5),"-",IFERROR('Tabel 4 F'!I121/'Tabel 4F F'!I121*100,"-")) -> 20
A122: Øvrige Mag. | C122: =IF(OR('Tabel 4F F'!C122<5,'Tabel 4 F'!C122<0.5),"-",IFERROR('Tabel 4 F'!C122/'Tabel 4F F'!C122*100,"-")) -> - | D122: =IF(OR('Tabel 4F F'!D122<5,'Tabel 4 F'!D122<0.5),"-",IFERROR('Tabel 4 F'!D122/'Tabel 4F F'!D122*100,"-")) -> - | E122: =IF(OR('Tabel 4F F'!E122<5,'Tabel 4 F'!E122<0.5),"-",IFERROR('Tabel 4 F'!E122/'Tabel 4F F'!E122*100,"-")) -> - | F122: =IF(OR('Tabel 4F F'!F122<5,'Tabel 4 F'!F122<0.5),"-",IFERROR('Tabel 4 F'!F122/'Tabel 4F F'!F122*100,"-")) -> - | G122: =IF(OR('Tabel 4F F'!G122<5,'Tabel 4 F'!G122<0.5),"-",IFERROR('Tabel 4 F'!G122/'Tabel 4F F'!G122*100,"-")) -> - | I122: =IF(OR('Tabel 4F F'!I122<5,'Tabel 4 F'!I122<0.5),"-",IFERROR('Tabel 4 F'!I122/'Tabel 4F F'!I122*100,"-")) -> -
A123: Agronom | C123: =IF(OR('Tabel 4F F'!C123<5,'Tabel 4 F'!C123<0.5),"-",IFERROR('Tabel 4 F'!C123/'Tabel 4F F'!C123*100,"-")) -> - | D123: =IF(OR('Tabel 4F F'!D123<5,'Tabel 4 F'!D123<0.5),"-",IFERROR('Tabel 4 F'!D123/'Tabel 4F F'!D123*100,"-")) -> - | E123: =IF(OR('Tabel 4F F'!E123<5,'Tabel 4 F'!E123<0.5),"-",IFERROR('Tabel 4 F'!E123/'Tabel 4F F'!E123*100,"-")) -> - | F123: =IF(OR('Tabel 4F F'!F123<5,'Tabel 4 F'!F123<0.5),"-",IFERROR('Tabel 4 F'!F123/'Tabel 4F F'!F123*100,"-")) -> - | G123: =IF(OR('Tabel 4F F'!G123<5,'Tabel 4 F'!G123<0.5),"-",IFERROR('Tabel 4 F'!G123/'Tabel 4F F'!G123*100,"-")) -> - | I123: =IF(OR('Tabel 4F F'!I123<5,'Tabel 4 F'!I123<0.5),"-",IFERROR('Tabel 4 F'!I123/'Tabel 4F F'!I123*100,"-")) -> -
A124: Landsk. Arkt. | C124: =IF(OR('Tabel 4F F'!C124<5,'Tabel 4 F'!C124<0.5),"-",IFERROR('Tabel 4 F'!C124/'Tabel 4F F'!C124*100,"-")) -> - | D124: =IF(OR('Tabel 4F F'!D124<5,'Tabel 4 F'!D124<0.5),"-",IFERROR('Tabel 4 F'!D124/'Tabel 4F F'!D124*100,"-")) -> - | E124: =IF(OR('Tabel 4F F'!E124<5,'Tabel 4 F'!E124<0.5),"-",IFERROR('Tabel 4 F'!E124/'Tabel 4F F'!E124*100,"-")) -> - | F124: =IF(OR('Tabel 4F F'!F124<5,'Tabel 4 F'!F124<0.5),"-",IFERROR('Tabel 4 F'!F124/'Tabel 4F F'!F124*100,"-")) -> - | G124: =IF(OR('Tabel 4F F'!G124<5,'Tabel 4 F'!G124<0.5),"-",IFERROR('Tabel 4 F'!G124/'Tabel 4F F'!G124*100,"-")) -> - | I124: =IF(OR('Tabel 4F F'!I124<5,'Tabel 4 F'!I124<0.5),"-",IFERROR('Tabel 4 F'!I124/'Tabel 4F F'!I124*100,"-")) -> -
A125: Hortonom | C125: =IF(OR('Tabel 4F F'!C125<5,'Tabel 4 F'!C125<0.5),"-",IFERROR('Tabel 4 F'!C125/'Tabel 4F F'!C125*100,"-")) -> - | D125: =IF(OR('Tabel 4F F'!D125<5,'Tabel 4 F'!D125<0.5),"-",IFERROR('Tabel 4 F'!D125/'Tabel 4F F'!D125*100,"-")) -> - | E125: =IF(OR('Tabel 4F F'!E125<5,'Tabel 4 F'!E125<0.5),"-",IFERROR('Tabel 4 F'!E125/'Tabel 4F F'!E125*100,"-")) -> - | F125: =IF(OR('Tabel 4F F'!F125<5,'Tabel 4 F'!F125<0.5),"-",IFERROR('Tabel 4 F'!F125/'Tabel 4F F'!F125*100,"-")) -> - | G125: =IF(OR('Tabel 4F F'!G125<5,'Tabel 4 F'!G125<0.5),"-",IFERROR('Tabel 4 F'!G125/'Tabel 4F F'!G125*100,"-")) -> - | I125: =IF(OR('Tabel 4F F'!I125<5,'Tabel 4 F'!I125<0.5),"-",IFERROR('Tabel 4 F'!I125/'Tabel 4F F'!I125*100,"-")) -> -
A126: Forstkand. | C126: =IF(OR('Tabel 4F F'!C126<5,'Tabel 4 F'!C126<0.5),"-",IFERROR('Tabel 4 F'!C126/'Tabel 4F F'!C126*100,"-")) -> - | D126: =IF(OR('Tabel 4F F'!D126<5,'Tabel 4 F'!D126<0.5),"-",IFERROR('Tabel 4 F'!D126/'Tabel 4F F'!D126*100,"-")) -> - | E126: =IF(OR('Tabel 4F F'!E126<5,'Tabel 4 F'!E126<0.5),"-",IFERROR('Tabel 4 F'!E126/'Tabel 4F F'!E126*100,"-")) -> - | F126: =IF(OR('Tabel 4F F'!F126<5,'Tabel 4 F'!F126<0.5),"-",IFERROR('Tabel 4 F'!F126/'Tabel 4F F'!F126*100,"-")) -> - | G126: =IF(OR('Tabel 4F F'!G126<5,'Tabel 4 F'!G126<0.5),"-",IFERROR('Tabel 4 F'!G126/'Tabel 4F F'!G126*100,"-")) -> - | I126: =IF(OR('Tabel 4F F'!I126<5,'Tabel 4 F'!I126<0.5),"-",IFERROR('Tabel 4 F'!I126/'Tabel 4F F'!I126*100,"-")) -> -
A127: Jordbrugsakad. | C127: =IF(OR('Tabel 4F F'!C127<5,'Tabel 4 F'!C127<0.5),"-",IFERROR('Tabel 4 F'!C127/'Tabel 4F F'!C127*100,"-")) -> - | D127: =IF(OR('Tabel 4F F'!D127<5,'Tabel 4 F'!D127<0.5),"-",IFERROR('Tabel 4 F'!D127/'Tabel 4F F'!D127*100,"-")) -> - | E127: =IF(OR('Tabel 4F F'!E127<5,'Tabel 4 F'!E127<0.5),"-",IFERROR('Tabel 4 F'!E127/'Tabel 4F F'!E127*100,"-")) -> - | F127: =IF(OR('Tabel 4F F'!F127<5,'Tabel 4 F'!F127<0.5),"-",IFERROR('Tabel 4 F'!F127/'Tabel 4F F'!F127*100,"-")) -> - | G127: =IF(OR('Tabel 4F F'!G127<5,'Tabel 4 F'!G127<0.5),"-",IFERROR('Tabel 4 F'!G127/'Tabel 4F F'!G127*100,"-")) -> - | I127: =IF(OR('Tabel 4F F'!I127<5,'Tabel 4 F'!I127<0.5),"-",IFERROR('Tabel 4 F'!I127/'Tabel 4F F'!I127*100,"-")) -> -
A128: Mejeriing. | C128: =IF(OR('Tabel 4F F'!C128<5,'Tabel 4 F'!C128<0.5),"-",IFERROR('Tabel 4 F'!C128/'Tabel 4F F'!C128*100,"-")) -> - | D128: =IF(OR('Tabel 4F F'!D128<5,'Tabel 4 F'!D128<0.5),"-",IFERROR('Tabel 4 F'!D128/'Tabel 4F F'!D128*100,"-")) -> - | E128: =IF(OR('Tabel 4F F'!E128<5,'Tabel 4 F'!E128<0.5),"-",IFERROR('Tabel 4 F'!E128/'Tabel 4F F'!E128*100,"-")) -> - | F128: =IF(OR('Tabel 4F F'!F128<5,'Tabel 4 F'!F128<0.5),"-",IFERROR('Tabel 4 F'!F128/'Tabel 4F F'!F128*100,"-")) -> - | G128: =IF(OR('Tabel 4F F'!G128<5,'Tabel 4 F'!G128<0.5),"-",IFERROR('Tabel 4 F'!G128/'Tabel 4F F'!G128*100,"-")) -> - | I128: =IF(OR('Tabel 4F F'!I128<5,'Tabel 4 F'!I128<0.5),"-",IFERROR('Tabel 4 F'!I128/'Tabel 4F F'!I128*100,"-")) -> -
A129: Levn.m.kand. | C129: =IF(OR('Tabel 4F F'!C129<5,'Tabel 4 F'!C129<0.5),"-",IFERROR('Tabel 4 F'!C129/'Tabel 4F F'!C129*100,"-")) -> - | D129: =IF(OR('Tabel 4F F'!D129<5,'Tabel 4 F'!D129<0.5),"-",IFERROR('Tabel 4 F'!D129/'Tabel 4F F'!D129*100,"-")) -> - | E129: =IF(OR('Tabel 4F F'!E129<5,'Tabel 4 F'!E129<0.5),"-",IFERROR('Tabel 4 F'!E129/'Tabel 4F F'!E129*100,"-")) -> - | F129: =IF(OR('Tabel 4F F'!F129<5,'Tabel 4 F'!F129<0.5),"-",IFERROR('Tabel 4 F'!F129/'Tabel 4F F'!F129*100,"-")) -> - | G129: =IF(OR('Tabel 4F F'!G129<5,'Tabel 4 F'!G129<0.5),"-",IFERROR('Tabel 4 F'!G129/'Tabel 4F F'!G129*100,"-")) -> - | I129: =IF(OR('Tabel 4F F'!I129<5,'Tabel 4 F'!I129<0.5),"-",IFERROR('Tabel 4 F'!I129/'Tabel 4F F'!I129*100,"-")) -> -
A130: Dyrlæge | C130: =IF(OR('Tabel 4F F'!C130<5,'Tabel 4 F'!C130<0.5),"-",IFERROR('Tabel 4 F'!C130/'Tabel 4F F'!C130*100,"-")) -> - | D130: =IF(OR('Tabel 4F F'!D130<5,'Tabel 4 F'!D130<0.5),"-",IFERROR('Tabel 4 F'!D130/'Tabel 4F F'!D130*100,"-")) -> - | E130: =IF(OR('Tabel 4F F'!E130<5,'Tabel 4 F'!E130<0.5),"-",IFERROR('Tabel 4 F'!E130/'Tabel 4F F'!E130*100,"-")) -> - | F130: =IF(OR('Tabel 4F F'!F130<5,'Tabel 4 F'!F130<0.5),"-",IFERROR('Tabel 4 F'!F130/'Tabel 4F F'!F130*100,"-")) -> - | G130: =IF(OR('Tabel 4F F'!G130<5,'Tabel 4 F'!G130<0.5),"-",IFERROR('Tabel 4 F'!G130/'Tabel 4F F'!G130*100,"-")) -> - | I130: =IF(OR('Tabel 4F F'!I130<5,'Tabel 4 F'!I130<0.5),"-",IFERROR('Tabel 4 F'!I130/'Tabel 4F F'!I130*100,"-")) -> -
A131: Farmaceut | C131: =IF(OR('Tabel 4F F'!C131<5,'Tabel 4 F'!C131<0.5),"-",IFERROR('Tabel 4 F'!C131/'Tabel 4F F'!C131*100,"-")) -> - | D131: =IF(OR('Tabel 4F F'!D131<5,'Tabel 4 F'!D131<0.5),"-",IFERROR('Tabel 4 F'!D131/'Tabel 4F F'!D131*100,"-")) -> - | E131: =IF(OR('Tabel 4F F'!E131<5,'Tabel 4 F'!E131<0.5),"-",IFERROR('Tabel 4 F'!E131/'Tabel 4F F'!E131*100,"-")) -> - | F131: =IF(OR('Tabel 4F F'!F131<5,'Tabel 4 F'!F131<0.5),"-",IFERROR('Tabel 4 F'!F131/'Tabel 4F F'!F131*100,"-")) -> - | G131: =IF(OR('Tabel 4F F'!G131<5,'Tabel 4 F'!G131<0.5),"-",IFERROR('Tabel 4 F'!G131/'Tabel 4F F'!G131*100,"-")) -> - | I131: =IF(OR('Tabel 4F F'!I131<5,'Tabel 4 F'!I131<0.5),"-",IFERROR('Tabel 4 F'!I131/'Tabel 4F F'!I131*100,"-")) -> -
A132: Læge | C132: =IF(OR('Tabel 4F F'!C132<5,'Tabel 4 F'!C132<0.5),"-",IFERROR('Tabel 4 F'!C132/'Tabel 4F F'!C132*100,"-")) -> - | D132: =IF(OR('Tabel 4F F'!D132<5,'Tabel 4 F'!D132<0.5),"-",IFERROR('Tabel 4 F'!D132/'Tabel 4F F'!D132*100,"-")) -> 5.555555556 | E132: =IF(OR('Tabel 4F F'!E132<5,'Tabel 4 F'!E132<0.5),"-",IFERROR('Tabel 4 F'!E132/'Tabel 4F F'!E132*100,"-")) -> - | F132: =IF(OR('Tabel 4F F'!F132<5,'Tabel 4 F'!F132<0.5),"-",IFERROR('Tabel 4 F'!F132/'Tabel 4F F'!F132*100,"-")) -> - | G132: =IF(OR('Tabel 4F F'!G132<5,'Tabel 4 F'!G132<0.5),"-",IFERROR('Tabel 4 F'!G132/'Tabel 4F F'!G132*100,"-")) -> - | I132: =IF(OR('Tabel 4F F'!I132<5,'Tabel 4 F'!I132<0.5),"-",IFERROR('Tabel 4 F'!I132/'Tabel 4F F'!I132*100,"-")) -> 2.777777778
A133: Tandlæge | C133: =IF(OR('Tabel 4F F'!C133<5,'Tabel 4 F'!C133<0.5),"-",IFERROR('Tabel 4 F'!C133/'Tabel 4F F'!C133*100,"-")) -> - | D133: =IF(OR('Tabel 4F F'!D133<5,'Tabel 4 F'!D133<0.5),"-",IFERROR('Tabel 4 F'!D133/'Tabel 4F F'!D133*100,"-")) -> - | E133: =IF(OR('Tabel 4F F'!E133<5,'Tabel 4 F'!E133<0.5),"-",IFERROR('Tabel 4 F'!E133/'Tabel 4F F'!E133*100,"-")) -> - | F133: =IF(OR('Tabel 4F F'!F133<5,'Tabel 4 F'!F133<0.5),"-",IFERROR('Tabel 4 F'!F133/'Tabel 4F F'!F133*100,"-")) -> - | G133: =IF(OR('Tabel 4F F'!G133<5,'Tabel 4 F'!G133<0.5),"-",IFERROR('Tabel 4 F'!G133/'Tabel 4F F'!G133*100,"-")) -> - | I133: =IF(OR('Tabel 4F F'!I133<5,'Tabel 4 F'!I133<0.5),"-",IFERROR('Tabel 4 F'!I133/'Tabel 4F F'!I133*100,"-")) -> -
A134: Arkitekt | C134: =IF(OR('Tabel 4F F'!C134<5,'Tabel 4 F'!C134<0.5),"-",IFERROR('Tabel 4 F'!C134/'Tabel 4F F'!C134*100,"-")) -> - | D134: =IF(OR('Tabel 4F F'!D134<5,'Tabel 4 F'!D134<0.5),"-",IFERROR('Tabel 4 F'!D134/'Tabel 4F F'!D134*100,"-")) -> - | E134: =IF(OR('Tabel 4F F'!E134<5,'Tabel 4 F'!E134<0.5),"-",IFERROR('Tabel 4 F'!E134/'Tabel 4F F'!E134*100,"-")) -> - | F134: =IF(OR('Tabel 4F F'!F134<5,'Tabel 4 F'!F134<0.5),"-",IFERROR('Tabel 4 F'!F134/'Tabel 4F F'!F134*100,"-")) -> - | G134: =IF(OR('Tabel 4F F'!G134<5,'Tabel 4 F'!G134<0.5),"-",IFERROR('Tabel 4 F'!G134/'Tabel 4F F'!G134*100,"-")) -> - | I134: =IF(OR('Tabel 4F F'!I134<5,'Tabel 4 F'!I134<0.5),"-",IFERROR('Tabel 4 F'!I134/'Tabel 4F F'!I134*100,"-")) -> -
A135: Landinspek. | C135: =IF(OR('Tabel 4F F'!C135<5,'Tabel 4 F'!C135<0.5),"-",IFERROR('Tabel 4 F'!C135/'Tabel 4F F'!C135*100,"-")) -> - | D135: =IF(OR('Tabel 4F F'!D135<5,'Tabel 4 F'!D135<0.5),"-",IFERROR('Tabel 4 F'!D135/'Tabel 4F F'!D135*100,"-")) -> - | E135: =IF(OR('Tabel 4F F'!E135<5,'Tabel 4 F'!E135<0.5),"-",IFERROR('Tabel 4 F'!E135/'Tabel 4F F'!E135*100,"-")) -> - | F135: =IF(OR('Tabel 4F F'!F135<5,'Tabel 4 F'!F135<0.5),"-",IFERROR('Tabel 4 F'!F135/'Tabel 4F F'!F135*100,"-")) -> - | G135: =IF(OR('Tabel 4F F'!G135<5,'Tabel 4 F'!G135<0.5),"-",IFERROR('Tabel 4 F'!G135/'Tabel 4F F'!G135*100,"-")) -> - | I135: =IF(OR('Tabel 4F F'!I135<5,'Tabel 4 F'!I135<0.5),"-",IFERROR('Tabel 4 F'!I135/'Tabel 4F F'!I135*100,"-")) -> -
A136: Bibliotekar | C136: =IF(OR('Tabel 4F F'!C136<5,'Tabel 4 F'!C136<0.5),"-",IFERROR('Tabel 4 F'!C136/'Tabel 4F F'!C136*100,"-")) -> - | D136: =IF(OR('Tabel 4F F'!D136<5,'Tabel 4 F'!D136<0.5),"-",IFERROR('Tabel 4 F'!D136/'Tabel 4F F'!D136*100,"-")) -> - | E136: =IF(OR('Tabel 4F F'!E136<5,'Tabel 4 F'!E136<0.5),"-",IFERROR('Tabel 4 F'!E136/'Tabel 4F F'!E136*100,"-")) -> 16.66666667 | F136: =IF(OR('Tabel 4F F'!F136<5,'Tabel 4 F'!F136<0.5),"-",IFERROR('Tabel 4 F'!F136/'Tabel 4F F'!F136*100,"-")) -> - | G136: =IF(OR('Tabel 4F F'!G136<5,'Tabel 4 F'!G136<0.5),"-",IFERROR('Tabel 4 F'!G136/'Tabel 4F F'!G136*100,"-")) -> - | I136: =IF(OR('Tabel 4F F'!I136<5,'Tabel 4 F'!I136<0.5),"-",IFERROR('Tabel 4 F'!I136/'Tabel 4F F'!I136*100,"-")) -> 6.25
A137: Musikudd. | C137: =IF(OR('Tabel 4F F'!C137<5,'Tabel 4 F'!C137<0.5),"-",IFERROR('Tabel 4 F'!C137/'Tabel 4F F'!C137*100,"-")) -> - | D137: =IF(OR('Tabel 4F F'!D137<5,'Tabel 4 F'!D137<0.5),"-",IFERROR('Tabel 4 F'!D137/'Tabel 4F F'!D137*100,"-")) -> - | E137: =IF(OR('Tabel 4F F'!E137<5,'Tabel 4 F'!E137<0.5),"-",IFERROR('Tabel 4 F'!E137/'Tabel 4F F'!E137*100,"-")) -> - | F137: =IF(OR('Tabel 4F F'!F137<5,'Tabel 4 F'!F137<0.5),"-",IFERROR('Tabel 4 F'!F137/'Tabel 4F F'!F137*100,"-")) -> - | G137: =IF(OR('Tabel 4F F'!G137<5,'Tabel 4 F'!G137<0.5),"-",IFERROR('Tabel 4 F'!G137/'Tabel 4F F'!G137*100,"-")) -> - | I137: =IF(OR('Tabel 4F F'!I137<5,'Tabel 4 F'!I137<0.5),"-",IFERROR('Tabel 4 F'!I137/'Tabel 4F F'!I137*100,"-")) -> -
A138: Teolog | C138: =IF(OR('Tabel 4F F'!C138<5,'Tabel 4 F'!C138<0.5),"-",IFERROR('Tabel 4 F'!C138/'Tabel 4F F'!C138*100,"-")) -> - | D138: =IF(OR('Tabel 4F F'!D138<5,'Tabel 4 F'!D138<0.5),"-",IFERROR('Tabel 4 F'!D138/'Tabel 4F F'!D138*100,"-")) -> - | E138: =IF(OR('Tabel 4F F'!E138<5,'Tabel 4 F'!E138<0.5),"-",IFERROR('Tabel 4 F'!E138/'Tabel 4F F'!E138*100,"-")) -> - | F138: =IF(OR('Tabel 4F F'!F138<5,'Tabel 4 F'!F138<0.5),"-",IFERROR('Tabel 4 F'!F138/'Tabel 4F F'!F138*100,"-")) -> - | G138: =IF(OR('Tabel 4F F'!G138<5,'Tabel 4 F'!G138<0.5),"-",IFERROR('Tabel 4 F'!G138/'Tabel 4F F'!G138*100,"-")) -> - | I138: =IF(OR('Tabel 4F F'!I138<5,'Tabel 4 F'!I138<0.5),"-",IFERROR('Tabel 4 F'!I138/'Tabel 4F F'!I138*100,"-")) -> -
A139: Psykolog | C139: =IF(OR('Tabel 4F F'!C139<5,'Tabel 4 F'!C139<0.5),"-",IFERROR('Tabel 4 F'!C139/'Tabel 4F F'!C139*100,"-")) -> - | D139: =IF(OR('Tabel 4F F'!D139<5,'Tabel 4 F'!D139<0.5),"-",IFERROR('Tabel 4 F'!D139/'Tabel 4F F'!D139*100,"-")) -> - | E139: =IF(OR('Tabel 4F F'!E139<5,'Tabel 4 F'!E139<0.5),"-",IFERROR('Tabel 4 F'!E139/'Tabel 4F F'!E139*100,"-")) -> - | F139: =IF(OR('Tabel 4F F'!F139<5,'Tabel 4 F'!F139<0.5),"-",IFERROR('Tabel 4 F'!F139/'Tabel 4F F'!F139*100,"-")) -> - | G139: =IF(OR('Tabel 4F F'!G139<5,'Tabel 4 F'!G139<0.5),"-",IFERROR('Tabel 4 F'!G139/'Tabel 4F F'!G139*100,"-")) -> - | I139: =IF(OR('Tabel 4F F'!I139<5,'Tabel 4 F'!I139<0.5),"-",IFERROR('Tabel 4 F'!I139/'Tabel 4F F'!I139*100,"-")) -> 4.166666667
A140: Jurist | C140: =IF(OR('Tabel 4F F'!C140<5,'Tabel 4 F'!C140<0.5),"-",IFERROR('Tabel 4 F'!C140/'Tabel 4F F'!C140*100,"-")) -> - | D140: =IF(OR('Tabel 4F F'!D140<5,'Tabel 4 F'!D140<0.5),"-",IFERROR('Tabel 4 F'!D140/'Tabel 4F F'!D140*100,"-")) -> - | E140: =IF(OR('Tabel 4F F'!E140<5,'Tabel 4 F'!E140<0.5),"-",IFERROR('Tabel 4 F'!E140/'Tabel 4F F'!E140*100,"-")) -> - | F140: =IF(OR('Tabel 4F F'!F140<5,'Tabel 4 F'!F140<0.5),"-",IFERROR('Tabel 4 F'!F140/'Tabel 4F F'!F140*100,"-")) -> - | G140: =IF(OR('Tabel 4F F'!G140<5,'Tabel 4 F'!G140<0.5),"-",IFERROR('Tabel 4 F'!G140/'Tabel 4F F'!G140*100,"-")) -> - | I140: =IF(OR('Tabel 4F F'!I140<5,'Tabel 4 F'!I140<0.5),"-",IFERROR('Tabel 4 F'!I140/'Tabel 4F F'!I140*100,"-")) -> 4.166666667
A141: Økonom | C141: =IF(OR('Tabel 4F F'!C141<5,'Tabel 4 F'!C141<0.5),"-",IFERROR('Tabel 4 F'!C141/'Tabel 4F F'!C141*100,"-")) -> - | D141: =IF(OR('Tabel 4F F'!D141<5,'Tabel 4 F'!D141<0.5),"-",IFERROR('Tabel 4 F'!D141/'Tabel 4F F'!D141*100,"-")) -> - | E141: =IF(OR('Tabel 4F F'!E141<5,'Tabel 4 F'!E141<0.5),"-",IFERROR('Tabel 4 F'!E141/'Tabel 4F F'!E141*100,"-")) -> - | F141: =IF(OR('Tabel 4F F'!F141<5,'Tabel 4 F'!F141<0.5),"-",IFERROR('Tabel 4 F'!F141/'Tabel 4F F'!F141*100,"-")) -> 14.28571429 | G141: =IF(OR('Tabel 4F F'!G141<5,'Tabel 4 F'!G141<0.5),"-",IFERROR('Tabel 4 F'!G141/'Tabel 4F F'!G141*100,"-")) -> - | I141: =IF(OR('Tabel 4F F'!I141<5,'Tabel 4 F'!I141<0.5),"-",IFERROR('Tabel 4 F'!I141/'Tabel 4F F'!I141*100,"-")) -> 4.761904762
A142: Samf. Adm. | C142: =IF(OR('Tabel 4F F'!C142<5,'Tabel 4 F'!C142<0.5),"-",IFERROR('Tabel 4 F'!C142/'Tabel 4F F'!C142*100,"-")) -> - | D142: =IF(OR('Tabel 4F F'!D142<5,'Tabel 4 F'!D142<0.5),"-",IFERROR('Tabel 4 F'!D142/'Tabel 4F F'!D142*100,"-")) -> 11.11111111 | E142: =IF(OR('Tabel 4F F'!E142<5,'Tabel 4 F'!E142<0.5),"-",IFERROR('Tabel 4 F'!E142/'Tabel 4F F'!E142*100,"-")) -> 5.555555556 | F142: =IF(OR('Tabel 4F F'!F142<5,'Tabel 4 F'!F142<0.5),"-",IFERROR('Tabel 4 F'!F142/'Tabel 4F F'!F142*100,"-")) -> - | G142: =IF(OR('Tabel 4F F'!G142<5,'Tabel 4 F'!G142<0.5),"-",IFERROR('Tabel 4 F'!G142/'Tabel 4F F'!G142*100,"-")) -> 16.66666667 | I142: =IF(OR('Tabel 4F F'!I142<5,'Tabel 4 F'!I142<0.5),"-",IFERROR('Tabel 4 F'!I142/'Tabel 4F F'!I142*100,"-")) -> 6.896551724
A143: Cand. Merc. | C143: =IF(OR('Tabel 4F F'!C143<5,'Tabel 4 F'!C143<0.5),"-",IFERROR('Tabel 4 F'!C143/'Tabel 4F F'!C143*100,"-")) -> 20 | D143: =IF(OR('Tabel 4F F'!D143<5,'Tabel 4 F'!D143<0.5),"-",IFERROR('Tabel 4 F'!D143/'Tabel 4F F'!D143*100,"-")) -> - | E143: =IF(OR('Tabel 4F F'!E143<5,'Tabel 4 F'!E143<0.5),"-",IFERROR('Tabel 4 F'!E143/'Tabel 4F F'!E143*100,"-")) -> 6.25 | F143: =IF(OR('Tabel 4F F'!F143<5,'Tabel 4 F'!F143<0.5),"-",IFERROR('Tabel 4 F'!F143/'Tabel 4F F'!F143*100,"-")) -> 5.882352941 | G143: =IF(OR('Tabel 4F F'!G143<5,'Tabel 4 F'!G143<0.5),"-",IFERROR('Tabel 4 F'!G143/'Tabel 4F F'!G143*100,"-")) -> - | I143: =IF(OR('Tabel 4F F'!I143<5,'Tabel 4 F'!I143<0.5),"-",IFERROR('Tabel 4 F'!I143/'Tabel 4F F'!I143*100,"-")) -> 5.263157895
A144: HA | C144: =IF(OR('Tabel 4F F'!C144<5,'Tabel 4 F'!C144<0.5),"-",IFERROR('Tabel 4 F'!C144/'Tabel 4F F'!C144*100,"-")) -> - | D144: =IF(OR('Tabel 4F F'!D144<5,'Tabel 4 F'!D144<0.5),"-",IFERROR('Tabel 4 F'!D144/'Tabel 4F F'!D144*100,"-")) -> - | E144: =IF(OR('Tabel 4F F'!E144<5,'Tabel 4 F'!E144<0.5),"-",IFERROR('Tabel 4 F'!E144/'Tabel 4F F'!E144*100,"-")) -> - | F144: =IF(OR('Tabel 4F F'!F144<5,'Tabel 4 F'!F144<0.5),"-",IFERROR('Tabel 4 F'!F144/'Tabel 4F F'!F144*100,"-")) -> - | G144: =IF(OR('Tabel 4F F'!G144<5,'Tabel 4 F'!G144<0.5),"-",IFERROR('Tabel 4 F'!G144/'Tabel 4F F'!G144*100,"-")) -> - | I144: =IF(OR('Tabel 4F F'!I144<5,'Tabel 4 F'!I144<0.5),"-",IFERROR('Tabel 4 F'!I144/'Tabel 4F F'!I144*100,"-")) -> 4.761904762
A145: HD | C145: =IF(OR('Tabel 4F F'!C145<5,'Tabel 4 F'!C145<0.5),"-",IFERROR('Tabel 4 F'!C145/'Tabel 4F F'!C145*100,"-")) -> - | D145: =IF(OR('Tabel 4F F'!D145<5,'Tabel 4 F'!D145<0.5),"-",IFERROR('Tabel 4 F'!D145/'Tabel 4F F'!D145*100,"-")) -> - | E145: =IF(OR('Tabel 4F F'!E145<5,'Tabel 4 F'!E145<0.5),"-",IFERROR('Tabel 4 F'!E145/'Tabel 4F F'!E145*100,"-")) -> - | F145: =IF(OR('Tabel 4F F'!F145<5,'Tabel 4 F'!F145<0.5),"-",IFERROR('Tabel 4 F'!F145/'Tabel 4F F'!F145*100,"-")) -> - | G145: =IF(OR('Tabel 4F F'!G145<5,'Tabel 4 F'!G145<0.5),"-",IFERROR('Tabel 4 F'!G145/'Tabel 4F F'!G145*100,"-")) -> - | I145: =IF(OR('Tabel 4F F'!I145<5,'Tabel 4 F'!I145<0.5),"-",IFERROR('Tabel 4 F'!I145/'Tabel 4F F'!I145*100,"-")) -> 5.263157895
A146: Komm. og Sprog | C146: =IF(OR('Tabel 4F F'!C146<5,'Tabel 4 F'!C146<0.5),"-",IFERROR('Tabel 4 F'!C146/'Tabel 4F F'!C146*100,"-")) -> - | D146: =IF(OR('Tabel 4F F'!D146<5,'Tabel 4 F'!D146<0.5),"-",IFERROR('Tabel 4 F'!D146/'Tabel 4F F'!D146*100,"-")) -> - | E146: =IF(OR('Tabel 4F F'!E146<5,'Tabel 4 F'!E146<0.5),"-",IFERROR('Tabel 4 F'!E146/'Tabel 4F F'!E146*100,"-")) -> 20 | F146: =IF(OR('Tabel 4F F'!F146<5,'Tabel 4 F'!F146<0.5),"-",IFERROR('Tabel 4 F'!F146/'Tabel 4F F'!F146*100,"-")) -> 16.66666667 | G146: =IF(OR('Tabel 4F F'!G146<5,'Tabel 4 F'!G146<0.5),"-",IFERROR('Tabel 4 F'!G146/'Tabel 4F F'!G146*100,"-")) -> - | I146: =IF(OR('Tabel 4F F'!I146<5,'Tabel 4 F'!I146<0.5),"-",IFERROR('Tabel 4 F'!I146/'Tabel 4F F'!I146*100,"-")) -> 15
A147: Bygningskonst. | C147: =IF(OR('Tabel 4F F'!C147<5,'Tabel 4 F'!C147<0.5),"-",IFERROR('Tabel 4 F'!C147/'Tabel 4F F'!C147*100,"-")) -> - | D147: =IF(OR('Tabel 4F F'!D147<5,'Tabel 4 F'!D147<0.5),"-",IFERROR('Tabel 4 F'!D147/'Tabel 4F F'!D147*100,"-")) -> 5.263157895 | E147: =IF(OR('Tabel 4F F'!E147<5,'Tabel 4 F'!E147<0.5),"-",IFERROR('Tabel 4 F'!E147/'Tabel 4F F'!E147*100,"-")) -> - | F147: =IF(OR('Tabel 4F F'!F147<5,'Tabel 4 F'!F147<0.5),"-",IFERROR('Tabel 4 F'!F147/'Tabel 4F F'!F147*100,"-")) -> - | G147: =IF(OR('Tabel 4F F'!G147<5,'Tabel 4 F'!G147<0.5),"-",IFERROR('Tabel 4 F'!G147/'Tabel 4F F'!G147*100,"-")) -> - | I147: =IF(OR('Tabel 4F F'!I147<5,'Tabel 4 F'!I147<0.5),"-",IFERROR('Tabel 4 F'!I147/'Tabel 4F F'!I147*100,"-")) -> 1.960784314
A148: Cand. IT. | C148: =IF(OR('Tabel 4F F'!C148<5,'Tabel 4 F'!C148<0.5),"-",IFERROR('Tabel 4 F'!C148/'Tabel 4F F'!C148*100,"-")) -> - | D148: =IF(OR('Tabel 4F F'!D148<5,'Tabel 4 F'!D148<0.5),"-",IFERROR('Tabel 4 F'!D148/'Tabel 4F F'!D148*100,"-")) -> - | E148: =IF(OR('Tabel 4F F'!E148<5,'Tabel 4 F'!E148<0.5),"-",IFERROR('Tabel 4 F'!E148/'Tabel 4F F'!E148*100,"-")) -> - | F148: =IF(OR('Tabel 4F F'!F148<5,'Tabel 4 F'!F148<0.5),"-",IFERROR('Tabel 4 F'!F148/'Tabel 4F F'!F148*100,"-")) -> - | G148: =IF(OR('Tabel 4F F'!G148<5,'Tabel 4 F'!G148<0.5),"-",IFERROR('Tabel 4 F'!G148/'Tabel 4F F'!G148*100,"-")) -> - | I148: =IF(OR('Tabel 4F F'!I148<5,'Tabel 4 F'!I148<0.5),"-",IFERROR('Tabel 4 F'!I148/'Tabel 4F F'!I148*100,"-")) -> 12.5
